Workbook

Sheet INTRO
C1: The current version should be used in countries endemic for Loasis
B2: Joint request for selected PC medicines v.3.1 (L)
B4: As part of global efforts to accelerate expansion of preventive chemotherapy (PC) for control and elimination of lymphatic filariasis, schistosomiasis and soil-transmitted helminthiases, the World Health Organization (WHO) facilitates the supply of albendazole 400 mg tablets (GSK) to national lymphatic filariasis elimination programmes and national soil-transmitted helminth control programmes; diethylcarbamazine citrate 100 mg tablets (Eisai) to national lymphatic filariasis elimination programmes; mebendazole 500 mg tablets (J&J) for national soil-transmitted helminth control programmes; and praziquantel 600 mg tablets (Merck KGaA) for school-age children to national schistosomiasis control programmes. WHO also collaborates to supply ivermectin 3 mg tablets (Merck) for onchocerciasis and lymphatic filariasis donation programmes. This Excel-based tool is designed to assist countries in quantifying the number of tablets of relevant PC medicines required to reach the planned target population and districts for the year of request. Output of the tool is a joint request for PC medicines, which can be printed, signed and submitted to WHO to request these medicines.
B6: Structure of the application (worksheets):
B8: INTRO | C8: This worksheet includes guides on how to complete the joint request for selected PC medicines and information about the status of PC for endemic diseases in the country.
B9: COUNTRY_INFO | C9: This worksheet includes information about administrative structure of the country, population by age group, status of endemicity for each disease, population requiring PC and planned interventions.
B10: ALB_MBD, PZQ and IVM | C10: These worksheets include information about endemic districts targeted for treatment with specified PC medicines, treatment plan, and number of tablets required and requested.
B11: SUMMARY | C11: This worksheet includes summary of number of tablets requested, information about stock, and date for submission of requested medicines. Before generating the report (run macros) please select the medicine for which the report is needed. Follow the same rule to see the number of people to be treated for the specific disease. This worksheet should be printed and submitted as a joint request for selected PC medicines (see the instruction for submission in the SUMMARY worksheet).
B13: Instruction for data entry
B15: Most of the cells in the above-mentioned worksheets include formula that are calculated automatically according to the treatment policy recommended by WHO for each disease. See the link http://www.who.int/neglected_diseases/preventive_chemotherapy/pct_manual/en/index.html
B17: Please enter your data into the cells according to their colour code:
C19: White - cell is not protected. Please enter the value of the requested indicator.
C21: Yellow - cell is protected and includes name of indicator. No data entry required.
C23: Orange - cell is not protected and includes a drop-down menu. Please select the value from the drop-down list.
C26: Green - cell is not protected and includes formula. Please change the value only if your data are different from those that are calculated automatically.
C29: Blue - cell is protected and includes formula. No data entry required.
B31: Country data
B33: COUNTRY | E33: ANGOLA
B35: Year for request of the medicine | E35: 2021
B37: Is country endemic for lymphatic filariasis (LF)? | E37: Endemic
B39: Is country endemic for onchocerciasis (ONCHO)? | E39: Endemic
B41: Is country endemic for soil-transmitted helminthiases (STH)? | E41: Endemic
B43: Is country endemic for schistosomiasis (SCH)? | E43: Endemic
B45: How many administrative units in the country? | E45: 164
B47: If demographical data at the second administrative level are not available by age group, please enter the proportion (%) of population by age group in the country. If data are available, please leave these cells blank.
B48: 1-4 years age | C48: Preschool-age children (PreSAC) | E48: 0.16
B49: 5-14 years age | C49: School-age children (SAC) | E49: 0.279
B50: 15 years + | C50: Adults | E50: 0.527

Sheet COUNTRY_INFO
A1: COUNTRY INFORMATION
A2: Administrative structure, population by age group, status of endemicity and planned interventions
A4: TOTAL | D4: =SUM(D$9:D$1000) -> 32064296.88 | E4: =SUM(E$9:E$1000) -> 5130287 | F4: =SUM(F$9:F$1000) -> 8945937 | G4: =SUM(G$9:G$1000) -> 16897885 | M4: =SUM(M$9:M$1000) -> 3979649.786 | N4: =SUM(N$9:N$1000) -> 6233934.45 | O4: =SUM(O$9:O$1000) -> 3598319 | P4: =SUM(P$9:P$1000) -> 5062965.04
A6: Country administrative structure | D6: Population | H6: Endemicity | M6: Population requiring PC | Q6: Number of treatment rounds planned for the year | U6: Epidemiological surveys planned for the year | AE6: LF_Examiné | AF6: LF_Posiif | AG6: Prevalence | AH6: LF_Endemicité | AK6: STH_Prev | AL6: STH_End | AP6: SCH_Prev_Max | AQ6: SCH_Prev_Avg | AR6: SCH_End_Max | AT6: SCH_End_Avg
A7: Country | B7: Province/State | C7: District | D7: Total | E7: PreSAC | F7: SAC | G7: Adults | H7: LF | I7: Oncho | J7: STH | K7: SCH | L7: Loa | M7: LF | N7: Oncho | O7: STH | P7: SCH | Q7: LF | R7: Oncho | S7: STH | T7: SCH | U7: LF | V7: Oncho | W7: STH | X7: SCH | Y7: IU_ID | Z7: IU_Name | AA7: x | AB7: x | AC7: x | AD7: x | AE7: x | AF7: x | AG7: x | AI7: x | AJ7: x | AK7: x | AL7: x | AM7: x | AN7: x | AO7: x | AP7: x | AQ7: x | AR7: x | AS7: x | AT7: x | AU7: x | AV7: x | AW7: x | AX7: x | AY7: x | AZ7: x | BA7: x | BB7: x | BC7: x
A9: =IF(INTRO!$E$33<>0,INTRO!$E$33, " ") -> ANGOLA | B9: BENGO | C9: AMBRIZ | D9: 30564.42903 | E9: =IF(INTRO!$E$48="","",ROUND($D9*INTRO!$E$48,0)) -> 4890 | F9: =IF(INTRO!$E$49="","",ROUND($D9*INTRO!$E$49,0)) -> 8527 | G9: =IF(INTRO!$E$50="","",ROUND($D9*INTRO!$E$50,0)) -> 16107 | H9: 1 | I9: 4 | J9: 1 | K9: 2 | L9: 1 | M9: =IF(INTRO!$E$37="Endemic",IF($H9>0,IF($H9=4,"Unknown",IF($H9=99,"Stopped",$D9)),0),"Not required") -> 30564.42903 | N9: =IF(INTRO!$E$39="Endemic", IF($I9>0, IF($I9=4,"Unknown",IF($I9=99,"Stopped",$D9)), 0),"Not required") -> Unknown | O9: =IF(INTRO!$E$41="Endemic", IF(AND($J9>1,$J9<5), IF($J9=4, "Unknown", E9+F9), 0),"Not required") -> 0 | P9: =IF(INTRO!$E$43="Endemic", IF(AND($K9>0,$K9<5), IF($K9=4,"Unknown", IF($K9=1, $F9*0.33, IF($K9=2, $F9*0.5+$G9*0.2, SUM(F9:G9)))), 0),"Not required") -> 7484.9 | Q9: 1 | R9: 0 | S9: 0 | T9: 1 | Y9: 2049 | Z9: AMBRIZ | AB9: =AD9=C9 -> TRUE | AC9: Bengo | AD9: Ambriz | AE9: 131 | AF9: 9 | AG9: =AF9/AE9*100 -> 6.870229008 | AH9: 1 | AI9: =AH9=H9 -> TRUE | AK9: 6.973856209 | AL9: 1 | AM9: =AL9=J9 -> TRUE | AP9: 58 | AQ9: 16.21568627 | AR9: 3 | AS9: =AR9=K9 -> FALSE | AT9: 2 | AU9: =AT9=K9 -> TRUE | AY9: =_xlfn.XLOOKUP(Y9,[1]COUNTRY_INFO!$W$9:$W$172,[1]COUNTRY_INFO!$T$9:$T$172) -> 1 | AZ9: =_xlfn.XLOOKUP(Y9,[2]DISTRICT!$AJ$9:$AJ$172,[2]DISTRICT!$AH$9:$AH$172) -> 0 | BA9: =AY9+AZ9 -> 1
A10: =IF(INTRO!$E$33<>0,INTRO!$E$33, " ") -> ANGOLA | B10: BENGO | C10: BULA ATUMBA | D10: 18105.88573 | E10: =IF(INTRO!$E$48="","",ROUND($D10*INTRO!$E$48,0)) -> 2897 | F10: =IF(INTRO!$E$49="","",ROUND($D10*INTRO!$E$49,0)) -> 5052 | G10: =IF(INTRO!$E$50="","",ROUND($D10*INTRO!$E$50,0)) -> 9542 | H10: 1 | I10: 4 | J10: 3 | K10: 1 | L10: 1 | M10: =IF(INTRO!$E$37="Endemic",IF($H10>0,IF($H10=4,"Unknown",IF($H10=99,"Stopped",$D10)),0),"Not required") -> 18105.88573 | N10: =IF(INTRO!$E$39="Endemic", IF($I10>0, IF($I10=4,"Unknown",IF($I10=99,"Stopped",$D10)), 0),"Not required") -> Unknown | O10: =IF(INTRO!$E$41="Endemic", IF(AND($J10>1,$J10<5), IF($J10=4, "Unknown", E10+F10), 0),"Not required") -> 7949 | P10: =IF(INTRO!$E$43="Endemic", IF(AND($K10>0,$K10<5), IF($K10=4,"Unknown", IF($K10=1, $F10*0.33, IF($K10=2, $F10*0.5+$G10*0.2, SUM(F10:G10)))), 0),"Not required") -> 1667.16 | Q10: 1 | R10: 0 | S10: 2 | T10: 1 | Y10: 2088 | Z10: BULA ATUMBA | AB10: =AD10=C10 -> TRUE | AC10: Bengo | AD10: Bula Atumba | AE10: 138 | AF10: 3 | AG10: =AF10/AE10*100 -> 2.173913043 | AH10: 1 | AI10: =AH10=H10 -> TRUE | AK10: 78.5 | AL10: 3 | AM10: =AL10=J10 -> TRUE | AP10: 2 | AQ10: 1 | AR10: 1 | AS10: =AR10=K10 -> TRUE | AT10: 1 | AU10: =AT10=K10 -> TRUE | AY10: =_xlfn.XLOOKUP(Y10,[1]COUNTRY_INFO!$W$9:$W$172,[1]COUNTRY_INFO!$T$9:$T$172) -> 0 | AZ10: =_xlfn.XLOOKUP(Y10,[2]DISTRICT!$AJ$9:$AJ$172,[2]DISTRICT!$AH$9:$AH$172) -> 0 | BA10: =AY10+AZ10 -> 0
A11: =IF(INTRO!$E$33<>0,INTRO!$E$33, " ") -> ANGOLA | B11: BENGO | C11: DANDE | D11: 299458.3614 | E11: =IF(INTRO!$E$48="","",ROUND($D11*INTRO!$E$48,0)) -> 47913 | F11: =IF(INTRO!$E$49="","",ROUND($D11*INTRO!$E$49,0)) -> 83549 | G11: =IF(INTRO!$E$50="","",ROUND($D11*INTRO!$E$50,0)) -> 157815 | H11: 1 | I11: 4 | J11: 1 | K11: 2 | L11: 1 | M11: =IF(INTRO!$E$37="Endemic",IF($H11>0,IF($H11=4,"Unknown",IF($H11=99,"Stopped",$D11)),0),"Not required") -> 299458.3614 | N11: =IF(INTRO!$E$39="Endemic", IF($I11>0, IF($I11=4,"Unknown",IF($I11=99,"Stopped",$D11)), 0),"Not required") -> Unknown | O11: =IF(INTRO!$E$41="Endemic", IF(AND($J11>1,$J11<5), IF($J11=4, "Unknown", E11+F11), 0),"Not required") -> 0 | P11: =IF(INTRO!$E$43="Endemic", IF(AND($K11>0,$K11<5), IF($K11=4,"Unknown", IF($K11=1, $F11*0.33, IF($K11=2, $F11*0.5+$G11*0.2, SUM(F11:G11)))), 0),"Not required") -> 73337.5 | Q11: 1 | R11: 0 | S11: 0 | T11: 1 | Y11: 2050 | Z11: DANDE | AB11: TRUE | AC11: Bengo | AD11: Dande | AE11: 200 | AF11: 6 | AG11: 3 | AH11: 1 | AI11: TRUE | AK11: 14.85714286 | AL11: 1 | AM11: TRUE | AP11: 62 | AQ11: 21.71428571 | AR11: 3 | AS11: FALSE | AT11: 2 | AU11: TRUE | AY11: =_xlfn.XLOOKUP(Y11,[1]COUNTRY_INFO!$W$9:$W$172,[1]COUNTRY_INFO!$T$9:$T$172) -> 1 | AZ11: =_xlfn.XLOOKUP(Y11,[2]DISTRICT!$AJ$9:$AJ$172,[2]DISTRICT!$AH$9:$AH$172) -> 0 | BA11: 1
A12: =IF(INTRO!$E$33<>0,INTRO!$E$33, " ") -> ANGOLA | B12: BENGO | C12: DEMBOS | D12: 40449.40989 | E12: =IF(INTRO!$E$48="","",ROUND($D12*INTRO!$E$48,0)) -> 6472 | F12: =IF(INTRO!$E$49="","",ROUND($D12*INTRO!$E$49,0)) -> 11285 | G12: =IF(INTRO!$E$50="","",ROUND($D12*INTRO!$E$50,0)) -> 21317 | H12: 1 | I12: 4 | J12: 3 | K12: 1 | L12: 1 | M12: =IF(INTRO!$E$37="Endemic",IF($H12>0,IF($H12=4,"Unknown",IF($H12=99,"Stopped",$D12)),0),"Not required") -> 40449.40989 | N12: =IF(INTRO!$E$39="Endemic", IF($I12>0, IF($I12=4,"Unknown",IF($I12=99,"Stopped",$D12)), 0),"Not required") -> Unknown | O12: =IF(INTRO!$E$41="Endemic", IF(AND($J12>1,$J12<5), IF($J12=4, "Unknown", E12+F12), 0),"Not required") -> 17757 | P12: =IF(INTRO!$E$43="Endemic", IF(AND($K12>0,$K12<5), IF($K12=4,"Unknown", IF($K12=1, $F12*0.33, IF($K12=2, $F12*0.5+$G12*0.2, SUM(F12:G12)))), 0),"Not required") -> 3724.05 | Q12: 1 | R12: 0 | S12: 2 | T12: 1 | Y12: 2089 | Z12: DEMBOS | AB12: TRUE | AC12: Bengo | AD12: Dembos | AE12: 179 | AF12: 2 | AG12: 1.117318436 | AH12: 1 | AI12: TRUE | AK12: 81.46666667 | AL12: 3 | AM12: TRUE | AP12: 6.25 | AQ12: 2.85 | AR12: 1 | AS12: TRUE | AT12: 1 | AU12: TRUE | AY12: =_xlfn.XLOOKUP(Y12,[1]COUNTRY_INFO!$W$9:$W$172,[1]COUNTRY_INFO!$T$9:$T$172) -> 0 | AZ12: =_xlfn.XLOOKUP(Y12,[2]DISTRICT!$AJ$9:$AJ$172,[2]DISTRICT!$AH$9:$AH$172) -> 0 | BA12: 0
A13: =IF(INTRO!$E$33<>0,INTRO!$E$33, " ") -> ANGOLA | B13: BENGO | C13: NAMBUANGONGO | D13: 81930.51848 | E13: =IF(INTRO!$E$48="","",ROUND($D13*INTRO!$E$48,0)) -> 13109 | F13: =IF(INTRO!$E$49="","",ROUND($D13*INTRO!$E$49,0)) -> 22859 | G13: =IF(INTRO!$E$50="","",ROUND($D13*INTRO!$E$50,0)) -> 43177 | H13: 1 | I13: 4 | J13: 2 | K13: 2 | L13: 1 | M13: =IF(INTRO!$E$37="Endemic",IF($H13>0,IF($H13=4,"Unknown",IF($H13=99,"Stopped",$D13)),0),"Not required") -> 81930.51848 | N13: =IF(INTRO!$E$39="Endemic", IF($I13>0, IF($I13=4,"Unknown",IF($I13=99,"Stopped",$D13)), 0),"Not required") -> Unknown | O13: =IF(INTRO!$E$41="Endemic", IF(AND($J13>1,$J13<5), IF($J13=4, "Unknown", E13+F13), 0),"Not required") -> 35968 | P13: =IF(INTRO!$E$43="Endemic", IF(AND($K13>0,$K13<5), IF($K13=4,"Unknown", IF($K13=1, $F13*0.33, IF($K13=2, $F13*0.5+$G13*0.2, SUM(F13:G13)))), 0),"Not required") -> 20064.9 | Q13: 1 | R13: 0 | S13: 1 | T13: 1 | Y13: 2053 | Z13: NAMBUANGONGO | AB13: TRUE | AC13: Bengo | AD13: Nambuangongo | AE13: 141 | AF13: 3 | AG13: 2.127659574 | AH13: 1 | AI13: TRUE | AK13: 22.8 | AL13: 2 | AM13: TRUE | AP13: 36 | AQ13: 10.8 | AR13: 2 | AS13: TRUE | AT13: 2 | AU13: TRUE | AY13: =_xlfn.XLOOKUP(Y13,[1]COUNTRY_INFO!$W$9:$W$172,[1]COUNTRY_INFO!$T$9:$T$172) -> 0 | AZ13: =_xlfn.XLOOKUP(Y13,[2]DISTRICT!$AJ$9:$AJ$172,[2]DISTRICT!$AH$9:$AH$172) -> 0 | BA13: 0
A14: =IF(INTRO!$E$33<>0,INTRO!$E$33, " ") -> ANGOLA | B14: BENGO | C14: PANGO ALUQUEM | D14: 9427.39549 | E14: =IF(INTRO!$E$48="","",ROUND($D14*INTRO!$E$48,0)) -> 1508 | F14: =IF(INTRO!$E$49="","",ROUND($D14*INTRO!$E$49,0)) -> 2630 | G14: =IF(INTRO!$E$50="","",ROUND($D14*INTRO!$E$50,0)) -> 4968 | H14: 0 | I14: 4 | J14: 3 | K14: 2 | L14: 1 | M14: =IF(INTRO!$E$37="Endemic",IF($H14>0,IF($H14=4,"Unknown",IF($H14=99,"Stopped",$D14)),0),"Not required") -> 0 | N14: =IF(INTRO!$E$39="Endemic", IF($I14>0, IF($I14=4,"Unknown",IF($I14=99,"Stopped",$D14)), 0),"Not required") -> Unknown | O14: =IF(INTRO!$E$41="Endemic", IF(AND($J14>1,$J14<5), IF($J14=4, "Unknown", E14+F14), 0),"Not required") -> 4138 | P14: =IF(INTRO!$E$43="Endemic", IF(AND($K14>0,$K14<5), IF($K14=4,"Unknown", IF($K14=1, $F14*0.33, IF($K14=2, $F14*0.5+$G14*0.2, SUM(F14:G14)))), 0),"Not required") -> 2308.6 | Q14: 0 | R14: 0 | S14: 2 | T14: 1 | Y14: 2096 | Z14: PANGO ALUQUEM | AB14: TRUE | AC14: Bengo | AD14: Pango Aluquem | AE14: 186 | AF14: 0 | AG14: 0 | AH14: 0 | AI14: TRUE | AK14: 60.5 | AL14: 3 | AM14: TRUE | AP14: 30 | AQ14: 17.5 | AR14: 2 | AS14: TRUE | AT14: 2 | AU14: TRUE | AY14: =_xlfn.XLOOKUP(Y14,[1]COUNTRY_INFO!$W$9:$W$172,[1]COUNTRY_INFO!$T$9:$T$172) -> 1 | AZ14: =_xlfn.XLOOKUP(Y14,[2]DISTRICT!$AJ$9:$AJ$172,[2]DISTRICT!$AH$9:$AH$172) -> 0 | BA14: 1
A15: =IF(INTRO!$E$33<>0,INTRO!$E$33, " ") -> ANGOLA | B15: BENGUELA | C15: BAIA FARTA | D15: 129504.6403 | E15: =IF(INTRO!$E$48="","",ROUND($D15*INTRO!$E$48,0)) -> 20721 | F15: =IF(INTRO!$E$49="","",ROUND($D15*INTRO!$E$49,0)) -> 36132 | G15: =IF(INTRO!$E$50="","",ROUND($D15*INTRO!$E$50,0)) -> 68249 | H15: 0 | I15: 4 | J15: 0 | K15: 2 | L15: 0 | M15: =IF(INTRO!$E$37="Endemic",IF($H15>0,IF($H15=4,"Unknown",IF($H15=99,"Stopped",$D15)),0),"Not required") -> 0 | N15: =IF(INTRO!$E$39="Endemic", IF($I15>0, IF($I15=4,"Unknown",IF($I15=99,"Stopped",$D15)), 0),"Not required") -> Unknown | O15: =IF(INTRO!$E$41="Endemic", IF(AND($J15>1,$J15<5), IF($J15=4, "Unknown", E15+F15), 0),"Not required") -> 0 | P15: =IF(INTRO!$E$43="Endemic", IF(AND($K15>0,$K15<5), IF($K15=4,"Unknown", IF($K15=1, $F15*0.33, IF($K15=2, $F15*0.5+$G15*0.2, SUM(F15:G15)))), 0),"Not required") -> 31715.8 | Q15: 0 | R15: 0 | S15: 0 | T15: 1 | Y15: 2054 | Z15: BAIA FARTA | AB15: TRUE | AC15: Benguela | AD15: Baia Farta | AE15: 200 | AF15: 0 | AG15: 0 | AH15: 0 | AI15: TRUE | AK15: 0.6666666667 | AL15: 0 | AM15: TRUE | AP15: 18 | AQ15: 14.66666667 | AR15: 2 | AS15: TRUE | AT15: 2 | AU15: TRUE | AY15: =_xlfn.XLOOKUP(Y15,[1]COUNTRY_INFO!$W$9:$W$172,[1]COUNTRY_INFO!$T$9:$T$172) -> 1 | AZ15: =_xlfn.XLOOKUP(Y15,[2]DISTRICT!$AJ$9:$AJ$172,[2]DISTRICT!$AH$9:$AH$172) -> 0 | BA15: 1
A16: =IF(INTRO!$E$33<>0,INTRO!$E$33, " ") -> ANGOLA | B16: BENGUELA | C16: BALOMBO | D16: 130855.2057 | E16: =IF(INTRO!$E$48="","",ROUND($D16*INTRO!$E$48,0)) -> 20937 | F16: =IF(INTRO!$E$49="","",ROUND($D16*INTRO!$E$49,0)) -> 36509 | G16: =IF(INTRO!$E$50="","",ROUND($D16*INTRO!$E$50,0)) -> 68961 | H16: 0 | I16: 4 | J16: 1 | K16: 1 | L16: 0 | M16: =IF(INTRO!$E$37="Endemic",IF($H16>0,IF($H16=4,"Unknown",IF($H16=99,"Stopped",$D16)),0),"Not required") -> 0 | N16: =IF(INTRO!$E$39="Endemic", IF($I16>0, IF($I16=4,"Unknown",IF($I16=99,"Stopped",$D16)), 0),"Not required") -> Unknown | O16: =IF(INTRO!$E$41="Endemic", IF(AND($J16>1,$J16<5), IF($J16=4, "Unknown", E16+F16), 0),"Not required") -> 0 | P16: =IF(INTRO!$E$43="Endemic", IF(AND($K16>0,$K16<5), IF($K16=4,"Unknown", IF($K16=1, $F16*0.33, IF($K16=2, $F16*0.5+$G16*0.2, SUM(F16:G16)))), 0),"Not required") -> 12047.97 | Q16: 0 | R16: 0 | S16: 0 | T16: 0 | Y16: 2055 | Z16: BALOMBO | AB16: FALSE | AC16: Benguela | AD16: Balombo | AE16: 200 | AF16: 0 | AG16: 0 | AH16: 0 | AI16: TRUE | AK16: 3.6 | AL16: 1 | AM16: TRUE | AP16: 12 | AQ16: 7.2 | AR16: 2 | AS16: FALSE | AT16: 1 | AU16: TRUE | AY16: =_xlfn.XLOOKUP(Y16,[1]COUNTRY_INFO!$W$9:$W$172,[1]COUNTRY_INFO!$T$9:$T$172) -> 1 | AZ16: =_xlfn.XLOOKUP(Y16,[2]DISTRICT!$AJ$9:$AJ$172,[2]DISTRICT!$AH$9:$AH$172) -> 0 | BA16: 1
A17: =IF(INTRO!$E$33<>0,INTRO!$E$33, " ") -> ANGOLA | B17: BENGUELA | C17: BENGUELA | D17: 674628.352 | E17: =IF(INTRO!$E$48="","",ROUND($D17*INTRO!$E$48,0)) -> 107941 | F17: =IF(INTRO!$E$49="","",ROUND($D17*INTRO!$E$49,0)) -> 188221 | G17: =IF(INTRO!$E$50="","",ROUND($D17*INTRO!$E$50,0)) -> 355529 | H17: 0 | I17: 4 | J17: 1 | K17: 0 | L17: 0 | M17: =IF(INTRO!$E$37="Endemic",IF($H17>0,IF($H17=4,"Unknown",IF($H17=99,"Stopped",$D17)),0),"Not required") -> 0 | N17: =IF(INTRO!$E$39="Endemic", IF($I17>0, IF($I17=4,"Unknown",IF($I17=99,"Stopped",$D17)), 0),"Not required") -> Unknown | O17: =IF(INTRO!$E$41="Endemic", IF(AND($J17>1,$J17<5), IF($J17=4, "Unknown", E17+F17), 0),"Not required") -> 0 | P17: =IF(INTRO!$E$43="Endemic", IF(AND($K17>0,$K17<5), IF($K17=4,"Unknown", IF($K17=1, $F17*0.33, IF($K17=2, $F17*0.5+$G17*0.2, SUM(F17:G17)))), 0),"Not required") -> 0 | Q17: 0 | R17: 0 | S17: 0 | T17: 0 | Y17: 2056 | Z17: BENGUELA | AB17: TRUE | AC17: Benguela | AD17: Benguela | AE17: 200 | AF17: 0 | AG17: 0 | AH17: 0 | AI17: TRUE | AK17: 2.5 | AL17: 1 | AM17: TRUE | AP17: 2 | AQ17: 0.5 | AR17: 1 | AS17: FALSE | AT17: 0 | AU17: TRUE | AY17: =_xlfn.XLOOKUP(Y17,[1]COUNTRY_INFO!$W$9:$W$172,[1]COUNTRY_INFO!$T$9:$T$172) -> 1 | AZ17: =_xlfn.XLOOKUP(Y17,[2]DISTRICT!$AJ$9:$AJ$172,[2]DISTRICT!$AH$9:$AH$172) -> 0 | BA17: 1
A18: =IF(INTRO!$E$33<>0,INTRO!$E$33, " ") -> ANGOLA | B18: BENGUELA | C18: BOCOIO | D18: 197768.4305 | E18: =IF(INTRO!$E$48="","",ROUND($D18*INTRO!$E$48,0)) -> 31643 | F18: =IF(INTRO!$E$49="","",ROUND($D18*INTRO!$E$49,0)) -> 55177 | G18: =IF(INTRO!$E$50="","",ROUND($D18*INTRO!$E$50,0)) -> 104224 | H18: 0 | I18: 4 | J18: 1 | K18: 2 | L18: 0 | M18: =IF(INTRO!$E$37="Endemic",IF($H18>0,IF($H18=4,"Unknown",IF($H18=99,"Stopped",$D18)),0),"Not required") -> 0 | N18: =IF(INTRO!$E$39="Endemic", IF($I18>0, IF($I18=4,"Unknown",IF($I18=99,"Stopped",$D18)), 0),"Not required") -> Unknown | O18: =IF(INTRO!$E$41="Endemic", IF(AND($J18>1,$J18<5), IF($J18=4, "Unknown", E18+F18), 0),"Not required") -> 0 | P18: =IF(INTRO!$E$43="Endemic", IF(AND($K18>0,$K18<5), IF($K18=4,"Unknown", IF($K18=1, $F18*0.33, IF($K18=2, $F18*0.5+$G18*0.2, SUM(F18:G18)))), 0),"Not required") -> 48433.3 | Q18: 0 | R18: 0 | S18: 0 | T18: 1 | Y18: 2057 | Z18: BOCOIO | AB18: TRUE | AC18: Benguela | AD18: Bocoio | AE18: 200 | AF18: 0 | AG18: 0 | AH18: 0 | AI18: TRUE | AK18: 3.6 | AL18: 1 | AM18: TRUE | AP18: 82 | AQ18: 26 | AR18: 3 | AS18: FALSE | AT18: 2 | AU18: TRUE | AY18: =_xlfn.XLOOKUP(Y18,[1]COUNTRY_INFO!$W$9:$W$172,[1]COUNTRY_INFO!$T$9:$T$172) -> 1 | AZ18: =_xlfn.XLOOKUP(Y18,[2]DISTRICT!$AJ$9:$AJ$172,[2]DISTRICT!$AH$9:$AH$172) -> 0 | BA18: 1
A19: =IF(INTRO!$E$33<>0,INTRO!$E$33, " ") -> ANGOLA | B19: BENGUELA | C19: CAIMBAMBO | D19: 109086.3738 | E19: =IF(INTRO!$E$48="","",ROUND($D19*INTRO!$E$48,0)) -> 17454 | F19: =IF(INTRO!$E$49="","",ROUND($D19*INTRO!$E$49,0)) -> 30435 | G19: =IF(INTRO!$E$50="","",ROUND($D19*INTRO!$E$50,0)) -> 57489 | H19: 0 | I19: 4 | J19: 1 | K19: 2 | L19: 0 | M19: =IF(INTRO!$E$37="Endemic",IF($H19>0,IF($H19=4,"Unknown",IF($H19=99,"Stopped",$D19)),0),"Not required") -> 0 | N19: =IF(INTRO!$E$39="Endemic", IF($I19>0, IF($I19=4,"Unknown",IF($I19=99,"Stopped",$D19)), 0),"Not required") -> Unknown | O19: =IF(INTRO!$E$41="Endemic", IF(AND($J19>1,$J19<5), IF($J19=4, "Unknown", E19+F19), 0),"Not required") -> 0 | P19: =IF(INTRO!$E$43="Endemic", IF(AND($K19>0,$K19<5), IF($K19=4,"Unknown", IF($K19=1, $F19*0.33, IF($K19=2, $F19*0.5+$G19*0.2, SUM(F19:G19)))), 0),"Not required") -> 26715.3 | Q19: 0 | R19: 0 | S19: 0 | T19: 1 | Y19: 2061 | Z19: CAIMBAMBO | AB19: TRUE | AC19: Benguela | AD19: Caimbambo | AE19: 200 | AF19: 0 | AG19: 0 | AH19: 0 | AI19: TRUE | AK19: 1.333333333 | AL19: 1 | AM19: TRUE | AP19: 68 | AQ19: 26 | AR19: 3 | AS19: FALSE | AT19: 2 | AU19: TRUE | AY19: =_xlfn.XLOOKUP(Y19,[1]COUNTRY_INFO!$W$9:$W$172,[1]COUNTRY_INFO!$T$9:$T$172) -> 1 | AZ19: =_xlfn.XLOOKUP(Y19,[2]DISTRICT!$AJ$9:$AJ$172,[2]DISTRICT!$AH$9:$AH$172) -> 0 | BA19: 1
A20: =IF(INTRO!$E$33<>0,INTRO!$E$33, " ") -> ANGOLA | B20: BENGUELA | C20: CATUMBELA | D20: 211121.9084 | E20: =IF(INTRO!$E$48="","",ROUND($D20*INTRO!$E$48,0)) -> 33780 | F20: =IF(INTRO!$E$49="","",ROUND($D20*INTRO!$E$49,0)) -> 58903 | G20: =IF(INTRO!$E$50="","",ROUND($D20*INTRO!$E$50,0)) -> 111261 | H20: 0 | I20: 4 | J20: 0 | K20: 0 | L20: 1 | M20: =IF(INTRO!$E$37="Endemic",IF($H20>0,IF($H20=4,"Unknown",IF($H20=99,"Stopped",$D20)),0),"Not required") -> 0 | N20: =IF(INTRO!$E$39="Endemic", IF($I20>0, IF($I20=4,"Unknown",IF($I20=99,"Stopped",$D20)), 0),"Not required") -> Unknown | O20: =IF(INTRO!$E$41="Endemic", IF(AND($J20>1,$J20<5), IF($J20=4, "Unknown", E20+F20), 0),"Not required") -> 0 | P20: =IF(INTRO!$E$43="Endemic", IF(AND($K20>0,$K20<5), IF($K20=4,"Unknown", IF($K20=1, $F20*0.33, IF($K20=2, $F20*0.5+$G20*0.2, SUM(F20:G20)))), 0),"Not required") -> 0 | Q20: 0 | R20: 0 | S20: 0 | T20: 0 | Y20: 2216 | Z20: CATUMBELA | AB20: TRUE | AC20: Benguela | AD20: Catumbela | AE20: 200 | AF20: 0 | AG20: 0 | AH20: 0 | AI20: TRUE | AK20: 0 | AL20: 0 | AM20: TRUE | AP20: 0 | AQ20: 0 | AR20: 0 | AS20: TRUE | AT20: 0 | AU20: TRUE | AY20: =_xlfn.XLOOKUP(Y20,[1]COUNTRY_INFO!$W$9:$W$172,[1]COUNTRY_INFO!$T$9:$T$172) -> 1 | AZ20: =_xlfn.XLOOKUP(Y20,[2]DISTRICT!$AJ$9:$AJ$172,[2]DISTRICT!$AH$9:$AH$172) -> 0 | BA20: 1
A21: =IF(INTRO!$E$33<>0,INTRO!$E$33, " ") -> ANGOLA | B21: BENGUELA | C21: CHONGOROI | D21: 104811.4855 | E21: =IF(INTRO!$E$48="","",ROUND($D21*INTRO!$E$48,0)) -> 16770 | F21: =IF(INTRO!$E$49="","",ROUND($D21*INTRO!$E$49,0)) -> 29242 | G21: =IF(INTRO!$E$50="","",ROUND($D21*INTRO!$E$50,0)) -> 55236 | H21: 0 | I21: 4 | J21: 0 | K21: 2 | L21: 0 | M21: =IF(INTRO!$E$37="Endemic",IF($H21>0,IF($H21=4,"Unknown",IF($H21=99,"Stopped",$D21)),0),"Not required") -> 0 | N21: =IF(INTRO!$E$39="Endemic", IF($I21>0, IF($I21=4,"Unknown",IF($I21=99,"Stopped",$D21)), 0),"Not required") -> Unknown | O21: =IF(INTRO!$E$41="Endemic", IF(AND($J21>1,$J21<5), IF($J21=4, "Unknown", E21+F21), 0),"Not required") -> 0 | P21: =IF(INTRO!$E$43="Endemic", IF(AND($K21>0,$K21<5), IF($K21=4,"Unknown", IF($K21=1, $F21*0.33, IF($K21=2, $F21*0.5+$G21*0.2, SUM(F21:G21)))), 0),"Not required") -> 25668.2 | Q21: 0 | R21: 0 | S21: 0 | T21: 1 | Y21: 2058 | Z21: CHONGOROI | AB21: TRUE | AC21: Benguela | AD21: Chongoroi | AE21: 200 | AF21: 0 | AG21: 0 | AH21: 0 | AI21: TRUE | AK21: 0.6666666667 | AL21: 0 | AM21: TRUE | AP21: 72 | AQ21: 37.33333333 | AR21: 3 | AS21: FALSE | AT21: 2 | AU21: TRUE | AY21: =_xlfn.XLOOKUP(Y21,[1]COUNTRY_INFO!$W$9:$W$172,[1]COUNTRY_INFO!$T$9:$T$172) -> 1 | AZ21: =_xlfn.XLOOKUP(Y21,[2]DISTRICT!$AJ$9:$AJ$172,[2]DISTRICT!$AH$9:$AH$172) -> 0 | BA21: 1
A22: =IF(INTRO!$E$33<>0,INTRO!$E$33, " ") -> ANGOLA | B22: BENGUELA | C22: CUBAL | D22: 367029.1515 | E22: =IF(INTRO!$E$48="","",ROUND($D22*INTRO!$E$48,0)) -> 58725 | F22: =IF(INTRO!$E$49="","",ROUND($D22*INTRO!$E$49,0)) -> 102401 | G22: =IF(INTRO!$E$50="","",ROUND($D22*INTRO!$E$50,0)) -> 193424 | H22: 0 | I22: 4 | J22: 1 | K22: 2 | L22: 0 | M22: =IF(INTRO!$E$37="Endemic",IF($H22>0,IF($H22=4,"Unknown",IF($H22=99,"Stopped",$D22)),0),"Not required") -> 0 | N22: =IF(INTRO!$E$39="Endemic", IF($I22>0, IF($I22=4,"Unknown",IF($I22=99,"Stopped",$D22)), 0),"Not required") -> Unknown | O22: =IF(INTRO!$E$41="Endemic", IF(AND($J22>1,$J22<5), IF($J22=4, "Unknown", E22+F22), 0),"Not required") -> 0 | P22: =IF(INTRO!$E$43="Endemic", IF(AND($K22>0,$K22<5), IF($K22=4,"Unknown", IF($K22=1, $F22*0.33, IF($K22=2, $F22*0.5+$G22*0.2, SUM(F22:G22)))), 0),"Not required") -> 89885.3 | Q22: 0 | R22: 0 | S22: 0 | T22: 1 | Y22: 2059 | Z22: CUBAL | AB22: TRUE | AC22: Benguela | AD22: Cubal | AE22: 200 | AF22: 0 | AG22: 0 | AH22: 0 | AI22: TRUE | AK22: 2.4 | AL22: 1 | AM22: TRUE | AP22: 56 | AQ22: 37.6 | AR22: 3 | AS22: FALSE | AT22: 2 | AU22: TRUE | AY22: =_xlfn.XLOOKUP(Y22,[1]COUNTRY_INFO!$W$9:$W$172,[1]COUNTRY_INFO!$T$9:$T$172) -> 1 | AZ22: =_xlfn.XLOOKUP(Y22,[2]DISTRICT!$AJ$9:$AJ$172,[2]DISTRICT!$AH$9:$AH$172) -> 0 | BA22: 1
A23: =IF(INTRO!$E$33<>0,INTRO!$E$33, " ") -> ANGOLA | B23: BENGUELA | C23: GANDA | D23: 282791.9134 | E23: =IF(INTRO!$E$48="","",ROUND($D23*INTRO!$E$48,0)) -> 45247 | F23: =IF(INTRO!$E$49="","",ROUND($D23*INTRO!$E$49,0)) -> 78899 | G23: =IF(INTRO!$E$50="","",ROUND($D23*INTRO!$E$50,0)) -> 149031 | H23: 0 | I23: 4 | J23: 1 | K23: 2 | L23: 0 | M23: =IF(INTRO!$E$37="Endemic",IF($H23>0,IF($H23=4,"Unknown",IF($H23=99,"Stopped",$D23)),0),"Not required") -> 0 | N23: =IF(INTRO!$E$39="Endemic", IF($I23>0, IF($I23=4,"Unknown",IF($I23=99,"Stopped",$D23)), 0),"Not required") -> Unknown | O23: =IF(INTRO!$E$41="Endemic", IF(AND($J23>1,$J23<5), IF($J23=4, "Unknown", E23+F23), 0),"Not required") -> 0 | P23: =IF(INTRO!$E$43="Endemic", IF(AND($K23>0,$K23<5), IF($K23=4,"Unknown", IF($K23=1, $F23*0.33, IF($K23=2, $F23*0.5+$G23*0.2, SUM(F23:G23)))), 0),"Not required") -> 69255.7 | Q23: 0 | R23: 0 | S23: 0 | T23: 1 | Y23: 2060 | Z23: GANDA | AB23: FALSE | AC23: Benguela | AD23: Ganda | AE23: 200 | AF23: 0 | AG23: 0 | AH23: 0 | AI23: TRUE | AK23: 3.6 | AL23: 1 | AM23: TRUE | AP23: 68 | AQ23: 31.6 | AR23: 3 | AS23: FALSE | AT23: 2 | AU23: TRUE | AY23: =_xlfn.XLOOKUP(Y23,[1]COUNTRY_INFO!$W$9:$W$172,[1]COUNTRY_INFO!$T$9:$T$172) -> 1 | AZ23: =_xlfn.XLOOKUP(Y23,[2]DISTRICT!$AJ$9:$AJ$172,[2]DISTRICT!$AH$9:$AH$172) -> 0 | BA23: 1
A24: =IF(INTRO!$E$33<>0,INTRO!$E$33, " ") -> ANGOLA | B24: BENGUELA | C24: LOBITO | D24: 472043.5389 | E24: =IF(INTRO!$E$48="","",ROUND($D24*INTRO!$E$48,0)) -> 75527 | F24: =IF(INTRO!$E$49="","",ROUND($D24*INTRO!$E$49,0)) -> 131700 | G24: =IF(INTRO!$E$50="","",ROUND($D24*INTRO!$E$50,0)) -> 248767 | H24: 1 | I24: 4 | J24: 1 | K24: 0 | L24: 0 | M24: =IF(INTRO!$E$37="Endemic",IF($H24>0,IF($H24=4,"Unknown",IF($H24=99,"Stopped",$D24)),0),"Not required") -> 472043.5389 | N24: =IF(INTRO!$E$39="Endemic", IF($I24>0, IF($I24=4,"Unknown",IF($I24=99,"Stopped",$D24)), 0),"Not required") -> Unknown | O24: =IF(INTRO!$E$41="Endemic", IF(AND($J24>1,$J24<5), IF($J24=4, "Unknown", E24+F24), 0),"Not required") -> 0 | P24: =IF(INTRO!$E$43="Endemic", IF(AND($K24>0,$K24<5), IF($K24=4,"Unknown", IF($K24=1, $F24*0.33, IF($K24=2, $F24*0.5+$G24*0.2, SUM(F24:G24)))), 0),"Not required") -> 0 | Q24: 1 | R24: 0 | S24: 0 | T24: 0 | Y24: 2062 | Z24: LOBITO | AB24: TRUE | AC24: Benguela | AD24: Lobito | AE24: 200 | AF24: 4 | AG24: 2 | AH24: 1 | AI24: TRUE | AK24: 4 | AL24: 1 | AM24: TRUE | AP24: 4 | AQ24: 0.8 | AR24: 1 | AS24: FALSE | AT24: 0 | AU24: TRUE | AY24: =_xlfn.XLOOKUP(Y24,[1]COUNTRY_INFO!$W$9:$W$172,[1]COUNTRY_INFO!$T$9:$T$172) -> 1 | AZ24: =_xlfn.XLOOKUP(Y24,[2]DISTRICT!$AJ$9:$AJ$172,[2]DISTRICT!$AH$9:$AH$172) -> 0 | BA24: 1
A25: =IF(INTRO!$E$33<>0,INTRO!$E$33, " ") -> ANGOLA | B25: BIE | C25: ANDULO | D25: 323479.2192 | E25: =IF(INTRO!$E$48="","",ROUND($D25*INTRO!$E$48,0)) -> 51757 | F25: =IF(INTRO!$E$49="","",ROUND($D25*INTRO!$E$49,0)) -> 90251 | G25: =IF(INTRO!$E$50="","",ROUND($D25*INTRO!$E$50,0)) -> 170474 | H25: 0 | I25: 1 | J25: 1 | K25: 0 | L25: 1 | M25: =IF(INTRO!$E$37="Endemic",IF($H25>0,IF($H25=4,"Unknown",IF($H25=99,"Stopped",$D25)),0),"Not required") -> 0 | N25: =IF(INTRO!$E$39="Endemic", IF($I25>0, IF($I25=4,"Unknown",IF($I25=99,"Stopped",$D25)), 0),"Not required") -> 323479.2192 | O25: =IF(INTRO!$E$41="Endemic", IF(AND($J25>1,$J25<5), IF($J25=4, "Unknown", E25+F25), 0),"Not required") -> 0 | P25: =IF(INTRO!$E$43="Endemic", IF(AND($K25>0,$K25<5), IF($K25=4,"Unknown", IF($K25=1, $F25*0.33, IF($K25=2, $F25*0.5+$G25*0.2, SUM(F25:G25)))), 0),"Not required") -> 0 | Q25: 0 | R25: 1 | S25: 0 | T25: 0 | Y25: 2063 | Z25: ANDULO | AB25: TRUE | AC25: Bie | AD25: Andulo | AE25: 200 | AF25: 0 | AG25: 0 | AH25: 0 | AI25: TRUE | AK25: 4.5 | AL25: 1 | AM25: TRUE | AP25: 2 | AQ25: 0.25 | AR25: 1 | AS25: FALSE | AT25: 0 | AU25: TRUE | AY25: =_xlfn.XLOOKUP(Y25,[1]COUNTRY_INFO!$W$9:$W$172,[1]COUNTRY_INFO!$T$9:$T$172) -> 1 | AZ25: =_xlfn.XLOOKUP(Y25,[2]DISTRICT!$AJ$9:$AJ$172,[2]DISTRICT!$AH$9:$AH$172) -> 0 | BA25: 1
A26: =IF(INTRO!$E$33<>0,INTRO!$E$33, " ") -> ANGOLA | B26: BIE | C26: CAMACUPA | D26: 194126.433 | E26: =IF(INTRO!$E$48="","",ROUND($D26*INTRO!$E$48,0)) -> 31060 | F26: =IF(INTRO!$E$49="","",ROUND($D26*INTRO!$E$49,0)) -> 54161 | G26: =IF(INTRO!$E$50="","",ROUND($D26*INTRO!$E$50,0)) -> 102305 | H26: 0 | I26: 1 | J26: 1 | K26: 2 | L26: 0 | M26: =IF(INTRO!$E$37="Endemic",IF($H26>0,IF($H26=4,"Unknown",IF($H26=99,"Stopped",$D26)),0),"Not required") -> 0 | N26: =IF(INTRO!$E$39="Endemic", IF($I26>0, IF($I26=4,"Unknown",IF($I26=99,"Stopped",$D26)), 0),"Not required") -> 194126.433 | O26: =IF(INTRO!$E$41="Endemic", IF(AND($J26>1,$J26<5), IF($J26=4, "Unknown", E26+F26), 0),"Not required") -> 0 | P26: =IF(INTRO!$E$43="Endemic", IF(AND($K26>0,$K26<5), IF($K26=4,"Unknown", IF($K26=1, $F26*0.33, IF($K26=2, $F26*0.5+$G26*0.2, SUM(F26:G26)))), 0),"Not required") -> 47541.5 | Q26: 0 | R26: 1 | S26: 0 | T26: 1 | Y26: 2066 | Z26: CAMACUPA | AB26: TRUE | AC26: Bie | AD26: Camacupa | AE26: 200 | AF26: 0 | AG26: 0 | AH26: 0 | AI26: TRUE | AK26: 3.2 | AL26: 1 | AM26: TRUE | AP26: 48 | AQ26: 12 | AR26: 2 | AS26: TRUE | AT26: 2 | AU26: TRUE | AY26: =_xlfn.XLOOKUP(Y26,[1]COUNTRY_INFO!$W$9:$W$172,[1]COUNTRY_INFO!$T$9:$T$172) -> 1 | AZ26: =_xlfn.XLOOKUP(Y26,[2]DISTRICT!$AJ$9:$AJ$172,[2]DISTRICT!$AH$9:$AH$172) -> 0 | BA26: 1
A27: =IF(INTRO!$E$33<>0,INTRO!$E$33, " ") -> ANGOLA | B27: BIE | C27: CATABOLA | D27: 158670.4928 | E27: =IF(INTRO!$E$48="","",ROUND($D27*INTRO!$E$48,0)) -> 25387 | F27: =IF(INTRO!$E$49="","",ROUND($D27*INTRO!$E$49,0)) -> 44269 | G27: =IF(INTRO!$E$50="","",ROUND($D27*INTRO!$E$50,0)) -> 83619 | H27: 0 | I27: 1 | J27: 1 | K27: 1 | L27: 1 | M27: =IF(INTRO!$E$37="Endemic",IF($H27>0,IF($H27=4,"Unknown",IF($H27=99,"Stopped",$D27)),0),"Not required") -> 0 | N27: =IF(INTRO!$E$39="Endemic", IF($I27>0, IF($I27=4,"Unknown",IF($I27=99,"Stopped",$D27)), 0),"Not required") -> 158670.4928 | O27: =IF(INTRO!$E$41="Endemic", IF(AND($J27>1,$J27<5), IF($J27=4, "Unknown", E27+F27), 0),"Not required") -> 0 | P27: =IF(INTRO!$E$43="Endemic", IF(AND($K27>0,$K27<5), IF($K27=4,"Unknown", IF($K27=1, $F27*0.33, IF($K27=2, $F27*0.5+$G27*0.2, SUM(F27:G27)))), 0),"Not required") -> 14608.77 | Q27: 0 | R27: 1 | S27: 0 | T27: 0 | Y27: 2067 | Z27: CATABOLA | AB27: TRUE | AC27: Bie | AD27: Catabola | AE27: 200 | AF27: 0 | AG27: 0 | AH27: 0 | AI27: TRUE | AK27: 5.333333333 | AL27: 1 | AM27: TRUE | AP27: 16 | AQ27: 5.333333333 | AR27: 2 | AS27: FALSE | AT27: 1 | AU27: TRUE | AY27: =_xlfn.XLOOKUP(Y27,[1]COUNTRY_INFO!$W$9:$W$172,[1]COUNTRY_INFO!$T$9:$T$172) -> 1 | AZ27: =_xlfn.XLOOKUP(Y27,[2]DISTRICT!$AJ$9:$AJ$172,[2]DISTRICT!$AH$9:$AH$172) -> 0 | BA27: 1
A28: =IF(INTRO!$E$33<>0,INTRO!$E$33, " ") -> ANGOLA | B28: BIE | C28: CHINGUAR | D28: 162101.4994 | E28: =IF(INTRO!$E$48="","",ROUND($D28*INTRO!$E$48,0)) -> 25936 | F28: =IF(INTRO!$E$49="","",ROUND($D28*INTRO!$E$49,0)) -> 45226 | G28: =IF(INTRO!$E$50="","",ROUND($D28*INTRO!$E$50,0)) -> 85427 | H28: 0 | I28: 1 | J28: 1 | K28: 0 | L28: 1 | M28: =IF(INTRO!$E$37="Endemic",IF($H28>0,IF($H28=4,"Unknown",IF($H28=99,"Stopped",$D28)),0),"Not required") -> 0 | N28: =IF(INTRO!$E$39="Endemic", IF($I28>0, IF($I28=4,"Unknown",IF($I28=99,"Stopped",$D28)), 0),"Not required") -> 162101.4994 | O28: =IF(INTRO!$E$41="Endemic", IF(AND($J28>1,$J28<5), IF($J28=4, "Unknown", E28+F28), 0),"Not required") -> 0 | P28: =IF(INTRO!$E$43="Endemic", IF(AND($K28>0,$K28<5), IF($K28=4,"Unknown", IF($K28=1, $F28*0.33, IF($K28=2, $F28*0.5+$G28*0.2, SUM(F28:G28)))), 0),"Not required") -> 0 | Q28: 0 | R28: 1 | S28: 0 | T28: 0 | Y28: 2064 | Z28: CHINGUAR | AB28: TRUE | AC28: Bie | AD28: Chinguar | AE28: 200 | AF28: 0 | AG28: 0 | AH28: 0 | AI28: TRUE | AK28: 4.666666667 | AL28: 1 | AM28: TRUE | AP28: 2 | AQ28: 0.6666666667 | AR28: 1 | AS28: FALSE | AT28: 0 | AU28: TRUE | AY28: =_xlfn.XLOOKUP(Y28,[1]COUNTRY_INFO!$W$9:$W$172,[1]COUNTRY_INFO!$T$9:$T$172) -> 1 | AZ28: =_xlfn.XLOOKUP(Y28,[2]DISTRICT!$AJ$9:$AJ$172,[2]DISTRICT!$AH$9:$AH$172) -> 0 | BA28: 1
A29: =IF(INTRO!$E$33<>0,INTRO!$E$33, " ") -> ANGOLA | B29: BIE | C29: CHITEMBO | D29: 97929.89964 | E29: =IF(INTRO!$E$48="","",ROUND($D29*INTRO!$E$48,0)) -> 15669 | F29: =IF(INTRO!$E$49="","",ROUND($D29*INTRO!$E$49,0)) -> 27322 | G29: =IF(INTRO!$E$50="","",ROUND($D29*INTRO!$E$50,0)) -> 51609 | H29: 0 | I29: 4 | J29: 1 | K29: 2 | L29: 1 | M29: =IF(INTRO!$E$37="Endemic",IF($H29>0,IF($H29=4,"Unknown",IF($H29=99,"Stopped",$D29)),0),"Not required") -> 0 | N29: =IF(INTRO!$E$39="Endemic", IF($I29>0, IF($I29=4,"Unknown",IF($I29=99,"Stopped",$D29)), 0),"Not required") -> Unknown | O29: =IF(INTRO!$E$41="Endemic", IF(AND($J29>1,$J29<5), IF($J29=4, "Unknown", E29+F29), 0),"Not required") -> 0 | P29: =IF(INTRO!$E$43="Endemic", IF(AND($K29>0,$K29<5), IF($K29=4,"Unknown", IF($K29=1, $F29*0.33, IF($K29=2, $F29*0.5+$G29*0.2, SUM(F29:G29)))), 0),"Not required") -> 23982.8 | Q29: 0 | R29: 0 | S29: 0 | T29: 1 | Y29: 2065 | Z29: CHITEMBO | AB29: TRUE | AC29: Bie | AD29: Chitembo | AE29: 149 | AF29: 0 | AG29: 0 | AH29: 0 | AI29: TRUE | AK29: 2 | AL29: 1 | AM29: TRUE | AP29: 44 | AQ29: 13.5 | AR29: 2 | AS29: TRUE | AT29: 2 | AU29: TRUE | AY29: =_xlfn.XLOOKUP(Y29,[1]COUNTRY_INFO!$W$9:$W$172,[1]COUNTRY_INFO!$T$9:$T$172) -> 1 | AZ29: =_xlfn.XLOOKUP(Y29,[2]DISTRICT!$AJ$9:$AJ$172,[2]DISTRICT!$AH$9:$AH$172) -> 0 | BA29: 1
A30: =IF(INTRO!$E$33<>0,INTRO!$E$33, " ") -> ANGOLA | B30: BIE | C30: CUEMBA | D30: 71374.99353 | E30: =IF(INTRO!$E$48="","",ROUND($D30*INTRO!$E$48,0)) -> 11420 | F30: =IF(INTRO!$E$49="","",ROUND($D30*INTRO!$E$49,0)) -> 19914 | G30: =IF(INTRO!$E$50="","",ROUND($D30*INTRO!$E$50,0)) -> 37615 | H30: 1 | I30: 1 | J30: 1 | K30: 1 | L30: 0 | M30: =IF(INTRO!$E$37="Endemic",IF($H30>0,IF($H30=4,"Unknown",IF($H30=99,"Stopped",$D30)),0),"Not required") -> 71374.99353 | N30: =IF(INTRO!$E$39="Endemic", IF($I30>0, IF($I30=4,"Unknown",IF($I30=99,"Stopped",$D30)), 0),"Not required") -> 71374.99353 | O30: =IF(INTRO!$E$41="Endemic", IF(AND($J30>1,$J30<5), IF($J30=4, "Unknown", E30+F30), 0),"Not required") -> 0 | P30: =IF(INTRO!$E$43="Endemic", IF(AND($K30>0,$K30<5), IF($K30=4,"Unknown", IF($K30=1, $F30*0.33, IF($K30=2, $F30*0.5+$G30*0.2, SUM(F30:G30)))), 0),"Not required") -> 6571.62 | Q30: 1 | R30: 1 | S30: 0 | T30: 0 | Y30: 2068 | Z30: CUEMBA | AB30: TRUE | AC30: Bie | AD30: Cuemba | AE30: 155 | AF30: 3 | AG30: 1.935483871 | AH30: 1 | AI30: TRUE | AK30: 5.333333333 | AL30: 1 | AM30: TRUE | AP30: 6 | AQ30: 1.111111111 | AR30: 1 | AS30: TRUE | AT30: 1 | AU30: TRUE | AY30: =_xlfn.XLOOKUP(Y30,[1]COUNTRY_INFO!$W$9:$W$172,[1]COUNTRY_INFO!$T$9:$T$172) -> 1 | AZ30: =_xlfn.XLOOKUP(Y30,[2]DISTRICT!$AJ$9:$AJ$172,[2]DISTRICT!$AH$9:$AH$172) -> 0 | BA30: 1
A31: =IF(INTRO!$E$33<>0,INTRO!$E$33, " ") -> ANGOLA | B31: BIE | C31: CUNHINGA | D31: 92504.86028 | E31: =IF(INTRO!$E$48="","",ROUND($D31*INTRO!$E$48,0)) -> 14801 | F31: =IF(INTRO!$E$49="","",ROUND($D31*INTRO!$E$49,0)) -> 25809 | G31: =IF(INTRO!$E$50="","",ROUND($D31*INTRO!$E$50,0)) -> 48750 | H31: 0 | I31: 1 | J31: 1 | K31: 0 | L31: 1 | M31: =IF(INTRO!$E$37="Endemic",IF($H31>0,IF($H31=4,"Unknown",IF($H31=99,"Stopped",$D31)),0),"Not required") -> 0 | N31: =IF(INTRO!$E$39="Endemic", IF($I31>0, IF($I31=4,"Unknown",IF($I31=99,"Stopped",$D31)), 0),"Not required") -> 92504.86028 | O31: =IF(INTRO!$E$41="Endemic", IF(AND($J31>1,$J31<5), IF($J31=4, "Unknown", E31+F31), 0),"Not required") -> 0 | P31: =IF(INTRO!$E$43="Endemic", IF(AND($K31>0,$K31<5), IF($K31=4,"Unknown", IF($K31=1, $F31*0.33, IF($K31=2, $F31*0.5+$G31*0.2, SUM(F31:G31)))), 0),"Not required") -> 0 | Q31: 0 | R31: 1 | S31: 0 | T31: 0 | Y31: 2070 | Z31: CUNHINGA | AB31: TRUE | AC31: Bie | AD31: Cunhinga | AE31: 200 | AF31: 0 | AG31: =AF31/AE31*100 -> 0 | AH31: 0 | AI31: TRUE | AK31: 2.5 | AL31: 1 | AM31: TRUE | AP31: 2 | AQ31: 0.5 | AR31: 1 | AS31: FALSE | AT31: 0 | AU31: TRUE | AY31: =_xlfn.XLOOKUP(Y31,[1]COUNTRY_INFO!$W$9:$W$172,[1]COUNTRY_INFO!$T$9:$T$172) -> 1 | AZ31: =_xlfn.XLOOKUP(Y31,[2]DISTRICT!$AJ$9:$AJ$172,[2]DISTRICT!$AH$9:$AH$172) -> 0 | BA31: 1
A32: =IF(INTRO!$E$33<>0,INTRO!$E$33, " ") -> ANGOLA | B32: BIE | C32: CUITO | D32: 564959.6301 | E32: =IF(INTRO!$E$48="","",ROUND($D32*INTRO!$E$48,0)) -> 90394 | F32: =IF(INTRO!$E$49="","",ROUND($D32*INTRO!$E$49,0)) -> 157624 | G32: =IF(INTRO!$E$50="","",ROUND($D32*INTRO!$E$50,0)) -> 297734 | H32: 0 | I32: 1 | J32: 1 | K32: 2 | L32: 1 | M32: =IF(INTRO!$E$37="Endemic",IF($H32>0,IF($H32=4,"Unknown",IF($H32=99,"Stopped",$D32)),0),"Not required") -> 0 | N32: =IF(INTRO!$E$39="Endemic", IF($I32>0, IF($I32=4,"Unknown",IF($I32=99,"Stopped",$D32)), 0),"Not required") -> 564959.6301 | O32: =IF(INTRO!$E$41="Endemic", IF(AND($J32>1,$J32<5), IF($J32=4, "Unknown", E32+F32), 0),"Not required") -> 0 | P32: =IF(INTRO!$E$43="Endemic", IF(AND($K32>0,$K32<5), IF($K32=4,"Unknown", IF($K32=1, $F32*0.33, IF($K32=2, $F32*0.5+$G32*0.2, SUM(F32:G32)))), 0),"Not required") -> 138358.8 | Q32: 0 | R32: 1 | S32: 0 | T32: 1 | Y32: 2069 | Z32: KUITO | AB32: TRUE | AC32: Bie | AD32: Cuito | AE32: 160 | AF32: 0 | AG32: 0 | AH32: 0 | AI32: TRUE | AK32: 8 | AL32: 1 | AM32: TRUE | AP32: 68 | AQ32: 20 | AR32: 3 | AS32: FALSE | AT32: 2 | AU32: TRUE | AY32: =_xlfn.XLOOKUP(Y32,[1]COUNTRY_INFO!$W$9:$W$172,[1]COUNTRY_INFO!$T$9:$T$172) -> 1 | AZ32: =_xlfn.XLOOKUP(Y32,[2]DISTRICT!$AJ$9:$AJ$172,[2]DISTRICT!$AH$9:$AH$172) -> 0 | BA32: 1
A33: =IF(INTRO!$E$33<>0,INTRO!$E$33, " ") -> ANGOLA | B33: BIE | C33: NHAREA | D33: 158303.9719 | E33: =IF(INTRO!$E$48="","",ROUND($D33*INTRO!$E$48,0)) -> 25329 | F33: =IF(INTRO!$E$49="","",ROUND($D33*INTRO!$E$49,0)) -> 44167 | G33: =IF(INTRO!$E$50="","",ROUND($D33*INTRO!$E$50,0)) -> 83426 | H33: 0 | I33: 1 | J33: 1 | K33: 1 | L33: 1 | M33: =IF(INTRO!$E$37="Endemic",IF($H33>0,IF($H33=4,"Unknown",IF($H33=99,"Stopped",$D33)),0),"Not required") -> 0 | N33: =IF(INTRO!$E$39="Endemic", IF($I33>0, IF($I33=4,"Unknown",IF($I33=99,"Stopped",$D33)), 0),"Not required") -> 158303.9719 | O33: =IF(INTRO!$E$41="Endemic", IF(AND($J33>1,$J33<5), IF($J33=4, "Unknown", E33+F33), 0),"Not required") -> 0 | P33: =IF(INTRO!$E$43="Endemic", IF(AND($K33>0,$K33<5), IF($K33=4,"Unknown", IF($K33=1, $F33*0.33, IF($K33=2, $F33*0.5+$G33*0.2, SUM(F33:G33)))), 0),"Not required") -> 14575.11 | Q33: 0 | R33: 1 | S33: 0 | T33: 0 | Y33: 2071 | Z33: NHAREA | AB33: FALSE | AC33: Bie | AD33: Nhareia | AE33: 200 | AF33: 0 | AG33: 0 | AH33: 0 | AI33: TRUE | AK33: 6.5 | AL33: 1 | AM33: TRUE | AP33: 4 | AQ33: 1.5 | AR33: 1 | AS33: TRUE | AT33: 1 | AU33: TRUE | AY33: =_xlfn.XLOOKUP(Y33,[1]COUNTRY_INFO!$W$9:$W$172,[1]COUNTRY_INFO!$T$9:$T$172) -> 1 | AZ33: =_xlfn.XLOOKUP(Y33,[2]DISTRICT!$AJ$9:$AJ$172,[2]DISTRICT!$AH$9:$AH$172) -> 0 | BA33: 1
A34: =IF(INTRO!$E$33<>0,INTRO!$E$33, " ") -> ANGOLA | B34: CABINDA | C34: BELIZE | D34: 23786.83836 | E34: =IF(INTRO!$E$48="","",ROUND($D34*INTRO!$E$48,0)) -> 3806 | F34: =IF(INTRO!$E$49="","",ROUND($D34*INTRO!$E$49,0)) -> 6637 | G34: =IF(INTRO!$E$50="","",ROUND($D34*INTRO!$E$50,0)) -> 12536 | H34: 1 | I34: 4 | J34: 2 | K34: 0 | L34: 1 | M34: =IF(INTRO!$E$37="Endemic",IF($H34>0,IF($H34=4,"Unknown",IF($H34=99,"Stopped",$D34)),0),"Not required") -> 23786.83836 | N34: =IF(INTRO!$E$39="Endemic", IF($I34>0, IF($I34=4,"Unknown",IF($I34=99,"Stopped",$D34)), 0),"Not required") -> Unknown | O34: =IF(INTRO!$E$41="Endemic", IF(AND($J34>1,$J34<5), IF($J34=4, "Unknown", E34+F34), 0),"Not required") -> 10443 | P34: =IF(INTRO!$E$43="Endemic", IF(AND($K34>0,$K34<5), IF($K34=4,"Unknown", IF($K34=1, $F34*0.33, IF($K34=2, $F34*0.5+$G34*0.2, SUM(F34:G34)))), 0),"Not required") -> 0 | Q34: 1 | R34: 0 | S34: 1 | T34: 0 | Y34: 2072 | Z34: BELIZE | AB34: FALSE | AC34: Cabinda | AD34: Belize (Luali) | AE34: 100 | AF34: 1 | AG34: 1 | AH34: 1 | AI34: TRUE | AK34: 37.66666667 | AL34: 2 | AM34: TRUE | AP34: 0 | AQ34: 0 | AR34: 0 | AS34: TRUE | AT34: 0 | AU34: TRUE | AY34: =_xlfn.XLOOKUP(Y34,[1]COUNTRY_INFO!$W$9:$W$172,[1]COUNTRY_INFO!$T$9:$T$172) -> 1 | AZ34: =_xlfn.XLOOKUP(Y34,[2]DISTRICT!$AJ$9:$AJ$172,[2]DISTRICT!$AH$9:$AH$172) -> 0 | BA34: 1
A35: =IF(INTRO!$E$33<>0,INTRO!$E$33, " ") -> ANGOLA | B35: CABINDA | C35: BUCO ZAU | D35: 39875.44222 | E35: =IF(INTRO!$E$48="","",ROUND($D35*INTRO!$E$48,0)) -> 6380 | F35: =IF(INTRO!$E$49="","",ROUND($D35*INTRO!$E$49,0)) -> 11125 | G35: =IF(INTRO!$E$50="","",ROUND($D35*INTRO!$E$50,0)) -> 21014 | H35: 1 | I35: 4 | J35: 2 | K35: 1 | L35: 1 | M35: =IF(INTRO!$E$37="Endemic",IF($H35>0,IF($H35=4,"Unknown",IF($H35=99,"Stopped",$D35)),0),"Not required") -> 39875.44222 | N35: =IF(INTRO!$E$39="Endemic", IF($I35>0, IF($I35=4,"Unknown",IF($I35=99,"Stopped",$D35)), 0),"Not required") -> Unknown | O35: =IF(INTRO!$E$41="Endemic", IF(AND($J35>1,$J35<5), IF($J35=4, "Unknown", E35+F35), 0),"Not required") -> 17505 | P35: =IF(INTRO!$E$43="Endemic", IF(AND($K35>0,$K35<5), IF($K35=4,"Unknown", IF($K35=1, $F35*0.33, IF($K35=2, $F35*0.5+$G35*0.2, SUM(F35:G35)))), 0),"Not required") -> 3671.25 | Q35: 1 | R35: 0 | S35: 1 | T35: 0 | Y35: 2073 | Z35: BUCO ZAU | AB35: TRUE | AC35: Cabinda | AD35: Buco Zau | AE35: 100 | AF35: 12 | AG35: 12 | AH35: 1 | AI35: TRUE | AK35: 30 | AL35: 2 | AM35: TRUE | AP35: 28 | AQ35: 5.6 | AR35: 2 | AS35: FALSE | AT35: 1 | AU35: TRUE | AY35: =_xlfn.XLOOKUP(Y35,[1]COUNTRY_INFO!$W$9:$W$172,[1]COUNTRY_INFO!$T$9:$T$172) -> 1 | AZ35: =_xlfn.XLOOKUP(Y35,[2]DISTRICT!$AJ$9:$AJ$172,[2]DISTRICT!$AH$9:$AH$172) -> 0 | BA35: 1
A36: =IF(INTRO!$E$33<>0,INTRO!$E$33, " ") -> ANGOLA | B36: CABINDA | C36: CABINDA | D36: 759577.5435 | E36: =IF(INTRO!$E$48="","",ROUND($D36*INTRO!$E$48,0)) -> 121532 | F36: =IF(INTRO!$E$49="","",ROUND($D36*INTRO!$E$49,0)) -> 211922 | G36: =IF(INTRO!$E$50="","",ROUND($D36*INTRO!$E$50,0)) -> 400297 | H36: 1 | I36: 4 | J36: 1 | K36: 2 | L36: 1 | M36: =IF(INTRO!$E$37="Endemic",IF($H36>0,IF($H36=4,"Unknown",IF($H36=99,"Stopped",$D36)),0),"Not required") -> 759577.5435 | N36: =IF(INTRO!$E$39="Endemic", IF($I36>0, IF($I36=4,"Unknown",IF($I36=99,"Stopped",$D36)), 0),"Not required") -> Unknown | O36: =IF(INTRO!$E$41="Endemic", IF(AND($J36>1,$J36<5), IF($J36=4, "Unknown", E36+F36), 0),"Not required") -> 0 | P36: =IF(INTRO!$E$43="Endemic", IF(AND($K36>0,$K36<5), IF($K36=4,"Unknown", IF($K36=1, $F36*0.33, IF($K36=2, $F36*0.5+$G36*0.2, SUM(F36:G36)))), 0),"Not required") -> 186020.4 | Q36: 1 | R36: 0 | S36: 0 | T36: 1 | Y36: 2074 | Z36: CABINDA | AB36: TRUE | AC36: Cabinda | AD36: Cabinda | AE36: 92 | AF36: 1 | AG36: 1.086956522 | AH36: 1 | AI36: TRUE | AK36: 10.57142857 | AL36: 1 | AM36: TRUE | AP36: 58 | AQ36: 10.85714286 | AR36: 3 | AS36: FALSE | AT36: 2 | AU36: TRUE | AY36: =_xlfn.XLOOKUP(Y36,[1]COUNTRY_INFO!$W$9:$W$172,[1]COUNTRY_INFO!$T$9:$T$172) -> 1 | AZ36: =_xlfn.XLOOKUP(Y36,[2]DISTRICT!$AJ$9:$AJ$172,[2]DISTRICT!$AH$9:$AH$172) -> 0 | BA36: 1
A37: =IF(INTRO!$E$33<>0,INTRO!$E$33, " ") -> ANGOLA | B37: CABINDA | C37: CACONGO | D37: 47517.17592 | E37: =IF(INTRO!$E$48="","",ROUND($D37*INTRO!$E$48,0)) -> 7603 | F37: =IF(INTRO!$E$49="","",ROUND($D37*INTRO!$E$49,0)) -> 13257 | G37: =IF(INTRO!$E$50="","",ROUND($D37*INTRO!$E$50,0)) -> 25042 | H37: 1 | I37: 4 | J37: 1 | K37: 1 | L37: 1 | M37: =IF(INTRO!$E$37="Endemic",IF($H37>0,IF($H37=4,"Unknown",IF($H37=99,"Stopped",$D37)),0),"Not required") -> 47517.17592 | N37: =IF(INTRO!$E$39="Endemic", IF($I37>0, IF($I37=4,"Unknown",IF($I37=99,"Stopped",$D37)), 0),"Not required") -> Unknown | O37: =IF(INTRO!$E$41="Endemic", IF(AND($J37>1,$J37<5), IF($J37=4, "Unknown", E37+F37), 0),"Not required") -> 0 | P37: =IF(INTRO!$E$43="Endemic", IF(AND($K37>0,$K37<5), IF($K37=4,"Unknown", IF($K37=1, $F37*0.33, IF($K37=2, $F37*0.5+$G37*0.2, SUM(F37:G37)))), 0),"Not required") -> 4374.81 | Q37: 1 | R37: 0 | S37: 0 | T37: 0 | Y37: 2213 | Z37: CACONGO | AB37: TRUE | AC37: Cabinda | AD37: Cacongo | AE37: 200 | AF37: 2 | AG37: 1 | AH37: 1 | AI37: TRUE | AK37: 11.6 | AL37: 1 | AM37: TRUE | AP37: 6 | AQ37: 1.6 | AR37: 1 | AS37: TRUE | AT37: 1 | AU37: TRUE | AY37: =_xlfn.XLOOKUP(Y37,[1]COUNTRY_INFO!$W$9:$W$172,[1]COUNTRY_INFO!$T$9:$T$172) -> 1 | AZ37: =_xlfn.XLOOKUP(Y37,[2]DISTRICT!$AJ$9:$AJ$172,[2]DISTRICT!$AH$9:$AH$172) -> 0 | BA37: 1
A38: =IF(INTRO!$E$33<>0,INTRO!$E$33, " ") -> ANGOLA | B38: CUNENE | C38: CAHAMA | D38: 87217.86447 | E38: =IF(INTRO!$E$48="","",ROUND($D38*INTRO!$E$48,0)) -> 13955 | F38: =IF(INTRO!$E$49="","",ROUND($D38*INTRO!$E$49,0)) -> 24334 | G38: =IF(INTRO!$E$50="","",ROUND($D38*INTRO!$E$50,0)) -> 45964 | H38: 0 | I38: 4 | J38: 1 | K38: 1 | L38: 0 | M38: =IF(INTRO!$E$37="Endemic",IF($H38>0,IF($H38=4,"Unknown",IF($H38=99,"Stopped",$D38)),0),"Not required") -> 0 | N38: =IF(INTRO!$E$39="Endemic", IF($I38>0, IF($I38=4,"Unknown",IF($I38=99,"Stopped",$D38)), 0),"Not required") -> Unknown | O38: =IF(INTRO!$E$41="Endemic", IF(AND($J38>1,$J38<5), IF($J38=4, "Unknown", E38+F38), 0),"Not required") -> 0 | P38: =IF(INTRO!$E$43="Endemic", IF(AND($K38>0,$K38<5), IF($K38=4,"Unknown", IF($K38=1, $F38*0.33, IF($K38=2, $F38*0.5+$G38*0.2, SUM(F38:G38)))), 0),"Not required") -> 8030.22 | Q38: 0 | R38: 0 | S38: 0 | T38: 1 | Y38: 2110 | Z38: CAHAMA | AB38: TRUE | AC38: Cunene | AD38: Cahama | AE38: 200 | AF38: 0 | AG38: =AF38/AE38*100 -> 0 | AH38: 0 | AI38: TRUE | AK38: 3.333333333 | AL38: 1 | AM38: TRUE | AP38: 8 | AQ38: 3.333333333 | AR38: 1 | AS38: TRUE | AT38: 1 | AU38: TRUE | AY38: =_xlfn.XLOOKUP(Y38,[1]COUNTRY_INFO!$W$9:$W$172,[1]COUNTRY_INFO!$T$9:$T$172) -> 0 | AZ38: =_xlfn.XLOOKUP(Y38,[2]DISTRICT!$AJ$9:$AJ$172,[2]DISTRICT!$AH$9:$AH$172) -> 0 | BA38: 0
A39: =IF(INTRO!$E$33<>0,INTRO!$E$33, " ") -> ANGOLA | B39: CUNENE | C39: CUANHAMA | D39: 466243.4141 | E39: =IF(INTRO!$E$48="","",ROUND($D39*INTRO!$E$48,0)) -> 74599 | F39: =IF(INTRO!$E$49="","",ROUND($D39*INTRO!$E$49,0)) -> 130082 | G39: =IF(INTRO!$E$50="","",ROUND($D39*INTRO!$E$50,0)) -> 245710 | H39: 0 | I39: 4 | J39: 1 | K39: 2 | L39: 1 | M39: =IF(INTRO!$E$37="Endemic",IF($H39>0,IF($H39=4,"Unknown",IF($H39=99,"Stopped",$D39)),0),"Not required") -> 0 | N39: =IF(INTRO!$E$39="Endemic", IF($I39>0, IF($I39=4,"Unknown",IF($I39=99,"Stopped",$D39)), 0),"Not required") -> Unknown | O39: =IF(INTRO!$E$41="Endemic", IF(AND($J39>1,$J39<5), IF($J39=4, "Unknown", E39+F39), 0),"Not required") -> 0 | P39: =IF(INTRO!$E$43="Endemic", IF(AND($K39>0,$K39<5), IF($K39=4,"Unknown", IF($K39=1, $F39*0.33, IF($K39=2, $F39*0.5+$G39*0.2, SUM(F39:G39)))), 0),"Not required") -> 114183 | Q39: 0 | R39: 0 | S39: 0 | T39: 0 | Y39: 2113 | Z39: CUANHAMA | AB39: FALSE | AC39: Cunene | AD39: Cuahama | AE39: 114 | AF39: 0 | AG39: =AF39/AE39*100 -> 0 | AH39: 0 | AI39: TRUE | AK39: 12.8 | AL39: 1 | AM39: TRUE | AP39: 52 | AQ39: 11.6 | AR39: 3 | AS39: FALSE | AT39: 2 | AU39: TRUE | AY39: =_xlfn.XLOOKUP(Y39,[1]COUNTRY_INFO!$W$9:$W$172,[1]COUNTRY_INFO!$T$9:$T$172) -> 0 | AZ39: =_xlfn.XLOOKUP(Y39,[2]DISTRICT!$AJ$9:$AJ$172,[2]DISTRICT!$AH$9:$AH$172) -> 7622 | BA39: 7622
A40: =IF(INTRO!$E$33<>0,INTRO!$E$33, " ") -> ANGOLA | B40: CUNENE | C40: CUROCA | D40: 51148.11248 | E40: =IF(INTRO!$E$48="","",ROUND($D40*INTRO!$E$48,0)) -> 8184 | F40: =IF(INTRO!$E$49="","",ROUND($D40*INTRO!$E$49,0)) -> 14270 | G40: =IF(INTRO!$E$50="","",ROUND($D40*INTRO!$E$50,0)) -> 26955 | H40: 0 | I40: 4 | J40: 0 | K40: 1 | L40: 0 | M40: =IF(INTRO!$E$37="Endemic",IF($H40>0,IF($H40=4,"Unknown",IF($H40=99,"Stopped",$D40)),0),"Not required") -> 0 | N40: =IF(INTRO!$E$39="Endemic", IF($I40>0, IF($I40=4,"Unknown",IF($I40=99,"Stopped",$D40)), 0),"Not required") -> Unknown | O40: =IF(INTRO!$E$41="Endemic", IF(AND($J40>1,$J40<5), IF($J40=4, "Unknown", E40+F40), 0),"Not required") -> 0 | P40: =IF(INTRO!$E$43="Endemic", IF(AND($K40>0,$K40<5), IF($K40=4,"Unknown", IF($K40=1, $F40*0.33, IF($K40=2, $F40*0.5+$G40*0.2, SUM(F40:G40)))), 0),"Not required") -> 4709.1 | Q40: 0 | R40: 0 | S40: 0 | T40: 1 | Y40: 2111 | Z40: CUROCA | AB40: TRUE | AC40: Cunene | AD40: Curoca | AE40: 200 | AF40: 0 | AG40: =AF40/AE40*100 -> 0 | AH40: 0 | AI40: TRUE | AK40: 0.5 | AL40: 0 | AM40: TRUE | AP40: 10 | AQ40: 6 | AR40: 2 | AS40: FALSE | AT40: 1 | AU40: TRUE | AY40: =_xlfn.XLOOKUP(Y40,[1]COUNTRY_INFO!$W$9:$W$172,[1]COUNTRY_INFO!$T$9:$T$172) -> 0 | AZ40: =_xlfn.XLOOKUP(Y40,[2]DISTRICT!$AJ$9:$AJ$172,[2]DISTRICT!$AH$9:$AH$172) -> 0 | BA40: 0
A41: =IF(INTRO!$E$33<>0,INTRO!$E$33, " ") -> ANGOLA | B41: CUNENE | C41: CUVELAI | D41: 71453.28739 | E41: =IF(INTRO!$E$48="","",ROUND($D41*INTRO!$E$48,0)) -> 11433 | F41: =IF(INTRO!$E$49="","",ROUND($D41*INTRO!$E$49,0)) -> 19935 | G41: =IF(INTRO!$E$50="","",ROUND($D41*INTRO!$E$50,0)) -> 37656 | H41: 4 | I41: 4 | J41: 1 | K41: 2 | L41: 1 | M41: =IF(INTRO!$E$37="Endemic",IF($H41>0,IF($H41=4,"Unknown",IF($H41=99,"Stopped",$D41)),0),"Not required") -> Unknown | N41: =IF(INTRO!$E$39="Endemic", IF($I41>0, IF($I41=4,"Unknown",IF($I41=99,"Stopped",$D41)), 0),"Not required") -> Unknown | O41: =IF(INTRO!$E$41="Endemic", IF(AND($J41>1,$J41<5), IF($J41=4, "Unknown", E41+F41), 0),"Not required") -> 0 | P41: =IF(INTRO!$E$43="Endemic", IF(AND($K41>0,$K41<5), IF($K41=4,"Unknown", IF($K41=1, $F41*0.33, IF($K41=2, $F41*0.5+$G41*0.2, SUM(F41:G41)))), 0),"Not required") -> 17498.7 | Q41: 0 | R41: 0 | S41: 0 | T41: 0 | Y41: 2112 | Z41: CUVELAI | AH41: 4 | AI41: TRUE | AK41: 2.333333333 | AL41: 1 | AM41: TRUE | AP41: 100 | AQ41: 48.33333333 | AR41: 3 | AS41: FALSE | AT41: 2 | AU41: TRUE | AY41: =_xlfn.XLOOKUP(Y41,[1]COUNTRY_INFO!$W$9:$W$172,[1]COUNTRY_INFO!$T$9:$T$172) -> 0 | AZ41: =_xlfn.XLOOKUP(Y41,[2]DISTRICT!$AJ$9:$AJ$172,[2]DISTRICT!$AH$9:$AH$172) -> 6874 | BA41: 6874
A42: =IF(INTRO!$E$33<>0,INTRO!$E$33, " ") -> ANGOLA | B42: CUNENE | C42: NAMACUNDE | D42: 176830.914 | E42: =IF(INTRO!$E$48="","",ROUND($D42*INTRO!$E$48,0)) -> 28293 | F42: =IF(INTRO!$E$49="","",ROUND($D42*INTRO!$E$49,0)) -> 49336 | G42: =IF(INTRO!$E$50="","",ROUND($D42*INTRO!$E$50,0)) -> 93190 | H42: 0 | I42: 4 | J42: 1 | K42: 1 | L42: 1 | M42: =IF(INTRO!$E$37="Endemic",IF($H42>0,IF($H42=4,"Unknown",IF($H42=99,"Stopped",$D42)),0),"Not required") -> 0 | N42: =IF(INTRO!$E$39="Endemic", IF($I42>0, IF($I42=4,"Unknown",IF($I42=99,"Stopped",$D42)), 0),"Not required") -> Unknown | O42: =IF(INTRO!$E$41="Endemic", IF(AND($J42>1,$J42<5), IF($J42=4, "Unknown", E42+F42), 0),"Not required") -> 0 | P42: =IF(INTRO!$E$43="Endemic", IF(AND($K42>0,$K42<5), IF($K42=4,"Unknown", IF($K42=1, $F42*0.33, IF($K42=2, $F42*0.5+$G42*0.2, SUM(F42:G42)))), 0),"Not required") -> 16280.88 | Q42: 0 | R42: 0 | S42: 0 | T42: 1 | Y42: 2114 | Z42: NAMACUNDE | AB42: FALSE | AC42: Cunene | AD42: Namacumde | AE42: 68 | AF42: 0 | AG42: =AF42/AE42*100 -> 0 | AH42: 0 | AI42: TRUE | AK42: 18.33333333 | AL42: 1 | AM42: TRUE | AP42: 42 | AQ42: 8 | AR42: 2 | AS42: FALSE | AT42: 1 | AU42: TRUE | AY42: =_xlfn.XLOOKUP(Y42,[1]COUNTRY_INFO!$W$9:$W$172,[1]COUNTRY_INFO!$T$9:$T$172) -> 0 | AZ42: =_xlfn.XLOOKUP(Y42,[2]DISTRICT!$AJ$9:$AJ$172,[2]DISTRICT!$AH$9:$AH$172) -> 0 | BA42: 0
A43: =IF(INTRO!$E$33<>0,INTRO!$E$33, " ") -> ANGOLA | B43: CUNENE | C43: OMBADJA | D43: 379643.4075 | E43: =IF(INTRO!$E$48="","",ROUND($D43*INTRO!$E$48,0)) -> 60743 | F43: =IF(INTRO!$E$49="","",ROUND($D43*INTRO!$E$49,0)) -> 105921 | G43: =IF(INTRO!$E$50="","",ROUND($D43*INTRO!$E$50,0)) -> 200072 | H43: 0 | I43: 4 | J43: 2 | K43: 1 | L43: 1 | M43: =IF(INTRO!$E$37="Endemic",IF($H43>0,IF($H43=4,"Unknown",IF($H43=99,"Stopped",$D43)),0),"Not required") -> 0 | N43: =IF(INTRO!$E$39="Endemic", IF($I43>0, IF($I43=4,"Unknown",IF($I43=99,"Stopped",$D43)), 0),"Not required") -> Unknown | O43: =IF(INTRO!$E$41="Endemic", IF(AND($J43>1,$J43<5), IF($J43=4, "Unknown", E43+F43), 0),"Not required") -> 166664 | P43: =IF(INTRO!$E$43="Endemic", IF(AND($K43>0,$K43<5), IF($K43=4,"Unknown", IF($K43=1, $F43*0.33, IF($K43=2, $F43*0.5+$G43*0.2, SUM(F43:G43)))), 0),"Not required") -> 34953.93 | Q43: 0 | R43: 0 | S43: 1 | T43: 0 | Y43: 2115 | Z43: OMBADJA | AB43: TRUE | AC43: Cunene | AD43: Ombadja | AE43: 202 | AF43: 0 | AG43: 0 | AH43: 0 | AI43: TRUE | AK43: 21.2 | AL43: 2 | AM43: TRUE | AP43: 66 | AQ43: 9 | AR43: 3 | AS43: FALSE | AT43: 1 | AU43: TRUE | AY43: =_xlfn.XLOOKUP(Y43,[1]COUNTRY_INFO!$W$9:$W$172,[1]COUNTRY_INFO!$T$9:$T$172) -> 0 | AZ43: =_xlfn.XLOOKUP(Y43,[2]DISTRICT!$AJ$9:$AJ$172,[2]DISTRICT!$AH$9:$AH$172) -> 718 | BA43: 718
A44: =IF(INTRO!$E$33<>0,INTRO!$E$33, " ") -> ANGOLA | B44: HUAMBO | C44: BAILUNDO | D44: 372866.2762 | E44: =IF(INTRO!$E$48="","",ROUND($D44*INTRO!$E$48,0)) -> 59659 | F44: =IF(INTRO!$E$49="","",ROUND($D44*INTRO!$E$49,0)) -> 104030 | G44: =IF(INTRO!$E$50="","",ROUND($D44*INTRO!$E$50,0)) -> 196501 | H44: 0 | I44: 4 | J44: 1 | K44: 2 | L44: 1 | M44: =IF(INTRO!$E$37="Endemic",IF($H44>0,IF($H44=4,"Unknown",IF($H44=99,"Stopped",$D44)),0),"Not required") -> 0 | N44: =IF(INTRO!$E$39="Endemic", IF($I44>0, IF($I44=4,"Unknown",IF($I44=99,"Stopped",$D44)), 0),"Not required") -> Unknown | O44: =IF(INTRO!$E$41="Endemic", IF(AND($J44>1,$J44<5), IF($J44=4, "Unknown", E44+F44), 0),"Not required") -> 0 | P44: =IF(INTRO!$E$43="Endemic", IF(AND($K44>0,$K44<5), IF($K44=4,"Unknown", IF($K44=1, $F44*0.33, IF($K44=2, $F44*0.5+$G44*0.2, SUM(F44:G44)))), 0),"Not required") -> 91315.2 | Q44: 0 | R44: 0 | S44: 0 | T44: 1 | W44: Yes | X44: Yes | Y44: 2116 | Z44: BAILUNDO | AB44: TRUE | AC44: Huambo | AD44: Bailundo | AE44: 200 | AF44: 0 | AG44: 0 | AH44: 0 | AI44: TRUE | AK44: 2 | AL44: 1 | AM44: TRUE | AP44: 46.66666667 | AQ44: 15.27777778 | AR44: 2 | AS44: TRUE | AT44: 2 | AU44: TRUE | AY44: =_xlfn.XLOOKUP(Y44,[1]COUNTRY_INFO!$W$9:$W$172,[1]COUNTRY_INFO!$T$9:$T$172) -> 0 | AZ44: =_xlfn.XLOOKUP(Y44,[2]DISTRICT!$AJ$9:$AJ$172,[2]DISTRICT!$AH$9:$AH$172) -> 0 | BA44: 0
A45: =IF(INTRO!$E$33<>0,INTRO!$E$33, " ") -> ANGOLA | B45: HUAMBO | C45: CAALA | D45: 354252.1764 | E45: =IF(INTRO!$E$48="","",ROUND($D45*INTRO!$E$48,0)) -> 56680 | F45: =IF(INTRO!$E$49="","",ROUND($D45*INTRO!$E$49,0)) -> 98836 | G45: =IF(INTRO!$E$50="","",ROUND($D45*INTRO!$E$50,0)) -> 186691 | H45: 0 | I45: 4 | J45: 2 | K45: 2 | L45: 0 | M45: =IF(INTRO!$E$37="Endemic",IF($H45>0,IF($H45=4,"Unknown",IF($H45=99,"Stopped",$D45)),0),"Not required") -> 0 | N45: =IF(INTRO!$E$39="Endemic", IF($I45>0, IF($I45=4,"Unknown",IF($I45=99,"Stopped",$D45)), 0),"Not required") -> Unknown | O45: =IF(INTRO!$E$41="Endemic", IF(AND($J45>1,$J45<5), IF($J45=4, "Unknown", E45+F45), 0),"Not required") -> 155516 | P45: =IF(INTRO!$E$43="Endemic", IF(AND($K45>0,$K45<5), IF($K45=4,"Unknown", IF($K45=1, $F45*0.33, IF($K45=2, $F45*0.5+$G45*0.2, SUM(F45:G45)))), 0),"Not required") -> 86756.2 | Q45: 0 | R45: 0 | S45: 1 | T45: 1 | W45: Yes | X45: Yes | Y45: 2120 | Z45: CAALA | AB45: TRUE | AC45: Huambo | AD45: Caala | AE45: 200 | AF45: 0 | AG45: 0 | AH45: 0 | AI45: TRUE | AK45: 30.4454023 | AL45: 2 | AM45: TRUE | AP45: 96.66666667 | AQ45: 28.1451125 | AR45: 3 | AS45: FALSE | AT45: 2 | AU45: TRUE | AY45: =_xlfn.XLOOKUP(Y45,[1]COUNTRY_INFO!$W$9:$W$172,[1]COUNTRY_INFO!$T$9:$T$172) -> 0 | AZ45: =_xlfn.XLOOKUP(Y45,[2]DISTRICT!$AJ$9:$AJ$172,[2]DISTRICT!$AH$9:$AH$172) -> 0 | BA45: 0
A46: =IF(INTRO!$E$33<>0,INTRO!$E$33, " ") -> ANGOLA | B46: HUAMBO | C46: ECUNHA | D46: 104507.4338 | E46: =IF(INTRO!$E$48="","",ROUND($D46*INTRO!$E$48,0)) -> 16721 | F46: =IF(INTRO!$E$49="","",ROUND($D46*INTRO!$E$49,0)) -> 29158 | G46: =IF(INTRO!$E$50="","",ROUND($D46*INTRO!$E$50,0)) -> 55075 | H46: 0 | I46: 4 | J46: 0 | K46: 2 | L46: 0 | M46: =IF(INTRO!$E$37="Endemic",IF($H46>0,IF($H46=4,"Unknown",IF($H46=99,"Stopped",$D46)),0),"Not required") -> 0 | N46: =IF(INTRO!$E$39="Endemic", IF($I46>0, IF($I46=4,"Unknown",IF($I46=99,"Stopped",$D46)), 0),"Not required") -> Unknown | O46: =IF(INTRO!$E$41="Endemic", IF(AND($J46>1,$J46<5), IF($J46=4, "Unknown", E46+F46), 0),"Not required") -> 0 | P46: =IF(INTRO!$E$43="Endemic", IF(AND($K46>0,$K46<5), IF($K46=4,"Unknown", IF($K46=1, $F46*0.33, IF($K46=2, $F46*0.5+$G46*0.2, SUM(F46:G46)))), 0),"Not required") -> 25594 | Q46: 0 | R46: 0 | S46: 0 | T46: 1 | W46: Yes | X46: Yes | Y46: 2118 | Z46: EKUNHA | AB46: TRUE | AC46: Huambo | AD46: Ecunha | AE46: 181 | AF46: 1 | AG46: 0.5524861878 | AH46: 0 | AI46: TRUE | AK46: 0 | AL46: 0 | AM46: TRUE | AP46: 40 | AQ46: 13.84615385 | AR46: 2 | AS46: TRUE | AT46: 2 | AU46: TRUE | AY46: =_xlfn.XLOOKUP(Y46,[1]COUNTRY_INFO!$W$9:$W$172,[1]COUNTRY_INFO!$T$9:$T$172) -> 0 | AZ46: =_xlfn.XLOOKUP(Y46,[2]DISTRICT!$AJ$9:$AJ$172,[2]DISTRICT!$AH$9:$AH$172) -> 0 | BA46: 0
A47: =IF(INTRO!$E$33<>0,INTRO!$E$33, " ") -> ANGOLA | B47: HUAMBO | C47: HUAMBO | D47: 902916.2038 | E47: =IF(INTRO!$E$48="","",ROUND($D47*INTRO!$E$48,0)) -> 144467 | F47: =IF(INTRO!$E$49="","",ROUND($D47*INTRO!$E$49,0)) -> 251914 | G47: =IF(INTRO!$E$50="","",ROUND($D47*INTRO!$E$50,0)) -> 475837 | H47: 0 | I47: 4 | J47: 1 | K47: 2 | L47: 0 | M47: =IF(INTRO!$E$37="Endemic",IF($H47>0,IF($H47=4,"Unknown",IF($H47=99,"Stopped",$D47)),0),"Not required") -> 0 | N47: =IF(INTRO!$E$39="Endemic", IF($I47>0, IF($I47=4,"Unknown",IF($I47=99,"Stopped",$D47)), 0),"Not required") -> Unknown | O47: =IF(INTRO!$E$41="Endemic", IF(AND($J47>1,$J47<5), IF($J47=4, "Unknown", E47+F47), 0),"Not required") -> 0 | P47: =IF(INTRO!$E$43="Endemic", IF(AND($K47>0,$K47<5), IF($K47=4,"Unknown", IF($K47=1, $F47*0.33, IF($K47=2, $F47*0.5+$G47*0.2, SUM(F47:G47)))), 0),"Not required") -> 221124.4 | Q47: 0 | R47: 0 | S47: 0 | T47: 1 | W47: Yes | X47: Yes | Y47: 2119 | Z47: HUAMBO | AB47: TRUE | AC47: Huambo | AD47: Huambo | AE47: 200 | AF47: 0 | AG47: 0 | AH47: 0 | AI47: TRUE | AK47: 8.181818182 | AL47: 1 | AM47: TRUE | AP47: 76.66666667 | AQ47: 16.92307692 | AR47: 3 | AS47: FALSE | AT47: 2 | AU47: TRUE | AY47: =_xlfn.XLOOKUP(Y47,[1]COUNTRY_INFO!$W$9:$W$172,[1]COUNTRY_INFO!$T$9:$T$172) -> 0 | AZ47: =_xlfn.XLOOKUP(Y47,[2]DISTRICT!$AJ$9:$AJ$172,[2]DISTRICT!$AH$9:$AH$172) -> 0 | BA47: 0
A48: =IF(INTRO!$E$33<>0,INTRO!$E$33, " ") -> ANGOLA | B48: HUAMBO | C48: CACHIUNGO | D48: 152791.5154 | E48: =IF(INTRO!$E$48="","",ROUND($D48*INTRO!$E$48,0)) -> 24447 | F48: =IF(INTRO!$E$49="","",ROUND($D48*INTRO!$E$49,0)) -> 42629 | G48: =IF(INTRO!$E$50="","",ROUND($D48*INTRO!$E$50,0)) -> 80521 | H48: 0 | I48: 4 | J48: 1 | K48: 2 | L48: 0 | M48: =IF(INTRO!$E$37="Endemic",IF($H48>0,IF($H48=4,"Unknown",IF($H48=99,"Stopped",$D48)),0),"Not required") -> 0 | N48: =IF(INTRO!$E$39="Endemic", IF($I48>0, IF($I48=4,"Unknown",IF($I48=99,"Stopped",$D48)), 0),"Not required") -> Unknown | O48: =IF(INTRO!$E$41="Endemic", IF(AND($J48>1,$J48<5), IF($J48=4, "Unknown", E48+F48), 0),"Not required") -> 0 | P48: =IF(INTRO!$E$43="Endemic", IF(AND($K48>0,$K48<5), IF($K48=4,"Unknown", IF($K48=1, $F48*0.33, IF($K48=2, $F48*0.5+$G48*0.2, SUM(F48:G48)))), 0),"Not required") -> 37418.7 | Q48: 0 | R48: 0 | S48: 0 | T48: 1 | W48: Yes | X48: Yes | Y48: 2121 | Z48: CACHIUNGO | AB48: TRUE | AC48: Huambo | AD48: Cachiungo | AE48: 200 | AF48: 0 | AG48: 0 | AH48: 0 | AI48: TRUE | AK48: 4.666666667 | AL48: 1 | AM48: TRUE | AP48: 50 | AQ48: 19.13580247 | AR48: 3 | AS48: FALSE | AT48: 2 | AU48: TRUE | AY48: =_xlfn.XLOOKUP(Y48,[1]COUNTRY_INFO!$W$9:$W$172,[1]COUNTRY_INFO!$T$9:$T$172) -> 0 | AZ48: =_xlfn.XLOOKUP(Y48,[2]DISTRICT!$AJ$9:$AJ$172,[2]DISTRICT!$AH$9:$AH$172) -> 0 | BA48: 0
A49: =IF(INTRO!$E$33<>0,INTRO!$E$33, " ") -> ANGOLA | B49: HUAMBO | C49: LONDUIMBALI | D49: 169981.6807 | E49: =IF(INTRO!$E$48="","",ROUND($D49*INTRO!$E$48,0)) -> 27197 | F49: =IF(INTRO!$E$49="","",ROUND($D49*INTRO!$E$49,0)) -> 47425 | G49: =IF(INTRO!$E$50="","",ROUND($D49*INTRO!$E$50,0)) -> 89580 | H49: 0 | I49: 4 | J49: 1 | K49: 2 | L49: 0 | M49: =IF(INTRO!$E$37="Endemic",IF($H49>0,IF($H49=4,"Unknown",IF($H49=99,"Stopped",$D49)),0),"Not required") -> 0 | N49: =IF(INTRO!$E$39="Endemic", IF($I49>0, IF($I49=4,"Unknown",IF($I49=99,"Stopped",$D49)), 0),"Not required") -> Unknown | O49: =IF(INTRO!$E$41="Endemic", IF(AND($J49>1,$J49<5), IF($J49=4, "Unknown", E49+F49), 0),"Not required") -> 0 | P49: =IF(INTRO!$E$43="Endemic", IF(AND($K49>0,$K49<5), IF($K49=4,"Unknown", IF($K49=1, $F49*0.33, IF($K49=2, $F49*0.5+$G49*0.2, SUM(F49:G49)))), 0),"Not required") -> 41628.5 | Q49: 0 | R49: 0 | S49: 0 | T49: 1 | W49: Yes | X49: Yes | Y49: 2122 | Z49: LONDUIMBALI | AB49: TRUE | AC49: Huambo | AD49: Londuimbali | AE49: 200 | AF49: 0 | AG49: 0 | AH49: 0 | AI49: TRUE | AK49: 2.5 | AL49: 1 | AM49: TRUE | AP49: 66.66666667 | AQ49: 19.66666667 | AR49: 3 | AS49: FALSE | AT49: 2 | AU49: TRUE | AY49: =_xlfn.XLOOKUP(Y49,[1]COUNTRY_INFO!$W$9:$W$172,[1]COUNTRY_INFO!$T$9:$T$172) -> 0 | AZ49: =_xlfn.XLOOKUP(Y49,[2]DISTRICT!$AJ$9:$AJ$172,[2]DISTRICT!$AH$9:$AH$172) -> 0 | BA49: 0
A50: =IF(INTRO!$E$33<>0,INTRO!$E$33, " ") -> ANGOLA | B50: HUAMBO | C50: LONGONJO | D50: 116614.2197 | E50: =IF(INTRO!$E$48="","",ROUND($D50*INTRO!$E$48,0)) -> 18658 | F50: =IF(INTRO!$E$49="","",ROUND($D50*INTRO!$E$49,0)) -> 32535 | G50: =IF(INTRO!$E$50="","",ROUND($D50*INTRO!$E$50,0)) -> 61456 | H50: 0 | I50: 4 | J50: 1 | K50: 2 | L50: 0 | M50: =IF(INTRO!$E$37="Endemic",IF($H50>0,IF($H50=4,"Unknown",IF($H50=99,"Stopped",$D50)),0),"Not required") -> 0 | N50: =IF(INTRO!$E$39="Endemic", IF($I50>0, IF($I50=4,"Unknown",IF($I50=99,"Stopped",$D50)), 0),"Not required") -> Unknown | O50: =IF(INTRO!$E$41="Endemic", IF(AND($J50>1,$J50<5), IF($J50=4, "Unknown", E50+F50), 0),"Not required") -> 0 | P50: =IF(INTRO!$E$43="Endemic", IF(AND($K50>0,$K50<5), IF($K50=4,"Unknown", IF($K50=1, $F50*0.33, IF($K50=2, $F50*0.5+$G50*0.2, SUM(F50:G50)))), 0),"Not required") -> 28558.7 | Q50: 0 | R50: 0 | S50: 0 | T50: 1 | W50: Yes | X50: Yes | Y50: 2123 | Z50: LONGONJO | AB50: FALSE | AC50: Huambo | AD50: Longojo | AE50: 200 | AF50: 0 | AG50: 0 | AH50: 0 | AI50: TRUE | AK50: 15.33333333 | AL50: 1 | AM50: TRUE | AP50: 66.66666667 | AQ50: 20 | AR50: 3 | AS50: FALSE | AT50: 2 | AU50: TRUE | AY50: =_xlfn.XLOOKUP(Y50,[1]COUNTRY_INFO!$W$9:$W$172,[1]COUNTRY_INFO!$T$9:$T$172) -> 0 | AZ50: =_xlfn.XLOOKUP(Y50,[2]DISTRICT!$AJ$9:$AJ$172,[2]DISTRICT!$AH$9:$AH$172) -> 0 | BA50: 0
A51: =IF(INTRO!$E$33<>0,INTRO!$E$33, " ") -> ANGOLA | B51: HUAMBO | C51: MUNGO | D51: 143599.4499 | E51: =IF(INTRO!$E$48="","",ROUND($D51*INTRO!$E$48,0)) -> 22976 | F51: =IF(INTRO!$E$49="","",ROUND($D51*INTRO!$E$49,0)) -> 40064 | G51: =IF(INTRO!$E$50="","",ROUND($D51*INTRO!$E$50,0)) -> 75677 | H51: 0 | I51: 1 | J51: 0 | K51: 2 | L51: 1 | M51: =IF(INTRO!$E$37="Endemic",IF($H51>0,IF($H51=4,"Unknown",IF($H51=99,"Stopped",$D51)),0),"Not required") -> 0 | N51: =IF(INTRO!$E$39="Endemic", IF($I51>0, IF($I51=4,"Unknown",IF($I51=99,"Stopped",$D51)), 0),"Not required") -> 143599.4499 | O51: =IF(INTRO!$E$41="Endemic", IF(AND($J51>1,$J51<5), IF($J51=4, "Unknown", E51+F51), 0),"Not required") -> 0 | P51: =IF(INTRO!$E$43="Endemic", IF(AND($K51>0,$K51<5), IF($K51=4,"Unknown", IF($K51=1, $F51*0.33, IF($K51=2, $F51*0.5+$G51*0.2, SUM(F51:G51)))), 0),"Not required") -> 35167.4 | Q51: 0 | R51: 1 | S51: 0 | T51: 1 | W51: Yes | X51: Yes | Y51: 2124 | Z51: MUNGO | AB51: TRUE | AC51: Huambo | AD51: Mungo | AE51: 199 | AF51: 0 | AG51: 0 | AH51: 0 | AI51: TRUE | AK51: 0 | AL51: 0 | AM51: TRUE | AP51: 20 | AQ51: 10 | AR51: 2 | AS51: TRUE | AT51: 2 | AU51: TRUE | AY51: =_xlfn.XLOOKUP(Y51,[1]COUNTRY_INFO!$W$9:$W$172,[1]COUNTRY_INFO!$T$9:$T$172) -> 0 | AZ51: =_xlfn.XLOOKUP(Y51,[2]DISTRICT!$AJ$9:$AJ$172,[2]DISTRICT!$AH$9:$AH$172) -> 0 | BA51: 0
A52: =IF(INTRO!$E$33<>0,INTRO!$E$33, " ") -> ANGOLA | B52: HUAMBO | C52: CHICALA CHOLOHANGA | D52: 131229.2696 | E52: =IF(INTRO!$E$48="","",ROUND($D52*INTRO!$E$48,0)) -> 20997 | F52: =IF(INTRO!$E$49="","",ROUND($D52*INTRO!$E$49,0)) -> 36613 | G52: =IF(INTRO!$E$50="","",ROUND($D52*INTRO!$E$50,0)) -> 69158 | H52: 0 | I52: 4 | J52: 1 | K52: 2 | L52: 0 | M52: =IF(INTRO!$E$37="Endemic",IF($H52>0,IF($H52=4,"Unknown",IF($H52=99,"Stopped",$D52)),0),"Not required") -> 0 | N52: =IF(INTRO!$E$39="Endemic", IF($I52>0, IF($I52=4,"Unknown",IF($I52=99,"Stopped",$D52)), 0),"Not required") -> Unknown | O52: =IF(INTRO!$E$41="Endemic", IF(AND($J52>1,$J52<5), IF($J52=4, "Unknown", E52+F52), 0),"Not required") -> 0 | P52: =IF(INTRO!$E$43="Endemic", IF(AND($K52>0,$K52<5), IF($K52=4,"Unknown", IF($K52=1, $F52*0.33, IF($K52=2, $F52*0.5+$G52*0.2, SUM(F52:G52)))), 0),"Not required") -> 32138.1 | Q52: 0 | R52: 0 | S52: 0 | T52: 1 | W52: Yes | X52: Yes | Y52: 2125 | Z52: TCHICALA TCHOLOHANGA | AB52: FALSE | AC52: Huambo | AD52: Chicala Choloanga | AE52: 200 | AF52: 0 | AG52: 0 | AH52: 0 | AI52: TRUE | AK52: 5.833333333 | AL52: 1 | AM52: TRUE | AP52: 96.66666667 | AQ52: 20.31746032 | AR52: 3 | AS52: FALSE | AT52: 2 | AU52: TRUE | AY52: =_xlfn.XLOOKUP(Y52,[1]COUNTRY_INFO!$W$9:$W$172,[1]COUNTRY_INFO!$T$9:$T$172) -> 0 | AZ52: =_xlfn.XLOOKUP(Y52,[2]DISTRICT!$AJ$9:$AJ$172,[2]DISTRICT!$AH$9:$AH$172) -> 0 | BA52: 0
A53: =IF(INTRO!$E$33<>0,INTRO!$E$33, " ") -> ANGOLA | B53: HUAMBO | C53: CHINDJENJE | D53: 38545.1718 | E53: =IF(INTRO!$E$48="","",ROUND($D53*INTRO!$E$48,0)) -> 6167 | F53: =IF(INTRO!$E$49="","",ROUND($D53*INTRO!$E$49,0)) -> 10754 | G53: =IF(INTRO!$E$50="","",ROUND($D53*INTRO!$E$50,0)) -> 20313 | H53: 0 | I53: 4 | J53: 1 | K53: 2 | L53: 0 | M53: =IF(INTRO!$E$37="Endemic",IF($H53>0,IF($H53=4,"Unknown",IF($H53=99,"Stopped",$D53)),0),"Not required") -> 0 | N53: =IF(INTRO!$E$39="Endemic", IF($I53>0, IF($I53=4,"Unknown",IF($I53=99,"Stopped",$D53)), 0),"Not required") -> Unknown | O53: =IF(INTRO!$E$41="Endemic", IF(AND($J53>1,$J53<5), IF($J53=4, "Unknown", E53+F53), 0),"Not required") -> 0 | P53: =IF(INTRO!$E$43="Endemic", IF(AND($K53>0,$K53<5), IF($K53=4,"Unknown", IF($K53=1, $F53*0.33, IF($K53=2, $F53*0.5+$G53*0.2, SUM(F53:G53)))), 0),"Not required") -> 9439.6 | Q53: 0 | R53: 0 | S53: 0 | T53: 1 | W53: Yes | X53: Yes | Y53: 2117 | Z53: TCHINDJENJE | AB53: FALSE | AC53: Huambo | AD53: Tchinjnje | AE53: 169 | AF53: 0 | AG53: 0 | AH53: 0 | AI53: TRUE | AK53: 6.666666667 | AL53: 1 | AM53: TRUE | AP53: 56.66666667 | AQ53: 27.29166667 | AR53: 3 | AS53: FALSE | AT53: 2 | AU53: TRUE | AY53: =_xlfn.XLOOKUP(Y53,[1]COUNTRY_INFO!$W$9:$W$172,[1]COUNTRY_INFO!$T$9:$T$172) -> 0 | AZ53: =_xlfn.XLOOKUP(Y53,[2]DISTRICT!$AJ$9:$AJ$172,[2]DISTRICT!$AH$9:$AH$172) -> 0 | BA53: 0
A54: =IF(INTRO!$E$33<>0,INTRO!$E$33, " ") -> ANGOLA | B54: HUAMBO | C54: UCUMA | D54: 69704.60254 | E54: =IF(INTRO!$E$48="","",ROUND($D54*INTRO!$E$48,0)) -> 11153 | F54: =IF(INTRO!$E$49="","",ROUND($D54*INTRO!$E$49,0)) -> 19448 | G54: =IF(INTRO!$E$50="","",ROUND($D54*INTRO!$E$50,0)) -> 36734 | H54: 0 | I54: 4 | J54: 2 | K54: 2 | L54: 0 | M54: =IF(INTRO!$E$37="Endemic",IF($H54>0,IF($H54=4,"Unknown",IF($H54=99,"Stopped",$D54)),0),"Not required") -> 0 | N54: =IF(INTRO!$E$39="Endemic", IF($I54>0, IF($I54=4,"Unknown",IF($I54=99,"Stopped",$D54)), 0),"Not required") -> Unknown | O54: =IF(INTRO!$E$41="Endemic", IF(AND($J54>1,$J54<5), IF($J54=4, "Unknown", E54+F54), 0),"Not required") -> 30601 | P54: =IF(INTRO!$E$43="Endemic", IF(AND($K54>0,$K54<5), IF($K54=4,"Unknown", IF($K54=1, $F54*0.33, IF($K54=2, $F54*0.5+$G54*0.2, SUM(F54:G54)))), 0),"Not required") -> 17070.8 | Q54: 0 | R54: 0 | S54: 1 | T54: 1 | W54: Yes | X54: Yes | Y54: 2126 | Z54: UKUMA | AB54: TRUE | AC54: Huambo | AD54: Ucuma | AE54: 138 | AF54: 0 | AG54: 0 | AH54: 0 | AI54: TRUE | AK54: 20 | AL54: 2 | AM54: TRUE | AP54: 66.66666667 | AQ54: 26.42857143 | AR54: 3 | AS54: FALSE | AT54: 2 | AU54: TRUE | AY54: =_xlfn.XLOOKUP(Y54,[1]COUNTRY_INFO!$W$9:$W$172,[1]COUNTRY_INFO!$T$9:$T$172) -> 0 | AZ54: =_xlfn.XLOOKUP(Y54,[2]DISTRICT!$AJ$9:$AJ$172,[2]DISTRICT!$AH$9:$AH$172) -> 0 | BA54: 0
A55: =IF(INTRO!$E$33<>0,INTRO!$E$33, " ") -> ANGOLA | B55: HUILA | C55: CACONDA | D55: 207642.1312 | E55: =IF(INTRO!$E$48="","",ROUND($D55*INTRO!$E$48,0)) -> 33223 | F55: =IF(INTRO!$E$49="","",ROUND($D55*INTRO!$E$49,0)) -> 57932 | G55: =IF(INTRO!$E$50="","",ROUND($D55*INTRO!$E$50,0)) -> 109427 | H55: 0 | I55: 4 | J55: 1 | K55: 2 | L55: 0 | M55: =IF(INTRO!$E$37="Endemic",IF($H55>0,IF($H55=4,"Unknown",IF($H55=99,"Stopped",$D55)),0),"Not required") -> 0 | N55: =IF(INTRO!$E$39="Endemic", IF($I55>0, IF($I55=4,"Unknown",IF($I55=99,"Stopped",$D55)), 0),"Not required") -> Unknown | O55: =IF(INTRO!$E$41="Endemic", IF(AND($J55>1,$J55<5), IF($J55=4, "Unknown", E55+F55), 0),"Not required") -> 0 | P55: =IF(INTRO!$E$43="Endemic", IF(AND($K55>0,$K55<5), IF($K55=4,"Unknown", IF($K55=1, $F55*0.33, IF($K55=2, $F55*0.5+$G55*0.2, SUM(F55:G55)))), 0),"Not required") -> 50851.4 | Q55: 0 | R55: 0 | S55: 0 | T55: 1 | Y55: 2133 | Z55: CACONDA | AB55: TRUE | AC55: Huila | AD55: Caconda | AE55: 92 | AF55: 0 | AG55: 0 | AH55: 0 | AI55: TRUE | AK55: 1.2 | AL55: 1 | AM55: TRUE | AP55: 86 | AQ55: 32.8 | AR55: 3 | AS55: FALSE | AT55: 2 | AU55: TRUE | AY55: =_xlfn.XLOOKUP(Y55,[1]COUNTRY_INFO!$W$9:$W$172,[1]COUNTRY_INFO!$T$9:$T$172) -> 0 | AZ55: =_xlfn.XLOOKUP(Y55,[2]DISTRICT!$AJ$9:$AJ$172,[2]DISTRICT!$AH$9:$AH$172) -> 0 | BA55: 0
A56: =IF(INTRO!$E$33<>0,INTRO!$E$33, " ") -> ANGOLA | B56: HUILA | C56: CACULA | D56: 169480.7687 | E56: =IF(INTRO!$E$48="","",ROUND($D56*INTRO!$E$48,0)) -> 27117 | F56: =IF(INTRO!$E$49="","",ROUND($D56*INTRO!$E$49,0)) -> 47285 | G56: =IF(INTRO!$E$50="","",ROUND($D56*INTRO!$E$50,0)) -> 89316 | H56: 0 | I56: 4 | J56: 0 | K56: 2 | L56: 0 | M56: =IF(INTRO!$E$37="Endemic",IF($H56>0,IF($H56=4,"Unknown",IF($H56=99,"Stopped",$D56)),0),"Not required") -> 0 | N56: =IF(INTRO!$E$39="Endemic", IF($I56>0, IF($I56=4,"Unknown",IF($I56=99,"Stopped",$D56)), 0),"Not required") -> Unknown | O56: =IF(INTRO!$E$41="Endemic", IF(AND($J56>1,$J56<5), IF($J56=4, "Unknown", E56+F56), 0),"Not required") -> 0 | P56: =IF(INTRO!$E$43="Endemic", IF(AND($K56>0,$K56<5), IF($K56=4,"Unknown", IF($K56=1, $F56*0.33, IF($K56=2, $F56*0.5+$G56*0.2, SUM(F56:G56)))), 0),"Not required") -> 41505.7 | Q56: 0 | R56: 0 | S56: 0 | T56: 1 | Y56: 2214 | Z56: CACULA | AH56: 4 | AI56: FALSE | AK56: 0.8 | AL56: 0 | AM56: TRUE | AP56: 26 | AQ56: 13.6 | AR56: 2 | AS56: TRUE | AT56: 2 | AU56: TRUE | AY56: =_xlfn.XLOOKUP(Y56,[1]COUNTRY_INFO!$W$9:$W$172,[1]COUNTRY_INFO!$T$9:$T$172) -> 0 | AZ56: =_xlfn.XLOOKUP(Y56,[2]DISTRICT!$AJ$9:$AJ$172,[2]DISTRICT!$AH$9:$AH$172) -> 0 | BA56: 0
A57: =IF(INTRO!$E$33<>0,INTRO!$E$33, " ") -> ANGOLA | B57: HUILA | C57: CALUQUEMBE | D57: 222627.3288 | E57: =IF(INTRO!$E$48="","",ROUND($D57*INTRO!$E$48,0)) -> 35620 | F57: =IF(INTRO!$E$49="","",ROUND($D57*INTRO!$E$49,0)) -> 62113 | G57: =IF(INTRO!$E$50="","",ROUND($D57*INTRO!$E$50,0)) -> 117325 | H57: 0 | I57: 1 | J57: 1 | K57: 2 | L57: 0 | M57: =IF(INTRO!$E$37="Endemic",IF($H57>0,IF($H57=4,"Unknown",IF($H57=99,"Stopped",$D57)),0),"Not required") -> 0 | N57: =IF(INTRO!$E$39="Endemic", IF($I57>0, IF($I57=4,"Unknown",IF($I57=99,"Stopped",$D57)), 0),"Not required") -> 222627.3288 | O57: =IF(INTRO!$E$41="Endemic", IF(AND($J57>1,$J57<5), IF($J57=4, "Unknown", E57+F57), 0),"Not required") -> 0 | P57: =IF(INTRO!$E$43="Endemic", IF(AND($K57>0,$K57<5), IF($K57=4,"Unknown", IF($K57=1, $F57*0.33, IF($K57=2, $F57*0.5+$G57*0.2, SUM(F57:G57)))), 0),"Not required") -> 54521.5 | Q57: 0 | R57: 1 | S57: 0 | T57: 1 | Y57: 2134 | Z57: CALUQUEMBE | AB57: TRUE | AC57: Huila | AD57: Caluquembe | AE57: 79 | AF57: 0 | AG57: =AF57/AE57*100 -> 0 | AH57: 0 | AI57: TRUE | AK57: 4 | AL57: 1 | AM57: TRUE | AP57: 58 | AQ57: 37 | AR57: 3 | AS57: FALSE | AT57: 2 | AU57: TRUE | AY57: =_xlfn.XLOOKUP(Y57,[1]COUNTRY_INFO!$W$9:$W$172,[1]COUNTRY_INFO!$T$9:$T$172) -> 0 | AZ57: =_xlfn.XLOOKUP(Y57,[2]DISTRICT!$AJ$9:$AJ$172,[2]DISTRICT!$AH$9:$AH$172) -> 0 | BA57: 0
A58: =IF(INTRO!$E$33<>0,INTRO!$E$33, " ") -> ANGOLA | B58: HUILA | C58: CHIBIA | D58: 235915.2754 | E58: =IF(INTRO!$E$48="","",ROUND($D58*INTRO!$E$48,0)) -> 37746 | F58: =IF(INTRO!$E$49="","",ROUND($D58*INTRO!$E$49,0)) -> 65820 | G58: =IF(INTRO!$E$50="","",ROUND($D58*INTRO!$E$50,0)) -> 124327 | H58: 0 | I58: 4 | J58: 0 | K58: 2 | L58: 0 | M58: =IF(INTRO!$E$37="Endemic",IF($H58>0,IF($H58=4,"Unknown",IF($H58=99,"Stopped",$D58)),0),"Not required") -> 0 | N58: =IF(INTRO!$E$39="Endemic", IF($I58>0, IF($I58=4,"Unknown",IF($I58=99,"Stopped",$D58)), 0),"Not required") -> Unknown | O58: =IF(INTRO!$E$41="Endemic", IF(AND($J58>1,$J58<5), IF($J58=4, "Unknown", E58+F58), 0),"Not required") -> 0 | P58: =IF(INTRO!$E$43="Endemic", IF(AND($K58>0,$K58<5), IF($K58=4,"Unknown", IF($K58=1, $F58*0.33, IF($K58=2, $F58*0.5+$G58*0.2, SUM(F58:G58)))), 0),"Not required") -> 57775.4 | Q58: 0 | R58: 0 | S58: 0 | T58: 1 | Y58: 2127 | Z58: CHIBIA | AB58: FALSE | AC58: Huila | AD58: Chipia | AE58: 171 | AF58: 0 | AG58: 0 | AH58: 0 | AI58: TRUE | AK58: 0 | AL58: 0 | AM58: TRUE | AP58: 60 | AQ58: 23.6 | AR58: 3 | AS58: FALSE | AT58: 2 | AU58: TRUE | AY58: =_xlfn.XLOOKUP(Y58,[1]COUNTRY_INFO!$W$9:$W$172,[1]COUNTRY_INFO!$T$9:$T$172) -> 0 | AZ58: =_xlfn.XLOOKUP(Y58,[2]DISTRICT!$AJ$9:$AJ$172,[2]DISTRICT!$AH$9:$AH$172) -> 0 | BA58: 0
A59: =IF(INTRO!$E$33<>0,INTRO!$E$33, " ") -> ANGOLA | B59: HUILA | C59: CHICOMBA | D59: 163083.7395 | E59: =IF(INTRO!$E$48="","",ROUND($D59*INTRO!$E$48,0)) -> 26093 | F59: =IF(INTRO!$E$49="","",ROUND($D59*INTRO!$E$49,0)) -> 45500 | G59: =IF(INTRO!$E$50="","",ROUND($D59*INTRO!$E$50,0)) -> 85945 | H59: 0 | I59: 1 | J59: 0 | K59: 2 | L59: 0 | M59: =IF(INTRO!$E$37="Endemic",IF($H59>0,IF($H59=4,"Unknown",IF($H59=99,"Stopped",$D59)),0),"Not required") -> 0 | N59: =IF(INTRO!$E$39="Endemic", IF($I59>0, IF($I59=4,"Unknown",IF($I59=99,"Stopped",$D59)), 0),"Not required") -> 163083.7395 | O59: =IF(INTRO!$E$41="Endemic", IF(AND($J59>1,$J59<5), IF($J59=4, "Unknown", E59+F59), 0),"Not required") -> 0 | P59: =IF(INTRO!$E$43="Endemic", IF(AND($K59>0,$K59<5), IF($K59=4,"Unknown", IF($K59=1, $F59*0.33, IF($K59=2, $F59*0.5+$G59*0.2, SUM(F59:G59)))), 0),"Not required") -> 39939 | Q59: 0 | R59: 1 | S59: 0 | T59: 1 | Y59: 2128 | Z59: CHICOMBA | AB59: TRUE | AC59: Huila | AD59: Chicomba | AE59: 177 | AF59: 0 | AG59: 0 | AH59: 0 | AI59: TRUE | AK59: 0.4 | AL59: 0 | AM59: TRUE | AP59: 62 | AQ59: 43.2 | AR59: 3 | AS59: FALSE | AT59: 2 | AU59: TRUE | AY59: =_xlfn.XLOOKUP(Y59,[1]COUNTRY_INFO!$W$9:$W$172,[1]COUNTRY_INFO!$T$9:$T$172) -> 0 | AZ59: =_xlfn.XLOOKUP(Y59,[2]DISTRICT!$AJ$9:$AJ$172,[2]DISTRICT!$AH$9:$AH$172) -> 0 | BA59: 0
A60: =IF(INTRO!$E$33<>0,INTRO!$E$33, " ") -> ANGOLA | B60: HUILA | C60: CHIPINDO | D60: 80070.0043 | E60: =IF(INTRO!$E$48="","",ROUND($D60*INTRO!$E$48,0)) -> 12811 | F60: =IF(INTRO!$E$49="","",ROUND($D60*INTRO!$E$49,0)) -> 22340 | G60: =IF(INTRO!$E$50="","",ROUND($D60*INTRO!$E$50,0)) -> 42197 | H60: 1 | I60: 1 | J60: 1 | K60: 2 | L60: 0 | M60: =IF(INTRO!$E$37="Endemic",IF($H60>0,IF($H60=4,"Unknown",IF($H60=99,"Stopped",$D60)),0),"Not required") -> 80070.0043 | N60: =IF(INTRO!$E$39="Endemic", IF($I60>0, IF($I60=4,"Unknown",IF($I60=99,"Stopped",$D60)), 0),"Not required") -> 80070.0043 | O60: =IF(INTRO!$E$41="Endemic", IF(AND($J60>1,$J60<5), IF($J60=4, "Unknown", E60+F60), 0),"Not required") -> 0 | P60: =IF(INTRO!$E$43="Endemic", IF(AND($K60>0,$K60<5), IF($K60=4,"Unknown", IF($K60=1, $F60*0.33, IF($K60=2, $F60*0.5+$G60*0.2, SUM(F60:G60)))), 0),"Not required") -> 19609.4 | Q60: 1 | R60: 1 | S60: 0 | T60: 1 | Y60: 2129 | Z60: CHIPINDO | AB60: TRUE | AC60: Huila | AD60: Chipindo | AE60: 200 | AF60: 2 | AG60: 1 | AH60: 1 | AI60: TRUE | AK60: 2.5 | AL60: 1 | AM60: TRUE | AP60: 32 | AQ60: 17.5 | AR60: 2 | AS60: TRUE | AT60: 2 | AU60: TRUE | AY60: =_xlfn.XLOOKUP(Y60,[1]COUNTRY_INFO!$W$9:$W$172,[1]COUNTRY_INFO!$T$9:$T$172) -> 0 | AZ60: =_xlfn.XLOOKUP(Y60,[2]DISTRICT!$AJ$9:$AJ$172,[2]DISTRICT!$AH$9:$AH$172) -> 0 | BA60: 0
A61: =IF(INTRO!$E$33<>0,INTRO!$E$33, " ") -> ANGOLA | B61: HUILA | C61: GAMBOS | D61: 98317.73903 | E61: =IF(INTRO!$E$48="","",ROUND($D61*INTRO!$E$48,0)) -> 15731 | F61: =IF(INTRO!$E$49="","",ROUND($D61*INTRO!$E$49,0)) -> 27431 | G61: =IF(INTRO!$E$50="","",ROUND($D61*INTRO!$E$50,0)) -> 51813 | H61: 0 | I61: 4 | J61: 0 | K61: 1 | L61: 0 | M61: =IF(INTRO!$E$37="Endemic",IF($H61>0,IF($H61=4,"Unknown",IF($H61=99,"Stopped",$D61)),0),"Not required") -> 0 | N61: =IF(INTRO!$E$39="Endemic", IF($I61>0, IF($I61=4,"Unknown",IF($I61=99,"Stopped",$D61)), 0),"Not required") -> Unknown | O61: =IF(INTRO!$E$41="Endemic", IF(AND($J61>1,$J61<5), IF($J61=4, "Unknown", E61+F61), 0),"Not required") -> 0 | P61: =IF(INTRO!$E$43="Endemic", IF(AND($K61>0,$K61<5), IF($K61=4,"Unknown", IF($K61=1, $F61*0.33, IF($K61=2, $F61*0.5+$G61*0.2, SUM(F61:G61)))), 0),"Not required") -> 9052.23 | Q61: 0 | R61: 0 | S61: 0 | T61: 1 | Y61: 2130 | Z61: GAMBOS | AB61: TRUE | AC61: Huila | AD61: Gambos | AE61: 53 | AF61: 0 | AG61: 0 | AH61: 0 | AI61: TRUE | AK61: 0.5714285714 | AL61: 0 | AM61: TRUE | AP61: 16 | AQ61: 6.571428571 | AR61: 2 | AS61: FALSE | AT61: 1 | AU61: TRUE | AY61: =_xlfn.XLOOKUP(Y61,[1]COUNTRY_INFO!$W$9:$W$172,[1]COUNTRY_INFO!$T$9:$T$172) -> 0 | AZ61: =_xlfn.XLOOKUP(Y61,[2]DISTRICT!$AJ$9:$AJ$172,[2]DISTRICT!$AH$9:$AH$172) -> 0 | BA61: 0
A62: =IF(INTRO!$E$33<>0,INTRO!$E$33, " ") -> ANGOLA | B62: HUILA | C62: HUMPATA | D62: 110297.7963 | E62: =IF(INTRO!$E$48="","",ROUND($D62*INTRO!$E$48,0)) -> 17648 | F62: =IF(INTRO!$E$49="","",ROUND($D62*INTRO!$E$49,0)) -> 30773 | G62: =IF(INTRO!$E$50="","",ROUND($D62*INTRO!$E$50,0)) -> 58127 | H62: 0 | I62: 4 | J62: 1 | K62: 1 | L62: 0 | M62: =IF(INTRO!$E$37="Endemic",IF($H62>0,IF($H62=4,"Unknown",IF($H62=99,"Stopped",$D62)),0),"Not required") -> 0 | N62: =IF(INTRO!$E$39="Endemic", IF($I62>0, IF($I62=4,"Unknown",IF($I62=99,"Stopped",$D62)), 0),"Not required") -> Unknown | O62: =IF(INTRO!$E$41="Endemic", IF(AND($J62>1,$J62<5), IF($J62=4, "Unknown", E62+F62), 0),"Not required") -> 0 | P62: =IF(INTRO!$E$43="Endemic", IF(AND($K62>0,$K62<5), IF($K62=4,"Unknown", IF($K62=1, $F62*0.33, IF($K62=2, $F62*0.5+$G62*0.2, SUM(F62:G62)))), 0),"Not required") -> 10155.09 | Q62: 0 | R62: 0 | S62: 0 | T62: 1 | Y62: 2131 | Z62: HUMPATA | AB62: TRUE | AC62: Huila | AD62: Humpata | AE62: 61 | AF62: 0 | AG62: 0 | AH62: 0 | AI62: TRUE | AK62: 2 | AL62: 1 | AM62: TRUE | AP62: 32 | AQ62: 9.2 | AR62: 2 | AS62: FALSE | AT62: 1 | AU62: TRUE | AY62: =_xlfn.XLOOKUP(Y62,[1]COUNTRY_INFO!$W$9:$W$172,[1]COUNTRY_INFO!$T$9:$T$172) -> 0 | AZ62: =_xlfn.XLOOKUP(Y62,[2]DISTRICT!$AJ$9:$AJ$172,[2]DISTRICT!$AH$9:$AH$172) -> 0 | BA62: 0
A63: =IF(INTRO!$E$33<>0,INTRO!$E$33, " ") -> ANGOLA | B63: HUILA | C63: JAMBA | D63: 130027.1959 | E63: =IF(INTRO!$E$48="","",ROUND($D63*INTRO!$E$48,0)) -> 20804 | F63: =IF(INTRO!$E$49="","",ROUND($D63*INTRO!$E$49,0)) -> 36278 | G63: =IF(INTRO!$E$50="","",ROUND($D63*INTRO!$E$50,0)) -> 68524 | H63: 1 | I63: 4 | J63: 0 | K63: 3 | L63: 0 | M63: =IF(INTRO!$E$37="Endemic",IF($H63>0,IF($H63=4,"Unknown",IF($H63=99,"Stopped",$D63)),0),"Not required") -> 130027.1959 | N63: =IF(INTRO!$E$39="Endemic", IF($I63>0, IF($I63=4,"Unknown",IF($I63=99,"Stopped",$D63)), 0),"Not required") -> Unknown | O63: =IF(INTRO!$E$41="Endemic", IF(AND($J63>1,$J63<5), IF($J63=4, "Unknown", E63+F63), 0),"Not required") -> 0 | P63: =IF(INTRO!$E$43="Endemic", IF(AND($K63>0,$K63<5), IF($K63=4,"Unknown", IF($K63=1, $F63*0.33, IF($K63=2, $F63*0.5+$G63*0.2, SUM(F63:G63)))), 0),"Not required") -> 104802 | Q63: 1 | R63: 0 | S63: 0 | T63: 1 | Y63: 2132 | Z63: JAMBA | AB63: TRUE | AC63: Huila | AD63: Jamba | AE63: 192 | AF63: 2 | AG63: 1.041666667 | AH63: 1 | AI63: TRUE | AK63: 0.2857142857 | AL63: 0 | AM63: TRUE | AP63: 98 | AQ63: 52.85714286 | AR63: 3 | AS63: TRUE | AT63: 3 | AU63: TRUE | AY63: =_xlfn.XLOOKUP(Y63,[1]COUNTRY_INFO!$W$9:$W$172,[1]COUNTRY_INFO!$T$9:$T$172) -> 0 | AZ63: =_xlfn.XLOOKUP(Y63,[2]DISTRICT!$AJ$9:$AJ$172,[2]DISTRICT!$AH$9:$AH$172) -> 0 | BA63: 0
A64: =IF(INTRO!$E$33<>0,INTRO!$E$33, " ") -> ANGOLA | B64: HUILA | C64: CUVANGO | D64: 97181.01203 | E64: =IF(INTRO!$E$48="","",ROUND($D64*INTRO!$E$48,0)) -> 15549 | F64: =IF(INTRO!$E$49="","",ROUND($D64*INTRO!$E$49,0)) -> 27114 | G64: =IF(INTRO!$E$50="","",ROUND($D64*INTRO!$E$50,0)) -> 51214 | H64: 1 | I64: 4 | J64: 0 | K64: 2 | L64: 1 | M64: =IF(INTRO!$E$37="Endemic",IF($H64>0,IF($H64=4,"Unknown",IF($H64=99,"Stopped",$D64)),0),"Not required") -> 97181.01203 | N64: =IF(INTRO!$E$39="Endemic", IF($I64>0, IF($I64=4,"Unknown",IF($I64=99,"Stopped",$D64)), 0),"Not required") -> Unknown | O64: =IF(INTRO!$E$41="Endemic", IF(AND($J64>1,$J64<5), IF($J64=4, "Unknown", E64+F64), 0),"Not required") -> 0 | P64: =IF(INTRO!$E$43="Endemic", IF(AND($K64>0,$K64<5), IF($K64=4,"Unknown", IF($K64=1, $F64*0.33, IF($K64=2, $F64*0.5+$G64*0.2, SUM(F64:G64)))), 0),"Not required") -> 23799.8 | Q64: 1 | R64: 0 | S64: 0 | T64: 1 | Y64: 2136 | Z64: KUVANGO | AB64: TRUE | AC64: Huila | AD64: Cuvango | AE64: 200 | AF64: 3 | AG64: 1.5 | AH64: 1 | AI64: TRUE | AK64: 0.3333333333 | AL64: 0 | AM64: TRUE | AP64: 46 | AQ64: 29.33333333 | AR64: 2 | AS64: TRUE | AT64: 2 | AU64: TRUE | AY64: =_xlfn.XLOOKUP(Y64,[1]COUNTRY_INFO!$W$9:$W$172,[1]COUNTRY_INFO!$T$9:$T$172) -> 0 | AZ64: =_xlfn.XLOOKUP(Y64,[2]DISTRICT!$AJ$9:$AJ$172,[2]DISTRICT!$AH$9:$AH$172) -> 0 | BA64: 0
A65: =IF(INTRO!$E$33<>0,INTRO!$E$33, " ") -> ANGOLA | B65: HUILA | C65: LUBANGO | D65: 960448.0767 | E65: =IF(INTRO!$E$48="","",ROUND($D65*INTRO!$E$48,0)) -> 153672 | F65: =IF(INTRO!$E$49="","",ROUND($D65*INTRO!$E$49,0)) -> 267965 | G65: =IF(INTRO!$E$50="","",ROUND($D65*INTRO!$E$50,0)) -> 506156 | H65: 0 | I65: 4 | J65: 1 | K65: 2 | L65: 0 | M65: =IF(INTRO!$E$37="Endemic",IF($H65>0,IF($H65=4,"Unknown",IF($H65=99,"Stopped",$D65)),0),"Not required") -> 0 | N65: =IF(INTRO!$E$39="Endemic", IF($I65>0, IF($I65=4,"Unknown",IF($I65=99,"Stopped",$D65)), 0),"Not required") -> Unknown | O65: =IF(INTRO!$E$41="Endemic", IF(AND($J65>1,$J65<5), IF($J65=4, "Unknown", E65+F65), 0),"Not required") -> 0 | P65: =IF(INTRO!$E$43="Endemic", IF(AND($K65>0,$K65<5), IF($K65=4,"Unknown", IF($K65=1, $F65*0.33, IF($K65=2, $F65*0.5+$G65*0.2, SUM(F65:G65)))), 0),"Not required") -> 235213.7 | Q65: 0 | R65: 0 | S65: 0 | T65: 1 | Y65: 2137 | Z65: LUBANGO | AH65: 4 | AI65: FALSE | AK65: 1.6 | AL65: 1 | AM65: TRUE | AP65: 100 | AQ65: 36.4 | AR65: 3 | AS65: FALSE | AT65: 2 | AU65: TRUE | AY65: =_xlfn.XLOOKUP(Y65,[1]COUNTRY_INFO!$W$9:$W$172,[1]COUNTRY_INFO!$T$9:$T$172) -> 0 | AZ65: =_xlfn.XLOOKUP(Y65,[2]DISTRICT!$AJ$9:$AJ$172,[2]DISTRICT!$AH$9:$AH$172) -> 0 | BA65: 0
A66: =IF(INTRO!$E$33<>0,INTRO!$E$33, " ") -> ANGOLA | B66: HUILA | C66: MATALA | D66: 325115.68 | E66: =IF(INTRO!$E$48="","",ROUND($D66*INTRO!$E$48,0)) -> 52019 | F66: =IF(INTRO!$E$49="","",ROUND($D66*INTRO!$E$49,0)) -> 90707 | G66: =IF(INTRO!$E$50="","",ROUND($D66*INTRO!$E$50,0)) -> 171336 | H66: 0 | I66: 1 | J66: 1 | K66: 3 | L66: 0 | M66: =IF(INTRO!$E$37="Endemic",IF($H66>0,IF($H66=4,"Unknown",IF($H66=99,"Stopped",$D66)),0),"Not required") -> 0 | N66: =IF(INTRO!$E$39="Endemic", IF($I66>0, IF($I66=4,"Unknown",IF($I66=99,"Stopped",$D66)), 0),"Not required") -> 325115.68 | O66: =IF(INTRO!$E$41="Endemic", IF(AND($J66>1,$J66<5), IF($J66=4, "Unknown", E66+F66), 0),"Not required") -> 0 | P66: =IF(INTRO!$E$43="Endemic", IF(AND($K66>0,$K66<5), IF($K66=4,"Unknown", IF($K66=1, $F66*0.33, IF($K66=2, $F66*0.5+$G66*0.2, SUM(F66:G66)))), 0),"Not required") -> 262043 | Q66: 0 | R66: 1 | S66: 0 | T66: 1 | Y66: 2138 | Z66: MATALA | AB66: TRUE | AC66: Huila | AD66: Matala | AE66: 200 | AF66: 0 | AG66: =AF66/AE66*100 -> 0 | AH66: 0 | AI66: TRUE | AK66: 1.142857143 | AL66: 1 | AM66: TRUE | AP66: 92 | AQ66: 62 | AR66: 3 | AS66: TRUE | AT66: 3 | AU66: TRUE | AY66: =_xlfn.XLOOKUP(Y66,[1]COUNTRY_INFO!$W$9:$W$172,[1]COUNTRY_INFO!$T$9:$T$172) -> 0 | AZ66: =_xlfn.XLOOKUP(Y66,[2]DISTRICT!$AJ$9:$AJ$172,[2]DISTRICT!$AH$9:$AH$172) -> 0 | BA66: 0
A67: =IF(INTRO!$E$33<>0,INTRO!$E$33, " ") -> ANGOLA | B67: HUILA | C67: QUILENGUES | D67: 93210.30705 | E67: =IF(INTRO!$E$48="","",ROUND($D67*INTRO!$E$48,0)) -> 14914 | F67: =IF(INTRO!$E$49="","",ROUND($D67*INTRO!$E$49,0)) -> 26006 | G67: =IF(INTRO!$E$50="","",ROUND($D67*INTRO!$E$50,0)) -> 49122 | H67: 0 | I67: 1 | J67: 0 | K67: 2 | L67: 0 | M67: =IF(INTRO!$E$37="Endemic",IF($H67>0,IF($H67=4,"Unknown",IF($H67=99,"Stopped",$D67)),0),"Not required") -> 0 | N67: =IF(INTRO!$E$39="Endemic", IF($I67>0, IF($I67=4,"Unknown",IF($I67=99,"Stopped",$D67)), 0),"Not required") -> 93210.30705 | O67: =IF(INTRO!$E$41="Endemic", IF(AND($J67>1,$J67<5), IF($J67=4, "Unknown", E67+F67), 0),"Not required") -> 0 | P67: =IF(INTRO!$E$43="Endemic", IF(AND($K67>0,$K67<5), IF($K67=4,"Unknown", IF($K67=1, $F67*0.33, IF($K67=2, $F67*0.5+$G67*0.2, SUM(F67:G67)))), 0),"Not required") -> 22827.4 | Q67: 0 | R67: 1 | S67: 0 | T67: 1 | Y67: 2135 | Z67: QUILENGUES | AB67: FALSE | AC67: Huila | AD67: Quilenges | AE67: 100 | AF67: 0 | AG67: 0 | AH67: 0 | AI67: TRUE | AK67: 0.4 | AL67: 0 | AM67: TRUE | AP67: 60 | AQ67: 36 | AR67: 3 | AS67: FALSE | AT67: 2 | AU67: TRUE | AY67: =_xlfn.XLOOKUP(Y67,[1]COUNTRY_INFO!$W$9:$W$172,[1]COUNTRY_INFO!$T$9:$T$172) -> 0 | AZ67: =_xlfn.XLOOKUP(Y67,[2]DISTRICT!$AJ$9:$AJ$172,[2]DISTRICT!$AH$9:$AH$172) -> 0 | BA67: 0
A68: =IF(INTRO!$E$33<>0,INTRO!$E$33, " ") -> ANGOLA | B68: HUILA | C68: QUIPUNGO | D68: 196628.9451 | E68: =IF(INTRO!$E$48="","",ROUND($D68*INTRO!$E$48,0)) -> 31461 | F68: =IF(INTRO!$E$49="","",ROUND($D68*INTRO!$E$49,0)) -> 54859 | G68: =IF(INTRO!$E$50="","",ROUND($D68*INTRO!$E$50,0)) -> 103623 | H68: 0 | I68: 1 | J68: 1 | K68: 2 | L68: 0 | M68: =IF(INTRO!$E$37="Endemic",IF($H68>0,IF($H68=4,"Unknown",IF($H68=99,"Stopped",$D68)),0),"Not required") -> 0 | N68: =IF(INTRO!$E$39="Endemic", IF($I68>0, IF($I68=4,"Unknown",IF($I68=99,"Stopped",$D68)), 0),"Not required") -> 196628.9451 | O68: =IF(INTRO!$E$41="Endemic", IF(AND($J68>1,$J68<5), IF($J68=4, "Unknown", E68+F68), 0),"Not required") -> 0 | P68: =IF(INTRO!$E$43="Endemic", IF(AND($K68>0,$K68<5), IF($K68=4,"Unknown", IF($K68=1, $F68*0.33, IF($K68=2, $F68*0.5+$G68*0.2, SUM(F68:G68)))), 0),"Not required") -> 48154.1 | Q68: 0 | R68: 1 | S68: 0 | T68: 1 | Y68: 2221 | Z68: QUIPUNGO | AB68: TRUE | AC68: Huila | AD68: Quipungo | AE68: 200 | AF68: 0 | AG68: 0 | AH68: 0 | AI68: TRUE | AK68: 1.333333333 | AL68: 1 | AM68: TRUE | AP68: 72 | AQ68: 46.66666667 | AR68: 3 | AS68: FALSE | AT68: 2 | AU68: TRUE | AY68: =_xlfn.XLOOKUP(Y68,[1]COUNTRY_INFO!$W$9:$W$172,[1]COUNTRY_INFO!$T$9:$T$172) -> 0 | AZ68: =_xlfn.XLOOKUP(Y68,[2]DISTRICT!$AJ$9:$AJ$172,[2]DISTRICT!$AH$9:$AH$172) -> 0 | BA68: 0
A69: =IF(INTRO!$E$33<>0,INTRO!$E$33, " ") -> ANGOLA | B69: CUANDO CUBANGO | C69: CALAI | D69: 27907.85492 | E69: =IF(INTRO!$E$48="","",ROUND($D69*INTRO!$E$48,0)) -> 4465 | F69: =IF(INTRO!$E$49="","",ROUND($D69*INTRO!$E$49,0)) -> 7786 | G69: =IF(INTRO!$E$50="","",ROUND($D69*INTRO!$E$50,0)) -> 14707 | H69: 0 | I69: 4 | J69: 1 | K69: 1 | L69: 1 | M69: =IF(INTRO!$E$37="Endemic",IF($H69>0,IF($H69=4,"Unknown",IF($H69=99,"Stopped",$D69)),0),"Not required") -> 0 | N69: =IF(INTRO!$E$39="Endemic", IF($I69>0, IF($I69=4,"Unknown",IF($I69=99,"Stopped",$D69)), 0),"Not required") -> Unknown | O69: =IF(INTRO!$E$41="Endemic", IF(AND($J69>1,$J69<5), IF($J69=4, "Unknown", E69+F69), 0),"Not required") -> 0 | P69: =IF(INTRO!$E$43="Endemic", IF(AND($K69>0,$K69<5), IF($K69=4,"Unknown", IF($K69=1, $F69*0.33, IF($K69=2, $F69*0.5+$G69*0.2, SUM(F69:G69)))), 0),"Not required") -> 2569.38 | Q69: 0 | R69: 0 | S69: 0 | T69: 0 | Y69: 2078 | Z69: CALAI | AB69: =AD69=C69 -> TRUE | AC69: Cuando Cubango | AD69: Calai | AE69: 161 | AF69: 0 | AG69: 0 | AH69: 0 | AI69: TRUE | AK69: 2 | AL69: 1 | AM69: TRUE | AP69: 12 | AQ69: 6.666666667 | AR69: 2 | AS69: FALSE | AT69: 1 | AU69: TRUE | AY69: =_xlfn.XLOOKUP(Y69,[1]COUNTRY_INFO!$W$9:$W$172,[1]COUNTRY_INFO!$T$9:$T$172) -> 1 | AZ69: =_xlfn.XLOOKUP(Y69,[2]DISTRICT!$AJ$9:$AJ$172,[2]DISTRICT!$AH$9:$AH$172) -> 0 | BA69: 1
A70: =IF(INTRO!$E$33<>0,INTRO!$E$33, " ") -> ANGOLA | B70: CUANDO CUBANGO | C70: CUANGAR | D70: 35058.81183 | E70: =IF(INTRO!$E$48="","",ROUND($D70*INTRO!$E$48,0)) -> 5609 | F70: =IF(INTRO!$E$49="","",ROUND($D70*INTRO!$E$49,0)) -> 9781 | G70: =IF(INTRO!$E$50="","",ROUND($D70*INTRO!$E$50,0)) -> 18476 | H70: 0 | I70: 1 | J70: 1 | K70: 1 | L70: 1 | M70: =IF(INTRO!$E$37="Endemic",IF($H70>0,IF($H70=4,"Unknown",IF($H70=99,"Stopped",$D70)),0),"Not required") -> 0 | N70: =IF(INTRO!$E$39="Endemic", IF($I70>0, IF($I70=4,"Unknown",IF($I70=99,"Stopped",$D70)), 0),"Not required") -> 35058.81183 | O70: =IF(INTRO!$E$41="Endemic", IF(AND($J70>1,$J70<5), IF($J70=4, "Unknown", E70+F70), 0),"Not required") -> 0 | P70: =IF(INTRO!$E$43="Endemic", IF(AND($K70>0,$K70<5), IF($K70=4,"Unknown", IF($K70=1, $F70*0.33, IF($K70=2, $F70*0.5+$G70*0.2, SUM(F70:G70)))), 0),"Not required") -> 3227.73 | Q70: 0 | R70: 1 | S70: 0 | T70: 0 | Y70: 2076 | Z70: CUANGAR | AB70: TRUE | AC70: Cuando Cubango | AD70: Cuangar | AE70: 119 | AF70: 0 | AG70: 0 | AH70: 0 | AI70: TRUE | AK70: 2 | AL70: 1 | AM70: TRUE | AP70: 12 | AQ70: 5.5 | AR70: 2 | AS70: FALSE | AT70: 1 | AU70: TRUE | AY70: =_xlfn.XLOOKUP(Y70,[1]COUNTRY_INFO!$W$9:$W$172,[1]COUNTRY_INFO!$T$9:$T$172) -> 1 | AZ70: =_xlfn.XLOOKUP(Y70,[2]DISTRICT!$AJ$9:$AJ$172,[2]DISTRICT!$AH$9:$AH$172) -> 0 | BA70: 1
A71: =IF(INTRO!$E$33<>0,INTRO!$E$33, " ") -> ANGOLA | B71: CUANDO CUBANGO | C71: CUCHI | D71: 52939.4563 | E71: =IF(INTRO!$E$48="","",ROUND($D71*INTRO!$E$48,0)) -> 8470 | F71: =IF(INTRO!$E$49="","",ROUND($D71*INTRO!$E$49,0)) -> 14770 | G71: =IF(INTRO!$E$50="","",ROUND($D71*INTRO!$E$50,0)) -> 27899 | H71: 0 | I71: 1 | J71: 0 | K71: 2 | L71: 1 | M71: =IF(INTRO!$E$37="Endemic",IF($H71>0,IF($H71=4,"Unknown",IF($H71=99,"Stopped",$D71)),0),"Not required") -> 0 | N71: =IF(INTRO!$E$39="Endemic", IF($I71>0, IF($I71=4,"Unknown",IF($I71=99,"Stopped",$D71)), 0),"Not required") -> 52939.4563 | O71: =IF(INTRO!$E$41="Endemic", IF(AND($J71>1,$J71<5), IF($J71=4, "Unknown", E71+F71), 0),"Not required") -> 0 | P71: =IF(INTRO!$E$43="Endemic", IF(AND($K71>0,$K71<5), IF($K71=4,"Unknown", IF($K71=1, $F71*0.33, IF($K71=2, $F71*0.5+$G71*0.2, SUM(F71:G71)))), 0),"Not required") -> 12964.8 | Q71: 0 | R71: 1 | S71: 0 | T71: 1 | Y71: 2079 | Z71: CUCHI | AB71: TRUE | AC71: Cuando Cubango | AD71: Cuchi | AE71: 178 | AF71: 0 | AG71: 0 | AH71: 0 | AI71: TRUE | AK71: 0 | AL71: 0 | AM71: TRUE | AP71: 26 | AQ71: 10.66666667 | AR71: 2 | AS71: TRUE | AT71: 2 | AU71: TRUE | AY71: =_xlfn.XLOOKUP(Y71,[1]COUNTRY_INFO!$W$9:$W$172,[1]COUNTRY_INFO!$T$9:$T$172) -> 1 | AZ71: =_xlfn.XLOOKUP(Y71,[2]DISTRICT!$AJ$9:$AJ$172,[2]DISTRICT!$AH$9:$AH$172) -> 0 | BA71: 1
A72: =IF(INTRO!$E$33<>0,INTRO!$E$33, " ") -> ANGOLA | B72: CUANDO CUBANGO | C72: DIRICO | D72: 18633.85605 | E72: =IF(INTRO!$E$48="","",ROUND($D72*INTRO!$E$48,0)) -> 2981 | F72: =IF(INTRO!$E$49="","",ROUND($D72*INTRO!$E$49,0)) -> 5199 | G72: =IF(INTRO!$E$50="","",ROUND($D72*INTRO!$E$50,0)) -> 9820 | H72: 0 | I72: 4 | J72: 1 | K72: 1 | L72: 1 | M72: =IF(INTRO!$E$37="Endemic",IF($H72>0,IF($H72=4,"Unknown",IF($H72=99,"Stopped",$D72)),0),"Not required") -> 0 | N72: =IF(INTRO!$E$39="Endemic", IF($I72>0, IF($I72=4,"Unknown",IF($I72=99,"Stopped",$D72)), 0),"Not required") -> Unknown | O72: =IF(INTRO!$E$41="Endemic", IF(AND($J72>1,$J72<5), IF($J72=4, "Unknown", E72+F72), 0),"Not required") -> 0 | P72: =IF(INTRO!$E$43="Endemic", IF(AND($K72>0,$K72<5), IF($K72=4,"Unknown", IF($K72=1, $F72*0.33, IF($K72=2, $F72*0.5+$G72*0.2, SUM(F72:G72)))), 0),"Not required") -> 1715.67 | Q72: 0 | R72: 0 | S72: 0 | T72: 1 | Y72: 2077 | Z72: DIRICO | AB72: TRUE | AC72: Cuando Cubango | AD72: Dirico | AE72: 114 | AF72: 0 | AG72: 0 | AH72: 0 | AI72: TRUE | AK72: 1 | AL72: 1 | AM72: TRUE | AP72: 14 | AQ72: 6 | AR72: 2 | AS72: FALSE | AT72: 1 | AU72: TRUE | AY72: =_xlfn.XLOOKUP(Y72,[1]COUNTRY_INFO!$W$9:$W$172,[1]COUNTRY_INFO!$T$9:$T$172) -> 0 | AZ72: =_xlfn.XLOOKUP(Y72,[2]DISTRICT!$AJ$9:$AJ$172,[2]DISTRICT!$AH$9:$AH$172) -> 0 | BA72: 0
A73: =IF(INTRO!$E$33<>0,INTRO!$E$33, " ") -> ANGOLA | B73: CUANDO CUBANGO | C73: CUITO CUANAVALE | D73: 50297.3618 | E73: =IF(INTRO!$E$48="","",ROUND($D73*INTRO!$E$48,0)) -> 8048 | F73: =IF(INTRO!$E$49="","",ROUND($D73*INTRO!$E$49,0)) -> 14033 | G73: =IF(INTRO!$E$50="","",ROUND($D73*INTRO!$E$50,0)) -> 26507 | H73: 0 | I73: 1 | J73: 1 | K73: 1 | L73: 1 | M73: =IF(INTRO!$E$37="Endemic",IF($H73>0,IF($H73=4,"Unknown",IF($H73=99,"Stopped",$D73)),0),"Not required") -> 0 | N73: =IF(INTRO!$E$39="Endemic", IF($I73>0, IF($I73=4,"Unknown",IF($I73=99,"Stopped",$D73)), 0),"Not required") -> 50297.3618 | O73: =IF(INTRO!$E$41="Endemic", IF(AND($J73>1,$J73<5), IF($J73=4, "Unknown", E73+F73), 0),"Not required") -> 0 | P73: =IF(INTRO!$E$43="Endemic", IF(AND($K73>0,$K73<5), IF($K73=4,"Unknown", IF($K73=1, $F73*0.33, IF($K73=2, $F73*0.5+$G73*0.2, SUM(F73:G73)))), 0),"Not required") -> 4630.89 | Q73: 0 | R73: 1 | S73: 0 | T73: 0 | Y73: 2080 | Z73: KUITO KUANAVALE | AB73: TRUE | AC73: Cuando Cubango | AD73: Cuito Cuanavale | AE73: 184 | AF73: 1 | AG73: 0.5434782609 | AH73: 0 | AI73: TRUE | AK73: 1 | AL73: 1 | AM73: TRUE | AP73: 10 | AQ73: 5 | AR73: 2 | AS73: FALSE | AT73: 1 | AU73: TRUE | AY73: =_xlfn.XLOOKUP(Y73,[1]COUNTRY_INFO!$W$9:$W$172,[1]COUNTRY_INFO!$T$9:$T$172) -> 1 | AZ73: =_xlfn.XLOOKUP(Y73,[2]DISTRICT!$AJ$9:$AJ$172,[2]DISTRICT!$AH$9:$AH$172) -> 0 | BA73: 1
A74: =IF(INTRO!$E$33<>0,INTRO!$E$33, " ") -> ANGOLA | B74: CUANDO CUBANGO | C74: MAVINGA | D74: 33502.95509 | E74: =IF(INTRO!$E$48="","",ROUND($D74*INTRO!$E$48,0)) -> 5360 | F74: =IF(INTRO!$E$49="","",ROUND($D74*INTRO!$E$49,0)) -> 9347 | G74: =IF(INTRO!$E$50="","",ROUND($D74*INTRO!$E$50,0)) -> 17656 | H74: 0 | I74: 4 | J74: 1 | K74: 1 | L74: 1 | M74: =IF(INTRO!$E$37="Endemic",IF($H74>0,IF($H74=4,"Unknown",IF($H74=99,"Stopped",$D74)),0),"Not required") -> 0 | N74: =IF(INTRO!$E$39="Endemic", IF($I74>0, IF($I74=4,"Unknown",IF($I74=99,"Stopped",$D74)), 0),"Not required") -> Unknown | O74: =IF(INTRO!$E$41="Endemic", IF(AND($J74>1,$J74<5), IF($J74=4, "Unknown", E74+F74), 0),"Not required") -> 0 | P74: =IF(INTRO!$E$43="Endemic", IF(AND($K74>0,$K74<5), IF($K74=4,"Unknown", IF($K74=1, $F74*0.33, IF($K74=2, $F74*0.5+$G74*0.2, SUM(F74:G74)))), 0),"Not required") -> 3084.51 | Q74: 0 | R74: 0 | S74: 0 | T74: 1 | Y74: 2081 | Z74: MAVINGA | AB74: TRUE | AC74: Cuando Cubango | AD74: Mavinga | AE74: 144 | AF74: 0 | AG74: 0 | AH74: 0 | AI74: =AH74=H74 -> TRUE | AK74: 5 | AL74: 1 | AM74: =AL74=J74 -> TRUE | AP74: 6 | AQ74: 3 | AR74: 1 | AS74: =AR74=K74 -> TRUE | AT74: 1 | AU74: =AT74=K74 -> TRUE | AY74: =_xlfn.XLOOKUP(Y74,[1]COUNTRY_INFO!$W$9:$W$172,[1]COUNTRY_INFO!$T$9:$T$172) -> 0 | AZ74: =_xlfn.XLOOKUP(Y74,[2]DISTRICT!$AJ$9:$AJ$172,[2]DISTRICT!$AH$9:$AH$172) -> 0 | BA74: =AY74+AZ74 -> 0
A75: =IF(INTRO!$E$33<>0,INTRO!$E$33, " ") -> ANGOLA | B75: CUANDO CUBANGO | C75: MENONGUE | D75: 395333.3091 | E75: =IF(INTRO!$E$48="","",ROUND($D75*INTRO!$E$48,0)) -> 63253 | F75: =IF(INTRO!$E$49="","",ROUND($D75*INTRO!$E$49,0)) -> 110298 | G75: =IF(INTRO!$E$50="","",ROUND($D75*INTRO!$E$50,0)) -> 208341 | H75: 0 | I75: 1 | J75: 1 | K75: 2 | L75: 1 | M75: =IF(INTRO!$E$37="Endemic",IF($H75>0,IF($H75=4,"Unknown",IF($H75=99,"Stopped",$D75)),0),"Not required") -> 0 | N75: =IF(INTRO!$E$39="Endemic", IF($I75>0, IF($I75=4,"Unknown",IF($I75=99,"Stopped",$D75)), 0),"Not required") -> 395333.3091 | O75: =IF(INTRO!$E$41="Endemic", IF(AND($J75>1,$J75<5), IF($J75=4, "Unknown", E75+F75), 0),"Not required") -> 0 | P75: =IF(INTRO!$E$43="Endemic", IF(AND($K75>0,$K75<5), IF($K75=4,"Unknown", IF($K75=1, $F75*0.33, IF($K75=2, $F75*0.5+$G75*0.2, SUM(F75:G75)))), 0),"Not required") -> 96817.2 | Q75: 0 | R75: 1 | S75: 0 | T75: 1 | Y75: 2082 | Z75: MENONGUE | AB75: TRUE | AC75: Cuando Cubango | AD75: Menongue | AE75: 104 | AF75: 0 | AG75: 0 | AH75: 0 | AI75: TRUE | AK75: 1 | AL75: 1 | AM75: TRUE | AP75: 40 | AQ75: 18.25 | AR75: 2 | AS75: TRUE | AT75: 2 | AU75: TRUE | AY75: =_xlfn.XLOOKUP(Y75,[1]COUNTRY_INFO!$W$9:$W$172,[1]COUNTRY_INFO!$T$9:$T$172) -> 1 | AZ75: =_xlfn.XLOOKUP(Y75,[2]DISTRICT!$AJ$9:$AJ$172,[2]DISTRICT!$AH$9:$AH$172) -> 0 | BA75: 1
A76: =IF(INTRO!$E$33<>0,INTRO!$E$33, " ") -> ANGOLA | B76: CUANDO CUBANGO | C76: NANKOVA | D76: 3444.739656 | E76: =IF(INTRO!$E$48="","",ROUND($D76*INTRO!$E$48,0)) -> 551 | F76: =IF(INTRO!$E$49="","",ROUND($D76*INTRO!$E$49,0)) -> 961 | G76: =IF(INTRO!$E$50="","",ROUND($D76*INTRO!$E$50,0)) -> 1815 | H76: 0 | I76: 1 | J76: 1 | K76: 0 | L76: 1 | M76: =IF(INTRO!$E$37="Endemic",IF($H76>0,IF($H76=4,"Unknown",IF($H76=99,"Stopped",$D76)),0),"Not required") -> 0 | N76: =IF(INTRO!$E$39="Endemic", IF($I76>0, IF($I76=4,"Unknown",IF($I76=99,"Stopped",$D76)), 0),"Not required") -> 3444.739656 | O76: =IF(INTRO!$E$41="Endemic", IF(AND($J76>1,$J76<5), IF($J76=4, "Unknown", E76+F76), 0),"Not required") -> 0 | P76: =IF(INTRO!$E$43="Endemic", IF(AND($K76>0,$K76<5), IF($K76=4,"Unknown", IF($K76=1, $F76*0.33, IF($K76=2, $F76*0.5+$G76*0.2, SUM(F76:G76)))), 0),"Not required") -> 0 | Q76: 0 | R76: 1 | S76: 0 | T76: 0 | Y76: 2083 | Z76: NANKOVA | AB76: TRUE | AC76: Cuando Cubango | AD76: Nankova | AE76: 178 | AF76: 0 | AG76: 0 | AH76: 0 | AI76: TRUE | AK76: 2 | AL76: 1 | AM76: TRUE | AP76: 0 | AQ76: 0 | AR76: 0 | AS76: TRUE | AT76: 0 | AU76: TRUE | AY76: =_xlfn.XLOOKUP(Y76,[1]COUNTRY_INFO!$W$9:$W$172,[1]COUNTRY_INFO!$T$9:$T$172) -> 1 | AZ76: =_xlfn.XLOOKUP(Y76,[2]DISTRICT!$AJ$9:$AJ$172,[2]DISTRICT!$AH$9:$AH$172) -> 0 | BA76: 1
A77: =IF(INTRO!$E$33<>0,INTRO!$E$33, " ") -> ANGOLA | B77: CUANDO CUBANGO | C77: RIVUNGO | D77: 40717.65529 | E77: =IF(INTRO!$E$48="","",ROUND($D77*INTRO!$E$48,0)) -> 6515 | F77: =IF(INTRO!$E$49="","",ROUND($D77*INTRO!$E$49,0)) -> 11360 | G77: =IF(INTRO!$E$50="","",ROUND($D77*INTRO!$E$50,0)) -> 21458 | H77: 0 | I77: 4 | J77: 1 | K77: 0 | L77: 0 | M77: =IF(INTRO!$E$37="Endemic",IF($H77>0,IF($H77=4,"Unknown",IF($H77=99,"Stopped",$D77)),0),"Not required") -> 0 | N77: =IF(INTRO!$E$39="Endemic", IF($I77>0, IF($I77=4,"Unknown",IF($I77=99,"Stopped",$D77)), 0),"Not required") -> Unknown | O77: =IF(INTRO!$E$41="Endemic", IF(AND($J77>1,$J77<5), IF($J77=4, "Unknown", E77+F77), 0),"Not required") -> 0 | P77: =IF(INTRO!$E$43="Endemic", IF(AND($K77>0,$K77<5), IF($K77=4,"Unknown", IF($K77=1, $F77*0.33, IF($K77=2, $F77*0.5+$G77*0.2, SUM(F77:G77)))), 0),"Not required") -> 0 | Q77: 0 | R77: 0 | S77: 0 | T77: 0 | Y77: 2084 | Z77: RIVUNGO | AB77: TRUE | AC77: Cuando Cubango | AD77: Rivungo | AE77: 166 | AF77: 0 | AG77: 0 | AH77: 0 | AI77: TRUE | AK77: 4.4 | AL77: 1 | AM77: TRUE | AP77: 2 | AQ77: 0.4 | AR77: 1 | AS77: FALSE | AT77: 0 | AU77: TRUE | AY77: =_xlfn.XLOOKUP(Y77,[1]COUNTRY_INFO!$W$9:$W$172,[1]COUNTRY_INFO!$T$9:$T$172) -> 0 | AZ77: =_xlfn.XLOOKUP(Y77,[2]DISTRICT!$AJ$9:$AJ$172,[2]DISTRICT!$AH$9:$AH$172) -> 0 | BA77: 0
A78: =IF(INTRO!$E$33<>0,INTRO!$E$33, " ") -> ANGOLA | B78: CUANZA NORTE | C78: AMBACA | D78: 75156.4273 | E78: =IF(INTRO!$E$48="","",ROUND($D78*INTRO!$E$48,0)) -> 12025 | F78: =IF(INTRO!$E$49="","",ROUND($D78*INTRO!$E$49,0)) -> 20969 | G78: =IF(INTRO!$E$50="","",ROUND($D78*INTRO!$E$50,0)) -> 39607 | H78: 1 | I78: 1 | J78: 3 | K78: 0 | L78: 1 | M78: =IF(INTRO!$E$37="Endemic",IF($H78>0,IF($H78=4,"Unknown",IF($H78=99,"Stopped",$D78)),0),"Not required") -> 75156.4273 | N78: =IF(INTRO!$E$39="Endemic", IF($I78>0, IF($I78=4,"Unknown",IF($I78=99,"Stopped",$D78)), 0),"Not required") -> 75156.4273 | O78: =IF(INTRO!$E$41="Endemic", IF(AND($J78>1,$J78<5), IF($J78=4, "Unknown", E78+F78), 0),"Not required") -> 32994 | P78: =IF(INTRO!$E$43="Endemic", IF(AND($K78>0,$K78<5), IF($K78=4,"Unknown", IF($K78=1, $F78*0.33, IF($K78=2, $F78*0.5+$G78*0.2, SUM(F78:G78)))), 0),"Not required") -> 0 | Q78: 1 | R78: 1 | S78: 2 | T78: 0 | Y78: 2085 | Z78: AMBACA | AB78: TRUE | AC78: Cuanza Norte | AD78: Ambaca | AE78: 100 | AF78: 1 | AG78: 1 | AH78: 1 | AI78: TRUE | AK78: 80.24561404 | AL78: 3 | AM78: TRUE | AP78: 2 | AQ78: 0.3333333333 | AR78: 1 | AS78: FALSE | AT78: 0 | AU78: TRUE | AY78: =_xlfn.XLOOKUP(Y78,[1]COUNTRY_INFO!$W$9:$W$172,[1]COUNTRY_INFO!$T$9:$T$172) -> 0 | AZ78: =_xlfn.XLOOKUP(Y78,[2]DISTRICT!$AJ$9:$AJ$172,[2]DISTRICT!$AH$9:$AH$172) -> 0 | BA78: 0
A79: =IF(INTRO!$E$33<>0,INTRO!$E$33, " ") -> ANGOLA | B79: CUANZA NORTE | C79: BANGA | D79: 12598.23859 | E79: =IF(INTRO!$E$48="","",ROUND($D79*INTRO!$E$48,0)) -> 2016 | F79: =IF(INTRO!$E$49="","",ROUND($D79*INTRO!$E$49,0)) -> 3515 | G79: =IF(INTRO!$E$50="","",ROUND($D79*INTRO!$E$50,0)) -> 6639 | H79: 1 | I79: 1 | J79: 3 | K79: 1 | L79: 1 | M79: =IF(INTRO!$E$37="Endemic",IF($H79>0,IF($H79=4,"Unknown",IF($H79=99,"Stopped",$D79)),0),"Not required") -> 12598.23859 | N79: =IF(INTRO!$E$39="Endemic", IF($I79>0, IF($I79=4,"Unknown",IF($I79=99,"Stopped",$D79)), 0),"Not required") -> 12598.23859 | O79: =IF(INTRO!$E$41="Endemic", IF(AND($J79>1,$J79<5), IF($J79=4, "Unknown", E79+F79), 0),"Not required") -> 5531 | P79: =IF(INTRO!$E$43="Endemic", IF(AND($K79>0,$K79<5), IF($K79=4,"Unknown", IF($K79=1, $F79*0.33, IF($K79=2, $F79*0.5+$G79*0.2, SUM(F79:G79)))), 0),"Not required") -> 1159.95 | Q79: 1 | R79: 1 | S79: 2 | T79: 1 | Y79: 2086 | Z79: BANGA | AB79: TRUE | AC79: Cuanza Norte | AD79: Banga | AE79: 100 | AF79: 4 | AG79: 4 | AH79: 1 | AI79: TRUE | AK79: 87.5 | AL79: 3 | AM79: TRUE | AP79: 6 | AQ79: 1.5 | AR79: 1 | AS79: TRUE | AT79: 1 | AU79: TRUE | AY79: =_xlfn.XLOOKUP(Y79,[1]COUNTRY_INFO!$W$9:$W$172,[1]COUNTRY_INFO!$T$9:$T$172) -> 0 | AZ79: =_xlfn.XLOOKUP(Y79,[2]DISTRICT!$AJ$9:$AJ$172,[2]DISTRICT!$AH$9:$AH$172) -> 0 | BA79: 0
A80: =IF(INTRO!$E$33<>0,INTRO!$E$33, " ") -> ANGOLA | B80: CUANZA NORTE | C80: BOLONGONGO | D80: 15841.27318 | E80: =IF(INTRO!$E$48="","",ROUND($D80*INTRO!$E$48,0)) -> 2535 | F80: =IF(INTRO!$E$49="","",ROUND($D80*INTRO!$E$49,0)) -> 4420 | G80: =IF(INTRO!$E$50="","",ROUND($D80*INTRO!$E$50,0)) -> 8348 | H80: 1 | I80: 1 | J80: 3 | K80: 0 | L80: 1 | M80: =IF(INTRO!$E$37="Endemic",IF($H80>0,IF($H80=4,"Unknown",IF($H80=99,"Stopped",$D80)),0),"Not required") -> 15841.27318 | N80: =IF(INTRO!$E$39="Endemic", IF($I80>0, IF($I80=4,"Unknown",IF($I80=99,"Stopped",$D80)), 0),"Not required") -> 15841.27318 | O80: =IF(INTRO!$E$41="Endemic", IF(AND($J80>1,$J80<5), IF($J80=4, "Unknown", E80+F80), 0),"Not required") -> 6955 | P80: =IF(INTRO!$E$43="Endemic", IF(AND($K80>0,$K80<5), IF($K80=4,"Unknown", IF($K80=1, $F80*0.33, IF($K80=2, $F80*0.5+$G80*0.2, SUM(F80:G80)))), 0),"Not required") -> 0 | Q80: 1 | R80: 1 | S80: 2 | T80: 0 | Y80: 2087 | Z80: BOLONGONGO | AB80: FALSE | AC80: Cuanza Norte | AD80: Balongongo | AE80: 100 | AF80: 3 | AG80: 3 | AH80: 1 | AI80: TRUE | AK80: 94.5 | AL80: 3 | AM80: TRUE | AP80: 0 | AQ80: 0 | AR80: 0 | AS80: TRUE | AT80: 0 | AU80: TRUE | AY80: =_xlfn.XLOOKUP(Y80,[1]COUNTRY_INFO!$W$9:$W$172,[1]COUNTRY_INFO!$T$9:$T$172) -> 0 | AZ80: =_xlfn.XLOOKUP(Y80,[2]DISTRICT!$AJ$9:$AJ$172,[2]DISTRICT!$AH$9:$AH$172) -> 0 | BA80: 0
A81: =IF(INTRO!$E$33<>0,INTRO!$E$33, " ") -> ANGOLA | B81: CUANZA NORTE | C81: CAMBAMBE | D81: 110439.2046 | E81: =IF(INTRO!$E$48="","",ROUND($D81*INTRO!$E$48,0)) -> 17670 | F81: =IF(INTRO!$E$49="","",ROUND($D81*INTRO!$E$49,0)) -> 30813 | G81: =IF(INTRO!$E$50="","",ROUND($D81*INTRO!$E$50,0)) -> 58201 | H81: 0 | I81: 4 | J81: 2 | K81: 2 | L81: 0 | M81: =IF(INTRO!$E$37="Endemic",IF($H81>0,IF($H81=4,"Unknown",IF($H81=99,"Stopped",$D81)),0),"Not required") -> 0 | N81: =IF(INTRO!$E$39="Endemic", IF($I81>0, IF($I81=4,"Unknown",IF($I81=99,"Stopped",$D81)), 0),"Not required") -> Unknown | O81: =IF(INTRO!$E$41="Endemic", IF(AND($J81>1,$J81<5), IF($J81=4, "Unknown", E81+F81), 0),"Not required") -> 48483 | P81: =IF(INTRO!$E$43="Endemic", IF(AND($K81>0,$K81<5), IF($K81=4,"Unknown", IF($K81=1, $F81*0.33, IF($K81=2, $F81*0.5+$G81*0.2, SUM(F81:G81)))), 0),"Not required") -> 27046.7 | Q81: 0 | R81: 0 | S81: 1 | T81: 1 | Y81: 2091 | Z81: CAMBAMBE | AB81: TRUE | AC81: Cuanza Norte | AD81: Cambambe | AE81: 200 | AF81: 0 | AG81: 0 | AH81: 0 | AI81: TRUE | AK81: 21 | AL81: 2 | AM81: TRUE | AP81: 62 | AQ81: 17 | AR81: 3 | AS81: FALSE | AT81: 2 | AU81: TRUE | AY81: =_xlfn.XLOOKUP(Y81,[1]COUNTRY_INFO!$W$9:$W$172,[1]COUNTRY_INFO!$T$9:$T$172) -> 0 | AZ81: =_xlfn.XLOOKUP(Y81,[2]DISTRICT!$AJ$9:$AJ$172,[2]DISTRICT!$AH$9:$AH$172) -> 0 | BA81: 0
A82: =IF(INTRO!$E$33<>0,INTRO!$E$33, " ") -> ANGOLA | B82: CUANZA NORTE | C82: CAZENGO | D82: 208966.296 | E82: =IF(INTRO!$E$48="","",ROUND($D82*INTRO!$E$48,0)) -> 33435 | F82: =IF(INTRO!$E$49="","",ROUND($D82*INTRO!$E$49,0)) -> 58302 | G82: =IF(INTRO!$E$50="","",ROUND($D82*INTRO!$E$50,0)) -> 110125 | H82: 1 | I82: 4 | J82: 3 | K82: 2 | L82: 0 | M82: =IF(INTRO!$E$37="Endemic",IF($H82>0,IF($H82=4,"Unknown",IF($H82=99,"Stopped",$D82)),0),"Not required") -> 208966.296 | N82: =IF(INTRO!$E$39="Endemic", IF($I82>0, IF($I82=4,"Unknown",IF($I82=99,"Stopped",$D82)), 0),"Not required") -> Unknown | O82: =IF(INTRO!$E$41="Endemic", IF(AND($J82>1,$J82<5), IF($J82=4, "Unknown", E82+F82), 0),"Not required") -> 91737 | P82: =IF(INTRO!$E$43="Endemic", IF(AND($K82>0,$K82<5), IF($K82=4,"Unknown", IF($K82=1, $F82*0.33, IF($K82=2, $F82*0.5+$G82*0.2, SUM(F82:G82)))), 0),"Not required") -> 51176 | Q82: 1 | R82: 0 | S82: 2 | T82: 1 | Y82: 2092 | Z82: CAZENGO | AB82: TRUE | AC82: Cuanza Norte | AD82: Cazengo | AE82: 100 | AF82: 1 | AG82: 1 | AH82: 1 | AI82: TRUE | AK82: 64.09411765 | AL82: 3 | AM82: TRUE | AP82: 44 | AQ82: 19.69411765 | AR82: 2 | AS82: TRUE | AT82: 2 | AU82: TRUE | AY82: =_xlfn.XLOOKUP(Y82,[1]COUNTRY_INFO!$W$9:$W$172,[1]COUNTRY_INFO!$T$9:$T$172) -> 0 | AZ82: =_xlfn.XLOOKUP(Y82,[2]DISTRICT!$AJ$9:$AJ$172,[2]DISTRICT!$AH$9:$AH$172) -> 0 | BA82: 0
A83: =IF(INTRO!$E$33<>0,INTRO!$E$33, " ") -> ANGOLA | B83: CUANZA NORTE | C83: GOLUNGO ALTO | D83: 41167.52313 | E83: =IF(INTRO!$E$48="","",ROUND($D83*INTRO!$E$48,0)) -> 6587 | F83: =IF(INTRO!$E$49="","",ROUND($D83*INTRO!$E$49,0)) -> 11486 | G83: =IF(INTRO!$E$50="","",ROUND($D83*INTRO!$E$50,0)) -> 21695 | H83: 1 | I83: 1 | J83: 3 | K83: 2 | L83: 0 | M83: =IF(INTRO!$E$37="Endemic",IF($H83>0,IF($H83=4,"Unknown",IF($H83=99,"Stopped",$D83)),0),"Not required") -> 41167.52313 | N83: =IF(INTRO!$E$39="Endemic", IF($I83>0, IF($I83=4,"Unknown",IF($I83=99,"Stopped",$D83)), 0),"Not required") -> 41167.52313 | O83: =IF(INTRO!$E$41="Endemic", IF(AND($J83>1,$J83<5), IF($J83=4, "Unknown", E83+F83), 0),"Not required") -> 18073 | P83: =IF(INTRO!$E$43="Endemic", IF(AND($K83>0,$K83<5), IF($K83=4,"Unknown", IF($K83=1, $F83*0.33, IF($K83=2, $F83*0.5+$G83*0.2, SUM(F83:G83)))), 0),"Not required") -> 10082 | Q83: 1 | R83: 1 | S83: 2 | T83: 1 | Y83: 2090 | Z83: GOLUNGO ALTO | AB83: TRUE | AC83: Cuanza Norte | AD83: Golungo Alto | AE83: 100 | AF83: 5 | AG83: 5 | AH83: 1 | AI83: TRUE | AK83: 77.6 | AL83: 3 | AM83: TRUE | AP83: 76 | AQ83: 22.8 | AR83: 3 | AS83: FALSE | AT83: 2 | AU83: TRUE | AY83: =_xlfn.XLOOKUP(Y83,[1]COUNTRY_INFO!$W$9:$W$172,[1]COUNTRY_INFO!$T$9:$T$172) -> 0 | AZ83: =_xlfn.XLOOKUP(Y83,[2]DISTRICT!$AJ$9:$AJ$172,[2]DISTRICT!$AH$9:$AH$172) -> 0 | BA83: 0
A84: =IF(INTRO!$E$33<>0,INTRO!$E$33, " ") -> ANGOLA | B84: CUANZA NORTE | C84: GONGUEMBO | D84: 9217.72194 | E84: =IF(INTRO!$E$48="","",ROUND($D84*INTRO!$E$48,0)) -> 1475 | F84: =IF(INTRO!$E$49="","",ROUND($D84*INTRO!$E$49,0)) -> 2572 | G84: =IF(INTRO!$E$50="","",ROUND($D84*INTRO!$E$50,0)) -> 4858 | H84: 1 | I84: 1 | J84: 3 | K84: 1 | L84: 0 | M84: =IF(INTRO!$E$37="Endemic",IF($H84>0,IF($H84=4,"Unknown",IF($H84=99,"Stopped",$D84)),0),"Not required") -> 9217.72194 | N84: =IF(INTRO!$E$39="Endemic", IF($I84>0, IF($I84=4,"Unknown",IF($I84=99,"Stopped",$D84)), 0),"Not required") -> 9217.72194 | O84: =IF(INTRO!$E$41="Endemic", IF(AND($J84>1,$J84<5), IF($J84=4, "Unknown", E84+F84), 0),"Not required") -> 4047 | P84: =IF(INTRO!$E$43="Endemic", IF(AND($K84>0,$K84<5), IF($K84=4,"Unknown", IF($K84=1, $F84*0.33, IF($K84=2, $F84*0.5+$G84*0.2, SUM(F84:G84)))), 0),"Not required") -> 848.76 | Q84: 1 | R84: 1 | S84: 2 | T84: 1 | Y84: 2217 | Z84: GONGUEMBO | AB84: FALSE | AC84: Cuanza Norte | AD84: Goguembo | AE84: 100 | AF84: 1 | AG84: 1 | AH84: 1 | AI84: TRUE | AK84: 77.6 | AL84: 3 | AM84: TRUE | AP84: 4 | AQ84: 1.6 | AR84: 1 | AS84: TRUE | AT84: 1 | AU84: TRUE | AY84: =_xlfn.XLOOKUP(Y84,[1]COUNTRY_INFO!$W$9:$W$172,[1]COUNTRY_INFO!$T$9:$T$172) -> 0 | AZ84: =_xlfn.XLOOKUP(Y84,[2]DISTRICT!$AJ$9:$AJ$172,[2]DISTRICT!$AH$9:$AH$172) -> 0 | BA84: 0
A85: =IF(INTRO!$E$33<>0,INTRO!$E$33, " ") -> ANGOLA | B85: CUANZA NORTE | C85: QUICULUNGO | D85: 11841.44486 | E85: =IF(INTRO!$E$48="","",ROUND($D85*INTRO!$E$48,0)) -> 1895 | F85: =IF(INTRO!$E$49="","",ROUND($D85*INTRO!$E$49,0)) -> 3304 | G85: =IF(INTRO!$E$50="","",ROUND($D85*INTRO!$E$50,0)) -> 6240 | H85: 1 | I85: 4 | J85: 3 | K85: 2 | L85: 0 | M85: =IF(INTRO!$E$37="Endemic",IF($H85>0,IF($H85=4,"Unknown",IF($H85=99,"Stopped",$D85)),0),"Not required") -> 11841.44486 | N85: =IF(INTRO!$E$39="Endemic", IF($I85>0, IF($I85=4,"Unknown",IF($I85=99,"Stopped",$D85)), 0),"Not required") -> Unknown | O85: =IF(INTRO!$E$41="Endemic", IF(AND($J85>1,$J85<5), IF($J85=4, "Unknown", E85+F85), 0),"Not required") -> 5199 | P85: =IF(INTRO!$E$43="Endemic", IF(AND($K85>0,$K85<5), IF($K85=4,"Unknown", IF($K85=1, $F85*0.33, IF($K85=2, $F85*0.5+$G85*0.2, SUM(F85:G85)))), 0),"Not required") -> 2900 | Q85: 1 | R85: 0 | S85: 2 | T85: 1 | Y85: 2093 | Z85: KICULUNGO | AB85: FALSE | AC85: Cuanza Norte | AD85: Quikulungo | AE85: 100 | AF85: 2 | AG85: 2 | AH85: 1 | AI85: TRUE | AK85: 74.8 | AL85: 3 | AM85: TRUE | AP85: 58 | AQ85: 16 | AR85: 3 | AS85: FALSE | AT85: 2 | AU85: TRUE | AY85: =_xlfn.XLOOKUP(Y85,[1]COUNTRY_INFO!$W$9:$W$172,[1]COUNTRY_INFO!$T$9:$T$172) -> 0 | AZ85: =_xlfn.XLOOKUP(Y85,[2]DISTRICT!$AJ$9:$AJ$172,[2]DISTRICT!$AH$9:$AH$172) -> 0 | BA85: 0
A86: =IF(INTRO!$E$33<>0,INTRO!$E$33, " ") -> ANGOLA | B86: CUANZA NORTE | C86: LUCALA | D86: 27588.92187 | E86: =IF(INTRO!$E$48="","",ROUND($D86*INTRO!$E$48,0)) -> 4414 | F86: =IF(INTRO!$E$49="","",ROUND($D86*INTRO!$E$49,0)) -> 7697 | G86: =IF(INTRO!$E$50="","",ROUND($D86*INTRO!$E$50,0)) -> 14539 | H86: 0 | I86: 4 | J86: 3 | K86: 2 | L86: 0 | M86: =IF(INTRO!$E$37="Endemic",IF($H86>0,IF($H86=4,"Unknown",IF($H86=99,"Stopped",$D86)),0),"Not required") -> 0 | N86: =IF(INTRO!$E$39="Endemic", IF($I86>0, IF($I86=4,"Unknown",IF($I86=99,"Stopped",$D86)), 0),"Not required") -> Unknown | O86: =IF(INTRO!$E$41="Endemic", IF(AND($J86>1,$J86<5), IF($J86=4, "Unknown", E86+F86), 0),"Not required") -> 12111 | P86: =IF(INTRO!$E$43="Endemic", IF(AND($K86>0,$K86<5), IF($K86=4,"Unknown", IF($K86=1, $F86*0.33, IF($K86=2, $F86*0.5+$G86*0.2, SUM(F86:G86)))), 0),"Not required") -> 6756.3 | Q86: 0 | R86: 0 | S86: 2 | T86: 1 | Y86: 2094 | Z86: LUCALA | AB86: TRUE | AC86: Cuanza Norte | AD86: Lucala | AE86: 260 | AF86: 2 | AG86: 0.7692307692 | AH86: 0 | AI86: TRUE | AK86: 62 | AL86: 3 | AM86: TRUE | AP86: 32 | AQ86: 14.5 | AR86: 2 | AS86: TRUE | AT86: 2 | AU86: TRUE | AY86: =_xlfn.XLOOKUP(Y86,[1]COUNTRY_INFO!$W$9:$W$172,[1]COUNTRY_INFO!$T$9:$T$172) -> 0 | AZ86: =_xlfn.XLOOKUP(Y86,[2]DISTRICT!$AJ$9:$AJ$172,[2]DISTRICT!$AH$9:$AH$172) -> 0 | BA86: 0
A87: =IF(INTRO!$E$33<>0,INTRO!$E$33, " ") -> ANGOLA | B87: CUANZA NORTE | C87: SAMBA CAJU | D87: 26668.94851 | E87: =IF(INTRO!$E$48="","",ROUND($D87*INTRO!$E$48,0)) -> 4267 | F87: =IF(INTRO!$E$49="","",ROUND($D87*INTRO!$E$49,0)) -> 7441 | G87: =IF(INTRO!$E$50="","",ROUND($D87*INTRO!$E$50,0)) -> 14055 | H87: 1 | I87: 4 | J87: 3 | K87: 1 | L87: 0 | M87: =IF(INTRO!$E$37="Endemic",IF($H87>0,IF($H87=4,"Unknown",IF($H87=99,"Stopped",$D87)),0),"Not required") -> 26668.94851 | N87: =IF(INTRO!$E$39="Endemic", IF($I87>0, IF($I87=4,"Unknown",IF($I87=99,"Stopped",$D87)), 0),"Not required") -> Unknown | O87: =IF(INTRO!$E$41="Endemic", IF(AND($J87>1,$J87<5), IF($J87=4, "Unknown", E87+F87), 0),"Not required") -> 11708 | P87: =IF(INTRO!$E$43="Endemic", IF(AND($K87>0,$K87<5), IF($K87=4,"Unknown", IF($K87=1, $F87*0.33, IF($K87=2, $F87*0.5+$G87*0.2, SUM(F87:G87)))), 0),"Not required") -> 2455.53 | Q87: 1 | R87: 0 | S87: 2 | T87: 1 | Y87: 2097 | Z87: SAMBA CAJU | AB87: TRUE | AC87: Cuanza Norte | AD87: Samba Caju | AE87: 100 | AF87: 1 | AG87: 1 | AH87: 1 | AI87: TRUE | AK87: 77 | AL87: 3 | AM87: TRUE | AP87: 8 | AQ87: 2 | AR87: 1 | AS87: TRUE | AT87: 1 | AU87: TRUE | AY87: =_xlfn.XLOOKUP(Y87,[1]COUNTRY_INFO!$W$9:$W$172,[1]COUNTRY_INFO!$T$9:$T$172) -> 0 | AZ87: =_xlfn.XLOOKUP(Y87,[2]DISTRICT!$AJ$9:$AJ$172,[2]DISTRICT!$AH$9:$AH$172) -> 0 | BA87: 0
A88: =IF(INTRO!$E$33<>0,INTRO!$E$33, " ") -> ANGOLA | B88: CUANZA SUL | C88: AMBOIM | D88: 296670.7884 | E88: =IF(INTRO!$E$48="","",ROUND($D88*INTRO!$E$48,0)) -> 47467 | F88: =IF(INTRO!$E$49="","",ROUND($D88*INTRO!$E$49,0)) -> 82771 | G88: =IF(INTRO!$E$50="","",ROUND($D88*INTRO!$E$50,0)) -> 156346 | H88: 0 | I88: 4 | J88: 2 | K88: 2 | L88: 0 | M88: =IF(INTRO!$E$37="Endemic",IF($H88>0,IF($H88=4,"Unknown",IF($H88=99,"Stopped",$D88)),0),"Not required") -> 0 | N88: =IF(INTRO!$E$39="Endemic", IF($I88>0, IF($I88=4,"Unknown",IF($I88=99,"Stopped",$D88)), 0),"Not required") -> Unknown | O88: =IF(INTRO!$E$41="Endemic", IF(AND($J88>1,$J88<5), IF($J88=4, "Unknown", E88+F88), 0),"Not required") -> 130238 | P88: =IF(INTRO!$E$43="Endemic", IF(AND($K88>0,$K88<5), IF($K88=4,"Unknown", IF($K88=1, $F88*0.33, IF($K88=2, $F88*0.5+$G88*0.2, SUM(F88:G88)))), 0),"Not required") -> 72654.7 | Q88: 0 | R88: 0 | S88: 1 | T88: 1 | Y88: 2098 | Z88: AMBOIM | AB88: TRUE | AC88: Cuanza Sul | AD88: Amboim | AE88: 200 | AF88: 0 | AG88: 0 | AH88: 0 | AI88: TRUE | AK88: 27 | AL88: 2 | AM88: TRUE | AP88: 40 | AQ88: 17.5 | AR88: 2 | AS88: TRUE | AT88: 2 | AU88: TRUE | AY88: =_xlfn.XLOOKUP(Y88,[1]COUNTRY_INFO!$W$9:$W$172,[1]COUNTRY_INFO!$T$9:$T$172) -> 1 | AZ88: =_xlfn.XLOOKUP(Y88,[2]DISTRICT!$AJ$9:$AJ$172,[2]DISTRICT!$AH$9:$AH$172) -> 0 | BA88: 1
A89: =IF(INTRO!$E$33<>0,INTRO!$E$33, " ") -> ANGOLA | B89: CUANZA SUL | C89: CASSONGUE | D89: 185896.2236 | E89: =IF(INTRO!$E$48="","",ROUND($D89*INTRO!$E$48,0)) -> 29743 | F89: =IF(INTRO!$E$49="","",ROUND($D89*INTRO!$E$49,0)) -> 51865 | G89: =IF(INTRO!$E$50="","",ROUND($D89*INTRO!$E$50,0)) -> 97967 | H89: 0 | I89: 4 | J89: 1 | K89: 1 | L89: 0 | M89: =IF(INTRO!$E$37="Endemic",IF($H89>0,IF($H89=4,"Unknown",IF($H89=99,"Stopped",$D89)),0),"Not required") -> 0 | N89: =IF(INTRO!$E$39="Endemic", IF($I89>0, IF($I89=4,"Unknown",IF($I89=99,"Stopped",$D89)), 0),"Not required") -> Unknown | O89: =IF(INTRO!$E$41="Endemic", IF(AND($J89>1,$J89<5), IF($J89=4, "Unknown", E89+F89), 0),"Not required") -> 0 | P89: =IF(INTRO!$E$43="Endemic", IF(AND($K89>0,$K89<5), IF($K89=4,"Unknown", IF($K89=1, $F89*0.33, IF($K89=2, $F89*0.5+$G89*0.2, SUM(F89:G89)))), 0),"Not required") -> 17115.45 | Q89: 0 | R89: 0 | S89: 0 | T89: 0 | Y89: 2100 | Z89: CASSONGUE | AB89: TRUE | AC89: Cuanza Sul | AD89: Cassongue | AE89: 198 | AF89: 1 | AG89: 0.5050505051 | AH89: 0 | AI89: TRUE | AK89: 13.33333333 | AL89: 1 | AM89: TRUE | AP89: 28 | AQ89: 9.333333333 | AR89: 2 | AS89: FALSE | AT89: 1 | AU89: TRUE | AY89: =_xlfn.XLOOKUP(Y89,[1]COUNTRY_INFO!$W$9:$W$172,[1]COUNTRY_INFO!$T$9:$T$172) -> 1 | AZ89: =_xlfn.XLOOKUP(Y89,[2]DISTRICT!$AJ$9:$AJ$172,[2]DISTRICT!$AH$9:$AH$172) -> 0 | BA89: 1
A90: =IF(INTRO!$E$33<>0,INTRO!$E$33, " ") -> ANGOLA | B90: CUANZA SUL | C90: CELA (Waku Kungo) | D90: 275962.0982 | E90: =IF(INTRO!$E$48="","",ROUND($D90*INTRO!$E$48,0)) -> 44154 | F90: =IF(INTRO!$E$49="","",ROUND($D90*INTRO!$E$49,0)) -> 76993 | G90: =IF(INTRO!$E$50="","",ROUND($D90*INTRO!$E$50,0)) -> 145432 | H90: 0 | I90: 4 | J90: 1 | K90: 1 | L90: 0 | M90: =IF(INTRO!$E$37="Endemic",IF($H90>0,IF($H90=4,"Unknown",IF($H90=99,"Stopped",$D90)),0),"Not required") -> 0 | N90: =IF(INTRO!$E$39="Endemic", IF($I90>0, IF($I90=4,"Unknown",IF($I90=99,"Stopped",$D90)), 0),"Not required") -> Unknown | O90: =IF(INTRO!$E$41="Endemic", IF(AND($J90>1,$J90<5), IF($J90=4, "Unknown", E90+F90), 0),"Not required") -> 0 | P90: =IF(INTRO!$E$43="Endemic", IF(AND($K90>0,$K90<5), IF($K90=4,"Unknown", IF($K90=1, $F90*0.33, IF($K90=2, $F90*0.5+$G90*0.2, SUM(F90:G90)))), 0),"Not required") -> 25407.69 | Q90: 0 | R90: 0 | S90: 0 | T90: 0 | Y90: 2167 | Z90: CELA (Waku Kungo) | AB90: FALSE | AC90: Cuanza Sul | AD90: Cela | AE90: 200 | AF90: 0 | AG90: 0 | AH90: 0 | AI90: TRUE | AK90: 10.8 | AL90: 1 | AM90: TRUE | AP90: 30 | AQ90: 6 | AR90: 2 | AS90: FALSE | AT90: 1 | AU90: TRUE | AY90: =_xlfn.XLOOKUP(Y90,[1]COUNTRY_INFO!$W$9:$W$172,[1]COUNTRY_INFO!$T$9:$T$172) -> 1 | AZ90: =_xlfn.XLOOKUP(Y90,[2]DISTRICT!$AJ$9:$AJ$172,[2]DISTRICT!$AH$9:$AH$172) -> 0 | BA90: 1
A91: =IF(INTRO!$E$33<>0,INTRO!$E$33, " ") -> ANGOLA | B91: CUANZA SUL | C91: CONDA | D91: 109492.709 | E91: =IF(INTRO!$E$48="","",ROUND($D91*INTRO!$E$48,0)) -> 17519 | F91: =IF(INTRO!$E$49="","",ROUND($D91*INTRO!$E$49,0)) -> 30548 | G91: =IF(INTRO!$E$50="","",ROUND($D91*INTRO!$E$50,0)) -> 57703 | H91: 0 | I91: 4 | J91: 1 | K91: 1 | L91: 0 | M91: =IF(INTRO!$E$37="Endemic",IF($H91>0,IF($H91=4,"Unknown",IF($H91=99,"Stopped",$D91)),0),"Not required") -> 0 | N91: =IF(INTRO!$E$39="Endemic", IF($I91>0, IF($I91=4,"Unknown",IF($I91=99,"Stopped",$D91)), 0),"Not required") -> Unknown | O91: =IF(INTRO!$E$41="Endemic", IF(AND($J91>1,$J91<5), IF($J91=4, "Unknown", E91+F91), 0),"Not required") -> 0 | P91: =IF(INTRO!$E$43="Endemic", IF(AND($K91>0,$K91<5), IF($K91=4,"Unknown", IF($K91=1, $F91*0.33, IF($K91=2, $F91*0.5+$G91*0.2, SUM(F91:G91)))), 0),"Not required") -> 10080.84 | Q91: 0 | R91: 0 | S91: 0 | T91: 0 | Y91: 2103 | Z91: CONDA | AB91: FALSE | AC91: Cuanza Sul | AD91: Conda | AE91: 200 | AF91: 0 | AG91: 0 | AH91: 0 | AI91: TRUE | AK91: 14 | AL91: 1 | AM91: TRUE | AP91: 28 | AQ91: 8.5 | AR91: 2 | AS91: FALSE | AT91: 1 | AU91: TRUE | AY91: =_xlfn.XLOOKUP(Y91,[1]COUNTRY_INFO!$W$9:$W$172,[1]COUNTRY_INFO!$T$9:$T$172) -> 1 | AZ91: =_xlfn.XLOOKUP(Y91,[2]DISTRICT!$AJ$9:$AJ$172,[2]DISTRICT!$AH$9:$AH$172) -> 0 | BA91: 1
A92: =IF(INTRO!$E$33<>0,INTRO!$E$33, " ") -> ANGOLA | B92: CUANZA SUL | C92: EBO | D92: 202062.8543 | E92: =IF(INTRO!$E$48="","",ROUND($D92*INTRO!$E$48,0)) -> 32330 | F92: =IF(INTRO!$E$49="","",ROUND($D92*INTRO!$E$49,0)) -> 56376 | G92: =IF(INTRO!$E$50="","",ROUND($D92*INTRO!$E$50,0)) -> 106487 | H92: 0 | I92: 4 | J92: 2 | K92: 2 | L92: 0 | M92: =IF(INTRO!$E$37="Endemic",IF($H92>0,IF($H92=4,"Unknown",IF($H92=99,"Stopped",$D92)),0),"Not required") -> 0 | N92: =IF(INTRO!$E$39="Endemic", IF($I92>0, IF($I92=4,"Unknown",IF($I92=99,"Stopped",$D92)), 0),"Not required") -> Unknown | O92: =IF(INTRO!$E$41="Endemic", IF(AND($J92>1,$J92<5), IF($J92=4, "Unknown", E92+F92), 0),"Not required") -> 88706 | P92: =IF(INTRO!$E$43="Endemic", IF(AND($K92>0,$K92<5), IF($K92=4,"Unknown", IF($K92=1, $F92*0.33, IF($K92=2, $F92*0.5+$G92*0.2, SUM(F92:G92)))), 0),"Not required") -> 49485.4 | Q92: 0 | R92: 0 | S92: 1 | T92: 1 | Y92: 2099 | Z92: EBO | AB92: TRUE | AC92: Cuanza Sul | AD92: Ebo | AE92: 200 | AF92: 0 | AG92: 0 | AH92: 0 | AI92: TRUE | AK92: 28.33333333 | AL92: 2 | AM92: TRUE | AP92: 44 | AQ92: 13.33333333 | AR92: 2 | AS92: TRUE | AT92: 2 | AU92: TRUE | AY92: =_xlfn.XLOOKUP(Y92,[1]COUNTRY_INFO!$W$9:$W$172,[1]COUNTRY_INFO!$T$9:$T$172) -> 1 | AZ92: =_xlfn.XLOOKUP(Y92,[2]DISTRICT!$AJ$9:$AJ$172,[2]DISTRICT!$AH$9:$AH$172) -> 0 | BA92: 1
A93: =IF(INTRO!$E$33<>0,INTRO!$E$33, " ") -> ANGOLA | B93: CUANZA SUL | C93: QUIBALA | D93: 173831.0145 | E93: =IF(INTRO!$E$48="","",ROUND($D93*INTRO!$E$48,0)) -> 27813 | F93: =IF(INTRO!$E$49="","",ROUND($D93*INTRO!$E$49,0)) -> 48499 | G93: =IF(INTRO!$E$50="","",ROUND($D93*INTRO!$E$50,0)) -> 91609 | H93: 0 | I93: 4 | J93: 2 | K93: 1 | L93: 0 | M93: =IF(INTRO!$E$37="Endemic",IF($H93>0,IF($H93=4,"Unknown",IF($H93=99,"Stopped",$D93)),0),"Not required") -> 0 | N93: =IF(INTRO!$E$39="Endemic", IF($I93>0, IF($I93=4,"Unknown",IF($I93=99,"Stopped",$D93)), 0),"Not required") -> Unknown | O93: =IF(INTRO!$E$41="Endemic", IF(AND($J93>1,$J93<5), IF($J93=4, "Unknown", E93+F93), 0),"Not required") -> 76312 | P93: =IF(INTRO!$E$43="Endemic", IF(AND($K93>0,$K93<5), IF($K93=4,"Unknown", IF($K93=1, $F93*0.33, IF($K93=2, $F93*0.5+$G93*0.2, SUM(F93:G93)))), 0),"Not required") -> 16004.67 | Q93: 0 | R93: 0 | S93: 1 | T93: 0 | Y93: 2101 | Z93: KIBALA | AB93: TRUE | AC93: Cuanza Sul | AD93: Quibala | AE93: 194 | AF93: 0 | AG93: 0 | AH93: 0 | AI93: TRUE | AK93: 35.33333333 | AL93: 2 | AM93: TRUE | AP93: 48 | AQ93: 9.666666667 | AR93: 2 | AS93: FALSE | AT93: 1 | AU93: TRUE | AY93: =_xlfn.XLOOKUP(Y93,[1]COUNTRY_INFO!$W$9:$W$172,[1]COUNTRY_INFO!$T$9:$T$172) -> 1 | AZ93: =_xlfn.XLOOKUP(Y93,[2]DISTRICT!$AJ$9:$AJ$172,[2]DISTRICT!$AH$9:$AH$172) -> 0 | BA93: 1
A94: =IF(INTRO!$E$33<>0,INTRO!$E$33, " ") -> ANGOLA | B94: CUANZA SUL | C94: QUILENDA | D94: 119489.1165 | E94: =IF(INTRO!$E$48="","",ROUND($D94*INTRO!$E$48,0)) -> 19118 | F94: =IF(INTRO!$E$49="","",ROUND($D94*INTRO!$E$49,0)) -> 33337 | G94: =IF(INTRO!$E$50="","",ROUND($D94*INTRO!$E$50,0)) -> 62971 | H94: 0 | I94: 4 | J94: 2 | K94: 2 | L94: 1 | M94: =IF(INTRO!$E$37="Endemic",IF($H94>0,IF($H94=4,"Unknown",IF($H94=99,"Stopped",$D94)),0),"Not required") -> 0 | N94: =IF(INTRO!$E$39="Endemic", IF($I94>0, IF($I94=4,"Unknown",IF($I94=99,"Stopped",$D94)), 0),"Not required") -> Unknown | O94: =IF(INTRO!$E$41="Endemic", IF(AND($J94>1,$J94<5), IF($J94=4, "Unknown", E94+F94), 0),"Not required") -> 52455 | P94: =IF(INTRO!$E$43="Endemic", IF(AND($K94>0,$K94<5), IF($K94=4,"Unknown", IF($K94=1, $F94*0.33, IF($K94=2, $F94*0.5+$G94*0.2, SUM(F94:G94)))), 0),"Not required") -> 29262.7 | Q94: 0 | R94: 0 | S94: 1 | T94: 1 | Y94: 2102 | Z94: KILENDA | AB94: TRUE | AC94: Cuanza Sul | AD94: Quilenda | AE94: 200 | AF94: 1 | AG94: 0.5 | AH94: 0 | AI94: TRUE | AK94: 22 | AL94: 2 | AM94: TRUE | AP94: 72 | AQ94: 28 | AR94: 3 | AS94: FALSE | AT94: 2 | AU94: TRUE | AY94: =_xlfn.XLOOKUP(Y94,[1]COUNTRY_INFO!$W$9:$W$172,[1]COUNTRY_INFO!$T$9:$T$172) -> 1 | AZ94: =_xlfn.XLOOKUP(Y94,[2]DISTRICT!$AJ$9:$AJ$172,[2]DISTRICT!$AH$9:$AH$172) -> 0 | BA94: 1
A95: =IF(INTRO!$E$33<>0,INTRO!$E$33, " ") -> ANGOLA | B95: CUANZA SUL | C95: LIBOLO | D95: 112662.4592 | E95: =IF(INTRO!$E$48="","",ROUND($D95*INTRO!$E$48,0)) -> 18026 | F95: =IF(INTRO!$E$49="","",ROUND($D95*INTRO!$E$49,0)) -> 31433 | G95: =IF(INTRO!$E$50="","",ROUND($D95*INTRO!$E$50,0)) -> 59373 | H95: 0 | I95: 4 | J95: 2 | K95: 2 | L95: 0 | M95: =IF(INTRO!$E$37="Endemic",IF($H95>0,IF($H95=4,"Unknown",IF($H95=99,"Stopped",$D95)),0),"Not required") -> 0 | N95: =IF(INTRO!$E$39="Endemic", IF($I95>0, IF($I95=4,"Unknown",IF($I95=99,"Stopped",$D95)), 0),"Not required") -> Unknown | O95: =IF(INTRO!$E$41="Endemic", IF(AND($J95>1,$J95<5), IF($J95=4, "Unknown", E95+F95), 0),"Not required") -> 49459 | P95: =IF(INTRO!$E$43="Endemic", IF(AND($K95>0,$K95<5), IF($K95=4,"Unknown", IF($K95=1, $F95*0.33, IF($K95=2, $F95*0.5+$G95*0.2, SUM(F95:G95)))), 0),"Not required") -> 27591.1 | Q95: 0 | R95: 0 | S95: 1 | T95: 1 | Y95: 2104 | Z95: LIBOLO | AB95: TRUE | AC95: Cuanza Sul | AD95: Libolo | AE95: 200 | AF95: 0 | AG95: 0 | AH95: 0 | AI95: TRUE | AK95: 42.4 | AL95: 2 | AM95: TRUE | AP95: 52 | AQ95: 20.4 | AR95: 3 | AS95: FALSE | AT95: 2 | AU95: TRUE | AY95: =_xlfn.XLOOKUP(Y95,[1]COUNTRY_INFO!$W$9:$W$172,[1]COUNTRY_INFO!$T$9:$T$172) -> 1 | AZ95: =_xlfn.XLOOKUP(Y95,[2]DISTRICT!$AJ$9:$AJ$172,[2]DISTRICT!$AH$9:$AH$172) -> 0 | BA95: 1
A96: =IF(INTRO!$E$33<>0,INTRO!$E$33, " ") -> ANGOLA | B96: CUANZA SUL | C96: MUSSENDE | D96: 101006.8755 | E96: =IF(INTRO!$E$48="","",ROUND($D96*INTRO!$E$48,0)) -> 16161 | F96: =IF(INTRO!$E$49="","",ROUND($D96*INTRO!$E$49,0)) -> 28181 | G96: =IF(INTRO!$E$50="","",ROUND($D96*INTRO!$E$50,0)) -> 53231 | H96: 0 | I96: 1 | J96: 1 | K96: 2 | L96: 0 | M96: =IF(INTRO!$E$37="Endemic",IF($H96>0,IF($H96=4,"Unknown",IF($H96=99,"Stopped",$D96)),0),"Not required") -> 0 | N96: =IF(INTRO!$E$39="Endemic", IF($I96>0, IF($I96=4,"Unknown",IF($I96=99,"Stopped",$D96)), 0),"Not required") -> 101006.8755 | O96: =IF(INTRO!$E$41="Endemic", IF(AND($J96>1,$J96<5), IF($J96=4, "Unknown", E96+F96), 0),"Not required") -> 0 | P96: =IF(INTRO!$E$43="Endemic", IF(AND($K96>0,$K96<5), IF($K96=4,"Unknown", IF($K96=1, $F96*0.33, IF($K96=2, $F96*0.5+$G96*0.2, SUM(F96:G96)))), 0),"Not required") -> 24736.7 | Q96: 0 | R96: 1 | S96: 0 | T96: 1 | Y96: 2105 | Z96: MUSSENDE | AB96: TRUE | AC96: Cuanza Sul | AD96: Mussende | AE96: 200 | AF96: 0 | AG96: 0 | AH96: 0 | AI96: TRUE | AK96: 13.66666667 | AL96: 1 | AM96: TRUE | AP96: 42 | AQ96: 11 | AR96: 2 | AS96: TRUE | AT96: 2 | AU96: TRUE | AY96: =_xlfn.XLOOKUP(Y96,[1]COUNTRY_INFO!$W$9:$W$172,[1]COUNTRY_INFO!$T$9:$T$172) -> 1 | AZ96: =_xlfn.XLOOKUP(Y96,[2]DISTRICT!$AJ$9:$AJ$172,[2]DISTRICT!$AH$9:$AH$172) -> 0 | BA96: 1
A97: =IF(INTRO!$E$33<>0,INTRO!$E$33, " ") -> ANGOLA | B97: CUANZA SUL | C97: PORTO AMBOIM | D97: 154144.4493 | E97: =IF(INTRO!$E$48="","",ROUND($D97*INTRO!$E$48,0)) -> 24663 | F97: =IF(INTRO!$E$49="","",ROUND($D97*INTRO!$E$49,0)) -> 43006 | G97: =IF(INTRO!$E$50="","",ROUND($D97*INTRO!$E$50,0)) -> 81234 | H97: 1 | I97: 1 | J97: 1 | K97: 2 | L97: 1 | M97: =IF(INTRO!$E$37="Endemic",IF($H97>0,IF($H97=4,"Unknown",IF($H97=99,"Stopped",$D97)),0),"Not required") -> 154144.4493 | N97: =IF(INTRO!$E$39="Endemic", IF($I97>0, IF($I97=4,"Unknown",IF($I97=99,"Stopped",$D97)), 0),"Not required") -> 154144.4493 | O97: =IF(INTRO!$E$41="Endemic", IF(AND($J97>1,$J97<5), IF($J97=4, "Unknown", E97+F97), 0),"Not required") -> 0 | P97: =IF(INTRO!$E$43="Endemic", IF(AND($K97>0,$K97<5), IF($K97=4,"Unknown", IF($K97=1, $F97*0.33, IF($K97=2, $F97*0.5+$G97*0.2, SUM(F97:G97)))), 0),"Not required") -> 37749.8 | Q97: 1 | R97: 1 | S97: 0 | T97: 1 | Y97: 2106 | Z97: PORTO AMBOIM | AB97: FALSE | AC97: Cuanza Sul | AD97: Porta Amboim | AE97: 100 | AF97: 3 | AG97: 3 | AH97: 1 | AI97: TRUE | AK97: 4.666666667 | AL97: 1 | AM97: TRUE | AP97: 60 | AQ97: 38 | AR97: 3 | AS97: FALSE | AT97: 2 | AU97: TRUE | AY97: =_xlfn.XLOOKUP(Y97,[1]COUNTRY_INFO!$W$9:$W$172,[1]COUNTRY_INFO!$T$9:$T$172) -> 1 | AZ97: =_xlfn.XLOOKUP(Y97,[2]DISTRICT!$AJ$9:$AJ$172,[2]DISTRICT!$AH$9:$AH$172) -> 0 | BA97: 1
A98: =IF(INTRO!$E$33<>0,INTRO!$E$33, " ") -> ANGOLA | B98: CUANZA SUL | C98: SELES | D98: 228981.8256 | E98: =IF(INTRO!$E$48="","",ROUND($D98*INTRO!$E$48,0)) -> 36637 | F98: =IF(INTRO!$E$49="","",ROUND($D98*INTRO!$E$49,0)) -> 63886 | G98: =IF(INTRO!$E$50="","",ROUND($D98*INTRO!$E$50,0)) -> 120673 | H98: 0 | I98: 4 | J98: 1 | K98: 2 | L98: 0 | M98: =IF(INTRO!$E$37="Endemic",IF($H98>0,IF($H98=4,"Unknown",IF($H98=99,"Stopped",$D98)),0),"Not required") -> 0 | N98: =IF(INTRO!$E$39="Endemic", IF($I98>0, IF($I98=4,"Unknown",IF($I98=99,"Stopped",$D98)), 0),"Not required") -> Unknown | O98: =IF(INTRO!$E$41="Endemic", IF(AND($J98>1,$J98<5), IF($J98=4, "Unknown", E98+F98), 0),"Not required") -> 0 | P98: =IF(INTRO!$E$43="Endemic", IF(AND($K98>0,$K98<5), IF($K98=4,"Unknown", IF($K98=1, $F98*0.33, IF($K98=2, $F98*0.5+$G98*0.2, SUM(F98:G98)))), 0),"Not required") -> 56077.6 | Q98: 0 | R98: 0 | S98: 0 | T98: 1 | Y98: 2107 | Z98: SELES | AB98: FALSE | AC98: Cuanza Sul | AD98: Seles | AE98: 200 | AF98: 0 | AG98: 0 | AH98: 0 | AI98: TRUE | AK98: 15.6 | AL98: 1 | AM98: TRUE | AP98: 50 | AQ98: 17.2 | AR98: 3 | AS98: FALSE | AT98: 2 | AU98: TRUE | AY98: =_xlfn.XLOOKUP(Y98,[1]COUNTRY_INFO!$W$9:$W$172,[1]COUNTRY_INFO!$T$9:$T$172) -> 1 | AZ98: =_xlfn.XLOOKUP(Y98,[2]DISTRICT!$AJ$9:$AJ$172,[2]DISTRICT!$AH$9:$AH$172) -> 0 | BA98: 1
A99: =IF(INTRO!$E$33<>0,INTRO!$E$33, " ") -> ANGOLA | B99: CUANZA SUL | C99: SUMBE | D99: 342587.5859 | E99: =IF(INTRO!$E$48="","",ROUND($D99*INTRO!$E$48,0)) -> 54814 | F99: =IF(INTRO!$E$49="","",ROUND($D99*INTRO!$E$49,0)) -> 95582 | G99: =IF(INTRO!$E$50="","",ROUND($D99*INTRO!$E$50,0)) -> 180544 | H99: 0 | I99: 4 | J99: 1 | K99: 1 | L99: 0 | M99: =IF(INTRO!$E$37="Endemic",IF($H99>0,IF($H99=4,"Unknown",IF($H99=99,"Stopped",$D99)),0),"Not required") -> 0 | N99: =IF(INTRO!$E$39="Endemic", IF($I99>0, IF($I99=4,"Unknown",IF($I99=99,"Stopped",$D99)), 0),"Not required") -> Unknown | O99: =IF(INTRO!$E$41="Endemic", IF(AND($J99>1,$J99<5), IF($J99=4, "Unknown", E99+F99), 0),"Not required") -> 0 | P99: =IF(INTRO!$E$43="Endemic", IF(AND($K99>0,$K99<5), IF($K99=4,"Unknown", IF($K99=1, $F99*0.33, IF($K99=2, $F99*0.5+$G99*0.2, SUM(F99:G99)))), 0),"Not required") -> 31542.06 | Q99: 0 | R99: 0 | S99: 0 | T99: 0 | Y99: 2108 | Z99: SUMBE | AB99: TRUE | AC99: Cuanza Sul | AD99: Sumbe | AE99: 200 | AF99: 0 | AG99: 0 | AH99: 0 | AI99: TRUE | AK99: 3.6 | AL99: 1 | AM99: TRUE | AP99: 30 | AQ99: 8.4 | AR99: 2 | AS99: FALSE | AT99: 1 | AU99: TRUE | AY99: =_xlfn.XLOOKUP(Y99,[1]COUNTRY_INFO!$W$9:$W$172,[1]COUNTRY_INFO!$T$9:$T$172) -> 1 | AZ99: =_xlfn.XLOOKUP(Y99,[2]DISTRICT!$AJ$9:$AJ$172,[2]DISTRICT!$AH$9:$AH$172) -> 0 | BA99: 1
A100: =IF(INTRO!$E$33<>0,INTRO!$E$33, " ") -> ANGOLA | B100: LUANDA | C100: BELAS | D100: 348564.9793 | E100: =IF(INTRO!$E$48="","",ROUND($D100*INTRO!$E$48,0)) -> 55770 | F100: =IF(INTRO!$E$49="","",ROUND($D100*INTRO!$E$49,0)) -> 97250 | G100: =IF(INTRO!$E$50="","",ROUND($D100*INTRO!$E$50,0)) -> 183694 | H100: 0 | I100: 4 | J100: 1 | K100: 2 | L100: 1 | M100: =IF(INTRO!$E$37="Endemic",IF($H100>0,IF($H100=4,"Unknown",IF($H100=99,"Stopped",$D100)),0),"Not required") -> 0 | N100: =IF(INTRO!$E$39="Endemic", IF($I100>0, IF($I100=4,"Unknown",IF($I100=99,"Stopped",$D100)), 0),"Not required") -> Unknown | O100: =IF(INTRO!$E$41="Endemic", IF(AND($J100>1,$J100<5), IF($J100=4, "Unknown", E100+F100), 0),"Not required") -> 0 | P100: =IF(INTRO!$E$43="Endemic", IF(AND($K100>0,$K100<5), IF($K100=4,"Unknown", IF($K100=1, $F100*0.33, IF($K100=2, $F100*0.5+$G100*0.2, SUM(F100:G100)))), 0),"Not required") -> 85363.8 | Q100: 0 | R100: 0 | S100: 0 | T100: 1 | Y100: 2212 | Z100: BELAS | AB100: =AD100=C100 -> TRUE | AC100: Luanda | AD100: Belas | AE100: 200 | AF100: 0 | AG100: 0 | AH100: 0 | AI100: TRUE | AK100: 2.666666667 | AL100: 1 | AM100: TRUE | AP100: 38 | AQ100: 12.66666667 | AR100: 2 | AS100: TRUE | AT100: 2 | AU100: TRUE | AY100: =_xlfn.XLOOKUP(Y100,[1]COUNTRY_INFO!$W$9:$W$172,[1]COUNTRY_INFO!$T$9:$T$172) -> 0 | AZ100: =_xlfn.XLOOKUP(Y100,[2]DISTRICT!$AJ$9:$AJ$172,[2]DISTRICT!$AH$9:$AH$172) -> 0 | BA100: 0
A101: =IF(INTRO!$E$33<>0,INTRO!$E$33, " ") -> ANGOLA | B101: LUANDA | C101: CACUACO | D101: 1115621.58 | E101: =IF(INTRO!$E$48="","",ROUND($D101*INTRO!$E$48,0)) -> 178499 | F101: =IF(INTRO!$E$49="","",ROUND($D101*INTRO!$E$49,0)) -> 311258 | G101: =IF(INTRO!$E$50="","",ROUND($D101*INTRO!$E$50,0)) -> 587933 | H101: 0 | I101: 4 | J101: 0 | K101: 1 | L101: 1 | M101: =IF(INTRO!$E$37="Endemic",IF($H101>0,IF($H101=4,"Unknown",IF($H101=99,"Stopped",$D101)),0),"Not required") -> 0 | N101: =IF(INTRO!$E$39="Endemic", IF($I101>0, IF($I101=4,"Unknown",IF($I101=99,"Stopped",$D101)), 0),"Not required") -> Unknown | O101: =IF(INTRO!$E$41="Endemic", IF(AND($J101>1,$J101<5), IF($J101=4, "Unknown", E101+F101), 0),"Not required") -> 0 | P101: =IF(INTRO!$E$43="Endemic", IF(AND($K101>0,$K101<5), IF($K101=4,"Unknown", IF($K101=1, $F101*0.33, IF($K101=2, $F101*0.5+$G101*0.2, SUM(F101:G101)))), 0),"Not required") -> 102715.14 | Q101: 0 | R101: 0 | S101: 0 | T101: 1 | Y101: 2140 | Z101: CACUACO | AB101: TRUE | AC101: Luanda | AD101: Cacuaco | AE101: 200 | AF101: 1 | AG101: 0.5 | AH101: 0 | AI101: TRUE | AK101: 0.6666666667 | AL101: 0 | AM101: TRUE | AP101: 10 | AQ101: 3.333333333 | AR101: 2 | AS101: FALSE | AT101: 1 | AU101: TRUE | AY101: =_xlfn.XLOOKUP(Y101,[1]COUNTRY_INFO!$W$9:$W$172,[1]COUNTRY_INFO!$T$9:$T$172) -> 0 | AZ101: =_xlfn.XLOOKUP(Y101,[2]DISTRICT!$AJ$9:$AJ$172,[2]DISTRICT!$AH$9:$AH$172) -> 0 | BA101: 0
A102: =IF(INTRO!$E$33<>0,INTRO!$E$33, " ") -> ANGOLA | B102: LUANDA | C102: CAZENGA | D102: 1443568.318 | E102: =IF(INTRO!$E$48="","",ROUND($D102*INTRO!$E$48,0)) -> 230971 | F102: =IF(INTRO!$E$49="","",ROUND($D102*INTRO!$E$49,0)) -> 402756 | G102: =IF(INTRO!$E$50="","",ROUND($D102*INTRO!$E$50,0)) -> 760761 | H102: 0 | I102: 4 | J102: 1 | K102: 1 | L102: 1 | M102: =IF(INTRO!$E$37="Endemic",IF($H102>0,IF($H102=4,"Unknown",IF($H102=99,"Stopped",$D102)),0),"Not required") -> 0 | N102: =IF(INTRO!$E$39="Endemic", IF($I102>0, IF($I102=4,"Unknown",IF($I102=99,"Stopped",$D102)), 0),"Not required") -> Unknown | O102: =IF(INTRO!$E$41="Endemic", IF(AND($J102>1,$J102<5), IF($J102=4, "Unknown", E102+F102), 0),"Not required") -> 0 | P102: =IF(INTRO!$E$43="Endemic", IF(AND($K102>0,$K102<5), IF($K102=4,"Unknown", IF($K102=1, $F102*0.33, IF($K102=2, $F102*0.5+$G102*0.2, SUM(F102:G102)))), 0),"Not required") -> 132909.48 | Q102: 0 | R102: 0 | S102: 0 | T102: 1 | Y102: 2141 | Z102: CAZENGA | AB102: TRUE | AC102: Luanda | AD102: Cazenga | AE102: 200 | AF102: 0 | AG102: 0 | AH102: 0 | AI102: TRUE | AK102: 16 | AL102: 1 | AM102: TRUE | AP102: 6 | AQ102: 6 | AR102: 1 | AS102: TRUE | AT102: 1 | AU102: TRUE | AY102: =_xlfn.XLOOKUP(Y102,[1]COUNTRY_INFO!$W$9:$W$172,[1]COUNTRY_INFO!$T$9:$T$172) -> 0 | AZ102: =_xlfn.XLOOKUP(Y102,[2]DISTRICT!$AJ$9:$AJ$172,[2]DISTRICT!$AH$9:$AH$172) -> 0 | BA102: 0
A103: =IF(INTRO!$E$33<>0,INTRO!$E$33, " ") -> ANGOLA | B103: LUANDA | C103: ICOLO E BENGO | D103: 117471.1322 | E103: =IF(INTRO!$E$48="","",ROUND($D103*INTRO!$E$48,0)) -> 18795 | F103: =IF(INTRO!$E$49="","",ROUND($D103*INTRO!$E$49,0)) -> 32774 | G103: =IF(INTRO!$E$50="","",ROUND($D103*INTRO!$E$50,0)) -> 61907 | H103: 0 | I103: 4 | J103: 2 | K103: 2 | L103: 0 | M103: =IF(INTRO!$E$37="Endemic",IF($H103>0,IF($H103=4,"Unknown",IF($H103=99,"Stopped",$D103)),0),"Not required") -> 0 | N103: =IF(INTRO!$E$39="Endemic", IF($I103>0, IF($I103=4,"Unknown",IF($I103=99,"Stopped",$D103)), 0),"Not required") -> Unknown | O103: =IF(INTRO!$E$41="Endemic", IF(AND($J103>1,$J103<5), IF($J103=4, "Unknown", E103+F103), 0),"Not required") -> 51569 | P103: =IF(INTRO!$E$43="Endemic", IF(AND($K103>0,$K103<5), IF($K103=4,"Unknown", IF($K103=1, $F103*0.33, IF($K103=2, $F103*0.5+$G103*0.2, SUM(F103:G103)))), 0),"Not required") -> 28768.4 | Q103: 0 | R103: 0 | S103: 1 | T103: 1 | Y103: 2051 | Z103: ICOLO E BENGO | AB103: TRUE | AC103: Luanda | AD103: Icolo e Bengo | AE103: 200 | AF103: 0 | AG103: 0 | AH103: 0 | AI103: TRUE | AK103: 21 | AL103: 2 | AM103: TRUE | AP103: 62 | AQ103: 36.66666667 | AR103: 3 | AS103: FALSE | AT103: 2 | AU103: TRUE | AY103: =_xlfn.XLOOKUP(Y103,[1]COUNTRY_INFO!$W$9:$W$172,[1]COUNTRY_INFO!$T$9:$T$172) -> 0 | AZ103: =_xlfn.XLOOKUP(Y103,[2]DISTRICT!$AJ$9:$AJ$172,[2]DISTRICT!$AH$9:$AH$172) -> 0 | BA103: 0
A104: =IF(INTRO!$E$33<>0,INTRO!$E$33, " ") -> ANGOLA | B104: LUANDA | C104: KILAMBA KIAXI | D104: 1091076.357 | E104: =IF(INTRO!$E$48="","",ROUND($D104*INTRO!$E$48,0)) -> 174572 | F104: =IF(INTRO!$E$49="","",ROUND($D104*INTRO!$E$49,0)) -> 304410 | G104: =IF(INTRO!$E$50="","",ROUND($D104*INTRO!$E$50,0)) -> 574997 | H104: 4 | I104: 4 | J104: 0 | K104: 1 | L104: 0 | M104: =IF(INTRO!$E$37="Endemic",IF($H104>0,IF($H104=4,"Unknown",IF($H104=99,"Stopped",$D104)),0),"Not required") -> Unknown | N104: =IF(INTRO!$E$39="Endemic", IF($I104>0, IF($I104=4,"Unknown",IF($I104=99,"Stopped",$D104)), 0),"Not required") -> Unknown | O104: =IF(INTRO!$E$41="Endemic", IF(AND($J104>1,$J104<5), IF($J104=4, "Unknown", E104+F104), 0),"Not required") -> 0 | P104: =IF(INTRO!$E$43="Endemic", IF(AND($K104>0,$K104<5), IF($K104=4,"Unknown", IF($K104=1, $F104*0.33, IF($K104=2, $F104*0.5+$G104*0.2, SUM(F104:G104)))), 0),"Not required") -> 100455.3 | Q104: 0 | R104: 0 | S104: 0 | T104: 1 | Y104: 2143 | Z104: KILAMBA KIAXI | AB104: FALSE | AH104: 4 | AI104: TRUE | AK104: 0 | AL104: 0 | AM104: TRUE | AP104: 2 | AQ104: 2 | AR104: 1 | AS104: TRUE | AT104: 1 | AU104: TRUE | AY104: =_xlfn.XLOOKUP(Y104,[1]COUNTRY_INFO!$W$9:$W$172,[1]COUNTRY_INFO!$T$9:$T$172) -> 0 | AZ104: =_xlfn.XLOOKUP(Y104,[2]DISTRICT!$AJ$9:$AJ$172,[2]DISTRICT!$AH$9:$AH$172) -> 0 | BA104: 0
A105: =IF(INTRO!$E$33<>0,INTRO!$E$33, " ") -> ANGOLA | B105: LUANDA | C105: LUANDA | D105: 1735487.94 | E105: =IF(INTRO!$E$48="","",ROUND($D105*INTRO!$E$48,0)) -> 277678 | F105: =IF(INTRO!$E$49="","",ROUND($D105*INTRO!$E$49,0)) -> 484201 | G105: =IF(INTRO!$E$50="","",ROUND($D105*INTRO!$E$50,0)) -> 914602 | H105: 0 | I105: 4 | J105: 2 | K105: 1 | L105: 1 | M105: =IF(INTRO!$E$37="Endemic",IF($H105>0,IF($H105=4,"Unknown",IF($H105=99,"Stopped",$D105)),0),"Not required") -> 0 | N105: =IF(INTRO!$E$39="Endemic", IF($I105>0, IF($I105=4,"Unknown",IF($I105=99,"Stopped",$D105)), 0),"Not required") -> Unknown | O105: =IF(INTRO!$E$41="Endemic", IF(AND($J105>1,$J105<5), IF($J105=4, "Unknown", E105+F105), 0),"Not required") -> 761879 | P105: =IF(INTRO!$E$43="Endemic", IF(AND($K105>0,$K105<5), IF($K105=4,"Unknown", IF($K105=1, $F105*0.33, IF($K105=2, $F105*0.5+$G105*0.2, SUM(F105:G105)))), 0),"Not required") -> 159786.33 | Q105: 0 | R105: 0 | S105: 1 | T105: 1 | Y105: 2219 | Z105: LUANDA | AB105: TRUE | AC105: Luanda | AD105: Luanda | AE105: 200 | AF105: 0 | AG105: =AF105/AE105*100 -> 0 | AH105: 0 | AI105: TRUE | AK105: 22 | AL105: 2 | AM105: TRUE | AP105: 2 | AQ105: 2 | AR105: 1 | AS105: TRUE | AT105: 1 | AU105: TRUE | AY105: =_xlfn.XLOOKUP(Y105,[1]COUNTRY_INFO!$W$9:$W$172,[1]COUNTRY_INFO!$T$9:$T$172) -> 0 | AZ105: =_xlfn.XLOOKUP(Y105,[2]DISTRICT!$AJ$9:$AJ$172,[2]DISTRICT!$AH$9:$AH$172) -> 0 | BA105: 0
A106: =IF(INTRO!$E$33<>0,INTRO!$E$33, " ") -> ANGOLA | B106: LUANDA | C106: QUIÇAMA | D106: 32767.9364 | E106: =IF(INTRO!$E$48="","",ROUND($D106*INTRO!$E$48,0)) -> 5243 | F106: =IF(INTRO!$E$49="","",ROUND($D106*INTRO!$E$49,0)) -> 9142 | G106: =IF(INTRO!$E$50="","",ROUND($D106*INTRO!$E$50,0)) -> 17269 | H106: 0 | I106: 4 | J106: 1 | K106: 2 | L106: 0 | M106: =IF(INTRO!$E$37="Endemic",IF($H106>0,IF($H106=4,"Unknown",IF($H106=99,"Stopped",$D106)),0),"Not required") -> 0 | N106: =IF(INTRO!$E$39="Endemic", IF($I106>0, IF($I106=4,"Unknown",IF($I106=99,"Stopped",$D106)), 0),"Not required") -> Unknown | O106: =IF(INTRO!$E$41="Endemic", IF(AND($J106>1,$J106<5), IF($J106=4, "Unknown", E106+F106), 0),"Not required") -> 0 | P106: =IF(INTRO!$E$43="Endemic", IF(AND($K106>0,$K106<5), IF($K106=4,"Unknown", IF($K106=1, $F106*0.33, IF($K106=2, $F106*0.5+$G106*0.2, SUM(F106:G106)))), 0),"Not required") -> 8024.8 | Q106: 0 | R106: 0 | S106: 0 | T106: 1 | Y106: 2052 | Z106: QUISSAMA | AB106: FALSE | AC106: Luanda | AD106: Lubango | AE106: 100 | AF106: 0 | AG106: 0 | AH106: 0 | AI106: TRUE | AK106: 15.25 | AL106: 1 | AM106: TRUE | AP106: 58 | AQ106: 17.25 | AR106: 3 | AS106: FALSE | AT106: 2 | AU106: TRUE | AY106: =_xlfn.XLOOKUP(Y106,[1]COUNTRY_INFO!$W$9:$W$172,[1]COUNTRY_INFO!$T$9:$T$172) -> 0 | AZ106: =_xlfn.XLOOKUP(Y106,[2]DISTRICT!$AJ$9:$AJ$172,[2]DISTRICT!$AH$9:$AH$172) -> 0 | BA106: 0
A107: =IF(INTRO!$E$33<>0,INTRO!$E$33, " ") -> ANGOLA | B107: LUANDA | C107: TALATONA | D107: 919687.9984 | E107: =IF(INTRO!$E$48="","",ROUND($D107*INTRO!$E$48,0)) -> 147150 | F107: =IF(INTRO!$E$49="","",ROUND($D107*INTRO!$E$49,0)) -> 256593 | G107: =IF(INTRO!$E$50="","",ROUND($D107*INTRO!$E$50,0)) -> 484676 | H107: 0 | I107: 4 | J107: 1 | K107: 0 | L107: 0 | M107: =IF(INTRO!$E$37="Endemic",IF($H107>0,IF($H107=4,"Unknown",IF($H107=99,"Stopped",$D107)),0),"Not required") -> 0 | N107: =IF(INTRO!$E$39="Endemic", IF($I107>0, IF($I107=4,"Unknown",IF($I107=99,"Stopped",$D107)), 0),"Not required") -> Unknown | O107: =IF(INTRO!$E$41="Endemic", IF(AND($J107>1,$J107<5), IF($J107=4, "Unknown", E107+F107), 0),"Not required") -> 0 | P107: =IF(INTRO!$E$43="Endemic", IF(AND($K107>0,$K107<5), IF($K107=4,"Unknown", IF($K107=1, $F107*0.33, IF($K107=2, $F107*0.5+$G107*0.2, SUM(F107:G107)))), 0),"Not required") -> 0 | Q107: 0 | R107: 0 | S107: 0 | T107: 0 | Y107: 2223 | Z107: TALATONA | AB107: FALSE | AC107: Luanda | AD107: Quissama | AE107: 200 | AF107: 0 | AG107: 0 | AH107: 0 | AI107: TRUE | AK107: 4 | AL107: 1 | AM107: TRUE | AP107: 0 | AQ107: 0 | AR107: 0 | AS107: TRUE | AT107: 0 | AU107: TRUE | AY107: =_xlfn.XLOOKUP(Y107,[1]COUNTRY_INFO!$W$9:$W$172,[1]COUNTRY_INFO!$T$9:$T$172) -> 0 | AZ107: =_xlfn.XLOOKUP(Y107,[2]DISTRICT!$AJ$9:$AJ$172,[2]DISTRICT!$AH$9:$AH$172) -> 0 | BA107: 0
A108: =IF(INTRO!$E$33<>0,INTRO!$E$33, " ") -> ANGOLA | B108: LUANDA | C108: VIANA | D108: 1996788.759 | E108: =IF(INTRO!$E$48="","",ROUND($D108*INTRO!$E$48,0)) -> 319486 | F108: =IF(INTRO!$E$49="","",ROUND($D108*INTRO!$E$49,0)) -> 557104 | G108: =IF(INTRO!$E$50="","",ROUND($D108*INTRO!$E$50,0)) -> 1052308 | H108: 0 | I108: 4 | J108: 0 | K108: 1 | L108: 0 | M108: =IF(INTRO!$E$37="Endemic",IF($H108>0,IF($H108=4,"Unknown",IF($H108=99,"Stopped",$D108)),0),"Not required") -> 0 | N108: =IF(INTRO!$E$39="Endemic", IF($I108>0, IF($I108=4,"Unknown",IF($I108=99,"Stopped",$D108)), 0),"Not required") -> Unknown | O108: =IF(INTRO!$E$41="Endemic", IF(AND($J108>1,$J108<5), IF($J108=4, "Unknown", E108+F108), 0),"Not required") -> 0 | P108: =IF(INTRO!$E$43="Endemic", IF(AND($K108>0,$K108<5), IF($K108=4,"Unknown", IF($K108=1, $F108*0.33, IF($K108=2, $F108*0.5+$G108*0.2, SUM(F108:G108)))), 0),"Not required") -> 183844.32 | Q108: 0 | R108: 0 | S108: 0 | T108: 1 | Y108: 2148 | Z108: VIANA | AB108: TRUE | AC108: Luanda | AD108: Viana | AE108: 200 | AF108: 0 | AG108: 0 | AH108: 0 | AI108: TRUE | AK108: 0 | AL108: 0 | AM108: TRUE | AP108: 18 | AQ108: 9 | AR108: 2 | AS108: FALSE | AT108: 1 | AU108: TRUE | AY108: =_xlfn.XLOOKUP(Y108,[1]COUNTRY_INFO!$W$9:$W$172,[1]COUNTRY_INFO!$T$9:$T$172) -> 0 | AZ108: =_xlfn.XLOOKUP(Y108,[2]DISTRICT!$AJ$9:$AJ$172,[2]DISTRICT!$AH$9:$AH$172) -> 0 | BA108: 0
A109: =IF(INTRO!$E$33<>0,INTRO!$E$33, " ") -> ANGOLA | B109: LUNDA NORTE | C109: CAMBULO | D109: 147458.7692 | E109: =IF(INTRO!$E$48="","",ROUND($D109*INTRO!$E$48,0)) -> 23593 | F109: =IF(INTRO!$E$49="","",ROUND($D109*INTRO!$E$49,0)) -> 41141 | G109: =IF(INTRO!$E$50="","",ROUND($D109*INTRO!$E$50,0)) -> 77711 | H109: 1 | I109: 1 | J109: 3 | K109: 0 | L109: 0 | M109: =IF(INTRO!$E$37="Endemic",IF($H109>0,IF($H109=4,"Unknown",IF($H109=99,"Stopped",$D109)),0),"Not required") -> 147458.7692 | N109: =IF(INTRO!$E$39="Endemic", IF($I109>0, IF($I109=4,"Unknown",IF($I109=99,"Stopped",$D109)), 0),"Not required") -> 147458.7692 | O109: =IF(INTRO!$E$41="Endemic", IF(AND($J109>1,$J109<5), IF($J109=4, "Unknown", E109+F109), 0),"Not required") -> 64734 | P109: =IF(INTRO!$E$43="Endemic", IF(AND($K109>0,$K109<5), IF($K109=4,"Unknown", IF($K109=1, $F109*0.33, IF($K109=2, $F109*0.5+$G109*0.2, SUM(F109:G109)))), 0),"Not required") -> 0 | Q109: 1 | R109: 1 | S109: 2 | T109: 0 | Y109: 2150 | Z109: CAMBULO | AB109: TRUE | AC109: Lunda Norte | AD109: Cambulo | AE109: 190 | AF109: 3 | AG109: 1.578947368 | AH109: 1 | AI109: TRUE | AK109: 56.8 | AL109: 3 | AM109: TRUE | AP109: 0 | AQ109: 0 | AR109: 0 | AS109: TRUE | AT109: 0 | AU109: TRUE | AY109: =_xlfn.XLOOKUP(Y109,[1]COUNTRY_INFO!$W$9:$W$172,[1]COUNTRY_INFO!$T$9:$T$172) -> 0 | AZ109: =_xlfn.XLOOKUP(Y109,[2]DISTRICT!$AJ$9:$AJ$172,[2]DISTRICT!$AH$9:$AH$172) -> 0 | BA109: 0
A110: =IF(INTRO!$E$33<>0,INTRO!$E$33, " ") -> ANGOLA | B110: LUNDA NORTE | C110: CAPENDA CAMULEMBA | D110: 71605.37145 | E110: =IF(INTRO!$E$48="","",ROUND($D110*INTRO!$E$48,0)) -> 11457 | F110: =IF(INTRO!$E$49="","",ROUND($D110*INTRO!$E$49,0)) -> 19978 | G110: =IF(INTRO!$E$50="","",ROUND($D110*INTRO!$E$50,0)) -> 37736 | H110: 0 | I110: 1 | J110: 3 | K110: 1 | L110: 0 | M110: =IF(INTRO!$E$37="Endemic",IF($H110>0,IF($H110=4,"Unknown",IF($H110=99,"Stopped",$D110)),0),"Not required") -> 0 | N110: =IF(INTRO!$E$39="Endemic", IF($I110>0, IF($I110=4,"Unknown",IF($I110=99,"Stopped",$D110)), 0),"Not required") -> 71605.37145 | O110: =IF(INTRO!$E$41="Endemic", IF(AND($J110>1,$J110<5), IF($J110=4, "Unknown", E110+F110), 0),"Not required") -> 31435 | P110: =IF(INTRO!$E$43="Endemic", IF(AND($K110>0,$K110<5), IF($K110=4,"Unknown", IF($K110=1, $F110*0.33, IF($K110=2, $F110*0.5+$G110*0.2, SUM(F110:G110)))), 0),"Not required") -> 6592.74 | Q110: 0 | R110: 1 | S110: 2 | T110: 1 | Y110: 2151 | Z110: CAPENDA CAMULEMBA | AB110: TRUE | AC110: Lunda Norte | AD110: Capenda Camulemba | AE110: 200 | AF110: 1 | AG110: 0.5 | AH110: 0 | AI110: TRUE | AK110: 61.6 | AL110: 3 | AM110: TRUE | AP110: 6 | AQ110: 2 | AR110: 1 | AS110: TRUE | AT110: 1 | AU110: TRUE | AY110: =_xlfn.XLOOKUP(Y110,[1]COUNTRY_INFO!$W$9:$W$172,[1]COUNTRY_INFO!$T$9:$T$172) -> 0 | AZ110: =_xlfn.XLOOKUP(Y110,[2]DISTRICT!$AJ$9:$AJ$172,[2]DISTRICT!$AH$9:$AH$172) -> 0 | BA110: 0
A111: =IF(INTRO!$E$33<>0,INTRO!$E$33, " ") -> ANGOLA | B111: LUNDA NORTE | C111: CAUNGULA | D111: 34473.56373 | E111: =IF(INTRO!$E$48="","",ROUND($D111*INTRO!$E$48,0)) -> 5516 | F111: =IF(INTRO!$E$49="","",ROUND($D111*INTRO!$E$49,0)) -> 9618 | G111: =IF(INTRO!$E$50="","",ROUND($D111*INTRO!$E$50,0)) -> 18168 | H111: 0 | I111: 1 | J111: 2 | K111: 0 | L111: 0 | M111: =IF(INTRO!$E$37="Endemic",IF($H111>0,IF($H111=4,"Unknown",IF($H111=99,"Stopped",$D111)),0),"Not required") -> 0 | N111: =IF(INTRO!$E$39="Endemic", IF($I111>0, IF($I111=4,"Unknown",IF($I111=99,"Stopped",$D111)), 0),"Not required") -> 34473.56373 | O111: =IF(INTRO!$E$41="Endemic", IF(AND($J111>1,$J111<5), IF($J111=4, "Unknown", E111+F111), 0),"Not required") -> 15134 | P111: =IF(INTRO!$E$43="Endemic", IF(AND($K111>0,$K111<5), IF($K111=4,"Unknown", IF($K111=1, $F111*0.33, IF($K111=2, $F111*0.5+$G111*0.2, SUM(F111:G111)))), 0),"Not required") -> 0 | Q111: 0 | R111: 1 | S111: 1 | T111: 0 | Y111: 2152 | Z111: CAUNGULA | AB111: FALSE | AC111: Lunda Norte | AD111: Caungulo | AE111: 184 | AF111: 0 | AG111: 0 | AH111: 0 | AI111: TRUE | AK111: 40.8 | AL111: 2 | AM111: TRUE | AP111: 2 | AQ111: 0.4 | AR111: 1 | AS111: FALSE | AT111: 0 | AU111: TRUE | AY111: =_xlfn.XLOOKUP(Y111,[1]COUNTRY_INFO!$W$9:$W$172,[1]COUNTRY_INFO!$T$9:$T$172) -> 0 | AZ111: =_xlfn.XLOOKUP(Y111,[2]DISTRICT!$AJ$9:$AJ$172,[2]DISTRICT!$AH$9:$AH$172) -> 0 | BA111: 0
A112: =IF(INTRO!$E$33<>0,INTRO!$E$33, " ") -> ANGOLA | B112: LUNDA NORTE | C112: CHITATO | D112: 232404.5418 | E112: =IF(INTRO!$E$48="","",ROUND($D112*INTRO!$E$48,0)) -> 37185 | F112: =IF(INTRO!$E$49="","",ROUND($D112*INTRO!$E$49,0)) -> 64841 | G112: =IF(INTRO!$E$50="","",ROUND($D112*INTRO!$E$50,0)) -> 122477 | H112: 0 | I112: 1 | J112: 3 | K112: 0 | L112: 0 | M112: =IF(INTRO!$E$37="Endemic",IF($H112>0,IF($H112=4,"Unknown",IF($H112=99,"Stopped",$D112)),0),"Not required") -> 0 | N112: =IF(INTRO!$E$39="Endemic", IF($I112>0, IF($I112=4,"Unknown",IF($I112=99,"Stopped",$D112)), 0),"Not required") -> 232404.5418 | O112: =IF(INTRO!$E$41="Endemic", IF(AND($J112>1,$J112<5), IF($J112=4, "Unknown", E112+F112), 0),"Not required") -> 102026 | P112: =IF(INTRO!$E$43="Endemic", IF(AND($K112>0,$K112<5), IF($K112=4,"Unknown", IF($K112=1, $F112*0.33, IF($K112=2, $F112*0.5+$G112*0.2, SUM(F112:G112)))), 0),"Not required") -> 0 | Q112: 0 | R112: 1 | S112: 2 | T112: 0 | Y112: 2149 | Z112: CHITATO | AB112: TRUE | AC112: Lunda Norte | AD112: Chitato | AE112: 160 | AF112: 1 | AG112: 0.625 | AH112: 0 | AI112: TRUE | AK112: 60 | AL112: 3 | AM112: TRUE | AP112: 2 | AQ112: 0.4 | AR112: 1 | AS112: FALSE | AT112: 0 | AU112: TRUE | AY112: =_xlfn.XLOOKUP(Y112,[1]COUNTRY_INFO!$W$9:$W$172,[1]COUNTRY_INFO!$T$9:$T$172) -> 0 | AZ112: =_xlfn.XLOOKUP(Y112,[2]DISTRICT!$AJ$9:$AJ$172,[2]DISTRICT!$AH$9:$AH$172) -> 0 | BA112: 0
A113: =IF(INTRO!$E$33<>0,INTRO!$E$33, " ") -> ANGOLA | B113: LUNDA NORTE | C113: CUANGO | D113: 225644.5856 | E113: =IF(INTRO!$E$48="","",ROUND($D113*INTRO!$E$48,0)) -> 36103 | F113: =IF(INTRO!$E$49="","",ROUND($D113*INTRO!$E$49,0)) -> 62955 | G113: =IF(INTRO!$E$50="","",ROUND($D113*INTRO!$E$50,0)) -> 118915 | H113: 0 | I113: 4 | J113: 2 | K113: 1 | L113: 0 | M113: =IF(INTRO!$E$37="Endemic",IF($H113>0,IF($H113=4,"Unknown",IF($H113=99,"Stopped",$D113)),0),"Not required") -> 0 | N113: =IF(INTRO!$E$39="Endemic", IF($I113>0, IF($I113=4,"Unknown",IF($I113=99,"Stopped",$D113)), 0),"Not required") -> Unknown | O113: =IF(INTRO!$E$41="Endemic", IF(AND($J113>1,$J113<5), IF($J113=4, "Unknown", E113+F113), 0),"Not required") -> 99058 | P113: =IF(INTRO!$E$43="Endemic", IF(AND($K113>0,$K113<5), IF($K113=4,"Unknown", IF($K113=1, $F113*0.33, IF($K113=2, $F113*0.5+$G113*0.2, SUM(F113:G113)))), 0),"Not required") -> 20775.15 | Q113: 0 | R113: 0 | S113: 1 | T113: 1 | Y113: 2153 | Z113: CUANGO | AB113: TRUE | AC113: Lunda Norte | AD113: Cuango | AE113: 200 | AF113: 0 | AG113: 0 | AH113: 0 | AI113: TRUE | AK113: 31.5 | AL113: 2 | AM113: TRUE | AP113: 10 | AQ113: 4 | AR113: 2 | AS113: FALSE | AT113: 1 | AU113: TRUE | AY113: =_xlfn.XLOOKUP(Y113,[1]COUNTRY_INFO!$W$9:$W$172,[1]COUNTRY_INFO!$T$9:$T$172) -> 0 | AZ113: =_xlfn.XLOOKUP(Y113,[2]DISTRICT!$AJ$9:$AJ$172,[2]DISTRICT!$AH$9:$AH$172) -> 0 | BA113: 0
A114: =IF(INTRO!$E$33<>0,INTRO!$E$33, " ") -> ANGOLA | B114: LUNDA NORTE | C114: CUILO | D114: 25767.2614 | E114: =IF(INTRO!$E$48="","",ROUND($D114*INTRO!$E$48,0)) -> 4123 | F114: =IF(INTRO!$E$49="","",ROUND($D114*INTRO!$E$49,0)) -> 7189 | G114: =IF(INTRO!$E$50="","",ROUND($D114*INTRO!$E$50,0)) -> 13579 | H114: 1 | I114: 1 | J114: 2 | K114: 0 | L114: 0 | M114: =IF(INTRO!$E$37="Endemic",IF($H114>0,IF($H114=4,"Unknown",IF($H114=99,"Stopped",$D114)),0),"Not required") -> 25767.2614 | N114: =IF(INTRO!$E$39="Endemic", IF($I114>0, IF($I114=4,"Unknown",IF($I114=99,"Stopped",$D114)), 0),"Not required") -> 25767.2614 | O114: =IF(INTRO!$E$41="Endemic", IF(AND($J114>1,$J114<5), IF($J114=4, "Unknown", E114+F114), 0),"Not required") -> 11312 | P114: =IF(INTRO!$E$43="Endemic", IF(AND($K114>0,$K114<5), IF($K114=4,"Unknown", IF($K114=1, $F114*0.33, IF($K114=2, $F114*0.5+$G114*0.2, SUM(F114:G114)))), 0),"Not required") -> 0 | Q114: 1 | R114: 1 | S114: 1 | T114: 0 | Y114: 2154 | Z114: CUILO | AB114: TRUE | AC114: Lunda Norte | AD114: Cuilo | AE114: 200 | AF114: 2 | AG114: 1 | AH114: 1 | AI114: TRUE | AK114: 43.6 | AL114: 2 | AM114: TRUE | AP114: 0 | AQ114: 0 | AR114: 0 | AS114: TRUE | AT114: 0 | AU114: TRUE | AY114: =_xlfn.XLOOKUP(Y114,[1]COUNTRY_INFO!$W$9:$W$172,[1]COUNTRY_INFO!$T$9:$T$172) -> 0 | AZ114: =_xlfn.XLOOKUP(Y114,[2]DISTRICT!$AJ$9:$AJ$172,[2]DISTRICT!$AH$9:$AH$172) -> 0 | BA114: 0
A115: =IF(INTRO!$E$33<>0,INTRO!$E$33, " ") -> ANGOLA | B115: LUNDA NORTE | C115: LOVUA | D115: 16024.65212 | E115: =IF(INTRO!$E$48="","",ROUND($D115*INTRO!$E$48,0)) -> 2564 | F115: =IF(INTRO!$E$49="","",ROUND($D115*INTRO!$E$49,0)) -> 4471 | G115: =IF(INTRO!$E$50="","",ROUND($D115*INTRO!$E$50,0)) -> 8445 | H115: 0 | I115: 1 | J115: 2 | K115: 0 | L115: 0 | M115: =IF(INTRO!$E$37="Endemic",IF($H115>0,IF($H115=4,"Unknown",IF($H115=99,"Stopped",$D115)),0),"Not required") -> 0 | N115: =IF(INTRO!$E$39="Endemic", IF($I115>0, IF($I115=4,"Unknown",IF($I115=99,"Stopped",$D115)), 0),"Not required") -> 16024.65212 | O115: =IF(INTRO!$E$41="Endemic", IF(AND($J115>1,$J115<5), IF($J115=4, "Unknown", E115+F115), 0),"Not required") -> 7035 | P115: =IF(INTRO!$E$43="Endemic", IF(AND($K115>0,$K115<5), IF($K115=4,"Unknown", IF($K115=1, $F115*0.33, IF($K115=2, $F115*0.5+$G115*0.2, SUM(F115:G115)))), 0),"Not required") -> 0 | Q115: 0 | R115: 1 | S115: 1 | T115: 0 | Y115: 2224 | Z115: LOVUA | AB115: TRUE | AC115: Lunda Norte | AD115: Lovua | AE115: 200 | AF115: 0 | AG115: 0 | AH115: 0 | AI115: TRUE | AK115: 41 | AL115: 2 | AM115: TRUE | AP115: 0 | AQ115: 0 | AR115: 0 | AS115: TRUE | AT115: 0 | AU115: TRUE | AY115: =_xlfn.XLOOKUP(Y115,[1]COUNTRY_INFO!$W$9:$W$172,[1]COUNTRY_INFO!$T$9:$T$172) -> 0 | AZ115: =_xlfn.XLOOKUP(Y115,[2]DISTRICT!$AJ$9:$AJ$172,[2]DISTRICT!$AH$9:$AH$172) -> 0 | BA115: 0
A116: =IF(INTRO!$E$33<>0,INTRO!$E$33, " ") -> ANGOLA | B116: LUNDA NORTE | C116: LUBALO | D116: 25317.2534 | E116: =IF(INTRO!$E$48="","",ROUND($D116*INTRO!$E$48,0)) -> 4051 | F116: =IF(INTRO!$E$49="","",ROUND($D116*INTRO!$E$49,0)) -> 7064 | G116: =IF(INTRO!$E$50="","",ROUND($D116*INTRO!$E$50,0)) -> 13342 | H116: 0 | I116: 1 | J116: 3 | K116: 1 | L116: 0 | M116: =IF(INTRO!$E$37="Endemic",IF($H116>0,IF($H116=4,"Unknown",IF($H116=99,"Stopped",$D116)),0),"Not required") -> 0 | N116: =IF(INTRO!$E$39="Endemic", IF($I116>0, IF($I116=4,"Unknown",IF($I116=99,"Stopped",$D116)), 0),"Not required") -> 25317.2534 | O116: =IF(INTRO!$E$41="Endemic", IF(AND($J116>1,$J116<5), IF($J116=4, "Unknown", E116+F116), 0),"Not required") -> 11115 | P116: =IF(INTRO!$E$43="Endemic", IF(AND($K116>0,$K116<5), IF($K116=4,"Unknown", IF($K116=1, $F116*0.33, IF($K116=2, $F116*0.5+$G116*0.2, SUM(F116:G116)))), 0),"Not required") -> 2331.12 | Q116: 0 | R116: 1 | S116: 2 | T116: 1 | Y116: 2155 | Z116: LUBALO | AB116: TRUE | AC116: Lunda Norte | AD116: Lubalo | AE116: 200 | AF116: 1 | AG116: 0.5 | AH116: 0 | AI116: TRUE | AK116: 56 | AL116: 3 | AM116: TRUE | AP116: 4 | AQ116: 2 | AR116: 1 | AS116: TRUE | AT116: 1 | AU116: TRUE | AY116: =_xlfn.XLOOKUP(Y116,[1]COUNTRY_INFO!$W$9:$W$172,[1]COUNTRY_INFO!$T$9:$T$172) -> 0 | AZ116: =_xlfn.XLOOKUP(Y116,[2]DISTRICT!$AJ$9:$AJ$172,[2]DISTRICT!$AH$9:$AH$172) -> 0 | BA116: 0
A117: =IF(INTRO!$E$33<>0,INTRO!$E$33, " ") -> ANGOLA | B117: LUNDA NORTE | C117: LUCAPA | D117: 189450.9093 | E117: =IF(INTRO!$E$48="","",ROUND($D117*INTRO!$E$48,0)) -> 30312 | F117: =IF(INTRO!$E$49="","",ROUND($D117*INTRO!$E$49,0)) -> 52857 | G117: =IF(INTRO!$E$50="","",ROUND($D117*INTRO!$E$50,0)) -> 99841 | H117: 0 | I117: 1 | J117: 3 | K117: 0 | L117: 0 | M117: =IF(INTRO!$E$37="Endemic",IF($H117>0,IF($H117=4,"Unknown",IF($H117=99,"Stopped",$D117)),0),"Not required") -> 0 | N117: =IF(INTRO!$E$39="Endemic", IF($I117>0, IF($I117=4,"Unknown",IF($I117=99,"Stopped",$D117)), 0),"Not required") -> 189450.9093 | O117: =IF(INTRO!$E$41="Endemic", IF(AND($J117>1,$J117<5), IF($J117=4, "Unknown", E117+F117), 0),"Not required") -> 83169 | P117: =IF(INTRO!$E$43="Endemic", IF(AND($K117>0,$K117<5), IF($K117=4,"Unknown", IF($K117=1, $F117*0.33, IF($K117=2, $F117*0.5+$G117*0.2, SUM(F117:G117)))), 0),"Not required") -> 0 | Q117: 0 | R117: 1 | S117: 2 | T117: 0 | Y117: 2156 | Z117: LUCAPA | AB117: FALSE | AC117: Lunda Norte | AD117: Lucapa | AE117: 175 | AF117: 0 | AG117: 0 | AH117: 0 | AI117: TRUE | AK117: 60.4 | AL117: 3 | AM117: TRUE | AP117: 0 | AQ117: 0 | AR117: 0 | AS117: TRUE | AT117: 0 | AU117: TRUE | AY117: =_xlfn.XLOOKUP(Y117,[1]COUNTRY_INFO!$W$9:$W$172,[1]COUNTRY_INFO!$T$9:$T$172) -> 0 | AZ117: =_xlfn.XLOOKUP(Y117,[2]DISTRICT!$AJ$9:$AJ$172,[2]DISTRICT!$AH$9:$AH$172) -> 0 | BA117: 0
A118: =IF(INTRO!$E$33<>0,INTRO!$E$33, " ") -> ANGOLA | B118: LUNDA NORTE | C118: XA MUTEBA | D118: 59030.96756 | E118: =IF(INTRO!$E$48="","",ROUND($D118*INTRO!$E$48,0)) -> 9445 | F118: =IF(INTRO!$E$49="","",ROUND($D118*INTRO!$E$49,0)) -> 16470 | G118: =IF(INTRO!$E$50="","",ROUND($D118*INTRO!$E$50,0)) -> 31109 | H118: 1 | I118: 4 | J118: 3 | K118: 2 | L118: 0 | M118: =IF(INTRO!$E$37="Endemic",IF($H118>0,IF($H118=4,"Unknown",IF($H118=99,"Stopped",$D118)),0),"Not required") -> 59030.96756 | N118: =IF(INTRO!$E$39="Endemic", IF($I118>0, IF($I118=4,"Unknown",IF($I118=99,"Stopped",$D118)), 0),"Not required") -> Unknown | O118: =IF(INTRO!$E$41="Endemic", IF(AND($J118>1,$J118<5), IF($J118=4, "Unknown", E118+F118), 0),"Not required") -> 25915 | P118: =IF(INTRO!$E$43="Endemic", IF(AND($K118>0,$K118<5), IF($K118=4,"Unknown", IF($K118=1, $F118*0.33, IF($K118=2, $F118*0.5+$G118*0.2, SUM(F118:G118)))), 0),"Not required") -> 14456.8 | Q118: 1 | R118: 0 | S118: 2 | T118: 1 | Y118: 2157 | Z118: XA MUTEBA | AB118: FALSE | AC118: Lunda Norte | AD118: Xa Mutemba | AE118: 100 | AF118: 4 | AG118: 4 | AH118: 1 | AI118: TRUE | AK118: 72 | AL118: 3 | AM118: TRUE | AP118: 44 | AQ118: 27.2 | AR118: 2 | AS118: TRUE | AT118: 2 | AU118: TRUE | AY118: =_xlfn.XLOOKUP(Y118,[1]COUNTRY_INFO!$W$9:$W$172,[1]COUNTRY_INFO!$T$9:$T$172) -> 0 | AZ118: =_xlfn.XLOOKUP(Y118,[2]DISTRICT!$AJ$9:$AJ$172,[2]DISTRICT!$AH$9:$AH$172) -> 0 | BA118: 0
A119: =IF(INTRO!$E$33<>0,INTRO!$E$33, " ") -> ANGOLA | B119: LUNDA SUL | C119: CACOLO | D119: 39716.72423 | E119: =IF(INTRO!$E$48="","",ROUND($D119*INTRO!$E$48,0)) -> 6355 | F119: =IF(INTRO!$E$49="","",ROUND($D119*INTRO!$E$49,0)) -> 11081 | G119: =IF(INTRO!$E$50="","",ROUND($D119*INTRO!$E$50,0)) -> 20931 | H119: 1 | I119: 1 | J119: 3 | K119: 1 | L119: 0 | M119: =IF(INTRO!$E$37="Endemic",IF($H119>0,IF($H119=4,"Unknown",IF($H119=99,"Stopped",$D119)),0),"Not required") -> 39716.72423 | N119: =IF(INTRO!$E$39="Endemic", IF($I119>0, IF($I119=4,"Unknown",IF($I119=99,"Stopped",$D119)), 0),"Not required") -> 39716.72423 | O119: =IF(INTRO!$E$41="Endemic", IF(AND($J119>1,$J119<5), IF($J119=4, "Unknown", E119+F119), 0),"Not required") -> 17436 | P119: =IF(INTRO!$E$43="Endemic", IF(AND($K119>0,$K119<5), IF($K119=4,"Unknown", IF($K119=1, $F119*0.33, IF($K119=2, $F119*0.5+$G119*0.2, SUM(F119:G119)))), 0),"Not required") -> 3656.73 | Q119: 1 | R119: 1 | S119: 2 | T119: 1 | Y119: 2159 | Z119: CACOLO | AB119: TRUE | AC119: Lunda Sul | AD119: Cacolo | AE119: 100 | AF119: 6 | AG119: 6 | AH119: 1 | AI119: TRUE | AK119: 52.85714286 | AL119: 3 | AM119: TRUE | AP119: 54 | AQ119: 7.714285714 | AR119: 3 | AS119: FALSE | AT119: 1 | AU119: TRUE | AY119: =_xlfn.XLOOKUP(Y119,[1]COUNTRY_INFO!$W$9:$W$172,[1]COUNTRY_INFO!$T$9:$T$172) -> 0 | AZ119: =_xlfn.XLOOKUP(Y119,[2]DISTRICT!$AJ$9:$AJ$172,[2]DISTRICT!$AH$9:$AH$172) -> 0 | BA119: 0
A120: =IF(INTRO!$E$33<>0,INTRO!$E$33, " ") -> ANGOLA | B120: LUNDA SUL | C120: DALA | D120: 37345.8709 | E120: =IF(INTRO!$E$48="","",ROUND($D120*INTRO!$E$48,0)) -> 5975 | F120: =IF(INTRO!$E$49="","",ROUND($D120*INTRO!$E$49,0)) -> 10419 | G120: =IF(INTRO!$E$50="","",ROUND($D120*INTRO!$E$50,0)) -> 19681 | H120: 0 | I120: 1 | J120: 2 | K120: 0 | L120: 1 | M120: =IF(INTRO!$E$37="Endemic",IF($H120>0,IF($H120=4,"Unknown",IF($H120=99,"Stopped",$D120)),0),"Not required") -> 0 | N120: =IF(INTRO!$E$39="Endemic", IF($I120>0, IF($I120=4,"Unknown",IF($I120=99,"Stopped",$D120)), 0),"Not required") -> 37345.8709 | O120: =IF(INTRO!$E$41="Endemic", IF(AND($J120>1,$J120<5), IF($J120=4, "Unknown", E120+F120), 0),"Not required") -> 16394 | P120: =IF(INTRO!$E$43="Endemic", IF(AND($K120>0,$K120<5), IF($K120=4,"Unknown", IF($K120=1, $F120*0.33, IF($K120=2, $F120*0.5+$G120*0.2, SUM(F120:G120)))), 0),"Not required") -> 0 | Q120: 0 | R120: 1 | S120: 1 | T120: 0 | Y120: 2158 | Z120: DALA | AB120: TRUE | AC120: Lunda Sul | AD120: Dala | AE120: 200 | AF120: 0 | AG120: 0 | AH120: 0 | AI120: TRUE | AK120: 42 | AL120: 2 | AM120: TRUE | AP120: 0 | AQ120: 0 | AR120: 0 | AS120: TRUE | AT120: 0 | AU120: TRUE | AY120: =_xlfn.XLOOKUP(Y120,[1]COUNTRY_INFO!$W$9:$W$172,[1]COUNTRY_INFO!$T$9:$T$172) -> 0 | AZ120: =_xlfn.XLOOKUP(Y120,[2]DISTRICT!$AJ$9:$AJ$172,[2]DISTRICT!$AH$9:$AH$172) -> 0 | BA120: 0
A121: =IF(INTRO!$E$33<>0,INTRO!$E$33, " ") -> ANGOLA | B121: LUNDA SUL | C121: MUCONDA | D121: 41420.89833 | E121: =IF(INTRO!$E$48="","",ROUND($D121*INTRO!$E$48,0)) -> 6627 | F121: =IF(INTRO!$E$49="","",ROUND($D121*INTRO!$E$49,0)) -> 11556 | G121: =IF(INTRO!$E$50="","",ROUND($D121*INTRO!$E$50,0)) -> 21829 | H121: 0 | I121: 1 | J121: 3 | K121: 0 | L121: 0 | M121: =IF(INTRO!$E$37="Endemic",IF($H121>0,IF($H121=4,"Unknown",IF($H121=99,"Stopped",$D121)),0),"Not required") -> 0 | N121: =IF(INTRO!$E$39="Endemic", IF($I121>0, IF($I121=4,"Unknown",IF($I121=99,"Stopped",$D121)), 0),"Not required") -> 41420.89833 | O121: =IF(INTRO!$E$41="Endemic", IF(AND($J121>1,$J121<5), IF($J121=4, "Unknown", E121+F121), 0),"Not required") -> 18183 | P121: =IF(INTRO!$E$43="Endemic", IF(AND($K121>0,$K121<5), IF($K121=4,"Unknown", IF($K121=1, $F121*0.33, IF($K121=2, $F121*0.5+$G121*0.2, SUM(F121:G121)))), 0),"Not required") -> 0 | Q121: 0 | R121: 1 | S121: 2 | T121: 0 | Y121: 2160 | Z121: MUCONDA | AB121: FALSE | AC121: Lunda Sul | AD121: Muconda | AE121: 200 | AF121: 0 | AG121: 0 | AH121: 0 | AI121: TRUE | AK121: 50.88888889 | AL121: 3 | AM121: TRUE | AP121: 2 | AQ121: 0.2222222222 | AR121: 1 | AS121: FALSE | AT121: 0 | AU121: TRUE | AY121: =_xlfn.XLOOKUP(Y121,[1]COUNTRY_INFO!$W$9:$W$172,[1]COUNTRY_INFO!$T$9:$T$172) -> 0 | AZ121: =_xlfn.XLOOKUP(Y121,[2]DISTRICT!$AJ$9:$AJ$172,[2]DISTRICT!$AH$9:$AH$172) -> 0 | BA121: 0
A122: =IF(INTRO!$E$33<>0,INTRO!$E$33, " ") -> ANGOLA | B122: LUNDA SUL | C122: SAURIMO | D122: 550929.5065 | E122: =IF(INTRO!$E$48="","",ROUND($D122*INTRO!$E$48,0)) -> 88149 | F122: =IF(INTRO!$E$49="","",ROUND($D122*INTRO!$E$49,0)) -> 153709 | G122: =IF(INTRO!$E$50="","",ROUND($D122*INTRO!$E$50,0)) -> 290340 | H122: 1 | I122: 1 | J122: 3 | K122: 0 | L122: 0 | M122: =IF(INTRO!$E$37="Endemic",IF($H122>0,IF($H122=4,"Unknown",IF($H122=99,"Stopped",$D122)),0),"Not required") -> 550929.5065 | N122: =IF(INTRO!$E$39="Endemic", IF($I122>0, IF($I122=4,"Unknown",IF($I122=99,"Stopped",$D122)), 0),"Not required") -> 550929.5065 | O122: =IF(INTRO!$E$41="Endemic", IF(AND($J122>1,$J122<5), IF($J122=4, "Unknown", E122+F122), 0),"Not required") -> 241858 | P122: =IF(INTRO!$E$43="Endemic", IF(AND($K122>0,$K122<5), IF($K122=4,"Unknown", IF($K122=1, $F122*0.33, IF($K122=2, $F122*0.5+$G122*0.2, SUM(F122:G122)))), 0),"Not required") -> 0 | Q122: 1 | R122: 1 | S122: 2 | T122: 0 | Y122: 2161 | Z122: SAURIMO | AB122: TRUE | AC122: Lunda Sul | AD122: Saurimo | AE122: 100 | AF122: 3 | AG122: 3 | AH122: 1 | AI122: TRUE | AK122: 58.08181818 | AL122: 3 | AM122: TRUE | AP122: 0 | AQ122: 0 | AR122: 0 | AS122: TRUE | AT122: 0 | AU122: TRUE | AY122: =_xlfn.XLOOKUP(Y122,[1]COUNTRY_INFO!$W$9:$W$172,[1]COUNTRY_INFO!$T$9:$T$172) -> 0 | AZ122: =_xlfn.XLOOKUP(Y122,[2]DISTRICT!$AJ$9:$AJ$172,[2]DISTRICT!$AH$9:$AH$172) -> 0 | BA122: 0
A123: =IF(INTRO!$E$33<>0,INTRO!$E$33, " ") -> ANGOLA | B123: MALANJE | C123: CACULAMA (Mukari) | D123: 36975.87628 | E123: =IF(INTRO!$E$48="","",ROUND($D123*INTRO!$E$48,0)) -> 5916 | F123: =IF(INTRO!$E$49="","",ROUND($D123*INTRO!$E$49,0)) -> 10316 | G123: =IF(INTRO!$E$50="","",ROUND($D123*INTRO!$E$50,0)) -> 19486 | H123: 1 | I123: 4 | J123: 3 | K123: 2 | L123: 0 | M123: =IF(INTRO!$E$37="Endemic",IF($H123>0,IF($H123=4,"Unknown",IF($H123=99,"Stopped",$D123)),0),"Not required") -> 36975.87628 | N123: =IF(INTRO!$E$39="Endemic", IF($I123>0, IF($I123=4,"Unknown",IF($I123=99,"Stopped",$D123)), 0),"Not required") -> Unknown | O123: =IF(INTRO!$E$41="Endemic", IF(AND($J123>1,$J123<5), IF($J123=4, "Unknown", E123+F123), 0),"Not required") -> 16232 | P123: =IF(INTRO!$E$43="Endemic", IF(AND($K123>0,$K123<5), IF($K123=4,"Unknown", IF($K123=1, $F123*0.33, IF($K123=2, $F123*0.5+$G123*0.2, SUM(F123:G123)))), 0),"Not required") -> 9055.2 | Q123: 1 | R123: 0 | S123: 2 | T123: 1 | Y123: 2215 | Z123: CACULAMA (Mukari) | AB123: FALSE | AC123: Malanje | AD123: Caculama | AE123: 100 | AF123: 2 | AG123: 2 | AH123: 1 | AI123: TRUE | AK123: 57.5 | AL123: 3 | AM123: TRUE | AP123: 24 | AQ123: 14 | AR123: 2 | AS123: TRUE | AT123: 2 | AU123: TRUE | AY123: =_xlfn.XLOOKUP(Y123,[1]COUNTRY_INFO!$W$9:$W$172,[1]COUNTRY_INFO!$T$9:$T$172) -> 1 | AZ123: =_xlfn.XLOOKUP(Y123,[2]DISTRICT!$AJ$9:$AJ$172,[2]DISTRICT!$AH$9:$AH$172) -> 0 | BA123: 1
A124: =IF(INTRO!$E$33<>0,INTRO!$E$33, " ") -> ANGOLA | B124: MALANJE | C124: CACUSO | D124: 87779.93928 | E124: =IF(INTRO!$E$48="","",ROUND($D124*INTRO!$E$48,0)) -> 14045 | F124: =IF(INTRO!$E$49="","",ROUND($D124*INTRO!$E$49,0)) -> 24491 | G124: =IF(INTRO!$E$50="","",ROUND($D124*INTRO!$E$50,0)) -> 46260 | H124: 0 | I124: 4 | J124: 3 | K124: 2 | L124: 0 | M124: =IF(INTRO!$E$37="Endemic",IF($H124>0,IF($H124=4,"Unknown",IF($H124=99,"Stopped",$D124)),0),"Not required") -> 0 | N124: =IF(INTRO!$E$39="Endemic", IF($I124>0, IF($I124=4,"Unknown",IF($I124=99,"Stopped",$D124)), 0),"Not required") -> Unknown | O124: =IF(INTRO!$E$41="Endemic", IF(AND($J124>1,$J124<5), IF($J124=4, "Unknown", E124+F124), 0),"Not required") -> 38536 | P124: =IF(INTRO!$E$43="Endemic", IF(AND($K124>0,$K124<5), IF($K124=4,"Unknown", IF($K124=1, $F124*0.33, IF($K124=2, $F124*0.5+$G124*0.2, SUM(F124:G124)))), 0),"Not required") -> 21497.5 | Q124: 0 | R124: 0 | S124: 2 | T124: 1 | Y124: 2163 | Z124: CACUSO | AB124: TRUE | AC124: Malanje | AD124: Cacuso | AE124: 200 | AF124: 0 | AG124: 0 | AH124: 0 | AI124: TRUE | AK124: 60 | AL124: 3 | AM124: TRUE | AP124: 32 | AQ124: 17.5 | AR124: 2 | AS124: TRUE | AT124: 2 | AU124: TRUE | AY124: =_xlfn.XLOOKUP(Y124,[1]COUNTRY_INFO!$W$9:$W$172,[1]COUNTRY_INFO!$T$9:$T$172) -> 1 | AZ124: =_xlfn.XLOOKUP(Y124,[2]DISTRICT!$AJ$9:$AJ$172,[2]DISTRICT!$AH$9:$AH$172) -> 0 | BA124: 1
A125: =IF(INTRO!$E$33<>0,INTRO!$E$33, " ") -> ANGOLA | B125: MALANJE | C125: CAMBUNDI CATEMBO | D125: 56868.80694 | E125: =IF(INTRO!$E$48="","",ROUND($D125*INTRO!$E$48,0)) -> 9099 | F125: =IF(INTRO!$E$49="","",ROUND($D125*INTRO!$E$49,0)) -> 15866 | G125: =IF(INTRO!$E$50="","",ROUND($D125*INTRO!$E$50,0)) -> 29970 | H125: 0 | I125: 4 | J125: 3 | K125: 2 | L125: 0 | M125: =IF(INTRO!$E$37="Endemic",IF($H125>0,IF($H125=4,"Unknown",IF($H125=99,"Stopped",$D125)),0),"Not required") -> 0 | N125: =IF(INTRO!$E$39="Endemic", IF($I125>0, IF($I125=4,"Unknown",IF($I125=99,"Stopped",$D125)), 0),"Not required") -> Unknown | O125: =IF(INTRO!$E$41="Endemic", IF(AND($J125>1,$J125<5), IF($J125=4, "Unknown", E125+F125), 0),"Not required") -> 24965 | P125: =IF(INTRO!$E$43="Endemic", IF(AND($K125>0,$K125<5), IF($K125=4,"Unknown", IF($K125=1, $F125*0.33, IF($K125=2, $F125*0.5+$G125*0.2, SUM(F125:G125)))), 0),"Not required") -> 13927 | Q125: 0 | R125: 0 | S125: 2 | T125: 1 | Y125: 2165 | Z125: CAMBUNDI CATEMBO | AB125: TRUE | AC125: Malanje | AD125: Cambundi Catembo | AE125: 200 | AF125: 0 | AG125: 0 | AH125: 0 | AI125: TRUE | AK125: 64.4 | AL125: 3 | AM125: TRUE | AP125: 26 | AQ125: 12.4 | AR125: 2 | AS125: TRUE | AT125: 2 | AU125: TRUE | AY125: =_xlfn.XLOOKUP(Y125,[1]COUNTRY_INFO!$W$9:$W$172,[1]COUNTRY_INFO!$T$9:$T$172) -> 0 | AZ125: =_xlfn.XLOOKUP(Y125,[2]DISTRICT!$AJ$9:$AJ$172,[2]DISTRICT!$AH$9:$AH$172) -> 0 | BA125: 0
A126: =IF(INTRO!$E$33<>0,INTRO!$E$33, " ") -> ANGOLA | B126: MALANJE | C126: CANGANDALA | D126: 55404.8138 | E126: =IF(INTRO!$E$48="","",ROUND($D126*INTRO!$E$48,0)) -> 8865 | F126: =IF(INTRO!$E$49="","",ROUND($D126*INTRO!$E$49,0)) -> 15458 | G126: =IF(INTRO!$E$50="","",ROUND($D126*INTRO!$E$50,0)) -> 29198 | H126: 1 | I126: 4 | J126: 2 | K126: 2 | L126: 0 | M126: =IF(INTRO!$E$37="Endemic",IF($H126>0,IF($H126=4,"Unknown",IF($H126=99,"Stopped",$D126)),0),"Not required") -> 55404.8138 | N126: =IF(INTRO!$E$39="Endemic", IF($I126>0, IF($I126=4,"Unknown",IF($I126=99,"Stopped",$D126)), 0),"Not required") -> Unknown | O126: =IF(INTRO!$E$41="Endemic", IF(AND($J126>1,$J126<5), IF($J126=4, "Unknown", E126+F126), 0),"Not required") -> 24323 | P126: =IF(INTRO!$E$43="Endemic", IF(AND($K126>0,$K126<5), IF($K126=4,"Unknown", IF($K126=1, $F126*0.33, IF($K126=2, $F126*0.5+$G126*0.2, SUM(F126:G126)))), 0),"Not required") -> 13568.6 | Q126: 1 | R126: 0 | S126: 1 | T126: 1 | Y126: 2166 | Z126: CANGANDALA | AB126: TRUE | AC126: Malanje | AD126: Cangandala | AE126: 100 | AF126: 8 | AG126: 8 | AH126: 1 | AI126: TRUE | AK126: 47.5 | AL126: 2 | AM126: TRUE | AP126: 64 | AQ126: 24.5 | AR126: 3 | AS126: FALSE | AT126: 2 | AU126: TRUE | AY126: =_xlfn.XLOOKUP(Y126,[1]COUNTRY_INFO!$W$9:$W$172,[1]COUNTRY_INFO!$T$9:$T$172) -> 1 | AZ126: =_xlfn.XLOOKUP(Y126,[2]DISTRICT!$AJ$9:$AJ$172,[2]DISTRICT!$AH$9:$AH$172) -> 0 | BA126: 1
A127: =IF(INTRO!$E$33<>0,INTRO!$E$33, " ") -> ANGOLA | B127: MALANJE | C127: CAHOMBO | D127: 26414.11888 | E127: =IF(INTRO!$E$48="","",ROUND($D127*INTRO!$E$48,0)) -> 4226 | F127: =IF(INTRO!$E$49="","",ROUND($D127*INTRO!$E$49,0)) -> 7370 | G127: =IF(INTRO!$E$50="","",ROUND($D127*INTRO!$E$50,0)) -> 13920 | H127: 0 | I127: 4 | J127: 2 | K127: 2 | L127: 0 | M127: =IF(INTRO!$E$37="Endemic",IF($H127>0,IF($H127=4,"Unknown",IF($H127=99,"Stopped",$D127)),0),"Not required") -> 0 | N127: =IF(INTRO!$E$39="Endemic", IF($I127>0, IF($I127=4,"Unknown",IF($I127=99,"Stopped",$D127)), 0),"Not required") -> Unknown | O127: =IF(INTRO!$E$41="Endemic", IF(AND($J127>1,$J127<5), IF($J127=4, "Unknown", E127+F127), 0),"Not required") -> 11596 | P127: =IF(INTRO!$E$43="Endemic", IF(AND($K127>0,$K127<5), IF($K127=4,"Unknown", IF($K127=1, $F127*0.33, IF($K127=2, $F127*0.5+$G127*0.2, SUM(F127:G127)))), 0),"Not required") -> 6469 | Q127: 0 | R127: 0 | S127: 1 | T127: 1 | Y127: 2162 | Z127: KAHOMBO | AB127: FALSE | AC127: Malanje | AD127: Cahongo | AE127: 200 | AF127: 0 | AG127: 0 | AH127: 0 | AI127: TRUE | AK127: 43.6 | AL127: 2 | AM127: TRUE | AP127: 74 | AQ127: 27.2 | AR127: 3 | AS127: FALSE | AT127: 2 | AU127: TRUE | AY127: =_xlfn.XLOOKUP(Y127,[1]COUNTRY_INFO!$W$9:$W$172,[1]COUNTRY_INFO!$T$9:$T$172) -> 1 | AZ127: =_xlfn.XLOOKUP(Y127,[2]DISTRICT!$AJ$9:$AJ$172,[2]DISTRICT!$AH$9:$AH$172) -> 0 | BA127: 1
A128: =IF(INTRO!$E$33<>0,INTRO!$E$33, " ") -> ANGOLA | B128: MALANJE | C128: CALANDULA | D128: 98746.27229 | E128: =IF(INTRO!$E$48="","",ROUND($D128*INTRO!$E$48,0)) -> 15799 | F128: =IF(INTRO!$E$49="","",ROUND($D128*INTRO!$E$49,0)) -> 27550 | G128: =IF(INTRO!$E$50="","",ROUND($D128*INTRO!$E$50,0)) -> 52039 | H128: 0 | I128: 4 | J128: 3 | K128: 2 | L128: 0 | M128: =IF(INTRO!$E$37="Endemic",IF($H128>0,IF($H128=4,"Unknown",IF($H128=99,"Stopped",$D128)),0),"Not required") -> 0 | N128: =IF(INTRO!$E$39="Endemic", IF($I128>0, IF($I128=4,"Unknown",IF($I128=99,"Stopped",$D128)), 0),"Not required") -> Unknown | O128: =IF(INTRO!$E$41="Endemic", IF(AND($J128>1,$J128<5), IF($J128=4, "Unknown", E128+F128), 0),"Not required") -> 43349 | P128: =IF(INTRO!$E$43="Endemic", IF(AND($K128>0,$K128<5), IF($K128=4,"Unknown", IF($K128=1, $F128*0.33, IF($K128=2, $F128*0.5+$G128*0.2, SUM(F128:G128)))), 0),"Not required") -> 24182.8 | Q128: 0 | R128: 0 | S128: 2 | T128: 1 | Y128: 2164 | Z128: KALANDULA | AB128: TRUE | AC128: Malanje | AD128: Calandula | AE128: 200 | AF128: 0 | AG128: 0 | AH128: 0 | AI128: TRUE | AK128: 70.8 | AL128: 3 | AM128: TRUE | AP128: 70 | AQ128: 17.2 | AR128: 3 | AS128: FALSE | AT128: 2 | AU128: TRUE | AY128: =_xlfn.XLOOKUP(Y128,[1]COUNTRY_INFO!$W$9:$W$172,[1]COUNTRY_INFO!$T$9:$T$172) -> 0 | AZ128: =_xlfn.XLOOKUP(Y128,[2]DISTRICT!$AJ$9:$AJ$172,[2]DISTRICT!$AH$9:$AH$172) -> 0 | BA128: 0
A129: =IF(INTRO!$E$33<>0,INTRO!$E$33, " ") -> ANGOLA | B129: MALANJE | C129: KIWABA NZOGI | D129: 19500.02551 | E129: =IF(INTRO!$E$48="","",ROUND($D129*INTRO!$E$48,0)) -> 3120 | F129: =IF(INTRO!$E$49="","",ROUND($D129*INTRO!$E$49,0)) -> 5441 | G129: =IF(INTRO!$E$50="","",ROUND($D129*INTRO!$E$50,0)) -> 10277 | H129: 0 | I129: 4 | J129: 3 | K129: 1 | L129: 0 | M129: =IF(INTRO!$E$37="Endemic",IF($H129>0,IF($H129=4,"Unknown",IF($H129=99,"Stopped",$D129)),0),"Not required") -> 0 | N129: =IF(INTRO!$E$39="Endemic", IF($I129>0, IF($I129=4,"Unknown",IF($I129=99,"Stopped",$D129)), 0),"Not required") -> Unknown | O129: =IF(INTRO!$E$41="Endemic", IF(AND($J129>1,$J129<5), IF($J129=4, "Unknown", E129+F129), 0),"Not required") -> 8561 | P129: =IF(INTRO!$E$43="Endemic", IF(AND($K129>0,$K129<5), IF($K129=4,"Unknown", IF($K129=1, $F129*0.33, IF($K129=2, $F129*0.5+$G129*0.2, SUM(F129:G129)))), 0),"Not required") -> 1795.53 | Q129: 0 | R129: 0 | S129: 2 | T129: 1 | Y129: 2169 | Z129: KIWABA NZOGI | AB129: TRUE | AC129: Malanje | AD129: Kiwaba Nzogi | AE129: 200 | AF129: 0 | AG129: 0 | AH129: 0 | AI129: TRUE | AK129: 85 | AL129: 3 | AM129: TRUE | AP129: 6 | AQ129: 3 | AR129: 1 | AS129: TRUE | AT129: 1 | AU129: TRUE | AY129: =_xlfn.XLOOKUP(Y129,[1]COUNTRY_INFO!$W$9:$W$172,[1]COUNTRY_INFO!$T$9:$T$172) -> 0 | AZ129: =_xlfn.XLOOKUP(Y129,[2]DISTRICT!$AJ$9:$AJ$172,[2]DISTRICT!$AH$9:$AH$172) -> 0 | BA129: 0
A130: =IF(INTRO!$E$33<>0,INTRO!$E$33, " ") -> ANGOLA | B130: MALANJE | C130: KUNDA DIA BASE | D130: 15497.0611 | E130: =IF(INTRO!$E$48="","",ROUND($D130*INTRO!$E$48,0)) -> 2480 | F130: =IF(INTRO!$E$49="","",ROUND($D130*INTRO!$E$49,0)) -> 4324 | G130: =IF(INTRO!$E$50="","",ROUND($D130*INTRO!$E$50,0)) -> 8167 | H130: 1 | I130: 4 | J130: 2 | K130: 2 | L130: 0 | M130: =IF(INTRO!$E$37="Endemic",IF($H130>0,IF($H130=4,"Unknown",IF($H130=99,"Stopped",$D130)),0),"Not required") -> 15497.0611 | N130: =IF(INTRO!$E$39="Endemic", IF($I130>0, IF($I130=4,"Unknown",IF($I130=99,"Stopped",$D130)), 0),"Not required") -> Unknown | O130: =IF(INTRO!$E$41="Endemic", IF(AND($J130>1,$J130<5), IF($J130=4, "Unknown", E130+F130), 0),"Not required") -> 6804 | P130: =IF(INTRO!$E$43="Endemic", IF(AND($K130>0,$K130<5), IF($K130=4,"Unknown", IF($K130=1, $F130*0.33, IF($K130=2, $F130*0.5+$G130*0.2, SUM(F130:G130)))), 0),"Not required") -> 3795.4 | Q130: 1 | R130: 0 | S130: 1 | T130: 1 | Y130: 2170 | Z130: KUNDA DIA BASE | AB130: FALSE | AC130: Malanje | AD130: Kunda-dia-Base | AE130: 100 | AF130: 2 | AG130: 2 | AH130: 1 | AI130: TRUE | AK130: 24.66666667 | AL130: 2 | AM130: TRUE | AP130: 22 | AQ130: 10.66666667 | AR130: 2 | AS130: TRUE | AT130: 2 | AU130: TRUE | AY130: =_xlfn.XLOOKUP(Y130,[1]COUNTRY_INFO!$W$9:$W$172,[1]COUNTRY_INFO!$T$9:$T$172) -> 1 | AZ130: =_xlfn.XLOOKUP(Y130,[2]DISTRICT!$AJ$9:$AJ$172,[2]DISTRICT!$AH$9:$AH$172) -> 0 | BA130: 1
A131: =IF(INTRO!$E$33<>0,INTRO!$E$33, " ") -> ANGOLA | B131: MALANJE | C131: LUQUEMBO | D131: 67390.36612 | E131: =IF(INTRO!$E$48="","",ROUND($D131*INTRO!$E$48,0)) -> 10782 | F131: =IF(INTRO!$E$49="","",ROUND($D131*INTRO!$E$49,0)) -> 18802 | G131: =IF(INTRO!$E$50="","",ROUND($D131*INTRO!$E$50,0)) -> 35515 | H131: 0 | I131: 4 | J131: 3 | K131: 2 | L131: 0 | M131: =IF(INTRO!$E$37="Endemic",IF($H131>0,IF($H131=4,"Unknown",IF($H131=99,"Stopped",$D131)),0),"Not required") -> 0 | N131: =IF(INTRO!$E$39="Endemic", IF($I131>0, IF($I131=4,"Unknown",IF($I131=99,"Stopped",$D131)), 0),"Not required") -> Unknown | O131: =IF(INTRO!$E$41="Endemic", IF(AND($J131>1,$J131<5), IF($J131=4, "Unknown", E131+F131), 0),"Not required") -> 29584 | P131: =IF(INTRO!$E$43="Endemic", IF(AND($K131>0,$K131<5), IF($K131=4,"Unknown", IF($K131=1, $F131*0.33, IF($K131=2, $F131*0.5+$G131*0.2, SUM(F131:G131)))), 0),"Not required") -> 16504 | Q131: 0 | R131: 0 | S131: 2 | T131: 1 | Y131: 2171 | Z131: LUQUEMBO | AB131: TRUE | AC131: Malanje | AD131: Luquembo | AE131: 200 | AF131: 0 | AG131: 0 | AH131: 0 | AI131: TRUE | AK131: 51.6 | AL131: 3 | AM131: TRUE | AP131: 60 | AQ131: 32.4 | AR131: 3 | AS131: FALSE | AT131: 2 | AU131: TRUE | AY131: =_xlfn.XLOOKUP(Y131,[1]COUNTRY_INFO!$W$9:$W$172,[1]COUNTRY_INFO!$T$9:$T$172) -> 0 | AZ131: =_xlfn.XLOOKUP(Y131,[2]DISTRICT!$AJ$9:$AJ$172,[2]DISTRICT!$AH$9:$AH$172) -> 0 | BA131: 0
A132: =IF(INTRO!$E$33<>0,INTRO!$E$33, " ") -> ANGOLA | B132: MALANJE | C132: MALANJE | D132: 622383.8106 | E132: =IF(INTRO!$E$48="","",ROUND($D132*INTRO!$E$48,0)) -> 99581 | F132: =IF(INTRO!$E$49="","",ROUND($D132*INTRO!$E$49,0)) -> 173645 | G132: =IF(INTRO!$E$50="","",ROUND($D132*INTRO!$E$50,0)) -> 327996 | H132: 0 | I132: 4 | J132: 3 | K132: 2 | L132: 0 | M132: =IF(INTRO!$E$37="Endemic",IF($H132>0,IF($H132=4,"Unknown",IF($H132=99,"Stopped",$D132)),0),"Not required") -> 0 | N132: =IF(INTRO!$E$39="Endemic", IF($I132>0, IF($I132=4,"Unknown",IF($I132=99,"Stopped",$D132)), 0),"Not required") -> Unknown | O132: =IF(INTRO!$E$41="Endemic", IF(AND($J132>1,$J132<5), IF($J132=4, "Unknown", E132+F132), 0),"Not required") -> 273226 | P132: =IF(INTRO!$E$43="Endemic", IF(AND($K132>0,$K132<5), IF($K132=4,"Unknown", IF($K132=1, $F132*0.33, IF($K132=2, $F132*0.5+$G132*0.2, SUM(F132:G132)))), 0),"Not required") -> 152421.7 | Q132: 0 | R132: 0 | S132: 2 | T132: 1 | Y132: 2172 | Z132: MALANJE | AB132: FALSE | AC132: Malanje | AD132: Malanje | AE132: 200 | AF132: 0 | AG132: 0 | AH132: 0 | AI132: TRUE | AK132: 54 | AL132: 3 | AM132: TRUE | AP132: 52 | AQ132: 23.2 | AR132: 3 | AS132: FALSE | AT132: 2 | AU132: TRUE | AY132: =_xlfn.XLOOKUP(Y132,[1]COUNTRY_INFO!$W$9:$W$172,[1]COUNTRY_INFO!$T$9:$T$172) -> 1 | AZ132: =_xlfn.XLOOKUP(Y132,[2]DISTRICT!$AJ$9:$AJ$172,[2]DISTRICT!$AH$9:$AH$172) -> 0 | BA132: 1
A133: =IF(INTRO!$E$33<>0,INTRO!$E$33, " ") -> ANGOLA | B133: MALANJE | C133: MARIMBA | D133: 32148.20006 | E133: =IF(INTRO!$E$48="","",ROUND($D133*INTRO!$E$48,0)) -> 5144 | F133: =IF(INTRO!$E$49="","",ROUND($D133*INTRO!$E$49,0)) -> 8969 | G133: =IF(INTRO!$E$50="","",ROUND($D133*INTRO!$E$50,0)) -> 16942 | H133: 1 | I133: 4 | J133: 3 | K133: 2 | L133: 0 | M133: =IF(INTRO!$E$37="Endemic",IF($H133>0,IF($H133=4,"Unknown",IF($H133=99,"Stopped",$D133)),0),"Not required") -> 32148.20006 | N133: =IF(INTRO!$E$39="Endemic", IF($I133>0, IF($I133=4,"Unknown",IF($I133=99,"Stopped",$D133)), 0),"Not required") -> Unknown | O133: =IF(INTRO!$E$41="Endemic", IF(AND($J133>1,$J133<5), IF($J133=4, "Unknown", E133+F133), 0),"Not required") -> 14113 | P133: =IF(INTRO!$E$43="Endemic", IF(AND($K133>0,$K133<5), IF($K133=4,"Unknown", IF($K133=1, $F133*0.33, IF($K133=2, $F133*0.5+$G133*0.2, SUM(F133:G133)))), 0),"Not required") -> 7872.9 | Q133: 1 | R133: 0 | S133: 2 | T133: 1 | Y133: 2173 | Z133: MARIMBA | AB133: TRUE | AC133: Malanje | AD133: Marimba | AE133: 100 | AF133: 3 | AG133: 3 | AH133: 1 | AI133: TRUE | AK133: 60.8 | AL133: 3 | AM133: TRUE | AP133: 36 | AQ133: 24.8 | AR133: 2 | AS133: TRUE | AT133: 2 | AU133: TRUE | AY133: =_xlfn.XLOOKUP(Y133,[1]COUNTRY_INFO!$W$9:$W$172,[1]COUNTRY_INFO!$T$9:$T$172) -> 0 | AZ133: =_xlfn.XLOOKUP(Y133,[2]DISTRICT!$AJ$9:$AJ$172,[2]DISTRICT!$AH$9:$AH$172) -> 0 | BA133: 0
A134: =IF(INTRO!$E$33<>0,INTRO!$E$33, " ") -> ANGOLA | B134: MALANJE | C134: MASSANGO | D134: 40421.25251 | E134: =IF(INTRO!$E$48="","",ROUND($D134*INTRO!$E$48,0)) -> 6467 | F134: =IF(INTRO!$E$49="","",ROUND($D134*INTRO!$E$49,0)) -> 11278 | G134: =IF(INTRO!$E$50="","",ROUND($D134*INTRO!$E$50,0)) -> 21302 | H134: 0 | I134: 4 | J134: 3 | K134: 1 | L134: 0 | M134: =IF(INTRO!$E$37="Endemic",IF($H134>0,IF($H134=4,"Unknown",IF($H134=99,"Stopped",$D134)),0),"Not required") -> 0 | N134: =IF(INTRO!$E$39="Endemic", IF($I134>0, IF($I134=4,"Unknown",IF($I134=99,"Stopped",$D134)), 0),"Not required") -> Unknown | O134: =IF(INTRO!$E$41="Endemic", IF(AND($J134>1,$J134<5), IF($J134=4, "Unknown", E134+F134), 0),"Not required") -> 17745 | P134: =IF(INTRO!$E$43="Endemic", IF(AND($K134>0,$K134<5), IF($K134=4,"Unknown", IF($K134=1, $F134*0.33, IF($K134=2, $F134*0.5+$G134*0.2, SUM(F134:G134)))), 0),"Not required") -> 3721.74 | Q134: 0 | R134: 0 | S134: 2 | T134: 1 | Y134: 2174 | Z134: MASSANGO | AB134: TRUE | AC134: Malanje | AD134: Massango | AE134: 200 | AF134: 0 | AG134: 0 | AH134: 0 | AI134: TRUE | AK134: 50.66666667 | AL134: 3 | AM134: TRUE | AP134: 8 | AQ134: 2.666666667 | AR134: 1 | AS134: TRUE | AT134: 1 | AU134: TRUE | AY134: =_xlfn.XLOOKUP(Y134,[1]COUNTRY_INFO!$W$9:$W$172,[1]COUNTRY_INFO!$T$9:$T$172) -> 0 | AZ134: =_xlfn.XLOOKUP(Y134,[2]DISTRICT!$AJ$9:$AJ$172,[2]DISTRICT!$AH$9:$AH$172) -> 0 | BA134: 0
A135: =IF(INTRO!$E$33<>0,INTRO!$E$33, " ") -> ANGOLA | B135: MALANJE | C135: QUELA | D135: 25724.2656 | E135: =IF(INTRO!$E$48="","",ROUND($D135*INTRO!$E$48,0)) -> 4116 | F135: =IF(INTRO!$E$49="","",ROUND($D135*INTRO!$E$49,0)) -> 7177 | G135: =IF(INTRO!$E$50="","",ROUND($D135*INTRO!$E$50,0)) -> 13557 | H135: 1 | I135: 4 | J135: 3 | K135: 1 | L135: 0 | M135: =IF(INTRO!$E$37="Endemic",IF($H135>0,IF($H135=4,"Unknown",IF($H135=99,"Stopped",$D135)),0),"Not required") -> 25724.2656 | N135: =IF(INTRO!$E$39="Endemic", IF($I135>0, IF($I135=4,"Unknown",IF($I135=99,"Stopped",$D135)), 0),"Not required") -> Unknown | O135: =IF(INTRO!$E$41="Endemic", IF(AND($J135>1,$J135<5), IF($J135=4, "Unknown", E135+F135), 0),"Not required") -> 11293 | P135: =IF(INTRO!$E$43="Endemic", IF(AND($K135>0,$K135<5), IF($K135=4,"Unknown", IF($K135=1, $F135*0.33, IF($K135=2, $F135*0.5+$G135*0.2, SUM(F135:G135)))), 0),"Not required") -> 2368.41 | Q135: 1 | R135: 0 | S135: 2 | T135: 1 | Y135: 2222 | Z135: QUELA | AB135: TRUE | AC135: Malanje | AD135: Quela | AE135: 100 | AF135: 3 | AG135: 3 | AH135: 1 | AI135: TRUE | AK135: 75.6 | AL135: 3 | AM135: TRUE | AP135: 22 | AQ135: 6.8 | AR135: 2 | AS135: FALSE | AT135: 1 | AU135: TRUE | AY135: =_xlfn.XLOOKUP(Y135,[1]COUNTRY_INFO!$W$9:$W$172,[1]COUNTRY_INFO!$T$9:$T$172) -> 0 | AZ135: =_xlfn.XLOOKUP(Y135,[2]DISTRICT!$AJ$9:$AJ$172,[2]DISTRICT!$AH$9:$AH$172) -> 0 | BA135: 0
A136: =IF(INTRO!$E$33<>0,INTRO!$E$33, " ") -> ANGOLA | B136: MALANJE | C136: QUIRIMA | D136: 25951.19102 | E136: =IF(INTRO!$E$48="","",ROUND($D136*INTRO!$E$48,0)) -> 4152 | F136: =IF(INTRO!$E$49="","",ROUND($D136*INTRO!$E$49,0)) -> 7240 | G136: =IF(INTRO!$E$50="","",ROUND($D136*INTRO!$E$50,0)) -> 13676 | H136: 0 | I136: 4 | J136: 3 | K136: 2 | L136: 0 | M136: =IF(INTRO!$E$37="Endemic",IF($H136>0,IF($H136=4,"Unknown",IF($H136=99,"Stopped",$D136)),0),"Not required") -> 0 | N136: =IF(INTRO!$E$39="Endemic", IF($I136>0, IF($I136=4,"Unknown",IF($I136=99,"Stopped",$D136)), 0),"Not required") -> Unknown | O136: =IF(INTRO!$E$41="Endemic", IF(AND($J136>1,$J136<5), IF($J136=4, "Unknown", E136+F136), 0),"Not required") -> 11392 | P136: =IF(INTRO!$E$43="Endemic", IF(AND($K136>0,$K136<5), IF($K136=4,"Unknown", IF($K136=1, $F136*0.33, IF($K136=2, $F136*0.5+$G136*0.2, SUM(F136:G136)))), 0),"Not required") -> 6355.2 | Q136: 0 | R136: 0 | S136: 2 | T136: 1 | Y136: 2168 | Z136: QUIRIMA | AB136: TRUE | AC136: Malanje | AD136: Quirima | AE136: 200 | AF136: 0 | AG136: 0 | AH136: 0 | AI136: TRUE | AK136: 56 | AL136: 3 | AM136: TRUE | AP136: 44 | AQ136: 15.33333333 | AR136: 2 | AS136: TRUE | AT136: 2 | AU136: TRUE | AY136: =_xlfn.XLOOKUP(Y136,[1]COUNTRY_INFO!$W$9:$W$172,[1]COUNTRY_INFO!$T$9:$T$172) -> 0 | AZ136: =_xlfn.XLOOKUP(Y136,[2]DISTRICT!$AJ$9:$AJ$172,[2]DISTRICT!$AH$9:$AH$172) -> 0 | BA136: 0
A137: =IF(INTRO!$E$33<>0,INTRO!$E$33, " ") -> ANGOLA | B137: MOXICO | C137: ALTO ZAMBEZE | D137: 136788.6872 | E137: =IF(INTRO!$E$48="","",ROUND($D137*INTRO!$E$48,0)) -> 21886 | F137: =IF(INTRO!$E$49="","",ROUND($D137*INTRO!$E$49,0)) -> 38164 | G137: =IF(INTRO!$E$50="","",ROUND($D137*INTRO!$E$50,0)) -> 72088 | H137: 0 | I137: 4 | J137: 2 | K137: 2 | L137: 0 | M137: =IF(INTRO!$E$37="Endemic",IF($H137>0,IF($H137=4,"Unknown",IF($H137=99,"Stopped",$D137)),0),"Not required") -> 0 | N137: =IF(INTRO!$E$39="Endemic", IF($I137>0, IF($I137=4,"Unknown",IF($I137=99,"Stopped",$D137)), 0),"Not required") -> Unknown | O137: =IF(INTRO!$E$41="Endemic", IF(AND($J137>1,$J137<5), IF($J137=4, "Unknown", E137+F137), 0),"Not required") -> 60050 | P137: =IF(INTRO!$E$43="Endemic", IF(AND($K137>0,$K137<5), IF($K137=4,"Unknown", IF($K137=1, $F137*0.33, IF($K137=2, $F137*0.5+$G137*0.2, SUM(F137:G137)))), 0),"Not required") -> 33499.6 | Q137: 0 | R137: 0 | S137: 1 | T137: 1 | Y137: 2176 | Z137: ALTO ZAMBEZE | AB137: TRUE | AC137: Moxico | AD137: Alto Zambeze | AE137: 200 | AF137: 0 | AG137: =AF137/AE137*100 -> 0 | AH137: 0 | AI137: TRUE | AK137: 41.07692308 | AL137: 2 | AM137: TRUE | AP137: 68 | AQ137: 12.61538462 | AR137: 3 | AS137: FALSE | AT137: 2 | AU137: TRUE | AY137: =_xlfn.XLOOKUP(Y137,[1]COUNTRY_INFO!$W$9:$W$172,[1]COUNTRY_INFO!$T$9:$T$172) -> 0 | AZ137: =_xlfn.XLOOKUP(Y137,[2]DISTRICT!$AJ$9:$AJ$172,[2]DISTRICT!$AH$9:$AH$172) -> 0 | BA137: 0
A138: =IF(INTRO!$E$33<>0,INTRO!$E$33, " ") -> ANGOLA | B138: MOXICO | C138: CAMANONGUE | D138: 42142.83104 | E138: =IF(INTRO!$E$48="","",ROUND($D138*INTRO!$E$48,0)) -> 6743 | F138: =IF(INTRO!$E$49="","",ROUND($D138*INTRO!$E$49,0)) -> 11758 | G138: =IF(INTRO!$E$50="","",ROUND($D138*INTRO!$E$50,0)) -> 22209 | H138: 0 | I138: 1 | J138: 2 | K138: 0 | L138: 0 | M138: =IF(INTRO!$E$37="Endemic",IF($H138>0,IF($H138=4,"Unknown",IF($H138=99,"Stopped",$D138)),0),"Not required") -> 0 | N138: =IF(INTRO!$E$39="Endemic", IF($I138>0, IF($I138=4,"Unknown",IF($I138=99,"Stopped",$D138)), 0),"Not required") -> 42142.83104 | O138: =IF(INTRO!$E$41="Endemic", IF(AND($J138>1,$J138<5), IF($J138=4, "Unknown", E138+F138), 0),"Not required") -> 18501 | P138: =IF(INTRO!$E$43="Endemic", IF(AND($K138>0,$K138<5), IF($K138=4,"Unknown", IF($K138=1, $F138*0.33, IF($K138=2, $F138*0.5+$G138*0.2, SUM(F138:G138)))), 0),"Not required") -> 0 | Q138: 0 | R138: 1 | S138: 1 | T138: 0 | Y138: 2177 | Z138: CAMANONGUE | AB138: TRUE | AC138: Moxico | AD138: Camanongue | AE138: 200 | AF138: 0 | AG138: 0 | AH138: 0 | AI138: =AH138=H138 -> TRUE | AK138: 28 | AL138: 2 | AM138: =AL138=J138 -> TRUE | AP138: 0 | AQ138: 0 | AR138: 0 | AS138: =AR138=K138 -> TRUE | AT138: 0 | AU138: =AT138=K138 -> TRUE | AY138: =_xlfn.XLOOKUP(Y138,[1]COUNTRY_INFO!$W$9:$W$172,[1]COUNTRY_INFO!$T$9:$T$172) -> 0 | AZ138: =_xlfn.XLOOKUP(Y138,[2]DISTRICT!$AJ$9:$AJ$172,[2]DISTRICT!$AH$9:$AH$172) -> 0 | BA138: =AY138+AZ138 -> 0
A139: =IF(INTRO!$E$33<>0,INTRO!$E$33, " ") -> ANGOLA | B139: MOXICO | C139: LEUA | D139: 40034.06135 | E139: =IF(INTRO!$E$48="","",ROUND($D139*INTRO!$E$48,0)) -> 6405 | F139: =IF(INTRO!$E$49="","",ROUND($D139*INTRO!$E$49,0)) -> 11170 | G139: =IF(INTRO!$E$50="","",ROUND($D139*INTRO!$E$50,0)) -> 21098 | H139: 0 | I139: 1 | J139: 1 | K139: 0 | L139: 0 | M139: =IF(INTRO!$E$37="Endemic",IF($H139>0,IF($H139=4,"Unknown",IF($H139=99,"Stopped",$D139)),0),"Not required") -> 0 | N139: =IF(INTRO!$E$39="Endemic", IF($I139>0, IF($I139=4,"Unknown",IF($I139=99,"Stopped",$D139)), 0),"Not required") -> 40034.06135 | O139: =IF(INTRO!$E$41="Endemic", IF(AND($J139>1,$J139<5), IF($J139=4, "Unknown", E139+F139), 0),"Not required") -> 0 | P139: =IF(INTRO!$E$43="Endemic", IF(AND($K139>0,$K139<5), IF($K139=4,"Unknown", IF($K139=1, $F139*0.33, IF($K139=2, $F139*0.5+$G139*0.2, SUM(F139:G139)))), 0),"Not required") -> 0 | Q139: 0 | R139: 1 | S139: 0 | T139: 0 | Y139: 2179 | Z139: LEUA | AB139: TRUE | AC139: Moxico | AD139: Leua | AE139: 200 | AF139: 0 | AG139: 0 | AH139: 0 | AI139: TRUE | AK139: 13.5 | AL139: 1 | AM139: TRUE | AP139: 0 | AQ139: 0 | AR139: 0 | AS139: TRUE | AT139: 0 | AU139: TRUE | AY139: =_xlfn.XLOOKUP(Y139,[1]COUNTRY_INFO!$W$9:$W$172,[1]COUNTRY_INFO!$T$9:$T$172) -> 0 | AZ139: =_xlfn.XLOOKUP(Y139,[2]DISTRICT!$AJ$9:$AJ$172,[2]DISTRICT!$AH$9:$AH$172) -> 0 | BA139: 0
A140: =IF(INTRO!$E$33<>0,INTRO!$E$33, " ") -> ANGOLA | B140: MOXICO | C140: LUACANO | D140: 25599.60443 | E140: =IF(INTRO!$E$48="","",ROUND($D140*INTRO!$E$48,0)) -> 4096 | F140: =IF(INTRO!$E$49="","",ROUND($D140*INTRO!$E$49,0)) -> 7142 | G140: =IF(INTRO!$E$50="","",ROUND($D140*INTRO!$E$50,0)) -> 13491 | H140: 0 | I140: 1 | J140: 2 | K140: 0 | L140: 0 | M140: =IF(INTRO!$E$37="Endemic",IF($H140>0,IF($H140=4,"Unknown",IF($H140=99,"Stopped",$D140)),0),"Not required") -> 0 | N140: =IF(INTRO!$E$39="Endemic", IF($I140>0, IF($I140=4,"Unknown",IF($I140=99,"Stopped",$D140)), 0),"Not required") -> 25599.60443 | O140: =IF(INTRO!$E$41="Endemic", IF(AND($J140>1,$J140<5), IF($J140=4, "Unknown", E140+F140), 0),"Not required") -> 11238 | P140: =IF(INTRO!$E$43="Endemic", IF(AND($K140>0,$K140<5), IF($K140=4,"Unknown", IF($K140=1, $F140*0.33, IF($K140=2, $F140*0.5+$G140*0.2, SUM(F140:G140)))), 0),"Not required") -> 0 | Q140: 0 | R140: 1 | S140: 1 | T140: 0 | Y140: 2180 | Z140: LUACANO | AB140: TRUE | AC140: Moxico | AD140: Luacano | AE140: 200 | AF140: 0 | AG140: 0 | AH140: 0 | AI140: TRUE | AK140: 20 | AL140: 2 | AM140: TRUE | AP140: 2 | AQ140: 0.4 | AR140: 1 | AS140: FALSE | AT140: 0 | AU140: TRUE | AY140: =_xlfn.XLOOKUP(Y140,[1]COUNTRY_INFO!$W$9:$W$172,[1]COUNTRY_INFO!$T$9:$T$172) -> 0 | AZ140: =_xlfn.XLOOKUP(Y140,[2]DISTRICT!$AJ$9:$AJ$172,[2]DISTRICT!$AH$9:$AH$172) -> 0 | BA140: 0
A141: =IF(INTRO!$E$33<>0,INTRO!$E$33, " ") -> ANGOLA | B141: MOXICO | C141: LUAU | D141: 110334.6337 | E141: =IF(INTRO!$E$48="","",ROUND($D141*INTRO!$E$48,0)) -> 17654 | F141: =IF(INTRO!$E$49="","",ROUND($D141*INTRO!$E$49,0)) -> 30783 | G141: =IF(INTRO!$E$50="","",ROUND($D141*INTRO!$E$50,0)) -> 58146 | H141: 0 | I141: 4 | J141: 1 | K141: 1 | L141: 0 | M141: =IF(INTRO!$E$37="Endemic",IF($H141>0,IF($H141=4,"Unknown",IF($H141=99,"Stopped",$D141)),0),"Not required") -> 0 | N141: =IF(INTRO!$E$39="Endemic", IF($I141>0, IF($I141=4,"Unknown",IF($I141=99,"Stopped",$D141)), 0),"Not required") -> Unknown | O141: =IF(INTRO!$E$41="Endemic", IF(AND($J141>1,$J141<5), IF($J141=4, "Unknown", E141+F141), 0),"Not required") -> 0 | P141: =IF(INTRO!$E$43="Endemic", IF(AND($K141>0,$K141<5), IF($K141=4,"Unknown", IF($K141=1, $F141*0.33, IF($K141=2, $F141*0.5+$G141*0.2, SUM(F141:G141)))), 0),"Not required") -> 10158.39 | Q141: 0 | R141: 0 | S141: 0 | T141: 1 | Y141: 2181 | Z141: LUAU | AB141: TRUE | AC141: Moxico | AD141: Luau | AE141: 200 | AF141: 0 | AG141: 0 | AH141: 0 | AI141: TRUE | AK141: 13.2 | AL141: 1 | AM141: TRUE | AP141: 6 | AQ141: 1.6 | AR141: 1 | AS141: TRUE | AT141: 1 | AU141: TRUE | AY141: =_xlfn.XLOOKUP(Y141,[1]COUNTRY_INFO!$W$9:$W$172,[1]COUNTRY_INFO!$T$9:$T$172) -> 0 | AZ141: =_xlfn.XLOOKUP(Y141,[2]DISTRICT!$AJ$9:$AJ$172,[2]DISTRICT!$AH$9:$AH$172) -> 0 | BA141: 0
A142: =IF(INTRO!$E$33<>0,INTRO!$E$33, " ") -> ANGOLA | B142: MOXICO | C142: LUCHAZES | D142: 17824.9001 | E142: =IF(INTRO!$E$48="","",ROUND($D142*INTRO!$E$48,0)) -> 2852 | F142: =IF(INTRO!$E$49="","",ROUND($D142*INTRO!$E$49,0)) -> 4973 | G142: =IF(INTRO!$E$50="","",ROUND($D142*INTRO!$E$50,0)) -> 9394 | H142: 0 | I142: 4 | J142: 2 | K142: 1 | L142: 0 | M142: =IF(INTRO!$E$37="Endemic",IF($H142>0,IF($H142=4,"Unknown",IF($H142=99,"Stopped",$D142)),0),"Not required") -> 0 | N142: =IF(INTRO!$E$39="Endemic", IF($I142>0, IF($I142=4,"Unknown",IF($I142=99,"Stopped",$D142)), 0),"Not required") -> Unknown | O142: =IF(INTRO!$E$41="Endemic", IF(AND($J142>1,$J142<5), IF($J142=4, "Unknown", E142+F142), 0),"Not required") -> 7825 | P142: =IF(INTRO!$E$43="Endemic", IF(AND($K142>0,$K142<5), IF($K142=4,"Unknown", IF($K142=1, $F142*0.33, IF($K142=2, $F142*0.5+$G142*0.2, SUM(F142:G142)))), 0),"Not required") -> 1641.09 | Q142: 0 | R142: 0 | S142: 1 | T142: 1 | Y142: 2183 | Z142: LUCHAZES | AB142: TRUE | AC142: Moxico | AD142: Luchazes | AE142: 200 | AF142: 0 | AG142: 0 | AH142: 0 | AI142: TRUE | AK142: 45.66666667 | AL142: 2 | AM142: TRUE | AP142: 4 | AQ142: 1.333333333 | AR142: 1 | AS142: TRUE | AT142: 1 | AU142: TRUE | AY142: =_xlfn.XLOOKUP(Y142,[1]COUNTRY_INFO!$W$9:$W$172,[1]COUNTRY_INFO!$T$9:$T$172) -> 0 | AZ142: =_xlfn.XLOOKUP(Y142,[2]DISTRICT!$AJ$9:$AJ$172,[2]DISTRICT!$AH$9:$AH$172) -> 0 | BA142: 0
A143: =IF(INTRO!$E$33<>0,INTRO!$E$33, " ") -> ANGOLA | B143: MOXICO | C143: BUNDAS (LUMBALA NGUIMBO) | D143: 85719.72968 | E143: =IF(INTRO!$E$48="","",ROUND($D143*INTRO!$E$48,0)) -> 13715 | F143: =IF(INTRO!$E$49="","",ROUND($D143*INTRO!$E$49,0)) -> 23916 | G143: =IF(INTRO!$E$50="","",ROUND($D143*INTRO!$E$50,0)) -> 45174 | H143: 0 | I143: 4 | J143: 2 | K143: 1 | L143: 0 | M143: =IF(INTRO!$E$37="Endemic",IF($H143>0,IF($H143=4,"Unknown",IF($H143=99,"Stopped",$D143)),0),"Not required") -> 0 | N143: =IF(INTRO!$E$39="Endemic", IF($I143>0, IF($I143=4,"Unknown",IF($I143=99,"Stopped",$D143)), 0),"Not required") -> Unknown | O143: =IF(INTRO!$E$41="Endemic", IF(AND($J143>1,$J143<5), IF($J143=4, "Unknown", E143+F143), 0),"Not required") -> 37631 | P143: =IF(INTRO!$E$43="Endemic", IF(AND($K143>0,$K143<5), IF($K143=4,"Unknown", IF($K143=1, $F143*0.33, IF($K143=2, $F143*0.5+$G143*0.2, SUM(F143:G143)))), 0),"Not required") -> 7892.28 | Q143: 0 | R143: 0 | S143: 1 | T143: 1 | Y143: 2182 | Z143: LUMBALA NGUIMBO | AB143: TRUE | AC143: Moxico | AD143: Bundas (Lumbala Nguimbo) | AE143: 200 | AF143: 1 | AG143: 0.5 | AH143: 0 | AI143: TRUE | AK143: 20.66666667 | AL143: 2 | AM143: TRUE | AP143: 24 | AQ143: 4.666666667 | AR143: 2 | AS143: FALSE | AT143: 1 | AU143: TRUE | AY143: =_xlfn.XLOOKUP(Y143,[1]COUNTRY_INFO!$W$9:$W$172,[1]COUNTRY_INFO!$T$9:$T$172) -> 0 | AZ143: =_xlfn.XLOOKUP(Y143,[2]DISTRICT!$AJ$9:$AJ$172,[2]DISTRICT!$AH$9:$AH$172) -> 0 | BA143: 0
A144: =IF(INTRO!$E$33<>0,INTRO!$E$33, " ") -> ANGOLA | B144: MOXICO | C144: CAMEIA (LUMEJE) | D144: 36357.06515 | E144: =IF(INTRO!$E$48="","",ROUND($D144*INTRO!$E$48,0)) -> 5817 | F144: =IF(INTRO!$E$49="","",ROUND($D144*INTRO!$E$49,0)) -> 10144 | G144: =IF(INTRO!$E$50="","",ROUND($D144*INTRO!$E$50,0)) -> 19160 | H144: 0 | I144: 4 | J144: 1 | K144: 1 | L144: 0 | M144: =IF(INTRO!$E$37="Endemic",IF($H144>0,IF($H144=4,"Unknown",IF($H144=99,"Stopped",$D144)),0),"Not required") -> 0 | N144: =IF(INTRO!$E$39="Endemic", IF($I144>0, IF($I144=4,"Unknown",IF($I144=99,"Stopped",$D144)), 0),"Not required") -> Unknown | O144: =IF(INTRO!$E$41="Endemic", IF(AND($J144>1,$J144<5), IF($J144=4, "Unknown", E144+F144), 0),"Not required") -> 0 | P144: =IF(INTRO!$E$43="Endemic", IF(AND($K144>0,$K144<5), IF($K144=4,"Unknown", IF($K144=1, $F144*0.33, IF($K144=2, $F144*0.5+$G144*0.2, SUM(F144:G144)))), 0),"Not required") -> 3347.52 | Q144: 0 | R144: 0 | S144: 0 | T144: 1 | Y144: 2220 | Z144: LUMEJE | AB144: FALSE | AC144: Moxico | AD144: Lumeje | AE144: 200 | AF144: 0 | AG144: 0 | AH144: 0 | AI144: TRUE | AK144: 19.6 | AL144: 1 | AM144: TRUE | AP144: 8 | AQ144: 1.6 | AR144: 1 | AS144: TRUE | AT144: 1 | AU144: TRUE | AY144: =_xlfn.XLOOKUP(Y144,[1]COUNTRY_INFO!$W$9:$W$172,[1]COUNTRY_INFO!$T$9:$T$172) -> 0 | AZ144: =_xlfn.XLOOKUP(Y144,[2]DISTRICT!$AJ$9:$AJ$172,[2]DISTRICT!$AH$9:$AH$172) -> 0 | BA144: 0
A145: =IF(INTRO!$E$33<>0,INTRO!$E$33, " ") -> ANGOLA | B145: MOXICO | C145: MOXICO/LUENA | D145: 440847.4873 | E145: =IF(INTRO!$E$48="","",ROUND($D145*INTRO!$E$48,0)) -> 70536 | F145: =IF(INTRO!$E$49="","",ROUND($D145*INTRO!$E$49,0)) -> 122996 | G145: =IF(INTRO!$E$50="","",ROUND($D145*INTRO!$E$50,0)) -> 232327 | H145: 0 | I145: 1 | J145: 2 | K145: 1 | L145: 0 | M145: =IF(INTRO!$E$37="Endemic",IF($H145>0,IF($H145=4,"Unknown",IF($H145=99,"Stopped",$D145)),0),"Not required") -> 0 | N145: =IF(INTRO!$E$39="Endemic", IF($I145>0, IF($I145=4,"Unknown",IF($I145=99,"Stopped",$D145)), 0),"Not required") -> 440847.4873 | O145: =IF(INTRO!$E$41="Endemic", IF(AND($J145>1,$J145<5), IF($J145=4, "Unknown", E145+F145), 0),"Not required") -> 193532 | P145: =IF(INTRO!$E$43="Endemic", IF(AND($K145>0,$K145<5), IF($K145=4,"Unknown", IF($K145=1, $F145*0.33, IF($K145=2, $F145*0.5+$G145*0.2, SUM(F145:G145)))), 0),"Not required") -> 40588.68 | Q145: 0 | R145: 1 | S145: 1 | T145: 1 | Y145: 2184 | Z145: MOXICO / LUENA | AB145: FALSE | AC145: Moxico | AD145: Moxico | AE145: 200 | AF145: 0 | AG145: 0 | AH145: 0 | AI145: TRUE | AK145: 23.5 | AL145: 2 | AM145: TRUE | AP145: 6 | AQ145: 1.25 | AR145: 1 | AS145: TRUE | AT145: 1 | AU145: TRUE | AY145: =_xlfn.XLOOKUP(Y145,[1]COUNTRY_INFO!$W$9:$W$172,[1]COUNTRY_INFO!$T$9:$T$172) -> 0 | AZ145: =_xlfn.XLOOKUP(Y145,[2]DISTRICT!$AJ$9:$AJ$172,[2]DISTRICT!$AH$9:$AH$172) -> 0 | BA145: 0
A146: =IF(INTRO!$E$33<>0,INTRO!$E$33, " ") -> ANGOLA | B146: NAMIBE | C146: BIBALA | D146: 81957.47542 | E146: =IF(INTRO!$E$48="","",ROUND($D146*INTRO!$E$48,0)) -> 13113 | F146: =IF(INTRO!$E$49="","",ROUND($D146*INTRO!$E$49,0)) -> 22866 | G146: =IF(INTRO!$E$50="","",ROUND($D146*INTRO!$E$50,0)) -> 43192 | H146: 0 | I146: 4 | J146: 1 | K146: 2 | L146: 0 | M146: =IF(INTRO!$E$37="Endemic",IF($H146>0,IF($H146=4,"Unknown",IF($H146=99,"Stopped",$D146)),0),"Not required") -> 0 | N146: =IF(INTRO!$E$39="Endemic", IF($I146>0, IF($I146=4,"Unknown",IF($I146=99,"Stopped",$D146)), 0),"Not required") -> Unknown | O146: =IF(INTRO!$E$41="Endemic", IF(AND($J146>1,$J146<5), IF($J146=4, "Unknown", E146+F146), 0),"Not required") -> 0 | P146: =IF(INTRO!$E$43="Endemic", IF(AND($K146>0,$K146<5), IF($K146=4,"Unknown", IF($K146=1, $F146*0.33, IF($K146=2, $F146*0.5+$G146*0.2, SUM(F146:G146)))), 0),"Not required") -> 20071.4 | Q146: 0 | R146: 0 | S146: 0 | T146: 1 | Y146: 2185 | Z146: BIBALA | AB146: TRUE | AC146: Namibe | AD146: Bibala | AE146: 297 | AF146: 0 | AG146: 0 | AH146: 0 | AI146: TRUE | AK146: 1.5 | AL146: 1 | AM146: TRUE | AP146: 72 | AQ146: 26 | AR146: 3 | AS146: FALSE | AT146: 2 | AU146: TRUE | AY146: =_xlfn.XLOOKUP(Y146,[1]COUNTRY_INFO!$W$9:$W$172,[1]COUNTRY_INFO!$T$9:$T$172) -> 0 | AZ146: =_xlfn.XLOOKUP(Y146,[2]DISTRICT!$AJ$9:$AJ$172,[2]DISTRICT!$AH$9:$AH$172) -> 0 | BA146: 0
A147: =IF(INTRO!$E$33<>0,INTRO!$E$33, " ") -> ANGOLA | B147: NAMIBE | C147: CAMUCUIO | D147: 63972.79883 | E147: =IF(INTRO!$E$48="","",ROUND($D147*INTRO!$E$48,0)) -> 10236 | F147: =IF(INTRO!$E$49="","",ROUND($D147*INTRO!$E$49,0)) -> 17848 | G147: =IF(INTRO!$E$50="","",ROUND($D147*INTRO!$E$50,0)) -> 33714 | H147: 0 | I147: 4 | J147: 1 | K147: 2 | L147: 0 | M147: =IF(INTRO!$E$37="Endemic",IF($H147>0,IF($H147=4,"Unknown",IF($H147=99,"Stopped",$D147)),0),"Not required") -> 0 | N147: =IF(INTRO!$E$39="Endemic", IF($I147>0, IF($I147=4,"Unknown",IF($I147=99,"Stopped",$D147)), 0),"Not required") -> Unknown | O147: =IF(INTRO!$E$41="Endemic", IF(AND($J147>1,$J147<5), IF($J147=4, "Unknown", E147+F147), 0),"Not required") -> 0 | P147: =IF(INTRO!$E$43="Endemic", IF(AND($K147>0,$K147<5), IF($K147=4,"Unknown", IF($K147=1, $F147*0.33, IF($K147=2, $F147*0.5+$G147*0.2, SUM(F147:G147)))), 0),"Not required") -> 15666.8 | Q147: 0 | R147: 0 | S147: 0 | T147: 1 | Y147: 2186 | Z147: CAMUCUIO | AB147: TRUE | AC147: Namibe | AD147: Camucuio | AE147: 100 | AF147: 0 | AG147: 0 | AH147: 0 | AI147: TRUE | AK147: 1.6 | AL147: 1 | AM147: TRUE | AP147: 70 | AQ147: 18.8 | AR147: 3 | AS147: FALSE | AT147: 2 | AU147: TRUE | AY147: =_xlfn.XLOOKUP(Y147,[1]COUNTRY_INFO!$W$9:$W$172,[1]COUNTRY_INFO!$T$9:$T$172) -> 0 | AZ147: =_xlfn.XLOOKUP(Y147,[2]DISTRICT!$AJ$9:$AJ$172,[2]DISTRICT!$AH$9:$AH$172) -> 0 | BA147: 0
A148: =IF(INTRO!$E$33<>0,INTRO!$E$33, " ") -> ANGOLA | B148: NAMIBE | C148: MOÇAMEDES | D148: 371691.3668 | E148: =IF(INTRO!$E$48="","",ROUND($D148*INTRO!$E$48,0)) -> 59471 | F148: =IF(INTRO!$E$49="","",ROUND($D148*INTRO!$E$49,0)) -> 103702 | G148: =IF(INTRO!$E$50="","",ROUND($D148*INTRO!$E$50,0)) -> 195881 | H148: 0 | I148: 4 | J148: 0 | K148: 1 | L148: 0 | M148: =IF(INTRO!$E$37="Endemic",IF($H148>0,IF($H148=4,"Unknown",IF($H148=99,"Stopped",$D148)),0),"Not required") -> 0 | N148: =IF(INTRO!$E$39="Endemic", IF($I148>0, IF($I148=4,"Unknown",IF($I148=99,"Stopped",$D148)), 0),"Not required") -> Unknown | O148: =IF(INTRO!$E$41="Endemic", IF(AND($J148>1,$J148<5), IF($J148=4, "Unknown", E148+F148), 0),"Not required") -> 0 | P148: =IF(INTRO!$E$43="Endemic", IF(AND($K148>0,$K148<5), IF($K148=4,"Unknown", IF($K148=1, $F148*0.33, IF($K148=2, $F148*0.5+$G148*0.2, SUM(F148:G148)))), 0),"Not required") -> 34221.66 | Q148: 0 | R148: 0 | S148: 0 | T148: 1 | Y148: 2187 | Z148: NAMIBE | AB148: FALSE | AC148: Namibe | AD148: Namibe Sede | AE148: 161 | AF148: 0 | AG148: 0 | AH148: 0 | AI148: TRUE | AK148: 0.4 | AL148: 0 | AM148: TRUE | AP148: 10 | AQ148: 2.4 | AR148: 2 | AS148: FALSE | AT148: 1 | AU148: TRUE | AY148: =_xlfn.XLOOKUP(Y148,[1]COUNTRY_INFO!$W$9:$W$172,[1]COUNTRY_INFO!$T$9:$T$172) -> 0 | AZ148: =_xlfn.XLOOKUP(Y148,[2]DISTRICT!$AJ$9:$AJ$172,[2]DISTRICT!$AH$9:$AH$172) -> 0 | BA148: 0
A149: =IF(INTRO!$E$33<>0,INTRO!$E$33, " ") -> ANGOLA | B149: NAMIBE | C149: TOMBWA | D149: 70509.75379 | E149: =IF(INTRO!$E$48="","",ROUND($D149*INTRO!$E$48,0)) -> 11282 | F149: =IF(INTRO!$E$49="","",ROUND($D149*INTRO!$E$49,0)) -> 19672 | G149: =IF(INTRO!$E$50="","",ROUND($D149*INTRO!$E$50,0)) -> 37159 | H149: 0 | I149: 4 | J149: 1 | K149: 1 | L149: 0 | M149: =IF(INTRO!$E$37="Endemic",IF($H149>0,IF($H149=4,"Unknown",IF($H149=99,"Stopped",$D149)),0),"Not required") -> 0 | N149: =IF(INTRO!$E$39="Endemic", IF($I149>0, IF($I149=4,"Unknown",IF($I149=99,"Stopped",$D149)), 0),"Not required") -> Unknown | O149: =IF(INTRO!$E$41="Endemic", IF(AND($J149>1,$J149<5), IF($J149=4, "Unknown", E149+F149), 0),"Not required") -> 0 | P149: =IF(INTRO!$E$43="Endemic", IF(AND($K149>0,$K149<5), IF($K149=4,"Unknown", IF($K149=1, $F149*0.33, IF($K149=2, $F149*0.5+$G149*0.2, SUM(F149:G149)))), 0),"Not required") -> 6491.76 | Q149: 0 | R149: 0 | S149: 0 | T149: 1 | Y149: 2188 | Z149: TOMBUA | AB149: TRUE | AC149: Namibe | AD149: Tombwa | AE149: 200 | AF149: 0 | AG149: 0 | AH149: 0 | AI149: TRUE | AK149: 4 | AL149: 1 | AM149: TRUE | AP149: 4 | AQ149: 2 | AR149: 1 | AS149: TRUE | AT149: 1 | AU149: TRUE | AY149: =_xlfn.XLOOKUP(Y149,[1]COUNTRY_INFO!$W$9:$W$172,[1]COUNTRY_INFO!$T$9:$T$172) -> 0 | AZ149: =_xlfn.XLOOKUP(Y149,[2]DISTRICT!$AJ$9:$AJ$172,[2]DISTRICT!$AH$9:$AH$172) -> 0 | BA149: 0
A150: =IF(INTRO!$E$33<>0,INTRO!$E$33, " ") -> ANGOLA | B150: NAMIBE | C150: VIREI | D150: 41223.60518 | E150: =IF(INTRO!$E$48="","",ROUND($D150*INTRO!$E$48,0)) -> 6596 | F150: =IF(INTRO!$E$49="","",ROUND($D150*INTRO!$E$49,0)) -> 11501 | G150: =IF(INTRO!$E$50="","",ROUND($D150*INTRO!$E$50,0)) -> 21725 | H150: 0 | I150: 4 | J150: 1 | K150: 0 | L150: 0 | M150: =IF(INTRO!$E$37="Endemic",IF($H150>0,IF($H150=4,"Unknown",IF($H150=99,"Stopped",$D150)),0),"Not required") -> 0 | N150: =IF(INTRO!$E$39="Endemic", IF($I150>0, IF($I150=4,"Unknown",IF($I150=99,"Stopped",$D150)), 0),"Not required") -> Unknown | O150: =IF(INTRO!$E$41="Endemic", IF(AND($J150>1,$J150<5), IF($J150=4, "Unknown", E150+F150), 0),"Not required") -> 0 | P150: =IF(INTRO!$E$43="Endemic", IF(AND($K150>0,$K150<5), IF($K150=4,"Unknown", IF($K150=1, $F150*0.33, IF($K150=2, $F150*0.5+$G150*0.2, SUM(F150:G150)))), 0),"Not required") -> 0 | Q150: 0 | R150: 0 | S150: 0 | T150: 0 | Y150: 2189 | Z150: VIREI | AB150: TRUE | AC150: Namibe | AD150: Virei | AE150: 118 | AF150: 0 | AG150: 0 | AH150: 0 | AI150: TRUE | AK150: 1.5 | AL150: 1 | AM150: TRUE | AP150: 2 | AQ150: 0.5 | AR150: 1 | AS150: FALSE | AT150: 0 | AU150: TRUE | AY150: =_xlfn.XLOOKUP(Y150,[1]COUNTRY_INFO!$W$9:$W$172,[1]COUNTRY_INFO!$T$9:$T$172) -> 0 | AZ150: =_xlfn.XLOOKUP(Y150,[2]DISTRICT!$AJ$9:$AJ$172,[2]DISTRICT!$AH$9:$AH$172) -> 0 | BA150: 0
A151: =IF(INTRO!$E$33<>0,INTRO!$E$33, " ") -> ANGOLA | B151: UIGE | C151: AMBUILA | D151: 22152.95859 | E151: =IF(INTRO!$E$48="","",ROUND($D151*INTRO!$E$48,0)) -> 3544 | F151: =IF(INTRO!$E$49="","",ROUND($D151*INTRO!$E$49,0)) -> 6181 | G151: =IF(INTRO!$E$50="","",ROUND($D151*INTRO!$E$50,0)) -> 11675 | H151: 1 | I151: 4 | J151: 0 | K151: 2 | L151: 1 | M151: =IF(INTRO!$E$37="Endemic",IF($H151>0,IF($H151=4,"Unknown",IF($H151=99,"Stopped",$D151)),0),"Not required") -> 22152.95859 | N151: =IF(INTRO!$E$39="Endemic", IF($I151>0, IF($I151=4,"Unknown",IF($I151=99,"Stopped",$D151)), 0),"Not required") -> Unknown | O151: =IF(INTRO!$E$41="Endemic", IF(AND($J151>1,$J151<5), IF($J151=4, "Unknown", E151+F151), 0),"Not required") -> 0 | P151: =IF(INTRO!$E$43="Endemic", IF(AND($K151>0,$K151<5), IF($K151=4,"Unknown", IF($K151=1, $F151*0.33, IF($K151=2, $F151*0.5+$G151*0.2, SUM(F151:G151)))), 0),"Not required") -> 5425.5 | Q151: 1 | R151: 0 | S151: 0 | T151: 0 | W151: Yes | X151: Yes | Y151: 2190 | Z151: AMBUILA | AB151: TRUE | AC151: Uige | AD151: Ambuila | AE151: 200 | AF151: 3 | AG151: 1.5 | AH151: 1 | AI151: TRUE | AK151: 0 | AL151: 0 | AM151: TRUE | AP151: 43.33333333 | AQ151: 16.85185185 | AR151: 2 | AS151: TRUE | AT151: 2 | AU151: TRUE | AY151: =_xlfn.XLOOKUP(Y151,[1]COUNTRY_INFO!$W$9:$W$172,[1]COUNTRY_INFO!$T$9:$T$172) -> 1 | AZ151: =_xlfn.XLOOKUP(Y151,[2]DISTRICT!$AJ$9:$AJ$172,[2]DISTRICT!$AH$9:$AH$172) -> 2887.5 | BA151: 2888.5
A152: =IF(INTRO!$E$33<>0,INTRO!$E$33, " ") -> ANGOLA | B152: UIGE | C152: BEMBE | D152: 40294.18773 | E152: =IF(INTRO!$E$48="","",ROUND($D152*INTRO!$E$48,0)) -> 6447 | F152: =IF(INTRO!$E$49="","",ROUND($D152*INTRO!$E$49,0)) -> 11242 | G152: =IF(INTRO!$E$50="","",ROUND($D152*INTRO!$E$50,0)) -> 21235 | H152: 0 | I152: 4 | J152: 1 | K152: 2 | L152: 0 | M152: =IF(INTRO!$E$37="Endemic",IF($H152>0,IF($H152=4,"Unknown",IF($H152=99,"Stopped",$D152)),0),"Not required") -> 0 | N152: =IF(INTRO!$E$39="Endemic", IF($I152>0, IF($I152=4,"Unknown",IF($I152=99,"Stopped",$D152)), 0),"Not required") -> Unknown | O152: =IF(INTRO!$E$41="Endemic", IF(AND($J152>1,$J152<5), IF($J152=4, "Unknown", E152+F152), 0),"Not required") -> 0 | P152: =IF(INTRO!$E$43="Endemic", IF(AND($K152>0,$K152<5), IF($K152=4,"Unknown", IF($K152=1, $F152*0.33, IF($K152=2, $F152*0.5+$G152*0.2, SUM(F152:G152)))), 0),"Not required") -> 9868 | Q152: 0 | R152: 0 | S152: 0 | T152: 0 | W152: Yes | X152: Yes | Y152: 2191 | Z152: BEMBE | AB152: TRUE | AC152: Uige | AD152: Bembe | AE152: 201 | AF152: 1 | AG152: 0.4975124378 | AH152: 0 | AI152: TRUE | AK152: 6.666666667 | AL152: 1 | AM152: TRUE | AP152: 83.33333333 | AQ152: 25.77777778 | AR152: 3 | AS152: FALSE | AT152: 2 | AU152: TRUE | AY152: =_xlfn.XLOOKUP(Y152,[1]COUNTRY_INFO!$W$9:$W$172,[1]COUNTRY_INFO!$T$9:$T$172) -> 1 | AZ152: =_xlfn.XLOOKUP(Y152,[2]DISTRICT!$AJ$9:$AJ$172,[2]DISTRICT!$AH$9:$AH$172) -> 5252.5 | BA152: 5253.5
A153: =IF(INTRO!$E$33<>0,INTRO!$E$33, " ") -> ANGOLA | B153: UIGE | C153: BUENGAS | D153: 69998.02945 | E153: =IF(INTRO!$E$48="","",ROUND($D153*INTRO!$E$48,0)) -> 11200 | F153: =IF(INTRO!$E$49="","",ROUND($D153*INTRO!$E$49,0)) -> 19529 | G153: =IF(INTRO!$E$50="","",ROUND($D153*INTRO!$E$50,0)) -> 36889 | H153: 0 | I153: 4 | J153: 1 | K153: 1 | L153: 0 | M153: =IF(INTRO!$E$37="Endemic",IF($H153>0,IF($H153=4,"Unknown",IF($H153=99,"Stopped",$D153)),0),"Not required") -> 0 | N153: =IF(INTRO!$E$39="Endemic", IF($I153>0, IF($I153=4,"Unknown",IF($I153=99,"Stopped",$D153)), 0),"Not required") -> Unknown | O153: =IF(INTRO!$E$41="Endemic", IF(AND($J153>1,$J153<5), IF($J153=4, "Unknown", E153+F153), 0),"Not required") -> 0 | P153: =IF(INTRO!$E$43="Endemic", IF(AND($K153>0,$K153<5), IF($K153=4,"Unknown", IF($K153=1, $F153*0.33, IF($K153=2, $F153*0.5+$G153*0.2, SUM(F153:G153)))), 0),"Not required") -> 6444.57 | Q153: 0 | R153: 0 | S153: 0 | T153: 0 | W153: Yes | X153: Yes | Y153: 2192 | Z153: BUENGAS | AB153: TRUE | AC153: Uige | AD153: Buengas | AE153: 193 | AF153: 0 | AG153: 0 | AH153: 0 | AI153: TRUE | AK153: 1.666666667 | AL153: 1 | AM153: TRUE | AP153: 23.33333333 | AQ153: 4.252873563 | AR153: 2 | AS153: FALSE | AT153: 1 | AU153: TRUE | AY153: =_xlfn.XLOOKUP(Y153,[1]COUNTRY_INFO!$W$9:$W$172,[1]COUNTRY_INFO!$T$9:$T$172) -> 1 | AZ153: =_xlfn.XLOOKUP(Y153,[2]DISTRICT!$AJ$9:$AJ$172,[2]DISTRICT!$AH$9:$AH$172) -> 6021.84 | BA153: 6022.84
A154: =IF(INTRO!$E$33<>0,INTRO!$E$33, " ") -> ANGOLA | B154: UIGE | C154: BUNGO | D154: 45427.9619 | E154: =IF(INTRO!$E$48="","",ROUND($D154*INTRO!$E$48,0)) -> 7268 | F154: =IF(INTRO!$E$49="","",ROUND($D154*INTRO!$E$49,0)) -> 12674 | G154: =IF(INTRO!$E$50="","",ROUND($D154*INTRO!$E$50,0)) -> 23941 | H154: 0 | I154: 1 | J154: 0 | K154: 1 | L154: 1 | M154: =IF(INTRO!$E$37="Endemic",IF($H154>0,IF($H154=4,"Unknown",IF($H154=99,"Stopped",$D154)),0),"Not required") -> 0 | N154: =IF(INTRO!$E$39="Endemic", IF($I154>0, IF($I154=4,"Unknown",IF($I154=99,"Stopped",$D154)), 0),"Not required") -> 45427.9619 | O154: =IF(INTRO!$E$41="Endemic", IF(AND($J154>1,$J154<5), IF($J154=4, "Unknown", E154+F154), 0),"Not required") -> 0 | P154: =IF(INTRO!$E$43="Endemic", IF(AND($K154>0,$K154<5), IF($K154=4,"Unknown", IF($K154=1, $F154*0.33, IF($K154=2, $F154*0.5+$G154*0.2, SUM(F154:G154)))), 0),"Not required") -> 4182.42 | Q154: 0 | R154: 1 | S154: 0 | T154: 0 | W154: Yes | X154: Yes | Y154: 2193 | Z154: BUNGO | AB154: TRUE | AC154: Uige | AD154: Bungo | AE154: 151 | AF154: 0 | AG154: 0 | AH154: 0 | AI154: TRUE | AK154: 0 | AL154: 0 | AM154: TRUE | AP154: 20 | AQ154: 9.66873706 | AR154: 2 | AS154: FALSE | AT154: 1 | AU154: TRUE | AY154: =_xlfn.XLOOKUP(Y154,[1]COUNTRY_INFO!$W$9:$W$172,[1]COUNTRY_INFO!$T$9:$T$172) -> 1 | AZ154: =_xlfn.XLOOKUP(Y154,[2]DISTRICT!$AJ$9:$AJ$172,[2]DISTRICT!$AH$9:$AH$172) -> 5921.5 | BA154: 5922.5
A155: =IF(INTRO!$E$33<>0,INTRO!$E$33, " ") -> ANGOLA | B155: UIGE | C155: CANGOLA | D155: 65684.16137 | E155: =IF(INTRO!$E$48="","",ROUND($D155*INTRO!$E$48,0)) -> 10509 | F155: =IF(INTRO!$E$49="","",ROUND($D155*INTRO!$E$49,0)) -> 18326 | G155: =IF(INTRO!$E$50="","",ROUND($D155*INTRO!$E$50,0)) -> 34616 | H155: 0 | I155: 4 | J155: 0 | K155: 4 | L155: 0 | M155: =IF(INTRO!$E$37="Endemic",IF($H155>0,IF($H155=4,"Unknown",IF($H155=99,"Stopped",$D155)),0),"Not required") -> 0 | N155: =IF(INTRO!$E$39="Endemic", IF($I155>0, IF($I155=4,"Unknown",IF($I155=99,"Stopped",$D155)), 0),"Not required") -> Unknown | O155: =IF(INTRO!$E$41="Endemic", IF(AND($J155>1,$J155<5), IF($J155=4, "Unknown", E155+F155), 0),"Not required") -> 0 | P155: =IF(INTRO!$E$43="Endemic", IF(AND($K155>0,$K155<5), IF($K155=4,"Unknown", IF($K155=1, $F155*0.33, IF($K155=2, $F155*0.5+$G155*0.2, SUM(F155:G155)))), 0),"Not required") -> Unknown | Q155: 0 | R155: 0 | S155: 0 | T155: 0 | W155: Yes | X155: Yes | Y155: 2195 | Z155: CANGOLA | AB155: TRUE | AC155: Uige | AD155: Cangola | AE155: 200 | AF155: 0 | AG155: 0 | AH155: 0 | AI155: TRUE | AK155: 0.8333333333 | AL155: 0 | AM155: TRUE | AR155: 4 | AS155: TRUE | AT155: 4 | AU155: TRUE | AY155: =_xlfn.XLOOKUP(Y155,[1]COUNTRY_INFO!$W$9:$W$172,[1]COUNTRY_INFO!$T$9:$T$172) -> 1 | AZ155: =_xlfn.XLOOKUP(Y155,[2]DISTRICT!$AJ$9:$AJ$172,[2]DISTRICT!$AH$9:$AH$172) -> 5650.59 | BA155: 5651.59
A156: =IF(INTRO!$E$33<>0,INTRO!$E$33, " ") -> ANGOLA | B156: UIGE | C156: DAMBA | D156: 81276.58009 | E156: =IF(INTRO!$E$48="","",ROUND($D156*INTRO!$E$48,0)) -> 13004 | F156: =IF(INTRO!$E$49="","",ROUND($D156*INTRO!$E$49,0)) -> 22676 | G156: =IF(INTRO!$E$50="","",ROUND($D156*INTRO!$E$50,0)) -> 42833 | H156: 0 | I156: 4 | J156: 0 | K156: 1 | L156: 0 | M156: =IF(INTRO!$E$37="Endemic",IF($H156>0,IF($H156=4,"Unknown",IF($H156=99,"Stopped",$D156)),0),"Not required") -> 0 | N156: =IF(INTRO!$E$39="Endemic", IF($I156>0, IF($I156=4,"Unknown",IF($I156=99,"Stopped",$D156)), 0),"Not required") -> Unknown | O156: =IF(INTRO!$E$41="Endemic", IF(AND($J156>1,$J156<5), IF($J156=4, "Unknown", E156+F156), 0),"Not required") -> 0 | P156: =IF(INTRO!$E$43="Endemic", IF(AND($K156>0,$K156<5), IF($K156=4,"Unknown", IF($K156=1, $F156*0.33, IF($K156=2, $F156*0.5+$G156*0.2, SUM(F156:G156)))), 0),"Not required") -> 7483.08 | Q156: 0 | R156: 0 | S156: 0 | T156: 0 | W156: Yes | X156: Yes | Y156: 2194 | Z156: DAMBA | AB156: TRUE | AC156: Uige | AD156: Damba | AE156: 200 | AF156: 1 | AG156: 0.5 | AH156: 0 | AI156: TRUE | AK156: 0 | AL156: 0 | AM156: TRUE | AP156: 20 | AQ156: 5.470219436 | AR156: 2 | AS156: FALSE | AT156: 1 | AU156: TRUE | AY156: =_xlfn.XLOOKUP(Y156,[1]COUNTRY_INFO!$W$9:$W$172,[1]COUNTRY_INFO!$T$9:$T$172) -> 1 | AZ156: =_xlfn.XLOOKUP(Y156,[2]DISTRICT!$AJ$9:$AJ$172,[2]DISTRICT!$AH$9:$AH$172) -> 6992.04 | BA156: 6993.04
A157: =IF(INTRO!$E$33<>0,INTRO!$E$33, " ") -> ANGOLA | B157: UIGE | C157: MAQUELA DO ZOMBO | D157: 155715.0143 | E157: =IF(INTRO!$E$48="","",ROUND($D157*INTRO!$E$48,0)) -> 24914 | F157: =IF(INTRO!$E$49="","",ROUND($D157*INTRO!$E$49,0)) -> 43444 | G157: =IF(INTRO!$E$50="","",ROUND($D157*INTRO!$E$50,0)) -> 82062 | H157: 0 | I157: 4 | J157: 0 | K157: 1 | L157: 0 | M157: =IF(INTRO!$E$37="Endemic",IF($H157>0,IF($H157=4,"Unknown",IF($H157=99,"Stopped",$D157)),0),"Not required") -> 0 | N157: =IF(INTRO!$E$39="Endemic", IF($I157>0, IF($I157=4,"Unknown",IF($I157=99,"Stopped",$D157)), 0),"Not required") -> Unknown | O157: =IF(INTRO!$E$41="Endemic", IF(AND($J157>1,$J157<5), IF($J157=4, "Unknown", E157+F157), 0),"Not required") -> 0 | P157: =IF(INTRO!$E$43="Endemic", IF(AND($K157>0,$K157<5), IF($K157=4,"Unknown", IF($K157=1, $F157*0.33, IF($K157=2, $F157*0.5+$G157*0.2, SUM(F157:G157)))), 0),"Not required") -> 14336.52 | Q157: 0 | R157: 0 | S157: 0 | T157: 0 | W157: Yes | X157: Yes | Y157: 2198 | Z157: MAQUELA DO ZOMBO | AB157: FALSE | AC157: Uige | AD157: Maquela de Zombo | AE157: 112 | AF157: 0 | AG157: 0 | AH157: 0 | AI157: TRUE | AK157: 0 | AL157: 0 | AM157: TRUE | AP157: 13.33333333 | AQ157: 5.090311987 | AR157: 2 | AS157: FALSE | AT157: 1 | AU157: TRUE | AY157: =_xlfn.XLOOKUP(Y157,[1]COUNTRY_INFO!$W$9:$W$172,[1]COUNTRY_INFO!$T$9:$T$172) -> 1 | AZ157: =_xlfn.XLOOKUP(Y157,[2]DISTRICT!$AJ$9:$AJ$172,[2]DISTRICT!$AH$9:$AH$172) -> 13396.02 | BA157: 13397.02
A158: =IF(INTRO!$E$33<>0,INTRO!$E$33, " ") -> ANGOLA | B158: UIGE | C158: MILUNGA | D158: 61864.81932 | E158: =IF(INTRO!$E$48="","",ROUND($D158*INTRO!$E$48,0)) -> 9898 | F158: =IF(INTRO!$E$49="","",ROUND($D158*INTRO!$E$49,0)) -> 17260 | G158: =IF(INTRO!$E$50="","",ROUND($D158*INTRO!$E$50,0)) -> 32603 | H158: 0 | I158: 4 | J158: 0 | K158: 1 | L158: 0 | M158: =IF(INTRO!$E$37="Endemic",IF($H158>0,IF($H158=4,"Unknown",IF($H158=99,"Stopped",$D158)),0),"Not required") -> 0 | N158: =IF(INTRO!$E$39="Endemic", IF($I158>0, IF($I158=4,"Unknown",IF($I158=99,"Stopped",$D158)), 0),"Not required") -> Unknown | O158: =IF(INTRO!$E$41="Endemic", IF(AND($J158>1,$J158<5), IF($J158=4, "Unknown", E158+F158), 0),"Not required") -> 0 | P158: =IF(INTRO!$E$43="Endemic", IF(AND($K158>0,$K158<5), IF($K158=4,"Unknown", IF($K158=1, $F158*0.33, IF($K158=2, $F158*0.5+$G158*0.2, SUM(F158:G158)))), 0),"Not required") -> 5695.8 | Q158: 0 | R158: 0 | S158: 0 | T158: 0 | W158: Yes | X158: Yes | Y158: 2199 | Z158: MILUNGA | AB158: TRUE | AC158: Uige | AD158: Milunga | AE158: 148 | AF158: 0 | AG158: 0 | AH158: 0 | AI158: TRUE | AK158: 0 | AL158: 0 | AM158: TRUE | AP158: 10 | AQ158: 4.344827586 | AR158: 2 | AS158: FALSE | AT158: 1 | AU158: TRUE | AY158: =_xlfn.XLOOKUP(Y158,[1]COUNTRY_INFO!$W$9:$W$172,[1]COUNTRY_INFO!$T$9:$T$172) -> 1 | AZ158: =_xlfn.XLOOKUP(Y158,[2]DISTRICT!$AJ$9:$AJ$172,[2]DISTRICT!$AH$9:$AH$172) -> 5322.24 | BA158: 5323.24
A159: =IF(INTRO!$E$33<>0,INTRO!$E$33, " ") -> ANGOLA | B159: UIGE | C159: MUCABA | D159: 53767.76253 | E159: =IF(INTRO!$E$48="","",ROUND($D159*INTRO!$E$48,0)) -> 8603 | F159: =IF(INTRO!$E$49="","",ROUND($D159*INTRO!$E$49,0)) -> 15001 | G159: =IF(INTRO!$E$50="","",ROUND($D159*INTRO!$E$50,0)) -> 28336 | H159: 0 | I159: 4 | J159: 0 | K159: 1 | L159: 0 | M159: =IF(INTRO!$E$37="Endemic",IF($H159>0,IF($H159=4,"Unknown",IF($H159=99,"Stopped",$D159)),0),"Not required") -> 0 | N159: =IF(INTRO!$E$39="Endemic", IF($I159>0, IF($I159=4,"Unknown",IF($I159=99,"Stopped",$D159)), 0),"Not required") -> Unknown | O159: =IF(INTRO!$E$41="Endemic", IF(AND($J159>1,$J159<5), IF($J159=4, "Unknown", E159+F159), 0),"Not required") -> 0 | P159: =IF(INTRO!$E$43="Endemic", IF(AND($K159>0,$K159<5), IF($K159=4,"Unknown", IF($K159=1, $F159*0.33, IF($K159=2, $F159*0.5+$G159*0.2, SUM(F159:G159)))), 0),"Not required") -> 4950.33 | Q159: 0 | R159: 0 | S159: 0 | T159: 0 | W159: Yes | X159: Yes | Y159: 2200 | Z159: MUCABA | AB159: TRUE | AC159: Uige | AD159: Mucaba | AE159: 200 | AF159: 0 | AG159: 0 | AH159: 0 | AI159: TRUE | AK159: 0 | AL159: 0 | AM159: TRUE | AP159: 33.33333333 | AQ159: 8.137651822 | AR159: 2 | AS159: FALSE | AT159: 1 | AU159: TRUE | AY159: =_xlfn.XLOOKUP(Y159,[1]COUNTRY_INFO!$W$9:$W$172,[1]COUNTRY_INFO!$T$9:$T$172) -> 1 | AZ159: =_xlfn.XLOOKUP(Y159,[2]DISTRICT!$AJ$9:$AJ$172,[2]DISTRICT!$AH$9:$AH$172) -> 4625.61 | BA159: 4626.61
A160: =IF(INTRO!$E$33<>0,INTRO!$E$33, " ") -> ANGOLA | B160: UIGE | C160: NEGAGE | D160: 168195.6635 | E160: =IF(INTRO!$E$48="","",ROUND($D160*INTRO!$E$48,0)) -> 26911 | F160: =IF(INTRO!$E$49="","",ROUND($D160*INTRO!$E$49,0)) -> 46927 | G160: =IF(INTRO!$E$50="","",ROUND($D160*INTRO!$E$50,0)) -> 88639 | H160: 0 | I160: 1 | J160: 1 | K160: 2 | L160: 1 | M160: =IF(INTRO!$E$37="Endemic",IF($H160>0,IF($H160=4,"Unknown",IF($H160=99,"Stopped",$D160)),0),"Not required") -> 0 | N160: =IF(INTRO!$E$39="Endemic", IF($I160>0, IF($I160=4,"Unknown",IF($I160=99,"Stopped",$D160)), 0),"Not required") -> 168195.6635 | O160: =IF(INTRO!$E$41="Endemic", IF(AND($J160>1,$J160<5), IF($J160=4, "Unknown", E160+F160), 0),"Not required") -> 0 | P160: =IF(INTRO!$E$43="Endemic", IF(AND($K160>0,$K160<5), IF($K160=4,"Unknown", IF($K160=1, $F160*0.33, IF($K160=2, $F160*0.5+$G160*0.2, SUM(F160:G160)))), 0),"Not required") -> 41191.3 | Q160: 0 | R160: 1 | S160: 0 | T160: 0 | W160: Yes | X160: Yes | Y160: 2201 | Z160: NEGAGE | AB160: TRUE | AC160: Uige | AD160: Negage | AE160: 200 | AF160: 0 | AG160: 0 | AH160: 0 | AI160: TRUE | AK160: 1.111111111 | AL160: 1 | AM160: TRUE | AP160: 26.66666667 | AQ160: 12.19384135 | AR160: 2 | AS160: TRUE | AT160: 2 | AU160: TRUE | AY160: =_xlfn.XLOOKUP(Y160,[1]COUNTRY_INFO!$W$9:$W$172,[1]COUNTRY_INFO!$T$9:$T$172) -> 1 | AZ160: =_xlfn.XLOOKUP(Y160,[2]DISTRICT!$AJ$9:$AJ$172,[2]DISTRICT!$AH$9:$AH$172) -> 21924 | BA160: 21925
A161: =IF(INTRO!$E$33<>0,INTRO!$E$33, " ") -> ANGOLA | B161: UIGE | C161: PURI | D161: 46353.74562 | E161: =IF(INTRO!$E$48="","",ROUND($D161*INTRO!$E$48,0)) -> 7417 | F161: =IF(INTRO!$E$49="","",ROUND($D161*INTRO!$E$49,0)) -> 12933 | G161: =IF(INTRO!$E$50="","",ROUND($D161*INTRO!$E$50,0)) -> 24428 | H161: 1 | I161: 1 | J161: 0 | K161: 1 | L161: 0 | M161: =IF(INTRO!$E$37="Endemic",IF($H161>0,IF($H161=4,"Unknown",IF($H161=99,"Stopped",$D161)),0),"Not required") -> 46353.74562 | N161: =IF(INTRO!$E$39="Endemic", IF($I161>0, IF($I161=4,"Unknown",IF($I161=99,"Stopped",$D161)), 0),"Not required") -> 46353.74562 | O161: =IF(INTRO!$E$41="Endemic", IF(AND($J161>1,$J161<5), IF($J161=4, "Unknown", E161+F161), 0),"Not required") -> 0 | P161: =IF(INTRO!$E$43="Endemic", IF(AND($K161>0,$K161<5), IF($K161=4,"Unknown", IF($K161=1, $F161*0.33, IF($K161=2, $F161*0.5+$G161*0.2, SUM(F161:G161)))), 0),"Not required") -> 4267.89 | Q161: 1 | R161: 1 | S161: 0 | T161: 0 | W161: Yes | X161: Yes | Y161: 2202 | Z161: PURI | AB161: TRUE | AC161: Uige | AD161: Puri | AE161: 157 | AF161: 2 | AG161: 1.27388535 | AH161: 1 | AI161: TRUE | AK161: 0 | AL161: 0 | AM161: TRUE | AP161: 16.66666667 | AQ161: 7.333333333 | AR161: 2 | AS161: FALSE | AT161: 1 | AU161: TRUE | AY161: =_xlfn.XLOOKUP(Y161,[1]COUNTRY_INFO!$W$9:$W$172,[1]COUNTRY_INFO!$T$9:$T$172) -> 1 | AZ161: =_xlfn.XLOOKUP(Y161,[2]DISTRICT!$AJ$9:$AJ$172,[2]DISTRICT!$AH$9:$AH$172) -> 3987.72 | BA161: 3988.72
A162: =IF(INTRO!$E$33<>0,INTRO!$E$33, " ") -> ANGOLA | B162: UIGE | C162: QUIMBELE | D162: 166896.7257 | E162: =IF(INTRO!$E$48="","",ROUND($D162*INTRO!$E$48,0)) -> 26703 | F162: =IF(INTRO!$E$49="","",ROUND($D162*INTRO!$E$49,0)) -> 46564 | G162: =IF(INTRO!$E$50="","",ROUND($D162*INTRO!$E$50,0)) -> 87955 | H162: 0 | I162: 4 | J162: 1 | K162: 1 | L162: 1 | M162: =IF(INTRO!$E$37="Endemic",IF($H162>0,IF($H162=4,"Unknown",IF($H162=99,"Stopped",$D162)),0),"Not required") -> 0 | N162: =IF(INTRO!$E$39="Endemic", IF($I162>0, IF($I162=4,"Unknown",IF($I162=99,"Stopped",$D162)), 0),"Not required") -> Unknown | O162: =IF(INTRO!$E$41="Endemic", IF(AND($J162>1,$J162<5), IF($J162=4, "Unknown", E162+F162), 0),"Not required") -> 0 | P162: =IF(INTRO!$E$43="Endemic", IF(AND($K162>0,$K162<5), IF($K162=4,"Unknown", IF($K162=1, $F162*0.33, IF($K162=2, $F162*0.5+$G162*0.2, SUM(F162:G162)))), 0),"Not required") -> 15366.12 | Q162: 0 | R162: 0 | S162: 0 | T162: 0 | W162: Yes | X162: Yes | Y162: 2196 | Z162: QUIMBELE | AB162: TRUE | AC162: Uige | AD162: Quimbele | AE162: 160 | AF162: 0 | AG162: 0 | AH162: 0 | AI162: TRUE | AK162: 1.333333333 | AL162: 1 | AM162: TRUE | AP162: 20 | AQ162: 5.03968254 | AR162: 2 | AS162: FALSE | AT162: 1 | AU162: TRUE | AY162: =_xlfn.XLOOKUP(Y162,[1]COUNTRY_INFO!$W$9:$W$172,[1]COUNTRY_INFO!$T$9:$T$172) -> 1 | AZ162: =_xlfn.XLOOKUP(Y162,[2]DISTRICT!$AJ$9:$AJ$172,[2]DISTRICT!$AH$9:$AH$172) -> 14357.97 | BA162: 14358.97
A163: =IF(INTRO!$E$33<>0,INTRO!$E$33, " ") -> ANGOLA | B163: UIGE | C163: QUITEXE | D163: 41935.29109 | E163: =IF(INTRO!$E$48="","",ROUND($D163*INTRO!$E$48,0)) -> 6710 | F163: =IF(INTRO!$E$49="","",ROUND($D163*INTRO!$E$49,0)) -> 11700 | G163: =IF(INTRO!$E$50="","",ROUND($D163*INTRO!$E$50,0)) -> 22100 | H163: 1 | I163: 1 | J163: 0 | K163: 1 | L163: 1 | M163: =IF(INTRO!$E$37="Endemic",IF($H163>0,IF($H163=4,"Unknown",IF($H163=99,"Stopped",$D163)),0),"Not required") -> 41935.29109 | N163: =IF(INTRO!$E$39="Endemic", IF($I163>0, IF($I163=4,"Unknown",IF($I163=99,"Stopped",$D163)), 0),"Not required") -> 41935.29109 | O163: =IF(INTRO!$E$41="Endemic", IF(AND($J163>1,$J163<5), IF($J163=4, "Unknown", E163+F163), 0),"Not required") -> 0 | P163: =IF(INTRO!$E$43="Endemic", IF(AND($K163>0,$K163<5), IF($K163=4,"Unknown", IF($K163=1, $F163*0.33, IF($K163=2, $F163*0.5+$G163*0.2, SUM(F163:G163)))), 0),"Not required") -> 3861 | Q163: 1 | R163: 1 | S163: 0 | T163: 0 | W163: Yes | X163: Yes | Y163: 2197 | Z163: QUITEXE | AB163: TRUE | AC163: Uige | AD163: Quitexe | AE163: 200 | AF163: 2 | AG163: 1 | AH163: 1 | AI163: TRUE | AK163: 0 | AL163: 0 | AM163: TRUE | AP163: 26.66666667 | AQ163: 5.925925926 | AR163: 2 | AS163: FALSE | AT163: 1 | AU163: TRUE | AY163: =_xlfn.XLOOKUP(Y163,[1]COUNTRY_INFO!$W$9:$W$172,[1]COUNTRY_INFO!$T$9:$T$172) -> 1 | AZ163: =_xlfn.XLOOKUP(Y163,[2]DISTRICT!$AJ$9:$AJ$172,[2]DISTRICT!$AH$9:$AH$172) -> 3607.56 | BA163: 3608.56
A164: =IF(INTRO!$E$33<>0,INTRO!$E$33, " ") -> ANGOLA | B164: UIGE | C164: SANZA POMBO | D164: 83622.67357 | E164: =IF(INTRO!$E$48="","",ROUND($D164*INTRO!$E$48,0)) -> 13380 | F164: =IF(INTRO!$E$49="","",ROUND($D164*INTRO!$E$49,0)) -> 23331 | G164: =IF(INTRO!$E$50="","",ROUND($D164*INTRO!$E$50,0)) -> 44069 | H164: 0 | I164: 4 | J164: 1 | K164: 1 | L164: 1 | M164: =IF(INTRO!$E$37="Endemic",IF($H164>0,IF($H164=4,"Unknown",IF($H164=99,"Stopped",$D164)),0),"Not required") -> 0 | N164: =IF(INTRO!$E$39="Endemic", IF($I164>0, IF($I164=4,"Unknown",IF($I164=99,"Stopped",$D164)), 0),"Not required") -> Unknown | O164: =IF(INTRO!$E$41="Endemic", IF(AND($J164>1,$J164<5), IF($J164=4, "Unknown", E164+F164), 0),"Not required") -> 0 | P164: =IF(INTRO!$E$43="Endemic", IF(AND($K164>0,$K164<5), IF($K164=4,"Unknown", IF($K164=1, $F164*0.33, IF($K164=2, $F164*0.5+$G164*0.2, SUM(F164:G164)))), 0),"Not required") -> 7699.23 | Q164: 0 | R164: 0 | S164: 0 | T164: 0 | W164: Yes | X164: Yes | Y164: 2203 | Z164: SANZA POMBO | AB164: =AD164=C164 -> TRUE | AC164: Uige | AD164: Sanza Pombo | AE164: 110 | AF164: 1 | AG164: 0.9090909091 | AH164: 0 | AI164: TRUE | AK164: 1.111111111 | AL164: 1 | AM164: TRUE | AP164: 14.81481481 | AQ164: 5.752234994 | AR164: 2 | AS164: FALSE | AT164: 1 | AU164: TRUE | AY164: =_xlfn.XLOOKUP(Y164,[1]COUNTRY_INFO!$W$9:$W$172,[1]COUNTRY_INFO!$T$9:$T$172) -> 1 | AZ164: =_xlfn.XLOOKUP(Y164,[2]DISTRICT!$AJ$9:$AJ$172,[2]DISTRICT!$AH$9:$AH$172) -> 7194 | BA164: 7195
A165: =IF(INTRO!$E$33<>0,INTRO!$E$33, " ") -> ANGOLA | B165: UIGE | C165: SONGO | D165: 75419.73914 | E165: =IF(INTRO!$E$48="","",ROUND($D165*INTRO!$E$48,0)) -> 12067 | F165: =IF(INTRO!$E$49="","",ROUND($D165*INTRO!$E$49,0)) -> 21042 | G165: =IF(INTRO!$E$50="","",ROUND($D165*INTRO!$E$50,0)) -> 39746 | H165: 1 | I165: 1 | J165: 0 | K165: 3 | L165: 1 | M165: =IF(INTRO!$E$37="Endemic",IF($H165>0,IF($H165=4,"Unknown",IF($H165=99,"Stopped",$D165)),0),"Not required") -> 75419.73914 | N165: =IF(INTRO!$E$39="Endemic", IF($I165>0, IF($I165=4,"Unknown",IF($I165=99,"Stopped",$D165)), 0),"Not required") -> 75419.73914 | O165: =IF(INTRO!$E$41="Endemic", IF(AND($J165>1,$J165<5), IF($J165=4, "Unknown", E165+F165), 0),"Not required") -> 0 | P165: =IF(INTRO!$E$43="Endemic", IF(AND($K165>0,$K165<5), IF($K165=4,"Unknown", IF($K165=1, $F165*0.33, IF($K165=2, $F165*0.5+$G165*0.2, SUM(F165:G165)))), 0),"Not required") -> 60788 | Q165: 1 | R165: 1 | S165: 0 | T165: 0 | W165: Yes | X165: Yes | Y165: 2204 | Z165: SONGO | AB165: TRUE | AC165: Uige | AD165: Songo | AE165: 199 | AF165: 4 | AG165: 2.010050251 | AH165: 1 | AI165: TRUE | AK165: 0 | AL165: 0 | AM165: TRUE | AP165: 100 | AQ165: 59.28571429 | AR165: 3 | AS165: TRUE | AT165: 3 | AU165: TRUE | AY165: =_xlfn.XLOOKUP(Y165,[1]COUNTRY_INFO!$W$9:$W$172,[1]COUNTRY_INFO!$T$9:$T$172) -> 1 | AZ165: =_xlfn.XLOOKUP(Y165,[2]DISTRICT!$AJ$9:$AJ$172,[2]DISTRICT!$AH$9:$AH$172) -> 3750 | BA165: 3751
A166: =IF(INTRO!$E$33<>0,INTRO!$E$33, " ") -> ANGOLA | B166: UIGE | C166: UIGE | D166: 634830.6861 | E166: =IF(INTRO!$E$48="","",ROUND($D166*INTRO!$E$48,0)) -> 101573 | F166: =IF(INTRO!$E$49="","",ROUND($D166*INTRO!$E$49,0)) -> 177118 | G166: =IF(INTRO!$E$50="","",ROUND($D166*INTRO!$E$50,0)) -> 334556 | H166: 0 | I166: 4 | J166: 1 | K166: 2 | L166: 1 | M166: =IF(INTRO!$E$37="Endemic",IF($H166>0,IF($H166=4,"Unknown",IF($H166=99,"Stopped",$D166)),0),"Not required") -> 0 | N166: =IF(INTRO!$E$39="Endemic", IF($I166>0, IF($I166=4,"Unknown",IF($I166=99,"Stopped",$D166)), 0),"Not required") -> Unknown | O166: =IF(INTRO!$E$41="Endemic", IF(AND($J166>1,$J166<5), IF($J166=4, "Unknown", E166+F166), 0),"Not required") -> 0 | P166: =IF(INTRO!$E$43="Endemic", IF(AND($K166>0,$K166<5), IF($K166=4,"Unknown", IF($K166=1, $F166*0.33, IF($K166=2, $F166*0.5+$G166*0.2, SUM(F166:G166)))), 0),"Not required") -> 155470.2 | Q166: 0 | R166: 0 | S166: 0 | T166: 0 | W166: Yes | X166: Yes | Y166: 2205 | Z166: UIGE | AB166: TRUE | AC166: Uige | AD166: Uige | AE166: 173 | AF166: 1 | AG166: 0.5780346821 | AH166: 0 | AI166: TRUE | AK166: 2 | AL166: 1 | AM166: TRUE | AP166: 86.66666667 | AQ166: 33.29166667 | AR166: 3 | AS166: FALSE | AT166: 2 | AU166: TRUE | AY166: =_xlfn.XLOOKUP(Y166,[1]COUNTRY_INFO!$W$9:$W$172,[1]COUNTRY_INFO!$T$9:$T$172) -> 1 | AZ166: =_xlfn.XLOOKUP(Y166,[2]DISTRICT!$AJ$9:$AJ$172,[2]DISTRICT!$AH$9:$AH$172) -> 82748 | BA166: 82749
A167: =IF(INTRO!$E$33<>0,INTRO!$E$33, " ") -> ANGOLA | B167: ZAIRE | C167: CUIMBA | D167: 86551.71472 | E167: =IF(INTRO!$E$48="","",ROUND($D167*INTRO!$E$48,0)) -> 13848 | F167: =IF(INTRO!$E$49="","",ROUND($D167*INTRO!$E$49,0)) -> 24148 | G167: =IF(INTRO!$E$50="","",ROUND($D167*INTRO!$E$50,0)) -> 45613 | H167: 0 | I167: 4 | J167: 0 | K167: 2 | L167: 0 | M167: =IF(INTRO!$E$37="Endemic",IF($H167>0,IF($H167=4,"Unknown",IF($H167=99,"Stopped",$D167)),0),"Not required") -> 0 | N167: =IF(INTRO!$E$39="Endemic", IF($I167>0, IF($I167=4,"Unknown",IF($I167=99,"Stopped",$D167)), 0),"Not required") -> Unknown | O167: =IF(INTRO!$E$41="Endemic", IF(AND($J167>1,$J167<5), IF($J167=4, "Unknown", E167+F167), 0),"Not required") -> 0 | P167: =IF(INTRO!$E$43="Endemic", IF(AND($K167>0,$K167<5), IF($K167=4,"Unknown", IF($K167=1, $F167*0.33, IF($K167=2, $F167*0.5+$G167*0.2, SUM(F167:G167)))), 0),"Not required") -> 21196.6 | Q167: 0 | R167: 0 | S167: 0 | T167: 0 | W167: Yes | X167: Yes | Y167: 2206 | Z167: CUIMBA | AB167: TRUE | AC167: Zaire | AD167: Cuimba | AE167: 140 | AF167: 0 | AG167: 0 | AH167: 0 | AI167: TRUE | AK167: 0 | AL167: 0 | AM167: TRUE | AP167: 33.33333333 | AQ167: 18.33333333 | AR167: 2 | AS167: TRUE | AT167: 2 | AU167: TRUE | AY167: =_xlfn.XLOOKUP(Y167,[1]COUNTRY_INFO!$W$9:$W$172,[1]COUNTRY_INFO!$T$9:$T$172) -> 1 | AZ167: =_xlfn.XLOOKUP(Y167,[2]DISTRICT!$AJ$9:$AJ$172,[2]DISTRICT!$AH$9:$AH$172) -> 9992 | BA167: 9993
A168: =IF(INTRO!$E$33<>0,INTRO!$E$33, " ") -> ANGOLA | B168: ZAIRE | C168: MBANZA KONGO | D168: 225564.1376 | E168: =IF(INTRO!$E$48="","",ROUND($D168*INTRO!$E$48,0)) -> 36090 | F168: =IF(INTRO!$E$49="","",ROUND($D168*INTRO!$E$49,0)) -> 62932 | G168: =IF(INTRO!$E$50="","",ROUND($D168*INTRO!$E$50,0)) -> 118872 | H168: 0 | I168: 4 | J168: 2 | K168: 2 | L168: 0 | M168: =IF(INTRO!$E$37="Endemic",IF($H168>0,IF($H168=4,"Unknown",IF($H168=99,"Stopped",$D168)),0),"Not required") -> 0 | N168: =IF(INTRO!$E$39="Endemic", IF($I168>0, IF($I168=4,"Unknown",IF($I168=99,"Stopped",$D168)), 0),"Not required") -> Unknown | O168: =IF(INTRO!$E$41="Endemic", IF(AND($J168>1,$J168<5), IF($J168=4, "Unknown", E168+F168), 0),"Not required") -> 99022 | P168: =IF(INTRO!$E$43="Endemic", IF(AND($K168>0,$K168<5), IF($K168=4,"Unknown", IF($K168=1, $F168*0.33, IF($K168=2, $F168*0.5+$G168*0.2, SUM(F168:G168)))), 0),"Not required") -> 55240.4 | Q168: 0 | R168: 0 | S168: 1 | T168: 0 | W168: Yes | X168: Yes | Y168: 2207 | Z168: MBANZA CONGO | AB168: TRUE | AC168: Zaire | AD168: Mbanza Kongo | AE168: 139 | AF168: 0 | AG168: 0 | AH168: 0 | AI168: TRUE | AK168: 35 | AL168: 2 | AM168: TRUE | AP168: 83.33333333 | AQ168: 24.87179487 | AR168: 3 | AS168: FALSE | AT168: 2 | AU168: TRUE | AY168: =_xlfn.XLOOKUP(Y168,[1]COUNTRY_INFO!$W$9:$W$172,[1]COUNTRY_INFO!$T$9:$T$172) -> 1 | AZ168: =_xlfn.XLOOKUP(Y168,[2]DISTRICT!$AJ$9:$AJ$172,[2]DISTRICT!$AH$9:$AH$172) -> 23704 | BA168: 23705
A169: =IF(INTRO!$E$33<>0,INTRO!$E$33, " ") -> ANGOLA | B169: ZAIRE | C169: NOQUI | D169: 29870.74364 | E169: =IF(INTRO!$E$48="","",ROUND($D169*INTRO!$E$48,0)) -> 4779 | F169: =IF(INTRO!$E$49="","",ROUND($D169*INTRO!$E$49,0)) -> 8334 | G169: =IF(INTRO!$E$50="","",ROUND($D169*INTRO!$E$50,0)) -> 15742 | H169: 0 | I169: 4 | J169: 0 | K169: 2 | L169: 1 | M169: =IF(INTRO!$E$37="Endemic",IF($H169>0,IF($H169=4,"Unknown",IF($H169=99,"Stopped",$D169)),0),"Not required") -> 0 | N169: =IF(INTRO!$E$39="Endemic", IF($I169>0, IF($I169=4,"Unknown",IF($I169=99,"Stopped",$D169)), 0),"Not required") -> Unknown | O169: =IF(INTRO!$E$41="Endemic", IF(AND($J169>1,$J169<5), IF($J169=4, "Unknown", E169+F169), 0),"Not required") -> 0 | P169: =IF(INTRO!$E$43="Endemic", IF(AND($K169>0,$K169<5), IF($K169=4,"Unknown", IF($K169=1, $F169*0.33, IF($K169=2, $F169*0.5+$G169*0.2, SUM(F169:G169)))), 0),"Not required") -> 7315.4 | Q169: 0 | R169: 0 | S169: 0 | T169: 0 | W169: Yes | X169: Yes | Y169: 2208 | Z169: NOQUI | AB169: TRUE | AC169: Zaire | AD169: Noqui | AE169: 45 | AF169: 0 | AG169: =AF169/AE169*100 -> 0 | AH169: 0 | AI169: TRUE | AK169: 0 | AL169: 0 | AM169: TRUE | AP169: 40 | AQ169: 15.18518519 | AR169: 2 | AS169: TRUE | AT169: 2 | AU169: TRUE | AY169: =_xlfn.XLOOKUP(Y169,[1]COUNTRY_INFO!$W$9:$W$172,[1]COUNTRY_INFO!$T$9:$T$172) -> 1 | AZ169: =_xlfn.XLOOKUP(Y169,[2]DISTRICT!$AJ$9:$AJ$172,[2]DISTRICT!$AH$9:$AH$172) -> 3806 | BA169: 3807
A170: =IF(INTRO!$E$33<>0,INTRO!$E$33, " ") -> ANGOLA | B170: ZAIRE | C170: NZETO | D170: 59820.74103 | E170: =IF(INTRO!$E$48="","",ROUND($D170*INTRO!$E$48,0)) -> 9571 | F170: =IF(INTRO!$E$49="","",ROUND($D170*INTRO!$E$49,0)) -> 16690 | G170: =IF(INTRO!$E$50="","",ROUND($D170*INTRO!$E$50,0)) -> 31526 | H170: 0 | I170: 4 | J170: 1 | K170: 2 | L170: 1 | M170: =IF(INTRO!$E$37="Endemic",IF($H170>0,IF($H170=4,"Unknown",IF($H170=99,"Stopped",$D170)),0),"Not required") -> 0 | N170: =IF(INTRO!$E$39="Endemic", IF($I170>0, IF($I170=4,"Unknown",IF($I170=99,"Stopped",$D170)), 0),"Not required") -> Unknown | O170: =IF(INTRO!$E$41="Endemic", IF(AND($J170>1,$J170<5), IF($J170=4, "Unknown", E170+F170), 0),"Not required") -> 0 | P170: =IF(INTRO!$E$43="Endemic", IF(AND($K170>0,$K170<5), IF($K170=4,"Unknown", IF($K170=1, $F170*0.33, IF($K170=2, $F170*0.5+$G170*0.2, SUM(F170:G170)))), 0),"Not required") -> 14650.2 | Q170: 0 | R170: 0 | S170: 0 | T170: 0 | W170: Yes | X170: Yes | Y170: 2209 | Z170: NZETO | AB170: TRUE | AC170: Zaire | AD170: Nzeto | AE170: 56 | AF170: 0 | AG170: 0 | AH170: 0 | AI170: TRUE | AK170: 3.333333333 | AL170: 1 | AM170: TRUE | AP170: 30 | AQ170: 14.66666667 | AR170: 2 | AS170: TRUE | AT170: 2 | AU170: TRUE | AY170: =_xlfn.XLOOKUP(Y170,[1]COUNTRY_INFO!$W$9:$W$172,[1]COUNTRY_INFO!$T$9:$T$172) -> 1 | AZ170: =_xlfn.XLOOKUP(Y170,[2]DISTRICT!$AJ$9:$AJ$172,[2]DISTRICT!$AH$9:$AH$172) -> 6960 | BA170: 6961
A171: =IF(INTRO!$E$33<>0,INTRO!$E$33, " ") -> ANGOLA | B171: ZAIRE | C171: SOYO | D171: 284161.7289 | E171: =IF(INTRO!$E$48="","",ROUND($D171*INTRO!$E$48,0)) -> 45466 | F171: =IF(INTRO!$E$49="","",ROUND($D171*INTRO!$E$49,0)) -> 79281 | G171: =IF(INTRO!$E$50="","",ROUND($D171*INTRO!$E$50,0)) -> 149753 | H171: 0 | I171: 4 | J171: 1 | K171: 1 | L171: 1 | M171: =IF(INTRO!$E$37="Endemic",IF($H171>0,IF($H171=4,"Unknown",IF($H171=99,"Stopped",$D171)),0),"Not required") -> 0 | N171: =IF(INTRO!$E$39="Endemic", IF($I171>0, IF($I171=4,"Unknown",IF($I171=99,"Stopped",$D171)), 0),"Not required") -> Unknown | O171: =IF(INTRO!$E$41="Endemic", IF(AND($J171>1,$J171<5), IF($J171=4, "Unknown", E171+F171), 0),"Not required") -> 0 | P171: =IF(INTRO!$E$43="Endemic", IF(AND($K171>0,$K171<5), IF($K171=4,"Unknown", IF($K171=1, $F171*0.33, IF($K171=2, $F171*0.5+$G171*0.2, SUM(F171:G171)))), 0),"Not required") -> 26162.73 | Q171: 0 | R171: 0 | S171: 0 | T171: 0 | W171: Yes | X171: Yes | Y171: 2210 | Z171: SOYO | AB171: TRUE | AC171: Zaire | AD171: Soyo | AE171: 114 | AF171: 1 | AG171: 0.8771929825 | AH171: 0 | AI171: TRUE | AK171: 5.555555556 | AL171: 1 | AM171: TRUE | AP171: 33.33333333 | AQ171: 8.484848485 | AR171: 2 | AS171: FALSE | AT171: 1 | AU171: TRUE | AY171: =_xlfn.XLOOKUP(Y171,[1]COUNTRY_INFO!$W$9:$W$172,[1]COUNTRY_INFO!$T$9:$T$172) -> 1 | AZ171: =_xlfn.XLOOKUP(Y171,[2]DISTRICT!$AJ$9:$AJ$172,[2]DISTRICT!$AH$9:$AH$172) -> 23896.29 | BA171: 23897.29
A172: =IF(INTRO!$E$33<>0,INTRO!$E$33, " ") -> ANGOLA | B172: ZAIRE | C172: TOMBOCO | D172: 57569.93414 | E172: =IF(INTRO!$E$48="","",ROUND($D172*INTRO!$E$48,0)) -> 9211 | F172: =IF(INTRO!$E$49="","",ROUND($D172*INTRO!$E$49,0)) -> 16062 | G172: =IF(INTRO!$E$50="","",ROUND($D172*INTRO!$E$50,0)) -> 30339 | H172: 1 | I172: 4 | J172: 0 | K172: 1 | L172: 1 | M172: =IF(INTRO!$E$37="Endemic",IF($H172>0,IF($H172=4,"Unknown",IF($H172=99,"Stopped",$D172)),0),"Not required") -> 57569.93414 | N172: =IF(INTRO!$E$39="Endemic", IF($I172>0, IF($I172=4,"Unknown",IF($I172=99,"Stopped",$D172)), 0),"Not required") -> Unknown | O172: =IF(INTRO!$E$41="Endemic", IF(AND($J172>1,$J172<5), IF($J172=4, "Unknown", E172+F172), 0),"Not required") -> 0 | P172: =IF(INTRO!$E$43="Endemic", IF(AND($K172>0,$K172<5), IF($K172=4,"Unknown", IF($K172=1, $F172*0.33, IF($K172=2, $F172*0.5+$G172*0.2, SUM(F172:G172)))), 0),"Not required") -> 5300.46 | Q172: 1 | R172: 0 | S172: 0 | T172: 0 | W172: Yes | X172: Yes | Y172: 2211 | Z172: TOMBOCO | AB172: TRUE | AC172: Zaire | AD172: Tomboco | AE172: 147 | AF172: 5 | AG172: 3.401360544 | AH172: 1 | AI172: TRUE | AK172: 0 | AL172: 0 | AM172: TRUE | AP172: 6.666666667 | AQ172: 1.666666667 | AR172: 1 | AS172: TRUE | AT172: 1 | AU172: TRUE | AY172: =_xlfn.XLOOKUP(Y172,[1]COUNTRY_INFO!$W$9:$W$172,[1]COUNTRY_INFO!$T$9:$T$172) -> 1 | AZ172: =_xlfn.XLOOKUP(Y172,[2]DISTRICT!$AJ$9:$AJ$172,[2]DISTRICT!$AH$9:$AH$172) -> 4841.43 | BA172: 4842.43

Sheet ALB_MBD
A1: Albendazole (ALB) and Mebendazole (MBD)
A2: Administrative structure, eligible population by age group, treatment plan and information about tablets
A4: TOTAL | D4: =SUM(D$9:D$1000) -> 4056213 | E4: =SUM(E$9:E$1000) -> 7073019 | F4: =SUM(F$9:F$1000) -> 11129232 | I4: =SUM(I$9:I$1000) -> 1983954 | J4: =SUM(J$9:J$1000) -> 2419270 | M4: =SUM(M$9:M$1000) -> 1786380 | N4: =SUM(N$9:N$1000) -> 2653867 | O4: =SUM(O$9:O$1000) -> 0 | P4: =SUM(P$9:P$1000) -> 4440247 | Q4: =SUM(Q$9:Q$1000) -> 0 | R4: =SUM(R$9:R$1000) -> 0 | S4: 0 | T4: 0 | U4: 0 | V4: 6822494 | W4: 34132 | X4: 0 | Y4: 2653867 | Z4: 13293 | AA4: 0 | AB4: 0 | AC4: 0
A6: Country administrative structure | D6: Population requiring treatment with ALB/MBD | G6: Treatment plan | I6: People covered by PELF with ALB | J6: Loa endemic areas | L6: Select medicine for treatment of STH | M6: Target population | U6: Albendazole (ALB) | AA6: Mebendazole (MBD)
A7: Country | B7: Province/State | C7: District | D7: PreSAC | E7: SAC | F7: Total | G7: LF | H7: STH | J7: Population | K7: Rounds planned | M7: STH (ALB) | Q7: STH (MBD) | U7: Remaining in stock (LF) | V7: Tablets to be procured (LF) | W7: Bottle (400 mg) 200 tablets (LF) | X7: Remaining in stock (STH) | Y7: Tablets to be procured for SAC (STH) | Z7: Bottle (400 mg) 200 tablets (STH) | AA7: Remaining in stock | AB7: Tablets to be procured for SAC | AC7: Bottles (500 mg) 150 tablets
M8: PreSAC | N8: SAC | O8: Other | P8: Total | Q8: PreSAC | R8: SAC | S8: Other | T8: Total
A9: =IF(AND(INTRO!$E$37="Non-endemic",INTRO!$E$41="Non-endemic")," ",IF(COUNTRY_INFO!A9=0," ",COUNTRY_INFO!A9)) -> ANGOLA | B9: =IF(AND(INTRO!$E$37="Non-endemic",INTRO!$E$41="Non-endemic")," ",IF(COUNTRY_INFO!B9=0," ",COUNTRY_INFO!B9)) -> BENGO | C9: =IF(AND(INTRO!$E$37="Non-endemic",INTRO!$E$41="Non-endemic")," ",IF(COUNTRY_INFO!C9=0," ",COUNTRY_INFO!C9)) -> AMBRIZ | D9: =IF(AND(INTRO!$E$37="Non-endemic",INTRO!$E$41="Non-endemic"),0,IF(AND(OR(COUNTRY_INFO!$H9=0,COUNTRY_INFO!$H9=4,COUNTRY_INFO!$H9=99),OR(COUNTRY_INFO!$J9=0,COUNTRY_INFO!$J9=4)),0,COUNTRY_INFO!$E9)) -> 4890 | E9: =IF(AND(INTRO!$E$37="Non-endemic",INTRO!$E$41="Non-endemic"),0,IF(AND(OR(COUNTRY_INFO!$H9=0,COUNTRY_INFO!$H9=4,COUNTRY_INFO!$H9=99),OR(COUNTRY_INFO!$J9=0,COUNTRY_INFO!$J9=4)),0,COUNTRY_INFO!$F9)) -> 8527 | F9: =SUM(D9:E9) -> 13417 | G9: =IF(AND(INTRO!$E$37="Non-endemic",INTRO!$E$41="Non-endemic"),0,COUNTRY_INFO!Q9) -> 1 | H9: =IF(AND(INTRO!$E$37="Non-endemic",INTRO!$E$41="Non-endemic"),0,COUNTRY_INFO!S9) -> 0 | I9: =IF($G9=1,IVM!$G9,0) -> 0 | J9: 24634 | K9: 2 | L9: ALB | M9: =IF($L9="ALB", IF(INTRO!$E$39="Non-endemic",IF($H9<>0,$D9*($H9-$G9),0),$D9*$H9), 0) -> 0 | N9: =IF($L9="ALB", IF($H9=0, 0, IF(AND($I9=0, OR($J9=0,$J9=" ")), $E9*$H9, IF(AND($I9=0, $J9>0), IF(($H9-$K9)<=0, 0, $E9*(MAX($H9,$K9)-MIN($H9,$K9))), IF(AND($I9>0, $J9=0), $E9*($H9-$G9), IF($J9=" ", $E9*($H9-$G9), $J9*$E9/($I9+$J9)*$K9+$I9*$E9/($I9+$J9)*($H9-$G9)))))), 0) -> 0 | P9: =SUM(M9:O9) -> 0 | Q9: =IF($L9="MBD", IF(INTRO!$E$39="Non-endemic",IF($H9<>0,$D9*($H9-$G9),0),$D9*$H9),0) -> 0 | R9: =IF($L9="MBD", IF($H9=0, 0, IF(AND($I9=0, OR($J9=0,$J9=" ")), $E9*$H9, IF(AND($I9=0, $J9>0), IF(($H9-$K9)<=0, 0, $E9*(MAX($H9,$K9)-MIN($H9,$K9))), IF(AND($I9>0, $J9=0), $E9*($H9-$G9), IF($J9=" ",$E9*($H9-$G9), $J9*$E9/($I9+$J9)*$K9+$I9*$E9/($I9+$J9)*($H9-$G9)))))), 0) -> 0 | T9: =SUM(Q9:S9) -> 0 | V9: =IF($J9<>" ", IF(($I9+$J9*$K9)>$U9, ($I9+$J9*$K9)-$U9,0), IF($I9>$U9, $I9-$U9, 0)) -> 49268 | W9: =IF($J9<>" ", ROUNDUP(($I9+$J9*$K9)/200,0), ROUNDUP($I9/200,0)) -> 247 | Y9: =IF($N9>$X9,$N9-$X9,0) -> 0 | Z9: =ROUNDUP($N9/200,0) -> 0 | AB9: =IF($R9>$AA9,$R9-$AA9,0) -> 0 | AC9: =ROUNDUP($R9/150,0) -> 0 | AD9: =COUNTRY_INFO!I9 -> 4
A10: =IF(AND(INTRO!$E$37="Non-endemic",INTRO!$E$41="Non-endemic")," ",IF(COUNTRY_INFO!A10=0," ",COUNTRY_INFO!A10)) -> ANGOLA | B10: =IF(AND(INTRO!$E$37="Non-endemic",INTRO!$E$41="Non-endemic")," ",IF(COUNTRY_INFO!B10=0," ",COUNTRY_INFO!B10)) -> BENGO | C10: =IF(AND(INTRO!$E$37="Non-endemic",INTRO!$E$41="Non-endemic")," ",IF(COUNTRY_INFO!C10=0," ",COUNTRY_INFO!C10)) -> BULA ATUMBA | D10: =IF(AND(INTRO!$E$37="Non-endemic",INTRO!$E$41="Non-endemic"),0,IF(AND(OR(COUNTRY_INFO!$H10=0,COUNTRY_INFO!$H10=4,COUNTRY_INFO!$H10=99),OR(COUNTRY_INFO!$J10=0,COUNTRY_INFO!$J10=4)),0,COUNTRY_INFO!$E10)) -> 2897 | E10: =IF(AND(INTRO!$E$37="Non-endemic",INTRO!$E$41="Non-endemic"),0,IF(AND(OR(COUNTRY_INFO!$H10=0,COUNTRY_INFO!$H10=4,COUNTRY_INFO!$H10=99),OR(COUNTRY_INFO!$J10=0,COUNTRY_INFO!$J10=4)),0,COUNTRY_INFO!$F10)) -> 5052 | F10: =SUM(D10:E10) -> 7949 | G10: =IF(AND(INTRO!$E$37="Non-endemic",INTRO!$E$41="Non-endemic"),0,COUNTRY_INFO!Q10) -> 1 | H10: =IF(AND(INTRO!$E$37="Non-endemic",INTRO!$E$41="Non-endemic"),0,COUNTRY_INFO!S10) -> 2 | I10: =IF($G10=1,IVM!$G10,0) -> 0 | J10: 14594 | K10: 2 | L10: ALB | M10: =IF($L10="ALB", IF(INTRO!$E$39="Non-endemic",IF($H10<>0,$D10*($H10-$G10),0),$D10*$H10), 0) -> 5794 | N10: 0 | P10: =SUM(M10:O10) -> 5794 | Q10: =IF($L10="MBD", IF(INTRO!$E$39="Non-endemic",IF($H10<>0,$D10*($H10-$G10),0),$D10*$H10),0) -> 0 | R10: 0 | T10: =SUM(Q10:S10) -> 0 | V10: 29188 | W10: 146 | Y10: 0 | Z10: 0 | AB10: 0 | AC10: 0 | AD10: =COUNTRY_INFO!I10 -> 4
A11: =IF(AND(INTRO!$E$37="Non-endemic",INTRO!$E$41="Non-endemic")," ",IF(COUNTRY_INFO!A11=0," ",COUNTRY_INFO!A11)) -> ANGOLA | B11: =IF(AND(INTRO!$E$37="Non-endemic",INTRO!$E$41="Non-endemic")," ",IF(COUNTRY_INFO!B11=0," ",COUNTRY_INFO!B11)) -> BENGO | C11: =IF(AND(INTRO!$E$37="Non-endemic",INTRO!$E$41="Non-endemic")," ",IF(COUNTRY_INFO!C11=0," ",COUNTRY_INFO!C11)) -> DANDE | D11: =IF(AND(INTRO!$E$37="Non-endemic",INTRO!$E$41="Non-endemic"),0,IF(AND(OR(COUNTRY_INFO!$H11=0,COUNTRY_INFO!$H11=4,COUNTRY_INFO!$H11=99),OR(COUNTRY_INFO!$J11=0,COUNTRY_INFO!$J11=4)),0,COUNTRY_INFO!$E11)) -> 47913 | E11: =IF(AND(INTRO!$E$37="Non-endemic",INTRO!$E$41="Non-endemic"),0,IF(AND(OR(COUNTRY_INFO!$H11=0,COUNTRY_INFO!$H11=4,COUNTRY_INFO!$H11=99),OR(COUNTRY_INFO!$J11=0,COUNTRY_INFO!$J11=4)),0,COUNTRY_INFO!$F11)) -> 83549 | F11: 131462 | G11: =IF(AND(INTRO!$E$37="Non-endemic",INTRO!$E$41="Non-endemic"),0,COUNTRY_INFO!Q11) -> 1 | H11: =IF(AND(INTRO!$E$37="Non-endemic",INTRO!$E$41="Non-endemic"),0,COUNTRY_INFO!S11) -> 0 | I11: =IF($G11=1,IVM!$G11,0) -> 0 | J11: 241364 | K11: 2 | L11: ALB | M11: =IF($L11="ALB", IF(INTRO!$E$39="Non-endemic",IF($H11<>0,$D11*($H11-$G11),0),$D11*$H11), 0) -> 0 | N11: 0 | P11: 0 | Q11: =IF($L11="MBD", IF(INTRO!$E$39="Non-endemic",IF($H11<>0,$D11*($H11-$G11),0),$D11*$H11),0) -> 0 | R11: 0 | T11: 0 | V11: 482728 | W11: 2414 | Y11: 0 | Z11: 0 | AB11: 0 | AC11: 0 | AD11: =COUNTRY_INFO!I11 -> 4
A12: =IF(AND(INTRO!$E$37="Non-endemic",INTRO!$E$41="Non-endemic")," ",IF(COUNTRY_INFO!A12=0," ",COUNTRY_INFO!A12)) -> ANGOLA | B12: =IF(AND(INTRO!$E$37="Non-endemic",INTRO!$E$41="Non-endemic")," ",IF(COUNTRY_INFO!B12=0," ",COUNTRY_INFO!B12)) -> BENGO | C12: =IF(AND(INTRO!$E$37="Non-endemic",INTRO!$E$41="Non-endemic")," ",IF(COUNTRY_INFO!C12=0," ",COUNTRY_INFO!C12)) -> DEMBOS | D12: =IF(AND(INTRO!$E$37="Non-endemic",INTRO!$E$41="Non-endemic"),0,IF(AND(OR(COUNTRY_INFO!$H12=0,COUNTRY_INFO!$H12=4,COUNTRY_INFO!$H12=99),OR(COUNTRY_INFO!$J12=0,COUNTRY_INFO!$J12=4)),0,COUNTRY_INFO!$E12)) -> 6472 | E12: =IF(AND(INTRO!$E$37="Non-endemic",INTRO!$E$41="Non-endemic"),0,IF(AND(OR(COUNTRY_INFO!$H12=0,COUNTRY_INFO!$H12=4,COUNTRY_INFO!$H12=99),OR(COUNTRY_INFO!$J12=0,COUNTRY_INFO!$J12=4)),0,COUNTRY_INFO!$F12)) -> 11285 | F12: 17757 | G12: =IF(AND(INTRO!$E$37="Non-endemic",INTRO!$E$41="Non-endemic"),0,COUNTRY_INFO!Q12) -> 1 | H12: =IF(AND(INTRO!$E$37="Non-endemic",INTRO!$E$41="Non-endemic"),0,COUNTRY_INFO!S12) -> 2 | I12: =IF($G12=1,IVM!$G12,0) -> 0 | J12: 32602 | K12: 2 | L12: ALB | M12: =IF($L12="ALB", IF(INTRO!$E$39="Non-endemic",IF($H12<>0,$D12*($H12-$G12),0),$D12*$H12), 0) -> 12944 | N12: 0 | P12: 12944 | Q12: =IF($L12="MBD", IF(INTRO!$E$39="Non-endemic",IF($H12<>0,$D12*($H12-$G12),0),$D12*$H12),0) -> 0 | R12: 0 | T12: 0 | V12: 65204 | W12: 327 | Y12: 0 | Z12: 0 | AB12: 0 | AC12: 0 | AD12: =COUNTRY_INFO!I12 -> 4
A13: =IF(AND(INTRO!$E$37="Non-endemic",INTRO!$E$41="Non-endemic")," ",IF(COUNTRY_INFO!A13=0," ",COUNTRY_INFO!A13)) -> ANGOLA | B13: =IF(AND(INTRO!$E$37="Non-endemic",INTRO!$E$41="Non-endemic")," ",IF(COUNTRY_INFO!B13=0," ",COUNTRY_INFO!B13)) -> BENGO | C13: =IF(AND(INTRO!$E$37="Non-endemic",INTRO!$E$41="Non-endemic")," ",IF(COUNTRY_INFO!C13=0," ",COUNTRY_INFO!C13)) -> NAMBUANGONGO | D13: =IF(AND(INTRO!$E$37="Non-endemic",INTRO!$E$41="Non-endemic"),0,IF(AND(OR(COUNTRY_INFO!$H13=0,COUNTRY_INFO!$H13=4,COUNTRY_INFO!$H13=99),OR(COUNTRY_INFO!$J13=0,COUNTRY_INFO!$J13=4)),0,COUNTRY_INFO!$E13)) -> 13109 | E13: =IF(AND(INTRO!$E$37="Non-endemic",INTRO!$E$41="Non-endemic"),0,IF(AND(OR(COUNTRY_INFO!$H13=0,COUNTRY_INFO!$H13=4,COUNTRY_INFO!$H13=99),OR(COUNTRY_INFO!$J13=0,COUNTRY_INFO!$J13=4)),0,COUNTRY_INFO!$F13)) -> 22859 | F13: 35968 | G13: =IF(AND(INTRO!$E$37="Non-endemic",INTRO!$E$41="Non-endemic"),0,COUNTRY_INFO!Q13) -> 1 | H13: =IF(AND(INTRO!$E$37="Non-endemic",INTRO!$E$41="Non-endemic"),0,COUNTRY_INFO!S13) -> 1 | I13: =IF($G13=1,IVM!$G13,0) -> 0 | J13: 66036 | K13: 2 | L13: ALB | M13: =IF($L13="ALB", IF(INTRO!$E$39="Non-endemic",IF($H13<>0,$D13*($H13-$G13),0),$D13*$H13), 0) -> 13109 | N13: 0 | P13: 13109 | Q13: =IF($L13="MBD", IF(INTRO!$E$39="Non-endemic",IF($H13<>0,$D13*($H13-$G13),0),$D13*$H13),0) -> 0 | R13: 0 | T13: 0 | V13: 132072 | W13: 661 | Y13: 0 | Z13: 0 | AB13: 0 | AC13: 0 | AD13: =COUNTRY_INFO!I13 -> 4
A14: =IF(AND(INTRO!$E$37="Non-endemic",INTRO!$E$41="Non-endemic")," ",IF(COUNTRY_INFO!A14=0," ",COUNTRY_INFO!A14)) -> ANGOLA | B14: =IF(AND(INTRO!$E$37="Non-endemic",INTRO!$E$41="Non-endemic")," ",IF(COUNTRY_INFO!B14=0," ",COUNTRY_INFO!B14)) -> BENGO | C14: =IF(AND(INTRO!$E$37="Non-endemic",INTRO!$E$41="Non-endemic")," ",IF(COUNTRY_INFO!C14=0," ",COUNTRY_INFO!C14)) -> PANGO ALUQUEM | D14: =IF(AND(INTRO!$E$37="Non-endemic",INTRO!$E$41="Non-endemic"),0,IF(AND(OR(COUNTRY_INFO!$H14=0,COUNTRY_INFO!$H14=4,COUNTRY_INFO!$H14=99),OR(COUNTRY_INFO!$J14=0,COUNTRY_INFO!$J14=4)),0,COUNTRY_INFO!$E14)) -> 1508 | E14: =IF(AND(INTRO!$E$37="Non-endemic",INTRO!$E$41="Non-endemic"),0,IF(AND(OR(COUNTRY_INFO!$H14=0,COUNTRY_INFO!$H14=4,COUNTRY_INFO!$H14=99),OR(COUNTRY_INFO!$J14=0,COUNTRY_INFO!$J14=4)),0,COUNTRY_INFO!$F14)) -> 2630 | F14: 4138 | G14: =IF(AND(INTRO!$E$37="Non-endemic",INTRO!$E$41="Non-endemic"),0,COUNTRY_INFO!Q14) -> 0 | H14: =IF(AND(INTRO!$E$37="Non-endemic",INTRO!$E$41="Non-endemic"),0,COUNTRY_INFO!S14) -> 2 | I14: =IF($G14=1,IVM!$G14,0) -> 0 | J14: =IF($G14=0, " ", IF(COUNTRY_INFO!$H14=1, IF(COUNTRY_INFO!$L14=1, 0," ")," ")) ->  | L14: ALB | M14: =IF($L14="ALB", IF(INTRO!$E$39="Non-endemic",IF($H14<>0,$D14*($H14-$G14),0),$D14*$H14), 0) -> 3016 | N14: 5260 | P14: 8276 | Q14: =IF($L14="MBD", IF(INTRO!$E$39="Non-endemic",IF($H14<>0,$D14*($H14-$G14),0),$D14*$H14),0) -> 0 | R14: 0 | T14: 0 | V14: 0 | W14: 0 | Y14: 5260 | Z14: 27 | AB14: 0 | AC14: 0 | AD14: =COUNTRY_INFO!I14 -> 4
A15: =IF(AND(INTRO!$E$37="Non-endemic",INTRO!$E$41="Non-endemic")," ",IF(COUNTRY_INFO!A15=0," ",COUNTRY_INFO!A15)) -> ANGOLA | B15: =IF(AND(INTRO!$E$37="Non-endemic",INTRO!$E$41="Non-endemic")," ",IF(COUNTRY_INFO!B15=0," ",COUNTRY_INFO!B15)) -> BENGUELA | C15: =IF(AND(INTRO!$E$37="Non-endemic",INTRO!$E$41="Non-endemic")," ",IF(COUNTRY_INFO!C15=0," ",COUNTRY_INFO!C15)) -> BAIA FARTA | D15: =IF(AND(INTRO!$E$37="Non-endemic",INTRO!$E$41="Non-endemic"),0,IF(AND(OR(COUNTRY_INFO!$H15=0,COUNTRY_INFO!$H15=4,COUNTRY_INFO!$H15=99),OR(COUNTRY_INFO!$J15=0,COUNTRY_INFO!$J15=4)),0,COUNTRY_INFO!$E15)) -> 0 | E15: =IF(AND(INTRO!$E$37="Non-endemic",INTRO!$E$41="Non-endemic"),0,IF(AND(OR(COUNTRY_INFO!$H15=0,COUNTRY_INFO!$H15=4,COUNTRY_INFO!$H15=99),OR(COUNTRY_INFO!$J15=0,COUNTRY_INFO!$J15=4)),0,COUNTRY_INFO!$F15)) -> 0 | F15: 0 | G15: =IF(AND(INTRO!$E$37="Non-endemic",INTRO!$E$41="Non-endemic"),0,COUNTRY_INFO!Q15) -> 0 | H15: =IF(AND(INTRO!$E$37="Non-endemic",INTRO!$E$41="Non-endemic"),0,COUNTRY_INFO!S15) -> 0 | I15: =IF($G15=1,IVM!$G15,0) -> 0 | J15: =IF($G15=0, " ", IF(COUNTRY_INFO!$H15=1, IF(COUNTRY_INFO!$L15=1, 0," ")," ")) ->  | L15: ALB | M15: =IF($L15="ALB", IF(INTRO!$E$39="Non-endemic",IF($H15<>0,$D15*($H15-$G15),0),$D15*$H15), 0) -> 0 | N15: 0 | P15: 0 | Q15: =IF($L15="MBD", IF(INTRO!$E$39="Non-endemic",IF($H15<>0,$D15*($H15-$G15),0),$D15*$H15),0) -> 0 | R15: 0 | T15: 0 | V15: 0 | W15: 0 | Y15: 0 | Z15: 0 | AB15: 0 | AC15: 0 | AD15: =COUNTRY_INFO!I15 -> 4
A16: =IF(AND(INTRO!$E$37="Non-endemic",INTRO!$E$41="Non-endemic")," ",IF(COUNTRY_INFO!A16=0," ",COUNTRY_INFO!A16)) -> ANGOLA | B16: =IF(AND(INTRO!$E$37="Non-endemic",INTRO!$E$41="Non-endemic")," ",IF(COUNTRY_INFO!B16=0," ",COUNTRY_INFO!B16)) -> BENGUELA | C16: =IF(AND(INTRO!$E$37="Non-endemic",INTRO!$E$41="Non-endemic")," ",IF(COUNTRY_INFO!C16=0," ",COUNTRY_INFO!C16)) -> BALOMBO | D16: =IF(AND(INTRO!$E$37="Non-endemic",INTRO!$E$41="Non-endemic"),0,IF(AND(OR(COUNTRY_INFO!$H16=0,COUNTRY_INFO!$H16=4,COUNTRY_INFO!$H16=99),OR(COUNTRY_INFO!$J16=0,COUNTRY_INFO!$J16=4)),0,COUNTRY_INFO!$E16)) -> 20937 | E16: =IF(AND(INTRO!$E$37="Non-endemic",INTRO!$E$41="Non-endemic"),0,IF(AND(OR(COUNTRY_INFO!$H16=0,COUNTRY_INFO!$H16=4,COUNTRY_INFO!$H16=99),OR(COUNTRY_INFO!$J16=0,COUNTRY_INFO!$J16=4)),0,COUNTRY_INFO!$F16)) -> 36509 | F16: 57446 | G16: =IF(AND(INTRO!$E$37="Non-endemic",INTRO!$E$41="Non-endemic"),0,COUNTRY_INFO!Q16) -> 0 | H16: =IF(AND(INTRO!$E$37="Non-endemic",INTRO!$E$41="Non-endemic"),0,COUNTRY_INFO!S16) -> 0 | I16: =IF($G16=1,IVM!$G16,0) -> 0 | J16: =IF($G16=0, " ", IF(COUNTRY_INFO!$H16=1, IF(COUNTRY_INFO!$L16=1, 0," ")," ")) ->  | L16: ALB | M16: =IF($L16="ALB", IF(INTRO!$E$39="Non-endemic",IF($H16<>0,$D16*($H16-$G16),0),$D16*$H16), 0) -> 0 | N16: 0 | P16: 0 | Q16: =IF($L16="MBD", IF(INTRO!$E$39="Non-endemic",IF($H16<>0,$D16*($H16-$G16),0),$D16*$H16),0) -> 0 | R16: 0 | T16: 0 | V16: 0 | W16: 0 | Y16: 0 | Z16: 0 | AB16: 0 | AC16: 0 | AD16: =COUNTRY_INFO!I16 -> 4
A17: =IF(AND(INTRO!$E$37="Non-endemic",INTRO!$E$41="Non-endemic")," ",IF(COUNTRY_INFO!A17=0," ",COUNTRY_INFO!A17)) -> ANGOLA | B17: =IF(AND(INTRO!$E$37="Non-endemic",INTRO!$E$41="Non-endemic")," ",IF(COUNTRY_INFO!B17=0," ",COUNTRY_INFO!B17)) -> BENGUELA | C17: =IF(AND(INTRO!$E$37="Non-endemic",INTRO!$E$41="Non-endemic")," ",IF(COUNTRY_INFO!C17=0," ",COUNTRY_INFO!C17)) -> BENGUELA | D17: =IF(AND(INTRO!$E$37="Non-endemic",INTRO!$E$41="Non-endemic"),0,IF(AND(OR(COUNTRY_INFO!$H17=0,COUNTRY_INFO!$H17=4,COUNTRY_INFO!$H17=99),OR(COUNTRY_INFO!$J17=0,COUNTRY_INFO!$J17=4)),0,COUNTRY_INFO!$E17)) -> 107941 | E17: =IF(AND(INTRO!$E$37="Non-endemic",INTRO!$E$41="Non-endemic"),0,IF(AND(OR(COUNTRY_INFO!$H17=0,COUNTRY_INFO!$H17=4,COUNTRY_INFO!$H17=99),OR(COUNTRY_INFO!$J17=0,COUNTRY_INFO!$J17=4)),0,COUNTRY_INFO!$F17)) -> 188221 | F17: 296162 | G17: =IF(AND(INTRO!$E$37="Non-endemic",INTRO!$E$41="Non-endemic"),0,COUNTRY_INFO!Q17) -> 0 | H17: =IF(AND(INTRO!$E$37="Non-endemic",INTRO!$E$41="Non-endemic"),0,COUNTRY_INFO!S17) -> 0 | I17: =IF($G17=1,IVM!$G17,0) -> 0 | J17: =IF($G17=0, " ", IF(COUNTRY_INFO!$H17=1, IF(COUNTRY_INFO!$L17=1, 0," ")," ")) ->  | L17: ALB | M17: =IF($L17="ALB", IF(INTRO!$E$39="Non-endemic",IF($H17<>0,$D17*($H17-$G17),0),$D17*$H17), 0) -> 0 | N17: 0 | P17: 0 | Q17: =IF($L17="MBD", IF(INTRO!$E$39="Non-endemic",IF($H17<>0,$D17*($H17-$G17),0),$D17*$H17),0) -> 0 | R17: 0 | T17: 0 | V17: 0 | W17: 0 | Y17: 0 | Z17: 0 | AB17: 0 | AC17: 0 | AD17: =COUNTRY_INFO!I17 -> 4
A18: =IF(AND(INTRO!$E$37="Non-endemic",INTRO!$E$41="Non-endemic")," ",IF(COUNTRY_INFO!A18=0," ",COUNTRY_INFO!A18)) -> ANGOLA | B18: =IF(AND(INTRO!$E$37="Non-endemic",INTRO!$E$41="Non-endemic")," ",IF(COUNTRY_INFO!B18=0," ",COUNTRY_INFO!B18)) -> BENGUELA | C18: =IF(AND(INTRO!$E$37="Non-endemic",INTRO!$E$41="Non-endemic")," ",IF(COUNTRY_INFO!C18=0," ",COUNTRY_INFO!C18)) -> BOCOIO | D18: =IF(AND(INTRO!$E$37="Non-endemic",INTRO!$E$41="Non-endemic"),0,IF(AND(OR(COUNTRY_INFO!$H18=0,COUNTRY_INFO!$H18=4,COUNTRY_INFO!$H18=99),OR(COUNTRY_INFO!$J18=0,COUNTRY_INFO!$J18=4)),0,COUNTRY_INFO!$E18)) -> 31643 | E18: =IF(AND(INTRO!$E$37="Non-endemic",INTRO!$E$41="Non-endemic"),0,IF(AND(OR(COUNTRY_INFO!$H18=0,COUNTRY_INFO!$H18=4,COUNTRY_INFO!$H18=99),OR(COUNTRY_INFO!$J18=0,COUNTRY_INFO!$J18=4)),0,COUNTRY_INFO!$F18)) -> 55177 | F18: 86820 | G18: =IF(AND(INTRO!$E$37="Non-endemic",INTRO!$E$41="Non-endemic"),0,COUNTRY_INFO!Q18) -> 0 | H18: =IF(AND(INTRO!$E$37="Non-endemic",INTRO!$E$41="Non-endemic"),0,COUNTRY_INFO!S18) -> 0 | I18: =IF($G18=1,IVM!$G18,0) -> 0 | J18: =IF($G18=0, " ", IF(COUNTRY_INFO!$H18=1, IF(COUNTRY_INFO!$L18=1, 0," ")," ")) ->  | L18: ALB | M18: =IF($L18="ALB", IF(INTRO!$E$39="Non-endemic",IF($H18<>0,$D18*($H18-$G18),0),$D18*$H18), 0) -> 0 | N18: 0 | P18: 0 | Q18: =IF($L18="MBD", IF(INTRO!$E$39="Non-endemic",IF($H18<>0,$D18*($H18-$G18),0),$D18*$H18),0) -> 0 | R18: 0 | T18: 0 | V18: 0 | W18: 0 | Y18: 0 | Z18: 0 | AB18: 0 | AC18: 0 | AD18: =COUNTRY_INFO!I18 -> 4
A19: =IF(AND(INTRO!$E$37="Non-endemic",INTRO!$E$41="Non-endemic")," ",IF(COUNTRY_INFO!A19=0," ",COUNTRY_INFO!A19)) -> ANGOLA | B19: =IF(AND(INTRO!$E$37="Non-endemic",INTRO!$E$41="Non-endemic")," ",IF(COUNTRY_INFO!B19=0," ",COUNTRY_INFO!B19)) -> BENGUELA | C19: =IF(AND(INTRO!$E$37="Non-endemic",INTRO!$E$41="Non-endemic")," ",IF(COUNTRY_INFO!C19=0," ",COUNTRY_INFO!C19)) -> CAIMBAMBO | D19: =IF(AND(INTRO!$E$37="Non-endemic",INTRO!$E$41="Non-endemic"),0,IF(AND(OR(COUNTRY_INFO!$H19=0,COUNTRY_INFO!$H19=4,COUNTRY_INFO!$H19=99),OR(COUNTRY_INFO!$J19=0,COUNTRY_INFO!$J19=4)),0,COUNTRY_INFO!$E19)) -> 17454 | E19: =IF(AND(INTRO!$E$37="Non-endemic",INTRO!$E$41="Non-endemic"),0,IF(AND(OR(COUNTRY_INFO!$H19=0,COUNTRY_INFO!$H19=4,COUNTRY_INFO!$H19=99),OR(COUNTRY_INFO!$J19=0,COUNTRY_INFO!$J19=4)),0,COUNTRY_INFO!$F19)) -> 30435 | F19: 47889 | G19: =IF(AND(INTRO!$E$37="Non-endemic",INTRO!$E$41="Non-endemic"),0,COUNTRY_INFO!Q19) -> 0 | H19: =IF(AND(INTRO!$E$37="Non-endemic",INTRO!$E$41="Non-endemic"),0,COUNTRY_INFO!S19) -> 0 | I19: =IF($G19=1,IVM!$G19,0) -> 0 | J19: =IF($G19=0, " ", IF(COUNTRY_INFO!$H19=1, IF(COUNTRY_INFO!$L19=1, 0," ")," ")) ->  | L19: ALB | M19: =IF($L19="ALB", IF(INTRO!$E$39="Non-endemic",IF($H19<>0,$D19*($H19-$G19),0),$D19*$H19), 0) -> 0 | N19: 0 | P19: 0 | Q19: =IF($L19="MBD", IF(INTRO!$E$39="Non-endemic",IF($H19<>0,$D19*($H19-$G19),0),$D19*$H19),0) -> 0 | R19: 0 | T19: 0 | V19: 0 | W19: 0 | Y19: 0 | Z19: 0 | AB19: 0 | AC19: 0 | AD19: =COUNTRY_INFO!I19 -> 4
A20: =IF(AND(INTRO!$E$37="Non-endemic",INTRO!$E$41="Non-endemic")," ",IF(COUNTRY_INFO!A20=0," ",COUNTRY_INFO!A20)) -> ANGOLA | B20: =IF(AND(INTRO!$E$37="Non-endemic",INTRO!$E$41="Non-endemic")," ",IF(COUNTRY_INFO!B20=0," ",COUNTRY_INFO!B20)) -> BENGUELA | C20: =IF(AND(INTRO!$E$37="Non-endemic",INTRO!$E$41="Non-endemic")," ",IF(COUNTRY_INFO!C20=0," ",COUNTRY_INFO!C20)) -> CATUMBELA | D20: =IF(AND(INTRO!$E$37="Non-endemic",INTRO!$E$41="Non-endemic"),0,IF(AND(OR(COUNTRY_INFO!$H20=0,COUNTRY_INFO!$H20=4,COUNTRY_INFO!$H20=99),OR(COUNTRY_INFO!$J20=0,COUNTRY_INFO!$J20=4)),0,COUNTRY_INFO!$E20)) -> 0 | E20: =IF(AND(INTRO!$E$37="Non-endemic",INTRO!$E$41="Non-endemic"),0,IF(AND(OR(COUNTRY_INFO!$H20=0,COUNTRY_INFO!$H20=4,COUNTRY_INFO!$H20=99),OR(COUNTRY_INFO!$J20=0,COUNTRY_INFO!$J20=4)),0,COUNTRY_INFO!$F20)) -> 0 | F20: 0 | G20: =IF(AND(INTRO!$E$37="Non-endemic",INTRO!$E$41="Non-endemic"),0,COUNTRY_INFO!Q20) -> 0 | H20: =IF(AND(INTRO!$E$37="Non-endemic",INTRO!$E$41="Non-endemic"),0,COUNTRY_INFO!S20) -> 0 | I20: =IF($G20=1,IVM!$G20,0) -> 0 | J20: =IF($G20=0, " ", IF(COUNTRY_INFO!$H20=1, IF(COUNTRY_INFO!$L20=1, 0," ")," ")) ->  | L20: ALB | M20: =IF($L20="ALB", IF(INTRO!$E$39="Non-endemic",IF($H20<>0,$D20*($H20-$G20),0),$D20*$H20), 0) -> 0 | N20: 0 | P20: 0 | Q20: =IF($L20="MBD", IF(INTRO!$E$39="Non-endemic",IF($H20<>0,$D20*($H20-$G20),0),$D20*$H20),0) -> 0 | R20: 0 | T20: 0 | V20: 0 | W20: 0 | Y20: 0 | Z20: 0 | AB20: 0 | AC20: 0 | AD20: =COUNTRY_INFO!I20 -> 4
A21: =IF(AND(INTRO!$E$37="Non-endemic",INTRO!$E$41="Non-endemic")," ",IF(COUNTRY_INFO!A21=0," ",COUNTRY_INFO!A21)) -> ANGOLA | B21: =IF(AND(INTRO!$E$37="Non-endemic",INTRO!$E$41="Non-endemic")," ",IF(COUNTRY_INFO!B21=0," ",COUNTRY_INFO!B21)) -> BENGUELA | C21: =IF(AND(INTRO!$E$37="Non-endemic",INTRO!$E$41="Non-endemic")," ",IF(COUNTRY_INFO!C21=0," ",COUNTRY_INFO!C21)) -> CHONGOROI | D21: =IF(AND(INTRO!$E$37="Non-endemic",INTRO!$E$41="Non-endemic"),0,IF(AND(OR(COUNTRY_INFO!$H21=0,COUNTRY_INFO!$H21=4,COUNTRY_INFO!$H21=99),OR(COUNTRY_INFO!$J21=0,COUNTRY_INFO!$J21=4)),0,COUNTRY_INFO!$E21)) -> 0 | E21: =IF(AND(INTRO!$E$37="Non-endemic",INTRO!$E$41="Non-endemic"),0,IF(AND(OR(COUNTRY_INFO!$H21=0,COUNTRY_INFO!$H21=4,COUNTRY_INFO!$H21=99),OR(COUNTRY_INFO!$J21=0,COUNTRY_INFO!$J21=4)),0,COUNTRY_INFO!$F21)) -> 0 | F21: 0 | G21: =IF(AND(INTRO!$E$37="Non-endemic",INTRO!$E$41="Non-endemic"),0,COUNTRY_INFO!Q21) -> 0 | H21: =IF(AND(INTRO!$E$37="Non-endemic",INTRO!$E$41="Non-endemic"),0,COUNTRY_INFO!S21) -> 0 | I21: =IF($G21=1,IVM!$G21,0) -> 0 | J21: =IF($G21=0, " ", IF(COUNTRY_INFO!$H21=1, IF(COUNTRY_INFO!$L21=1, 0," ")," ")) ->  | L21: ALB | M21: =IF($L21="ALB", IF(INTRO!$E$39="Non-endemic",IF($H21<>0,$D21*($H21-$G21),0),$D21*$H21), 0) -> 0 | N21: 0 | P21: 0 | Q21: =IF($L21="MBD", IF(INTRO!$E$39="Non-endemic",IF($H21<>0,$D21*($H21-$G21),0),$D21*$H21),0) -> 0 | R21: 0 | T21: 0 | V21: 0 | W21: 0 | Y21: 0 | Z21: 0 | AB21: 0 | AC21: 0 | AD21: =COUNTRY_INFO!I21 -> 4
A22: =IF(AND(INTRO!$E$37="Non-endemic",INTRO!$E$41="Non-endemic")," ",IF(COUNTRY_INFO!A22=0," ",COUNTRY_INFO!A22)) -> ANGOLA | B22: =IF(AND(INTRO!$E$37="Non-endemic",INTRO!$E$41="Non-endemic")," ",IF(COUNTRY_INFO!B22=0," ",COUNTRY_INFO!B22)) -> BENGUELA | C22: =IF(AND(INTRO!$E$37="Non-endemic",INTRO!$E$41="Non-endemic")," ",IF(COUNTRY_INFO!C22=0," ",COUNTRY_INFO!C22)) -> CUBAL | D22: =IF(AND(INTRO!$E$37="Non-endemic",INTRO!$E$41="Non-endemic"),0,IF(AND(OR(COUNTRY_INFO!$H22=0,COUNTRY_INFO!$H22=4,COUNTRY_INFO!$H22=99),OR(COUNTRY_INFO!$J22=0,COUNTRY_INFO!$J22=4)),0,COUNTRY_INFO!$E22)) -> 58725 | E22: =IF(AND(INTRO!$E$37="Non-endemic",INTRO!$E$41="Non-endemic"),0,IF(AND(OR(COUNTRY_INFO!$H22=0,COUNTRY_INFO!$H22=4,COUNTRY_INFO!$H22=99),OR(COUNTRY_INFO!$J22=0,COUNTRY_INFO!$J22=4)),0,COUNTRY_INFO!$F22)) -> 102401 | F22: 161126 | G22: =IF(AND(INTRO!$E$37="Non-endemic",INTRO!$E$41="Non-endemic"),0,COUNTRY_INFO!Q22) -> 0 | H22: =IF(AND(INTRO!$E$37="Non-endemic",INTRO!$E$41="Non-endemic"),0,COUNTRY_INFO!S22) -> 0 | I22: =IF($G22=1,IVM!$G22,0) -> 0 | J22: =IF($G22=0, " ", IF(COUNTRY_INFO!$H22=1, IF(COUNTRY_INFO!$L22=1, 0," ")," ")) ->  | L22: ALB | M22: =IF($L22="ALB", IF(INTRO!$E$39="Non-endemic",IF($H22<>0,$D22*($H22-$G22),0),$D22*$H22), 0) -> 0 | N22: 0 | P22: 0 | Q22: =IF($L22="MBD", IF(INTRO!$E$39="Non-endemic",IF($H22<>0,$D22*($H22-$G22),0),$D22*$H22),0) -> 0 | R22: 0 | T22: 0 | V22: 0 | W22: 0 | Y22: 0 | Z22: 0 | AB22: 0 | AC22: 0 | AD22: =COUNTRY_INFO!I22 -> 4
A23: =IF(AND(INTRO!$E$37="Non-endemic",INTRO!$E$41="Non-endemic")," ",IF(COUNTRY_INFO!A23=0," ",COUNTRY_INFO!A23)) -> ANGOLA | B23: =IF(AND(INTRO!$E$37="Non-endemic",INTRO!$E$41="Non-endemic")," ",IF(COUNTRY_INFO!B23=0," ",COUNTRY_INFO!B23)) -> BENGUELA | C23: =IF(AND(INTRO!$E$37="Non-endemic",INTRO!$E$41="Non-endemic")," ",IF(COUNTRY_INFO!C23=0," ",COUNTRY_INFO!C23)) -> GANDA | D23: =IF(AND(INTRO!$E$37="Non-endemic",INTRO!$E$41="Non-endemic"),0,IF(AND(OR(COUNTRY_INFO!$H23=0,COUNTRY_INFO!$H23=4,COUNTRY_INFO!$H23=99),OR(COUNTRY_INFO!$J23=0,COUNTRY_INFO!$J23=4)),0,COUNTRY_INFO!$E23)) -> 45247 | E23: =IF(AND(INTRO!$E$37="Non-endemic",INTRO!$E$41="Non-endemic"),0,IF(AND(OR(COUNTRY_INFO!$H23=0,COUNTRY_INFO!$H23=4,COUNTRY_INFO!$H23=99),OR(COUNTRY_INFO!$J23=0,COUNTRY_INFO!$J23=4)),0,COUNTRY_INFO!$F23)) -> 78899 | F23: 124146 | G23: =IF(AND(INTRO!$E$37="Non-endemic",INTRO!$E$41="Non-endemic"),0,COUNTRY_INFO!Q23) -> 0 | H23: =IF(AND(INTRO!$E$37="Non-endemic",INTRO!$E$41="Non-endemic"),0,COUNTRY_INFO!S23) -> 0 | I23: =IF($G23=1,IVM!$G23,0) -> 0 | J23: =IF($G23=0, " ", IF(COUNTRY_INFO!$H23=1, IF(COUNTRY_INFO!$L23=1, 0," ")," ")) ->  | L23: ALB | M23: =IF($L23="ALB", IF(INTRO!$E$39="Non-endemic",IF($H23<>0,$D23*($H23-$G23),0),$D23*$H23), 0) -> 0 | N23: 0 | P23: 0 | Q23: =IF($L23="MBD", IF(INTRO!$E$39="Non-endemic",IF($H23<>0,$D23*($H23-$G23),0),$D23*$H23),0) -> 0 | R23: 0 | T23: 0 | V23: 0 | W23: 0 | Y23: 0 | Z23: 0 | AB23: 0 | AC23: 0 | AD23: =COUNTRY_INFO!I23 -> 4
A24: =IF(AND(INTRO!$E$37="Non-endemic",INTRO!$E$41="Non-endemic")," ",IF(COUNTRY_INFO!A24=0," ",COUNTRY_INFO!A24)) -> ANGOLA | B24: =IF(AND(INTRO!$E$37="Non-endemic",INTRO!$E$41="Non-endemic")," ",IF(COUNTRY_INFO!B24=0," ",COUNTRY_INFO!B24)) -> BENGUELA | C24: =IF(AND(INTRO!$E$37="Non-endemic",INTRO!$E$41="Non-endemic")," ",IF(COUNTRY_INFO!C24=0," ",COUNTRY_INFO!C24)) -> LOBITO | D24: =IF(AND(INTRO!$E$37="Non-endemic",INTRO!$E$41="Non-endemic"),0,IF(AND(OR(COUNTRY_INFO!$H24=0,COUNTRY_INFO!$H24=4,COUNTRY_INFO!$H24=99),OR(COUNTRY_INFO!$J24=0,COUNTRY_INFO!$J24=4)),0,COUNTRY_INFO!$E24)) -> 75527 | E24: =IF(AND(INTRO!$E$37="Non-endemic",INTRO!$E$41="Non-endemic"),0,IF(AND(OR(COUNTRY_INFO!$H24=0,COUNTRY_INFO!$H24=4,COUNTRY_INFO!$H24=99),OR(COUNTRY_INFO!$J24=0,COUNTRY_INFO!$J24=4)),0,COUNTRY_INFO!$F24)) -> 131700 | F24: 207227 | G24: =IF(AND(INTRO!$E$37="Non-endemic",INTRO!$E$41="Non-endemic"),0,COUNTRY_INFO!Q24) -> 1 | H24: =IF(AND(INTRO!$E$37="Non-endemic",INTRO!$E$41="Non-endemic"),0,COUNTRY_INFO!S24) -> 0 | I24: =IF($G24=1,IVM!$G24,0) -> 380467 | J24: =IF($G24=0, " ", IF(COUNTRY_INFO!$H24=1, IF(COUNTRY_INFO!$L24=1, 0," ")," ")) ->  | K24: 2 | L24: ALB | M24: =IF($L24="ALB", IF(INTRO!$E$39="Non-endemic",IF($H24<>0,$D24*($H24-$G24),0),$D24*$H24), 0) -> 0 | N24: 0 | P24: 0 | Q24: =IF($L24="MBD", IF(INTRO!$E$39="Non-endemic",IF($H24<>0,$D24*($H24-$G24),0),$D24*$H24),0) -> 0 | R24: 0 | T24: 0 | V24: 380467 | W24: 1903 | Y24: 0 | Z24: 0 | AB24: 0 | AC24: 0 | AD24: =COUNTRY_INFO!I24 -> 4
A25: =IF(AND(INTRO!$E$37="Non-endemic",INTRO!$E$41="Non-endemic")," ",IF(COUNTRY_INFO!A25=0," ",COUNTRY_INFO!A25)) -> ANGOLA | B25: =IF(AND(INTRO!$E$37="Non-endemic",INTRO!$E$41="Non-endemic")," ",IF(COUNTRY_INFO!B25=0," ",COUNTRY_INFO!B25)) -> BIE | C25: =IF(AND(INTRO!$E$37="Non-endemic",INTRO!$E$41="Non-endemic")," ",IF(COUNTRY_INFO!C25=0," ",COUNTRY_INFO!C25)) -> ANDULO | D25: =IF(AND(INTRO!$E$37="Non-endemic",INTRO!$E$41="Non-endemic"),0,IF(AND(OR(COUNTRY_INFO!$H25=0,COUNTRY_INFO!$H25=4,COUNTRY_INFO!$H25=99),OR(COUNTRY_INFO!$J25=0,COUNTRY_INFO!$J25=4)),0,COUNTRY_INFO!$E25)) -> 51757 | E25: =IF(AND(INTRO!$E$37="Non-endemic",INTRO!$E$41="Non-endemic"),0,IF(AND(OR(COUNTRY_INFO!$H25=0,COUNTRY_INFO!$H25=4,COUNTRY_INFO!$H25=99),OR(COUNTRY_INFO!$J25=0,COUNTRY_INFO!$J25=4)),0,COUNTRY_INFO!$F25)) -> 90251 | F25: 142008 | G25: =IF(AND(INTRO!$E$37="Non-endemic",INTRO!$E$41="Non-endemic"),0,COUNTRY_INFO!Q25) -> 0 | H25: =IF(AND(INTRO!$E$37="Non-endemic",INTRO!$E$41="Non-endemic"),0,COUNTRY_INFO!S25) -> 0 | I25: =IF($G25=1,IVM!$G25,0) -> 0 | J25: =IF($G25=0, " ", IF(COUNTRY_INFO!$H25=1, IF(COUNTRY_INFO!$L25=1, 0," ")," ")) ->  | L25: ALB | M25: =IF($L25="ALB", IF(INTRO!$E$39="Non-endemic",IF($H25<>0,$D25*($H25-$G25),0),$D25*$H25), 0) -> 0 | N25: 0 | P25: 0 | Q25: =IF($L25="MBD", IF(INTRO!$E$39="Non-endemic",IF($H25<>0,$D25*($H25-$G25),0),$D25*$H25),0) -> 0 | R25: 0 | T25: 0 | V25: 0 | W25: 0 | Y25: 0 | Z25: 0 | AB25: 0 | AC25: 0 | AD25: =COUNTRY_INFO!I25 -> 1
A26: =IF(AND(INTRO!$E$37="Non-endemic",INTRO!$E$41="Non-endemic")," ",IF(COUNTRY_INFO!A26=0," ",COUNTRY_INFO!A26)) -> ANGOLA | B26: =IF(AND(INTRO!$E$37="Non-endemic",INTRO!$E$41="Non-endemic")," ",IF(COUNTRY_INFO!B26=0," ",COUNTRY_INFO!B26)) -> BIE | C26: =IF(AND(INTRO!$E$37="Non-endemic",INTRO!$E$41="Non-endemic")," ",IF(COUNTRY_INFO!C26=0," ",COUNTRY_INFO!C26)) -> CAMACUPA | D26: =IF(AND(INTRO!$E$37="Non-endemic",INTRO!$E$41="Non-endemic"),0,IF(AND(OR(COUNTRY_INFO!$H26=0,COUNTRY_INFO!$H26=4,COUNTRY_INFO!$H26=99),OR(COUNTRY_INFO!$J26=0,COUNTRY_INFO!$J26=4)),0,COUNTRY_INFO!$E26)) -> 31060 | E26: =IF(AND(INTRO!$E$37="Non-endemic",INTRO!$E$41="Non-endemic"),0,IF(AND(OR(COUNTRY_INFO!$H26=0,COUNTRY_INFO!$H26=4,COUNTRY_INFO!$H26=99),OR(COUNTRY_INFO!$J26=0,COUNTRY_INFO!$J26=4)),0,COUNTRY_INFO!$F26)) -> 54161 | F26: 85221 | G26: =IF(AND(INTRO!$E$37="Non-endemic",INTRO!$E$41="Non-endemic"),0,COUNTRY_INFO!Q26) -> 0 | H26: =IF(AND(INTRO!$E$37="Non-endemic",INTRO!$E$41="Non-endemic"),0,COUNTRY_INFO!S26) -> 0 | I26: =IF($G26=1,IVM!$G26,0) -> 0 | J26: =IF($G26=0, " ", IF(COUNTRY_INFO!$H26=1, IF(COUNTRY_INFO!$L26=1, 0," ")," ")) ->  | L26: ALB | M26: =IF($L26="ALB", IF(INTRO!$E$39="Non-endemic",IF($H26<>0,$D26*($H26-$G26),0),$D26*$H26), 0) -> 0 | N26: 0 | P26: 0 | Q26: =IF($L26="MBD", IF(INTRO!$E$39="Non-endemic",IF($H26<>0,$D26*($H26-$G26),0),$D26*$H26),0) -> 0 | R26: 0 | T26: 0 | V26: 0 | W26: 0 | Y26: 0 | Z26: 0 | AB26: 0 | AC26: 0 | AD26: =COUNTRY_INFO!I26 -> 1
A27: =IF(AND(INTRO!$E$37="Non-endemic",INTRO!$E$41="Non-endemic")," ",IF(COUNTRY_INFO!A27=0," ",COUNTRY_INFO!A27)) -> ANGOLA | B27: =IF(AND(INTRO!$E$37="Non-endemic",INTRO!$E$41="Non-endemic")," ",IF(COUNTRY_INFO!B27=0," ",COUNTRY_INFO!B27)) -> BIE | C27: =IF(AND(INTRO!$E$37="Non-endemic",INTRO!$E$41="Non-endemic")," ",IF(COUNTRY_INFO!C27=0," ",COUNTRY_INFO!C27)) -> CATABOLA | D27: =IF(AND(INTRO!$E$37="Non-endemic",INTRO!$E$41="Non-endemic"),0,IF(AND(OR(COUNTRY_INFO!$H27=0,COUNTRY_INFO!$H27=4,COUNTRY_INFO!$H27=99),OR(COUNTRY_INFO!$J27=0,COUNTRY_INFO!$J27=4)),0,COUNTRY_INFO!$E27)) -> 25387 | E27: =IF(AND(INTRO!$E$37="Non-endemic",INTRO!$E$41="Non-endemic"),0,IF(AND(OR(COUNTRY_INFO!$H27=0,COUNTRY_INFO!$H27=4,COUNTRY_INFO!$H27=99),OR(COUNTRY_INFO!$J27=0,COUNTRY_INFO!$J27=4)),0,COUNTRY_INFO!$F27)) -> 44269 | F27: 69656 | G27: =IF(AND(INTRO!$E$37="Non-endemic",INTRO!$E$41="Non-endemic"),0,COUNTRY_INFO!Q27) -> 0 | H27: =IF(AND(INTRO!$E$37="Non-endemic",INTRO!$E$41="Non-endemic"),0,COUNTRY_INFO!S27) -> 0 | I27: =IF($G27=1,IVM!$G27,0) -> 0 | J27: =IF($G27=0, " ", IF(COUNTRY_INFO!$H27=1, IF(COUNTRY_INFO!$L27=1, 0," ")," ")) ->  | L27: ALB | M27: =IF($L27="ALB", IF(INTRO!$E$39="Non-endemic",IF($H27<>0,$D27*($H27-$G27),0),$D27*$H27), 0) -> 0 | N27: 0 | P27: 0 | Q27: =IF($L27="MBD", IF(INTRO!$E$39="Non-endemic",IF($H27<>0,$D27*($H27-$G27),0),$D27*$H27),0) -> 0 | R27: 0 | T27: 0 | V27: 0 | W27: 0 | Y27: 0 | Z27: 0 | AB27: 0 | AC27: 0 | AD27: =COUNTRY_INFO!I27 -> 1
A28: =IF(AND(INTRO!$E$37="Non-endemic",INTRO!$E$41="Non-endemic")," ",IF(COUNTRY_INFO!A28=0," ",COUNTRY_INFO!A28)) -> ANGOLA | B28: =IF(AND(INTRO!$E$37="Non-endemic",INTRO!$E$41="Non-endemic")," ",IF(COUNTRY_INFO!B28=0," ",COUNTRY_INFO!B28)) -> BIE | C28: =IF(AND(INTRO!$E$37="Non-endemic",INTRO!$E$41="Non-endemic")," ",IF(COUNTRY_INFO!C28=0," ",COUNTRY_INFO!C28)) -> CHINGUAR | D28: =IF(AND(INTRO!$E$37="Non-endemic",INTRO!$E$41="Non-endemic"),0,IF(AND(OR(COUNTRY_INFO!$H28=0,COUNTRY_INFO!$H28=4,COUNTRY_INFO!$H28=99),OR(COUNTRY_INFO!$J28=0,COUNTRY_INFO!$J28=4)),0,COUNTRY_INFO!$E28)) -> 25936 | E28: =IF(AND(INTRO!$E$37="Non-endemic",INTRO!$E$41="Non-endemic"),0,IF(AND(OR(COUNTRY_INFO!$H28=0,COUNTRY_INFO!$H28=4,COUNTRY_INFO!$H28=99),OR(COUNTRY_INFO!$J28=0,COUNTRY_INFO!$J28=4)),0,COUNTRY_INFO!$F28)) -> 45226 | F28: 71162 | G28: =IF(AND(INTRO!$E$37="Non-endemic",INTRO!$E$41="Non-endemic"),0,COUNTRY_INFO!Q28) -> 0 | H28: =IF(AND(INTRO!$E$37="Non-endemic",INTRO!$E$41="Non-endemic"),0,COUNTRY_INFO!S28) -> 0 | I28: =IF($G28=1,IVM!$G28,0) -> 0 | J28: =IF($G28=0, " ", IF(COUNTRY_INFO!$H28=1, IF(COUNTRY_INFO!$L28=1, 0," ")," ")) ->  | L28: ALB | M28: =IF($L28="ALB", IF(INTRO!$E$39="Non-endemic",IF($H28<>0,$D28*($H28-$G28),0),$D28*$H28), 0) -> 0 | N28: 0 | P28: 0 | Q28: =IF($L28="MBD", IF(INTRO!$E$39="Non-endemic",IF($H28<>0,$D28*($H28-$G28),0),$D28*$H28),0) -> 0 | R28: 0 | T28: 0 | V28: 0 | W28: 0 | Y28: 0 | Z28: 0 | AB28: 0 | AC28: 0 | AD28: =COUNTRY_INFO!I28 -> 1
A29: =IF(AND(INTRO!$E$37="Non-endemic",INTRO!$E$41="Non-endemic")," ",IF(COUNTRY_INFO!A29=0," ",COUNTRY_INFO!A29)) -> ANGOLA | B29: =IF(AND(INTRO!$E$37="Non-endemic",INTRO!$E$41="Non-endemic")," ",IF(COUNTRY_INFO!B29=0," ",COUNTRY_INFO!B29)) -> BIE | C29: =IF(AND(INTRO!$E$37="Non-endemic",INTRO!$E$41="Non-endemic")," ",IF(COUNTRY_INFO!C29=0," ",COUNTRY_INFO!C29)) -> CHITEMBO | D29: =IF(AND(INTRO!$E$37="Non-endemic",INTRO!$E$41="Non-endemic"),0,IF(AND(OR(COUNTRY_INFO!$H29=0,COUNTRY_INFO!$H29=4,COUNTRY_INFO!$H29=99),OR(COUNTRY_INFO!$J29=0,COUNTRY_INFO!$J29=4)),0,COUNTRY_INFO!$E29)) -> 15669 | E29: =IF(AND(INTRO!$E$37="Non-endemic",INTRO!$E$41="Non-endemic"),0,IF(AND(OR(COUNTRY_INFO!$H29=0,COUNTRY_INFO!$H29=4,COUNTRY_INFO!$H29=99),OR(COUNTRY_INFO!$J29=0,COUNTRY_INFO!$J29=4)),0,COUNTRY_INFO!$F29)) -> 27322 | F29: 42991 | G29: =IF(AND(INTRO!$E$37="Non-endemic",INTRO!$E$41="Non-endemic"),0,COUNTRY_INFO!Q29) -> 0 | H29: =IF(AND(INTRO!$E$37="Non-endemic",INTRO!$E$41="Non-endemic"),0,COUNTRY_INFO!S29) -> 0 | I29: =IF($G29=1,IVM!$G29,0) -> 0 | J29: =IF($G29=0, " ", IF(COUNTRY_INFO!$H29=1, IF(COUNTRY_INFO!$L29=1, 0," ")," ")) ->  | L29: ALB | M29: =IF($L29="ALB", IF(INTRO!$E$39="Non-endemic",IF($H29<>0,$D29*($H29-$G29),0),$D29*$H29), 0) -> 0 | N29: 0 | P29: 0 | Q29: =IF($L29="MBD", IF(INTRO!$E$39="Non-endemic",IF($H29<>0,$D29*($H29-$G29),0),$D29*$H29),0) -> 0 | R29: 0 | T29: 0 | V29: 0 | W29: 0 | Y29: 0 | Z29: 0 | AB29: 0 | AC29: 0 | AD29: =COUNTRY_INFO!I29 -> 4
A30: =IF(AND(INTRO!$E$37="Non-endemic",INTRO!$E$41="Non-endemic")," ",IF(COUNTRY_INFO!A30=0," ",COUNTRY_INFO!A30)) -> ANGOLA | B30: =IF(AND(INTRO!$E$37="Non-endemic",INTRO!$E$41="Non-endemic")," ",IF(COUNTRY_INFO!B30=0," ",COUNTRY_INFO!B30)) -> BIE | C30: =IF(AND(INTRO!$E$37="Non-endemic",INTRO!$E$41="Non-endemic")," ",IF(COUNTRY_INFO!C30=0," ",COUNTRY_INFO!C30)) -> CUEMBA | D30: =IF(AND(INTRO!$E$37="Non-endemic",INTRO!$E$41="Non-endemic"),0,IF(AND(OR(COUNTRY_INFO!$H30=0,COUNTRY_INFO!$H30=4,COUNTRY_INFO!$H30=99),OR(COUNTRY_INFO!$J30=0,COUNTRY_INFO!$J30=4)),0,COUNTRY_INFO!$E30)) -> 11420 | E30: =IF(AND(INTRO!$E$37="Non-endemic",INTRO!$E$41="Non-endemic"),0,IF(AND(OR(COUNTRY_INFO!$H30=0,COUNTRY_INFO!$H30=4,COUNTRY_INFO!$H30=99),OR(COUNTRY_INFO!$J30=0,COUNTRY_INFO!$J30=4)),0,COUNTRY_INFO!$F30)) -> 19914 | F30: 31334 | G30: =IF(AND(INTRO!$E$37="Non-endemic",INTRO!$E$41="Non-endemic"),0,COUNTRY_INFO!Q30) -> 1 | H30: =IF(AND(INTRO!$E$37="Non-endemic",INTRO!$E$41="Non-endemic"),0,COUNTRY_INFO!S30) -> 0 | I30: =IF($G30=1,IVM!$G30,0) -> 57529 | J30: =IF($G30=0, " ", IF(COUNTRY_INFO!$H30=1, IF(COUNTRY_INFO!$L30=1, 0," ")," ")) ->  | L30: ALB | M30: =IF($L30="ALB", IF(INTRO!$E$39="Non-endemic",IF($H30<>0,$D30*($H30-$G30),0),$D30*$H30), 0) -> 0 | N30: 0 | P30: 0 | Q30: =IF($L30="MBD", IF(INTRO!$E$39="Non-endemic",IF($H30<>0,$D30*($H30-$G30),0),$D30*$H30),0) -> 0 | R30: 0 | T30: 0 | V30: 57529 | W30: 288 | Y30: 0 | Z30: 0 | AB30: 0 | AC30: 0 | AD30: =COUNTRY_INFO!I30 -> 1
A31: =IF(AND(INTRO!$E$37="Non-endemic",INTRO!$E$41="Non-endemic")," ",IF(COUNTRY_INFO!A31=0," ",COUNTRY_INFO!A31)) -> ANGOLA | B31: =IF(AND(INTRO!$E$37="Non-endemic",INTRO!$E$41="Non-endemic")," ",IF(COUNTRY_INFO!B31=0," ",COUNTRY_INFO!B31)) -> BIE | C31: =IF(AND(INTRO!$E$37="Non-endemic",INTRO!$E$41="Non-endemic")," ",IF(COUNTRY_INFO!C31=0," ",COUNTRY_INFO!C31)) -> CUNHINGA | D31: =IF(AND(INTRO!$E$37="Non-endemic",INTRO!$E$41="Non-endemic"),0,IF(AND(OR(COUNTRY_INFO!$H31=0,COUNTRY_INFO!$H31=4,COUNTRY_INFO!$H31=99),OR(COUNTRY_INFO!$J31=0,COUNTRY_INFO!$J31=4)),0,COUNTRY_INFO!$E31)) -> 14801 | E31: =IF(AND(INTRO!$E$37="Non-endemic",INTRO!$E$41="Non-endemic"),0,IF(AND(OR(COUNTRY_INFO!$H31=0,COUNTRY_INFO!$H31=4,COUNTRY_INFO!$H31=99),OR(COUNTRY_INFO!$J31=0,COUNTRY_INFO!$J31=4)),0,COUNTRY_INFO!$F31)) -> 25809 | F31: 40610 | G31: =IF(AND(INTRO!$E$37="Non-endemic",INTRO!$E$41="Non-endemic"),0,COUNTRY_INFO!Q31) -> 0 | H31: =IF(AND(INTRO!$E$37="Non-endemic",INTRO!$E$41="Non-endemic"),0,COUNTRY_INFO!S31) -> 0 | I31: =IF($G31=1,IVM!$G31,0) -> 0 | J31: =IF($G31=0, " ", IF(COUNTRY_INFO!$H31=1, IF(COUNTRY_INFO!$L31=1, 0," ")," ")) ->  | L31: ALB | M31: =IF($L31="ALB", IF(INTRO!$E$39="Non-endemic",IF($H31<>0,$D31*($H31-$G31),0),$D31*$H31), 0) -> 0 | N31: 0 | P31: 0 | Q31: =IF($L31="MBD", IF(INTRO!$E$39="Non-endemic",IF($H31<>0,$D31*($H31-$G31),0),$D31*$H31),0) -> 0 | R31: 0 | T31: 0 | V31: 0 | W31: 0 | Y31: 0 | Z31: 0 | AB31: 0 | AC31: 0 | AD31: =COUNTRY_INFO!I31 -> 1
A32: =IF(AND(INTRO!$E$37="Non-endemic",INTRO!$E$41="Non-endemic")," ",IF(COUNTRY_INFO!A32=0," ",COUNTRY_INFO!A32)) -> ANGOLA | B32: =IF(AND(INTRO!$E$37="Non-endemic",INTRO!$E$41="Non-endemic")," ",IF(COUNTRY_INFO!B32=0," ",COUNTRY_INFO!B32)) -> BIE | C32: =IF(AND(INTRO!$E$37="Non-endemic",INTRO!$E$41="Non-endemic")," ",IF(COUNTRY_INFO!C32=0," ",COUNTRY_INFO!C32)) -> CUITO | D32: =IF(AND(INTRO!$E$37="Non-endemic",INTRO!$E$41="Non-endemic"),0,IF(AND(OR(COUNTRY_INFO!$H32=0,COUNTRY_INFO!$H32=4,COUNTRY_INFO!$H32=99),OR(COUNTRY_INFO!$J32=0,COUNTRY_INFO!$J32=4)),0,COUNTRY_INFO!$E32)) -> 90394 | E32: =IF(AND(INTRO!$E$37="Non-endemic",INTRO!$E$41="Non-endemic"),0,IF(AND(OR(COUNTRY_INFO!$H32=0,COUNTRY_INFO!$H32=4,COUNTRY_INFO!$H32=99),OR(COUNTRY_INFO!$J32=0,COUNTRY_INFO!$J32=4)),0,COUNTRY_INFO!$F32)) -> 157624 | F32: 248018 | G32: =IF(AND(INTRO!$E$37="Non-endemic",INTRO!$E$41="Non-endemic"),0,COUNTRY_INFO!Q32) -> 0 | H32: =IF(AND(INTRO!$E$37="Non-endemic",INTRO!$E$41="Non-endemic"),0,COUNTRY_INFO!S32) -> 0 | I32: =IF($G32=1,IVM!$G32,0) -> 0 | J32: =IF($G32=0, " ", IF(COUNTRY_INFO!$H32=1, IF(COUNTRY_INFO!$L32=1, 0," ")," ")) ->  | L32: ALB | M32: =IF($L32="ALB", IF(INTRO!$E$39="Non-endemic",IF($H32<>0,$D32*($H32-$G32),0),$D32*$H32), 0) -> 0 | N32: 0 | P32: 0 | Q32: =IF($L32="MBD", IF(INTRO!$E$39="Non-endemic",IF($H32<>0,$D32*($H32-$G32),0),$D32*$H32),0) -> 0 | R32: 0 | T32: 0 | V32: 0 | W32: 0 | Y32: 0 | Z32: 0 | AB32: 0 | AC32: 0 | AD32: =COUNTRY_INFO!I32 -> 1
A33: =IF(AND(INTRO!$E$37="Non-endemic",INTRO!$E$41="Non-endemic")," ",IF(COUNTRY_INFO!A33=0," ",COUNTRY_INFO!A33)) -> ANGOLA | B33: =IF(AND(INTRO!$E$37="Non-endemic",INTRO!$E$41="Non-endemic")," ",IF(COUNTRY_INFO!B33=0," ",COUNTRY_INFO!B33)) -> BIE | C33: =IF(AND(INTRO!$E$37="Non-endemic",INTRO!$E$41="Non-endemic")," ",IF(COUNTRY_INFO!C33=0," ",COUNTRY_INFO!C33)) -> NHAREA | D33: =IF(AND(INTRO!$E$37="Non-endemic",INTRO!$E$41="Non-endemic"),0,IF(AND(OR(COUNTRY_INFO!$H33=0,COUNTRY_INFO!$H33=4,COUNTRY_INFO!$H33=99),OR(COUNTRY_INFO!$J33=0,COUNTRY_INFO!$J33=4)),0,COUNTRY_INFO!$E33)) -> 25329 | E33: =IF(AND(INTRO!$E$37="Non-endemic",INTRO!$E$41="Non-endemic"),0,IF(AND(OR(COUNTRY_INFO!$H33=0,COUNTRY_INFO!$H33=4,COUNTRY_INFO!$H33=99),OR(COUNTRY_INFO!$J33=0,COUNTRY_INFO!$J33=4)),0,COUNTRY_INFO!$F33)) -> 44167 | F33: 69496 | G33: =IF(AND(INTRO!$E$37="Non-endemic",INTRO!$E$41="Non-endemic"),0,COUNTRY_INFO!Q33) -> 0 | H33: =IF(AND(INTRO!$E$37="Non-endemic",INTRO!$E$41="Non-endemic"),0,COUNTRY_INFO!S33) -> 0 | I33: =IF($G33=1,IVM!$G33,0) -> 0 | J33: =IF($G33=0, " ", IF(COUNTRY_INFO!$H33=1, IF(COUNTRY_INFO!$L33=1, 0," ")," ")) ->  | L33: ALB | M33: =IF($L33="ALB", IF(INTRO!$E$39="Non-endemic",IF($H33<>0,$D33*($H33-$G33),0),$D33*$H33), 0) -> 0 | N33: 0 | P33: 0 | Q33: =IF($L33="MBD", IF(INTRO!$E$39="Non-endemic",IF($H33<>0,$D33*($H33-$G33),0),$D33*$H33),0) -> 0 | R33: 0 | T33: 0 | V33: 0 | W33: 0 | Y33: 0 | Z33: 0 | AB33: 0 | AC33: 0 | AD33: =COUNTRY_INFO!I33 -> 1
A34: =IF(AND(INTRO!$E$37="Non-endemic",INTRO!$E$41="Non-endemic")," ",IF(COUNTRY_INFO!A34=0," ",COUNTRY_INFO!A34)) -> ANGOLA | B34: =IF(AND(INTRO!$E$37="Non-endemic",INTRO!$E$41="Non-endemic")," ",IF(COUNTRY_INFO!B34=0," ",COUNTRY_INFO!B34)) -> CABINDA | C34: =IF(AND(INTRO!$E$37="Non-endemic",INTRO!$E$41="Non-endemic")," ",IF(COUNTRY_INFO!C34=0," ",COUNTRY_INFO!C34)) -> BELIZE | D34: =IF(AND(INTRO!$E$37="Non-endemic",INTRO!$E$41="Non-endemic"),0,IF(AND(OR(COUNTRY_INFO!$H34=0,COUNTRY_INFO!$H34=4,COUNTRY_INFO!$H34=99),OR(COUNTRY_INFO!$J34=0,COUNTRY_INFO!$J34=4)),0,COUNTRY_INFO!$E34)) -> 3806 | E34: =IF(AND(INTRO!$E$37="Non-endemic",INTRO!$E$41="Non-endemic"),0,IF(AND(OR(COUNTRY_INFO!$H34=0,COUNTRY_INFO!$H34=4,COUNTRY_INFO!$H34=99),OR(COUNTRY_INFO!$J34=0,COUNTRY_INFO!$J34=4)),0,COUNTRY_INFO!$F34)) -> 6637 | F34: 10443 | G34: =IF(AND(INTRO!$E$37="Non-endemic",INTRO!$E$41="Non-endemic"),0,COUNTRY_INFO!Q34) -> 1 | H34: =IF(AND(INTRO!$E$37="Non-endemic",INTRO!$E$41="Non-endemic"),0,COUNTRY_INFO!S34) -> 1 | I34: =IF($G34=1,IVM!$G34,0) -> 0 | J34: 19173 | K34: 2 | L34: ALB | M34: =IF($L34="ALB", IF(INTRO!$E$39="Non-endemic",IF($H34<>0,$D34*($H34-$G34),0),$D34*$H34), 0) -> 3806 | N34: 0 | P34: 3806 | Q34: =IF($L34="MBD", IF(INTRO!$E$39="Non-endemic",IF($H34<>0,$D34*($H34-$G34),0),$D34*$H34),0) -> 0 | R34: 0 | T34: 0 | V34: 38346 | W34: 192 | Y34: 0 | Z34: 0 | AB34: 0 | AC34: 0 | AD34: =COUNTRY_INFO!I34 -> 4
A35: =IF(AND(INTRO!$E$37="Non-endemic",INTRO!$E$41="Non-endemic")," ",IF(COUNTRY_INFO!A35=0," ",COUNTRY_INFO!A35)) -> ANGOLA | B35: =IF(AND(INTRO!$E$37="Non-endemic",INTRO!$E$41="Non-endemic")," ",IF(COUNTRY_INFO!B35=0," ",COUNTRY_INFO!B35)) -> CABINDA | C35: =IF(AND(INTRO!$E$37="Non-endemic",INTRO!$E$41="Non-endemic")," ",IF(COUNTRY_INFO!C35=0," ",COUNTRY_INFO!C35)) -> BUCO ZAU | D35: =IF(AND(INTRO!$E$37="Non-endemic",INTRO!$E$41="Non-endemic"),0,IF(AND(OR(COUNTRY_INFO!$H35=0,COUNTRY_INFO!$H35=4,COUNTRY_INFO!$H35=99),OR(COUNTRY_INFO!$J35=0,COUNTRY_INFO!$J35=4)),0,COUNTRY_INFO!$E35)) -> 6380 | E35: =IF(AND(INTRO!$E$37="Non-endemic",INTRO!$E$41="Non-endemic"),0,IF(AND(OR(COUNTRY_INFO!$H35=0,COUNTRY_INFO!$H35=4,COUNTRY_INFO!$H35=99),OR(COUNTRY_INFO!$J35=0,COUNTRY_INFO!$J35=4)),0,COUNTRY_INFO!$F35)) -> 11125 | F35: 17505 | G35: =IF(AND(INTRO!$E$37="Non-endemic",INTRO!$E$41="Non-endemic"),0,COUNTRY_INFO!Q35) -> 1 | H35: =IF(AND(INTRO!$E$37="Non-endemic",INTRO!$E$41="Non-endemic"),0,COUNTRY_INFO!S35) -> 1 | I35: =IF($G35=1,IVM!$G35,0) -> 0 | J35: 32139 | K35: 2 | L35: ALB | M35: =IF($L35="ALB", IF(INTRO!$E$39="Non-endemic",IF($H35<>0,$D35*($H35-$G35),0),$D35*$H35), 0) -> 6380 | N35: 0 | P35: 6380 | Q35: =IF($L35="MBD", IF(INTRO!$E$39="Non-endemic",IF($H35<>0,$D35*($H35-$G35),0),$D35*$H35),0) -> 0 | R35: 0 | T35: 0 | V35: 64278 | W35: 322 | Y35: 0 | Z35: 0 | AB35: 0 | AC35: 0 | AD35: =COUNTRY_INFO!I35 -> 4
A36: =IF(AND(INTRO!$E$37="Non-endemic",INTRO!$E$41="Non-endemic")," ",IF(COUNTRY_INFO!A36=0," ",COUNTRY_INFO!A36)) -> ANGOLA | B36: =IF(AND(INTRO!$E$37="Non-endemic",INTRO!$E$41="Non-endemic")," ",IF(COUNTRY_INFO!B36=0," ",COUNTRY_INFO!B36)) -> CABINDA | C36: =IF(AND(INTRO!$E$37="Non-endemic",INTRO!$E$41="Non-endemic")," ",IF(COUNTRY_INFO!C36=0," ",COUNTRY_INFO!C36)) -> CABINDA | D36: =IF(AND(INTRO!$E$37="Non-endemic",INTRO!$E$41="Non-endemic"),0,IF(AND(OR(COUNTRY_INFO!$H36=0,COUNTRY_INFO!$H36=4,COUNTRY_INFO!$H36=99),OR(COUNTRY_INFO!$J36=0,COUNTRY_INFO!$J36=4)),0,COUNTRY_INFO!$E36)) -> 121532 | E36: =IF(AND(INTRO!$E$37="Non-endemic",INTRO!$E$41="Non-endemic"),0,IF(AND(OR(COUNTRY_INFO!$H36=0,COUNTRY_INFO!$H36=4,COUNTRY_INFO!$H36=99),OR(COUNTRY_INFO!$J36=0,COUNTRY_INFO!$J36=4)),0,COUNTRY_INFO!$F36)) -> 211922 | F36: 333454 | G36: =IF(AND(INTRO!$E$37="Non-endemic",INTRO!$E$41="Non-endemic"),0,COUNTRY_INFO!Q36) -> 1 | H36: =IF(AND(INTRO!$E$37="Non-endemic",INTRO!$E$41="Non-endemic"),0,COUNTRY_INFO!S36) -> 0 | I36: =IF($G36=1,IVM!$G36,0) -> 0 | J36: 612219 | K36: 2 | L36: ALB | M36: =IF($L36="ALB", IF(INTRO!$E$39="Non-endemic",IF($H36<>0,$D36*($H36-$G36),0),$D36*$H36), 0) -> 0 | N36: 0 | P36: 0 | Q36: =IF($L36="MBD", IF(INTRO!$E$39="Non-endemic",IF($H36<>0,$D36*($H36-$G36),0),$D36*$H36),0) -> 0 | R36: 0 | T36: 0 | V36: 1224438 | W36: 6123 | Y36: 0 | Z36: 0 | AB36: 0 | AC36: 0 | AD36: =COUNTRY_INFO!I36 -> 4
A37: =IF(AND(INTRO!$E$37="Non-endemic",INTRO!$E$41="Non-endemic")," ",IF(COUNTRY_INFO!A37=0," ",COUNTRY_INFO!A37)) -> ANGOLA | B37: =IF(AND(INTRO!$E$37="Non-endemic",INTRO!$E$41="Non-endemic")," ",IF(COUNTRY_INFO!B37=0," ",COUNTRY_INFO!B37)) -> CABINDA | C37: =IF(AND(INTRO!$E$37="Non-endemic",INTRO!$E$41="Non-endemic")," ",IF(COUNTRY_INFO!C37=0," ",COUNTRY_INFO!C37)) -> CACONGO | D37: =IF(AND(INTRO!$E$37="Non-endemic",INTRO!$E$41="Non-endemic"),0,IF(AND(OR(COUNTRY_INFO!$H37=0,COUNTRY_INFO!$H37=4,COUNTRY_INFO!$H37=99),OR(COUNTRY_INFO!$J37=0,COUNTRY_INFO!$J37=4)),0,COUNTRY_INFO!$E37)) -> 7603 | E37: =IF(AND(INTRO!$E$37="Non-endemic",INTRO!$E$41="Non-endemic"),0,IF(AND(OR(COUNTRY_INFO!$H37=0,COUNTRY_INFO!$H37=4,COUNTRY_INFO!$H37=99),OR(COUNTRY_INFO!$J37=0,COUNTRY_INFO!$J37=4)),0,COUNTRY_INFO!$F37)) -> 13257 | F37: 20860 | G37: =IF(AND(INTRO!$E$37="Non-endemic",INTRO!$E$41="Non-endemic"),0,COUNTRY_INFO!Q37) -> 1 | H37: =IF(AND(INTRO!$E$37="Non-endemic",INTRO!$E$41="Non-endemic"),0,COUNTRY_INFO!S37) -> 0 | I37: =IF($G37=1,IVM!$G37,0) -> 0 | J37: 38299 | K37: 2 | L37: ALB | M37: =IF($L37="ALB", IF(INTRO!$E$39="Non-endemic",IF($H37<>0,$D37*($H37-$G37),0),$D37*$H37), 0) -> 0 | N37: 0 | P37: 0 | Q37: =IF($L37="MBD", IF(INTRO!$E$39="Non-endemic",IF($H37<>0,$D37*($H37-$G37),0),$D37*$H37),0) -> 0 | R37: 0 | T37: 0 | V37: 76598 | W37: 383 | Y37: 0 | Z37: 0 | AB37: 0 | AC37: 0 | AD37: =COUNTRY_INFO!I37 -> 4
A38: =IF(AND(INTRO!$E$37="Non-endemic",INTRO!$E$41="Non-endemic")," ",IF(COUNTRY_INFO!A38=0," ",COUNTRY_INFO!A38)) -> ANGOLA | B38: =IF(AND(INTRO!$E$37="Non-endemic",INTRO!$E$41="Non-endemic")," ",IF(COUNTRY_INFO!B38=0," ",COUNTRY_INFO!B38)) -> CUNENE | C38: =IF(AND(INTRO!$E$37="Non-endemic",INTRO!$E$41="Non-endemic")," ",IF(COUNTRY_INFO!C38=0," ",COUNTRY_INFO!C38)) -> CAHAMA | D38: =IF(AND(INTRO!$E$37="Non-endemic",INTRO!$E$41="Non-endemic"),0,IF(AND(OR(COUNTRY_INFO!$H38=0,COUNTRY_INFO!$H38=4,COUNTRY_INFO!$H38=99),OR(COUNTRY_INFO!$J38=0,COUNTRY_INFO!$J38=4)),0,COUNTRY_INFO!$E38)) -> 13955 | E38: =IF(AND(INTRO!$E$37="Non-endemic",INTRO!$E$41="Non-endemic"),0,IF(AND(OR(COUNTRY_INFO!$H38=0,COUNTRY_INFO!$H38=4,COUNTRY_INFO!$H38=99),OR(COUNTRY_INFO!$J38=0,COUNTRY_INFO!$J38=4)),0,COUNTRY_INFO!$F38)) -> 24334 | F38: 38289 | G38: =IF(AND(INTRO!$E$37="Non-endemic",INTRO!$E$41="Non-endemic"),0,COUNTRY_INFO!Q38) -> 0 | H38: =IF(AND(INTRO!$E$37="Non-endemic",INTRO!$E$41="Non-endemic"),0,COUNTRY_INFO!S38) -> 0 | I38: =IF($G38=1,IVM!$G38,0) -> 0 | J38: =IF($G38=0, " ", IF(COUNTRY_INFO!$H38=1, IF(COUNTRY_INFO!$L38=1, 0," ")," ")) ->  | L38: ALB | M38: =IF($L38="ALB", IF(INTRO!$E$39="Non-endemic",IF($H38<>0,$D38*($H38-$G38),0),$D38*$H38), 0) -> 0 | N38: 0 | P38: 0 | Q38: =IF($L38="MBD", IF(INTRO!$E$39="Non-endemic",IF($H38<>0,$D38*($H38-$G38),0),$D38*$H38),0) -> 0 | R38: 0 | T38: 0 | V38: 0 | W38: 0 | Y38: 0 | Z38: 0 | AB38: 0 | AC38: 0 | AD38: =COUNTRY_INFO!I38 -> 4
A39: =IF(AND(INTRO!$E$37="Non-endemic",INTRO!$E$41="Non-endemic")," ",IF(COUNTRY_INFO!A39=0," ",COUNTRY_INFO!A39)) -> ANGOLA | B39: =IF(AND(INTRO!$E$37="Non-endemic",INTRO!$E$41="Non-endemic")," ",IF(COUNTRY_INFO!B39=0," ",COUNTRY_INFO!B39)) -> CUNENE | C39: =IF(AND(INTRO!$E$37="Non-endemic",INTRO!$E$41="Non-endemic")," ",IF(COUNTRY_INFO!C39=0," ",COUNTRY_INFO!C39)) -> CUANHAMA | D39: =IF(AND(INTRO!$E$37="Non-endemic",INTRO!$E$41="Non-endemic"),0,IF(AND(OR(COUNTRY_INFO!$H39=0,COUNTRY_INFO!$H39=4,COUNTRY_INFO!$H39=99),OR(COUNTRY_INFO!$J39=0,COUNTRY_INFO!$J39=4)),0,COUNTRY_INFO!$E39)) -> 74599 | E39: =IF(AND(INTRO!$E$37="Non-endemic",INTRO!$E$41="Non-endemic"),0,IF(AND(OR(COUNTRY_INFO!$H39=0,COUNTRY_INFO!$H39=4,COUNTRY_INFO!$H39=99),OR(COUNTRY_INFO!$J39=0,COUNTRY_INFO!$J39=4)),0,COUNTRY_INFO!$F39)) -> 130082 | F39: 204681 | G39: =IF(AND(INTRO!$E$37="Non-endemic",INTRO!$E$41="Non-endemic"),0,COUNTRY_INFO!Q39) -> 0 | H39: =IF(AND(INTRO!$E$37="Non-endemic",INTRO!$E$41="Non-endemic"),0,COUNTRY_INFO!S39) -> 0 | I39: =IF($G39=1,IVM!$G39,0) -> 0 | J39: =IF($G39=0, " ", IF(COUNTRY_INFO!$H39=1, IF(COUNTRY_INFO!$L39=1, 0," ")," ")) ->  | L39: ALB | M39: =IF($L39="ALB", IF(INTRO!$E$39="Non-endemic",IF($H39<>0,$D39*($H39-$G39),0),$D39*$H39), 0) -> 0 | N39: 0 | P39: 0 | Q39: =IF($L39="MBD", IF(INTRO!$E$39="Non-endemic",IF($H39<>0,$D39*($H39-$G39),0),$D39*$H39),0) -> 0 | R39: 0 | T39: 0 | V39: 0 | W39: 0 | Y39: 0 | Z39: 0 | AB39: 0 | AC39: 0 | AD39: =COUNTRY_INFO!I39 -> 4
A40: =IF(AND(INTRO!$E$37="Non-endemic",INTRO!$E$41="Non-endemic")," ",IF(COUNTRY_INFO!A40=0," ",COUNTRY_INFO!A40)) -> ANGOLA | B40: =IF(AND(INTRO!$E$37="Non-endemic",INTRO!$E$41="Non-endemic")," ",IF(COUNTRY_INFO!B40=0," ",COUNTRY_INFO!B40)) -> CUNENE | C40: =IF(AND(INTRO!$E$37="Non-endemic",INTRO!$E$41="Non-endemic")," ",IF(COUNTRY_INFO!C40=0," ",COUNTRY_INFO!C40)) -> CUROCA | D40: =IF(AND(INTRO!$E$37="Non-endemic",INTRO!$E$41="Non-endemic"),0,IF(AND(OR(COUNTRY_INFO!$H40=0,COUNTRY_INFO!$H40=4,COUNTRY_INFO!$H40=99),OR(COUNTRY_INFO!$J40=0,COUNTRY_INFO!$J40=4)),0,COUNTRY_INFO!$E40)) -> 0 | E40: =IF(AND(INTRO!$E$37="Non-endemic",INTRO!$E$41="Non-endemic"),0,IF(AND(OR(COUNTRY_INFO!$H40=0,COUNTRY_INFO!$H40=4,COUNTRY_INFO!$H40=99),OR(COUNTRY_INFO!$J40=0,COUNTRY_INFO!$J40=4)),0,COUNTRY_INFO!$F40)) -> 0 | F40: 0 | G40: =IF(AND(INTRO!$E$37="Non-endemic",INTRO!$E$41="Non-endemic"),0,COUNTRY_INFO!Q40) -> 0 | H40: =IF(AND(INTRO!$E$37="Non-endemic",INTRO!$E$41="Non-endemic"),0,COUNTRY_INFO!S40) -> 0 | I40: =IF($G40=1,IVM!$G40,0) -> 0 | J40: =IF($G40=0, " ", IF(COUNTRY_INFO!$H40=1, IF(COUNTRY_INFO!$L40=1, 0," ")," ")) ->  | L40: ALB | M40: =IF($L40="ALB", IF(INTRO!$E$39="Non-endemic",IF($H40<>0,$D40*($H40-$G40),0),$D40*$H40), 0) -> 0 | N40: 0 | P40: 0 | Q40: =IF($L40="MBD", IF(INTRO!$E$39="Non-endemic",IF($H40<>0,$D40*($H40-$G40),0),$D40*$H40),0) -> 0 | R40: 0 | T40: 0 | V40: 0 | W40: 0 | Y40: 0 | Z40: 0 | AB40: 0 | AC40: 0 | AD40: =COUNTRY_INFO!I40 -> 4
A41: =IF(AND(INTRO!$E$37="Non-endemic",INTRO!$E$41="Non-endemic")," ",IF(COUNTRY_INFO!A41=0," ",COUNTRY_INFO!A41)) -> ANGOLA | B41: =IF(AND(INTRO!$E$37="Non-endemic",INTRO!$E$41="Non-endemic")," ",IF(COUNTRY_INFO!B41=0," ",COUNTRY_INFO!B41)) -> CUNENE | C41: =IF(AND(INTRO!$E$37="Non-endemic",INTRO!$E$41="Non-endemic")," ",IF(COUNTRY_INFO!C41=0," ",COUNTRY_INFO!C41)) -> CUVELAI | D41: =IF(AND(INTRO!$E$37="Non-endemic",INTRO!$E$41="Non-endemic"),0,IF(AND(OR(COUNTRY_INFO!$H41=0,COUNTRY_INFO!$H41=4,COUNTRY_INFO!$H41=99),OR(COUNTRY_INFO!$J41=0,COUNTRY_INFO!$J41=4)),0,COUNTRY_INFO!$E41)) -> 11433 | E41: =IF(AND(INTRO!$E$37="Non-endemic",INTRO!$E$41="Non-endemic"),0,IF(AND(OR(COUNTRY_INFO!$H41=0,COUNTRY_INFO!$H41=4,COUNTRY_INFO!$H41=99),OR(COUNTRY_INFO!$J41=0,COUNTRY_INFO!$J41=4)),0,COUNTRY_INFO!$F41)) -> 19935 | F41: 31368 | G41: =IF(AND(INTRO!$E$37="Non-endemic",INTRO!$E$41="Non-endemic"),0,COUNTRY_INFO!Q41) -> 0 | H41: =IF(AND(INTRO!$E$37="Non-endemic",INTRO!$E$41="Non-endemic"),0,COUNTRY_INFO!S41) -> 0 | I41: =IF($G41=1,IVM!$G41,0) -> 0 | J41: =IF($G41=0, " ", IF(COUNTRY_INFO!$H41=1, IF(COUNTRY_INFO!$L41=1, 0," ")," ")) ->  | L41: ALB | M41: =IF($L41="ALB", IF(INTRO!$E$39="Non-endemic",IF($H41<>0,$D41*($H41-$G41),0),$D41*$H41), 0) -> 0 | N41: =IF($L41="ALB", IF($H41=0, 0, IF(AND($I41=0, OR($J41=0,$J41=" ")), $E41*$H41, IF(AND($I41=0, $J41>0), IF(($H41-$K41)<=0, 0, $E41*(MAX($H41,$K41)-MIN($H41,$K41))), IF(AND($I41>0, $J41=0), $E41*($H41-$G41), IF($J41=" ", $E41*($H41-$G41), $J41*$E41/($I41+$J41)*$K41+$I41*$E41/($I41+$J41)*($H41-$G41)))))), 0) -> 0 | P41: 0 | Q41: =IF($L41="MBD", IF(INTRO!$E$39="Non-endemic",IF($H41<>0,$D41*($H41-$G41),0),$D41*$H41),0) -> 0 | R41: =IF($L41="MBD", IF($H41=0, 0, IF(AND($I41=0, OR($J41=0,$J41=" ")), $E41*$H41, IF(AND($I41=0, $J41>0), IF(($H41-$K41)<=0, 0, $E41*(MAX($H41,$K41)-MIN($H41,$K41))), IF(AND($I41>0, $J41=0), $E41*($H41-$G41), IF($J41=" ",$E41*($H41-$G41), $J41*$E41/($I41+$J41)*$K41+$I41*$E41/($I41+$J41)*($H41-$G41)))))), 0) -> 0 | T41: 0 | V41: =IF($J41<>" ", IF(($I41+$J41*$K41)>$U41, ($I41+$J41*$K41)-$U41,0), IF($I41>$U41, $I41-$U41, 0)) -> 0 | W41: =IF($J41<>" ", ROUNDUP(($I41+$J41*$K41)/200,0), ROUNDUP($I41/200,0)) -> 0 | Y41: 0 | Z41: 0 | AB41: 0 | AC41: 0 | AD41: =COUNTRY_INFO!I41 -> 4
A42: =IF(AND(INTRO!$E$37="Non-endemic",INTRO!$E$41="Non-endemic")," ",IF(COUNTRY_INFO!A42=0," ",COUNTRY_INFO!A42)) -> ANGOLA | B42: =IF(AND(INTRO!$E$37="Non-endemic",INTRO!$E$41="Non-endemic")," ",IF(COUNTRY_INFO!B42=0," ",COUNTRY_INFO!B42)) -> CUNENE | C42: =IF(AND(INTRO!$E$37="Non-endemic",INTRO!$E$41="Non-endemic")," ",IF(COUNTRY_INFO!C42=0," ",COUNTRY_INFO!C42)) -> NAMACUNDE | D42: =IF(AND(INTRO!$E$37="Non-endemic",INTRO!$E$41="Non-endemic"),0,IF(AND(OR(COUNTRY_INFO!$H42=0,COUNTRY_INFO!$H42=4,COUNTRY_INFO!$H42=99),OR(COUNTRY_INFO!$J42=0,COUNTRY_INFO!$J42=4)),0,COUNTRY_INFO!$E42)) -> 28293 | E42: =IF(AND(INTRO!$E$37="Non-endemic",INTRO!$E$41="Non-endemic"),0,IF(AND(OR(COUNTRY_INFO!$H42=0,COUNTRY_INFO!$H42=4,COUNTRY_INFO!$H42=99),OR(COUNTRY_INFO!$J42=0,COUNTRY_INFO!$J42=4)),0,COUNTRY_INFO!$F42)) -> 49336 | F42: 77629 | G42: =IF(AND(INTRO!$E$37="Non-endemic",INTRO!$E$41="Non-endemic"),0,COUNTRY_INFO!Q42) -> 0 | H42: =IF(AND(INTRO!$E$37="Non-endemic",INTRO!$E$41="Non-endemic"),0,COUNTRY_INFO!S42) -> 0 | I42: =IF($G42=1,IVM!$G42,0) -> 0 | J42: =IF($G42=0, " ", IF(COUNTRY_INFO!$H42=1, IF(COUNTRY_INFO!$L42=1, 0," ")," ")) ->  | L42: ALB | M42: =IF($L42="ALB", IF(INTRO!$E$39="Non-endemic",IF($H42<>0,$D42*($H42-$G42),0),$D42*$H42), 0) -> 0 | N42: 0 | P42: 0 | Q42: =IF($L42="MBD", IF(INTRO!$E$39="Non-endemic",IF($H42<>0,$D42*($H42-$G42),0),$D42*$H42),0) -> 0 | R42: 0 | T42: 0 | V42: 0 | W42: 0 | Y42: 0 | Z42: 0 | AB42: 0 | AC42: 0 | AD42: =COUNTRY_INFO!I42 -> 4
A43: =IF(AND(INTRO!$E$37="Non-endemic",INTRO!$E$41="Non-endemic")," ",IF(COUNTRY_INFO!A43=0," ",COUNTRY_INFO!A43)) -> ANGOLA | B43: =IF(AND(INTRO!$E$37="Non-endemic",INTRO!$E$41="Non-endemic")," ",IF(COUNTRY_INFO!B43=0," ",COUNTRY_INFO!B43)) -> CUNENE | C43: =IF(AND(INTRO!$E$37="Non-endemic",INTRO!$E$41="Non-endemic")," ",IF(COUNTRY_INFO!C43=0," ",COUNTRY_INFO!C43)) -> OMBADJA | D43: =IF(AND(INTRO!$E$37="Non-endemic",INTRO!$E$41="Non-endemic"),0,IF(AND(OR(COUNTRY_INFO!$H43=0,COUNTRY_INFO!$H43=4,COUNTRY_INFO!$H43=99),OR(COUNTRY_INFO!$J43=0,COUNTRY_INFO!$J43=4)),0,COUNTRY_INFO!$E43)) -> 60743 | E43: =IF(AND(INTRO!$E$37="Non-endemic",INTRO!$E$41="Non-endemic"),0,IF(AND(OR(COUNTRY_INFO!$H43=0,COUNTRY_INFO!$H43=4,COUNTRY_INFO!$H43=99),OR(COUNTRY_INFO!$J43=0,COUNTRY_INFO!$J43=4)),0,COUNTRY_INFO!$F43)) -> 105921 | F43: 166664 | G43: =IF(AND(INTRO!$E$37="Non-endemic",INTRO!$E$41="Non-endemic"),0,COUNTRY_INFO!Q43) -> 0 | H43: =IF(AND(INTRO!$E$37="Non-endemic",INTRO!$E$41="Non-endemic"),0,COUNTRY_INFO!S43) -> 1 | I43: =IF($G43=1,IVM!$G43,0) -> 0 | J43: =IF($G43=0, " ", IF(COUNTRY_INFO!$H43=1, IF(COUNTRY_INFO!$L43=1, 0," ")," ")) ->  | L43: ALB | M43: =IF($L43="ALB", IF(INTRO!$E$39="Non-endemic",IF($H43<>0,$D43*($H43-$G43),0),$D43*$H43), 0) -> 60743 | N43: 105921 | P43: 166664 | Q43: =IF($L43="MBD", IF(INTRO!$E$39="Non-endemic",IF($H43<>0,$D43*($H43-$G43),0),$D43*$H43),0) -> 0 | R43: 0 | T43: 0 | V43: 0 | W43: 0 | Y43: 105921 | Z43: 530 | AB43: 0 | AC43: 0 | AD43: =COUNTRY_INFO!I43 -> 4
A44: =IF(AND(INTRO!$E$37="Non-endemic",INTRO!$E$41="Non-endemic")," ",IF(COUNTRY_INFO!A44=0," ",COUNTRY_INFO!A44)) -> ANGOLA | B44: =IF(AND(INTRO!$E$37="Non-endemic",INTRO!$E$41="Non-endemic")," ",IF(COUNTRY_INFO!B44=0," ",COUNTRY_INFO!B44)) -> HUAMBO | C44: =IF(AND(INTRO!$E$37="Non-endemic",INTRO!$E$41="Non-endemic")," ",IF(COUNTRY_INFO!C44=0," ",COUNTRY_INFO!C44)) -> BAILUNDO | D44: =IF(AND(INTRO!$E$37="Non-endemic",INTRO!$E$41="Non-endemic"),0,IF(AND(OR(COUNTRY_INFO!$H44=0,COUNTRY_INFO!$H44=4,COUNTRY_INFO!$H44=99),OR(COUNTRY_INFO!$J44=0,COUNTRY_INFO!$J44=4)),0,COUNTRY_INFO!$E44)) -> 59659 | E44: =IF(AND(INTRO!$E$37="Non-endemic",INTRO!$E$41="Non-endemic"),0,IF(AND(OR(COUNTRY_INFO!$H44=0,COUNTRY_INFO!$H44=4,COUNTRY_INFO!$H44=99),OR(COUNTRY_INFO!$J44=0,COUNTRY_INFO!$J44=4)),0,COUNTRY_INFO!$F44)) -> 104030 | F44: 163689 | G44: =IF(AND(INTRO!$E$37="Non-endemic",INTRO!$E$41="Non-endemic"),0,COUNTRY_INFO!Q44) -> 0 | H44: =IF(AND(INTRO!$E$37="Non-endemic",INTRO!$E$41="Non-endemic"),0,COUNTRY_INFO!S44) -> 0 | I44: =IF($G44=1,IVM!$G44,0) -> 0 | J44: =IF($G44=0, " ", IF(COUNTRY_INFO!$H44=1, IF(COUNTRY_INFO!$L44=1, 0," ")," ")) ->  | L44: ALB | M44: =IF($L44="ALB", IF(INTRO!$E$39="Non-endemic",IF($H44<>0,$D44*($H44-$G44),0),$D44*$H44), 0) -> 0 | N44: 0 | P44: 0 | Q44: =IF($L44="MBD", IF(INTRO!$E$39="Non-endemic",IF($H44<>0,$D44*($H44-$G44),0),$D44*$H44),0) -> 0 | R44: 0 | T44: 0 | V44: 0 | W44: 0 | Y44: 0 | Z44: 0 | AB44: 0 | AC44: 0 | AD44: =COUNTRY_INFO!I44 -> 4
A45: =IF(AND(INTRO!$E$37="Non-endemic",INTRO!$E$41="Non-endemic")," ",IF(COUNTRY_INFO!A45=0," ",COUNTRY_INFO!A45)) -> ANGOLA | B45: =IF(AND(INTRO!$E$37="Non-endemic",INTRO!$E$41="Non-endemic")," ",IF(COUNTRY_INFO!B45=0," ",COUNTRY_INFO!B45)) -> HUAMBO | C45: =IF(AND(INTRO!$E$37="Non-endemic",INTRO!$E$41="Non-endemic")," ",IF(COUNTRY_INFO!C45=0," ",COUNTRY_INFO!C45)) -> CAALA | D45: =IF(AND(INTRO!$E$37="Non-endemic",INTRO!$E$41="Non-endemic"),0,IF(AND(OR(COUNTRY_INFO!$H45=0,COUNTRY_INFO!$H45=4,COUNTRY_INFO!$H45=99),OR(COUNTRY_INFO!$J45=0,COUNTRY_INFO!$J45=4)),0,COUNTRY_INFO!$E45)) -> 56680 | E45: =IF(AND(INTRO!$E$37="Non-endemic",INTRO!$E$41="Non-endemic"),0,IF(AND(OR(COUNTRY_INFO!$H45=0,COUNTRY_INFO!$H45=4,COUNTRY_INFO!$H45=99),OR(COUNTRY_INFO!$J45=0,COUNTRY_INFO!$J45=4)),0,COUNTRY_INFO!$F45)) -> 98836 | F45: 155516 | G45: =IF(AND(INTRO!$E$37="Non-endemic",INTRO!$E$41="Non-endemic"),0,COUNTRY_INFO!Q45) -> 0 | H45: =IF(AND(INTRO!$E$37="Non-endemic",INTRO!$E$41="Non-endemic"),0,COUNTRY_INFO!S45) -> 1 | I45: =IF($G45=1,IVM!$G45,0) -> 0 | J45: =IF($G45=0, " ", IF(COUNTRY_INFO!$H45=1, IF(COUNTRY_INFO!$L45=1, 0," ")," ")) ->  | L45: ALB | M45: =IF($L45="ALB", IF(INTRO!$E$39="Non-endemic",IF($H45<>0,$D45*($H45-$G45),0),$D45*$H45), 0) -> 56680 | N45: 98836 | P45: 155516 | Q45: =IF($L45="MBD", IF(INTRO!$E$39="Non-endemic",IF($H45<>0,$D45*($H45-$G45),0),$D45*$H45),0) -> 0 | R45: 0 | T45: 0 | V45: 0 | W45: 0 | Y45: 98836 | Z45: 495 | AB45: 0 | AC45: 0 | AD45: =COUNTRY_INFO!I45 -> 4
A46: =IF(AND(INTRO!$E$37="Non-endemic",INTRO!$E$41="Non-endemic")," ",IF(COUNTRY_INFO!A46=0," ",COUNTRY_INFO!A46)) -> ANGOLA | B46: =IF(AND(INTRO!$E$37="Non-endemic",INTRO!$E$41="Non-endemic")," ",IF(COUNTRY_INFO!B46=0," ",COUNTRY_INFO!B46)) -> HUAMBO | C46: =IF(AND(INTRO!$E$37="Non-endemic",INTRO!$E$41="Non-endemic")," ",IF(COUNTRY_INFO!C46=0," ",COUNTRY_INFO!C46)) -> ECUNHA | D46: =IF(AND(INTRO!$E$37="Non-endemic",INTRO!$E$41="Non-endemic"),0,IF(AND(OR(COUNTRY_INFO!$H46=0,COUNTRY_INFO!$H46=4,COUNTRY_INFO!$H46=99),OR(COUNTRY_INFO!$J46=0,COUNTRY_INFO!$J46=4)),0,COUNTRY_INFO!$E46)) -> 0 | E46: =IF(AND(INTRO!$E$37="Non-endemic",INTRO!$E$41="Non-endemic"),0,IF(AND(OR(COUNTRY_INFO!$H46=0,COUNTRY_INFO!$H46=4,COUNTRY_INFO!$H46=99),OR(COUNTRY_INFO!$J46=0,COUNTRY_INFO!$J46=4)),0,COUNTRY_INFO!$F46)) -> 0 | F46: 0 | G46: =IF(AND(INTRO!$E$37="Non-endemic",INTRO!$E$41="Non-endemic"),0,COUNTRY_INFO!Q46) -> 0 | H46: =IF(AND(INTRO!$E$37="Non-endemic",INTRO!$E$41="Non-endemic"),0,COUNTRY_INFO!S46) -> 0 | I46: =IF($G46=1,IVM!$G46,0) -> 0 | J46: =IF($G46=0, " ", IF(COUNTRY_INFO!$H46=1, IF(COUNTRY_INFO!$L46=1, 0," ")," ")) ->  | K46: 2 | L46: ALB | M46: =IF($L46="ALB", IF(INTRO!$E$39="Non-endemic",IF($H46<>0,$D46*($H46-$G46),0),$D46*$H46), 0) -> 0 | N46: 0 | P46: 0 | Q46: =IF($L46="MBD", IF(INTRO!$E$39="Non-endemic",IF($H46<>0,$D46*($H46-$G46),0),$D46*$H46),0) -> 0 | R46: 0 | T46: 0 | V46: 0 | W46: 0 | Y46: 0 | Z46: 0 | AB46: 0 | AC46: 0 | AD46: =COUNTRY_INFO!I46 -> 4
A47: =IF(AND(INTRO!$E$37="Non-endemic",INTRO!$E$41="Non-endemic")," ",IF(COUNTRY_INFO!A47=0," ",COUNTRY_INFO!A47)) -> ANGOLA | B47: =IF(AND(INTRO!$E$37="Non-endemic",INTRO!$E$41="Non-endemic")," ",IF(COUNTRY_INFO!B47=0," ",COUNTRY_INFO!B47)) -> HUAMBO | C47: =IF(AND(INTRO!$E$37="Non-endemic",INTRO!$E$41="Non-endemic")," ",IF(COUNTRY_INFO!C47=0," ",COUNTRY_INFO!C47)) -> HUAMBO | D47: =IF(AND(INTRO!$E$37="Non-endemic",INTRO!$E$41="Non-endemic"),0,IF(AND(OR(COUNTRY_INFO!$H47=0,COUNTRY_INFO!$H47=4,COUNTRY_INFO!$H47=99),OR(COUNTRY_INFO!$J47=0,COUNTRY_INFO!$J47=4)),0,COUNTRY_INFO!$E47)) -> 144467 | E47: =IF(AND(INTRO!$E$37="Non-endemic",INTRO!$E$41="Non-endemic"),0,IF(AND(OR(COUNTRY_INFO!$H47=0,COUNTRY_INFO!$H47=4,COUNTRY_INFO!$H47=99),OR(COUNTRY_INFO!$J47=0,COUNTRY_INFO!$J47=4)),0,COUNTRY_INFO!$F47)) -> 251914 | F47: 396381 | G47: =IF(AND(INTRO!$E$37="Non-endemic",INTRO!$E$41="Non-endemic"),0,COUNTRY_INFO!Q47) -> 0 | H47: =IF(AND(INTRO!$E$37="Non-endemic",INTRO!$E$41="Non-endemic"),0,COUNTRY_INFO!S47) -> 0 | I47: =IF($G47=1,IVM!$G47,0) -> 0 | J47: =IF($G47=0, " ", IF(COUNTRY_INFO!$H47=1, IF(COUNTRY_INFO!$L47=1, 0," ")," ")) ->  | L47: ALB | M47: =IF($L47="ALB", IF(INTRO!$E$39="Non-endemic",IF($H47<>0,$D47*($H47-$G47),0),$D47*$H47), 0) -> 0 | N47: 0 | P47: 0 | Q47: =IF($L47="MBD", IF(INTRO!$E$39="Non-endemic",IF($H47<>0,$D47*($H47-$G47),0),$D47*$H47),0) -> 0 | R47: 0 | T47: 0 | V47: 0 | W47: 0 | Y47: 0 | Z47: 0 | AB47: 0 | AC47: 0 | AD47: =COUNTRY_INFO!I47 -> 4
A48: =IF(AND(INTRO!$E$37="Non-endemic",INTRO!$E$41="Non-endemic")," ",IF(COUNTRY_INFO!A48=0," ",COUNTRY_INFO!A48)) -> ANGOLA | B48: =IF(AND(INTRO!$E$37="Non-endemic",INTRO!$E$41="Non-endemic")," ",IF(COUNTRY_INFO!B48=0," ",COUNTRY_INFO!B48)) -> HUAMBO | C48: =IF(AND(INTRO!$E$37="Non-endemic",INTRO!$E$41="Non-endemic")," ",IF(COUNTRY_INFO!C48=0," ",COUNTRY_INFO!C48)) -> CACHIUNGO | D48: =IF(AND(INTRO!$E$37="Non-endemic",INTRO!$E$41="Non-endemic"),0,IF(AND(OR(COUNTRY_INFO!$H48=0,COUNTRY_INFO!$H48=4,COUNTRY_INFO!$H48=99),OR(COUNTRY_INFO!$J48=0,COUNTRY_INFO!$J48=4)),0,COUNTRY_INFO!$E48)) -> 24447 | E48: =IF(AND(INTRO!$E$37="Non-endemic",INTRO!$E$41="Non-endemic"),0,IF(AND(OR(COUNTRY_INFO!$H48=0,COUNTRY_INFO!$H48=4,COUNTRY_INFO!$H48=99),OR(COUNTRY_INFO!$J48=0,COUNTRY_INFO!$J48=4)),0,COUNTRY_INFO!$F48)) -> 42629 | F48: 67076 | G48: =IF(AND(INTRO!$E$37="Non-endemic",INTRO!$E$41="Non-endemic"),0,COUNTRY_INFO!Q48) -> 0 | H48: =IF(AND(INTRO!$E$37="Non-endemic",INTRO!$E$41="Non-endemic"),0,COUNTRY_INFO!S48) -> 0 | I48: =IF($G48=1,IVM!$G48,0) -> 0 | J48: =IF($G48=0, " ", IF(COUNTRY_INFO!$H48=1, IF(COUNTRY_INFO!$L48=1, 0," ")," ")) ->  | L48: ALB | M48: =IF($L48="ALB", IF(INTRO!$E$39="Non-endemic",IF($H48<>0,$D48*($H48-$G48),0),$D48*$H48), 0) -> 0 | N48: 0 | P48: 0 | Q48: =IF($L48="MBD", IF(INTRO!$E$39="Non-endemic",IF($H48<>0,$D48*($H48-$G48),0),$D48*$H48),0) -> 0 | R48: 0 | T48: 0 | V48: 0 | W48: 0 | Y48: 0 | Z48: 0 | AB48: 0 | AC48: 0 | AD48: =COUNTRY_INFO!I48 -> 4
A49: =IF(AND(INTRO!$E$37="Non-endemic",INTRO!$E$41="Non-endemic")," ",IF(COUNTRY_INFO!A49=0," ",COUNTRY_INFO!A49)) -> ANGOLA | B49: =IF(AND(INTRO!$E$37="Non-endemic",INTRO!$E$41="Non-endemic")," ",IF(COUNTRY_INFO!B49=0," ",COUNTRY_INFO!B49)) -> HUAMBO | C49: =IF(AND(INTRO!$E$37="Non-endemic",INTRO!$E$41="Non-endemic")," ",IF(COUNTRY_INFO!C49=0," ",COUNTRY_INFO!C49)) -> LONDUIMBALI | D49: =IF(AND(INTRO!$E$37="Non-endemic",INTRO!$E$41="Non-endemic"),0,IF(AND(OR(COUNTRY_INFO!$H49=0,COUNTRY_INFO!$H49=4,COUNTRY_INFO!$H49=99),OR(COUNTRY_INFO!$J49=0,COUNTRY_INFO!$J49=4)),0,COUNTRY_INFO!$E49)) -> 27197 | E49: =IF(AND(INTRO!$E$37="Non-endemic",INTRO!$E$41="Non-endemic"),0,IF(AND(OR(COUNTRY_INFO!$H49=0,COUNTRY_INFO!$H49=4,COUNTRY_INFO!$H49=99),OR(COUNTRY_INFO!$J49=0,COUNTRY_INFO!$J49=4)),0,COUNTRY_INFO!$F49)) -> 47425 | F49: 74622 | G49: =IF(AND(INTRO!$E$37="Non-endemic",INTRO!$E$41="Non-endemic"),0,COUNTRY_INFO!Q49) -> 0 | H49: =IF(AND(INTRO!$E$37="Non-endemic",INTRO!$E$41="Non-endemic"),0,COUNTRY_INFO!S49) -> 0 | I49: =IF($G49=1,IVM!$G49,0) -> 0 | J49: =IF($G49=0, " ", IF(COUNTRY_INFO!$H49=1, IF(COUNTRY_INFO!$L49=1, 0," ")," ")) ->  | L49: ALB | M49: =IF($L49="ALB", IF(INTRO!$E$39="Non-endemic",IF($H49<>0,$D49*($H49-$G49),0),$D49*$H49), 0) -> 0 | N49: 0 | P49: 0 | Q49: =IF($L49="MBD", IF(INTRO!$E$39="Non-endemic",IF($H49<>0,$D49*($H49-$G49),0),$D49*$H49),0) -> 0 | R49: 0 | T49: 0 | V49: 0 | W49: 0 | Y49: 0 | Z49: 0 | AB49: 0 | AC49: 0 | AD49: =COUNTRY_INFO!I49 -> 4
A50: =IF(AND(INTRO!$E$37="Non-endemic",INTRO!$E$41="Non-endemic")," ",IF(COUNTRY_INFO!A50=0," ",COUNTRY_INFO!A50)) -> ANGOLA | B50: =IF(AND(INTRO!$E$37="Non-endemic",INTRO!$E$41="Non-endemic")," ",IF(COUNTRY_INFO!B50=0," ",COUNTRY_INFO!B50)) -> HUAMBO | C50: =IF(AND(INTRO!$E$37="Non-endemic",INTRO!$E$41="Non-endemic")," ",IF(COUNTRY_INFO!C50=0," ",COUNTRY_INFO!C50)) -> LONGONJO | D50: =IF(AND(INTRO!$E$37="Non-endemic",INTRO!$E$41="Non-endemic"),0,IF(AND(OR(COUNTRY_INFO!$H50=0,COUNTRY_INFO!$H50=4,COUNTRY_INFO!$H50=99),OR(COUNTRY_INFO!$J50=0,COUNTRY_INFO!$J50=4)),0,COUNTRY_INFO!$E50)) -> 18658 | E50: =IF(AND(INTRO!$E$37="Non-endemic",INTRO!$E$41="Non-endemic"),0,IF(AND(OR(COUNTRY_INFO!$H50=0,COUNTRY_INFO!$H50=4,COUNTRY_INFO!$H50=99),OR(COUNTRY_INFO!$J50=0,COUNTRY_INFO!$J50=4)),0,COUNTRY_INFO!$F50)) -> 32535 | F50: 51193 | G50: =IF(AND(INTRO!$E$37="Non-endemic",INTRO!$E$41="Non-endemic"),0,COUNTRY_INFO!Q50) -> 0 | H50: =IF(AND(INTRO!$E$37="Non-endemic",INTRO!$E$41="Non-endemic"),0,COUNTRY_INFO!S50) -> 0 | I50: =IF($G50=1,IVM!$G50,0) -> 0 | J50: =IF($G50=0, " ", IF(COUNTRY_INFO!$H50=1, IF(COUNTRY_INFO!$L50=1, 0," ")," ")) ->  | L50: ALB | M50: =IF($L50="ALB", IF(INTRO!$E$39="Non-endemic",IF($H50<>0,$D50*($H50-$G50),0),$D50*$H50), 0) -> 0 | N50: 0 | P50: 0 | Q50: =IF($L50="MBD", IF(INTRO!$E$39="Non-endemic",IF($H50<>0,$D50*($H50-$G50),0),$D50*$H50),0) -> 0 | R50: 0 | T50: 0 | V50: 0 | W50: 0 | Y50: 0 | Z50: 0 | AB50: 0 | AC50: 0 | AD50: =COUNTRY_INFO!I50 -> 4
A51: =IF(AND(INTRO!$E$37="Non-endemic",INTRO!$E$41="Non-endemic")," ",IF(COUNTRY_INFO!A51=0," ",COUNTRY_INFO!A51)) -> ANGOLA | B51: =IF(AND(INTRO!$E$37="Non-endemic",INTRO!$E$41="Non-endemic")," ",IF(COUNTRY_INFO!B51=0," ",COUNTRY_INFO!B51)) -> HUAMBO | C51: =IF(AND(INTRO!$E$37="Non-endemic",INTRO!$E$41="Non-endemic")," ",IF(COUNTRY_INFO!C51=0," ",COUNTRY_INFO!C51)) -> MUNGO | D51: =IF(AND(INTRO!$E$37="Non-endemic",INTRO!$E$41="Non-endemic"),0,IF(AND(OR(COUNTRY_INFO!$H51=0,COUNTRY_INFO!$H51=4,COUNTRY_INFO!$H51=99),OR(COUNTRY_INFO!$J51=0,COUNTRY_INFO!$J51=4)),0,COUNTRY_INFO!$E51)) -> 0 | E51: =IF(AND(INTRO!$E$37="Non-endemic",INTRO!$E$41="Non-endemic"),0,IF(AND(OR(COUNTRY_INFO!$H51=0,COUNTRY_INFO!$H51=4,COUNTRY_INFO!$H51=99),OR(COUNTRY_INFO!$J51=0,COUNTRY_INFO!$J51=4)),0,COUNTRY_INFO!$F51)) -> 0 | F51: 0 | G51: =IF(AND(INTRO!$E$37="Non-endemic",INTRO!$E$41="Non-endemic"),0,COUNTRY_INFO!Q51) -> 0 | H51: =IF(AND(INTRO!$E$37="Non-endemic",INTRO!$E$41="Non-endemic"),0,COUNTRY_INFO!S51) -> 0 | I51: =IF($G51=1,IVM!$G51,0) -> 0 | J51: =IF($G51=0, " ", IF(COUNTRY_INFO!$H51=1, IF(COUNTRY_INFO!$L51=1, 0," ")," ")) ->  | L51: ALB | M51: =IF($L51="ALB", IF(INTRO!$E$39="Non-endemic",IF($H51<>0,$D51*($H51-$G51),0),$D51*$H51), 0) -> 0 | N51: 0 | P51: 0 | Q51: =IF($L51="MBD", IF(INTRO!$E$39="Non-endemic",IF($H51<>0,$D51*($H51-$G51),0),$D51*$H51),0) -> 0 | R51: 0 | T51: 0 | V51: 0 | W51: 0 | Y51: 0 | Z51: 0 | AB51: 0 | AC51: 0 | AD51: =COUNTRY_INFO!I51 -> 1
A52: =IF(AND(INTRO!$E$37="Non-endemic",INTRO!$E$41="Non-endemic")," ",IF(COUNTRY_INFO!A52=0," ",COUNTRY_INFO!A52)) -> ANGOLA | B52: =IF(AND(INTRO!$E$37="Non-endemic",INTRO!$E$41="Non-endemic")," ",IF(COUNTRY_INFO!B52=0," ",COUNTRY_INFO!B52)) -> HUAMBO | C52: =IF(AND(INTRO!$E$37="Non-endemic",INTRO!$E$41="Non-endemic")," ",IF(COUNTRY_INFO!C52=0," ",COUNTRY_INFO!C52)) -> CHICALA CHOLOHANGA | D52: =IF(AND(INTRO!$E$37="Non-endemic",INTRO!$E$41="Non-endemic"),0,IF(AND(OR(COUNTRY_INFO!$H52=0,COUNTRY_INFO!$H52=4,COUNTRY_INFO!$H52=99),OR(COUNTRY_INFO!$J52=0,COUNTRY_INFO!$J52=4)),0,COUNTRY_INFO!$E52)) -> 20997 | E52: =IF(AND(INTRO!$E$37="Non-endemic",INTRO!$E$41="Non-endemic"),0,IF(AND(OR(COUNTRY_INFO!$H52=0,COUNTRY_INFO!$H52=4,COUNTRY_INFO!$H52=99),OR(COUNTRY_INFO!$J52=0,COUNTRY_INFO!$J52=4)),0,COUNTRY_INFO!$F52)) -> 36613 | F52: 57610 | G52: =IF(AND(INTRO!$E$37="Non-endemic",INTRO!$E$41="Non-endemic"),0,COUNTRY_INFO!Q52) -> 0 | H52: =IF(AND(INTRO!$E$37="Non-endemic",INTRO!$E$41="Non-endemic"),0,COUNTRY_INFO!S52) -> 0 | I52: =IF($G52=1,IVM!$G52,0) -> 0 | J52: =IF($G52=0, " ", IF(COUNTRY_INFO!$H52=1, IF(COUNTRY_INFO!$L52=1, 0," ")," ")) ->  | L52: ALB | M52: =IF($L52="ALB", IF(INTRO!$E$39="Non-endemic",IF($H52<>0,$D52*($H52-$G52),0),$D52*$H52), 0) -> 0 | N52: 0 | P52: 0 | Q52: =IF($L52="MBD", IF(INTRO!$E$39="Non-endemic",IF($H52<>0,$D52*($H52-$G52),0),$D52*$H52),0) -> 0 | R52: 0 | T52: 0 | V52: 0 | W52: 0 | Y52: 0 | Z52: 0 | AB52: 0 | AC52: 0 | AD52: =COUNTRY_INFO!I52 -> 4
